Workbook

Sheet welcome
D2: بسم الله الرحمن الرحيم

Sheet البيانات الأساسية
A1: إدارة /غرب المحلة الكبرى التعليمية | C1: غير اسم المدرسة
A2: مدرسة د/علي علي حبيش الابتدائية | C2: غير اسم الإدارة
A4: كشف مناداة الصف الثاني فصل أول وثانٍ للعام الدراسي 2019/2018
A5: كشف مناداة الصف الثالث فصل أول وثانٍ للعام الدراسي 2019/2018
A6: كشف مناداة الصف الرابع فصل أول وثانٍ للعام الدراسي 2019/2018
A7: كشف مناداة الصف الخامس فصل أول وثانٍ للعام الدراسي 2019/2018
A8: كشف مناداة الصف السادس فصل أول وثانٍ للعام الدراسي 2019/2018
A10: مراقب الكنترول | C10: رئيس الكنترول
A11: أ/ عبد الحميد | C11: أ/ عبد الحميد

Sheet جدول الصف الثاني
A1: ='البيانات الأساسية'!$A$1 -> إدارة /غرب المحلة الكبرى التعليمية
A2: ='البيانات الأساسية'!$A$2 -> مدرسة د/علي علي حبيش الابتدائية
B4: جدول امتحان الفصل الدراسي الأول / الثاني للعام الدراسي 2019/2018
C5: الصف الثاني
B6: اليوم والترايخ | C6: المـــــــــــــــــــــــــــادة | D6: الزمن | F6: الزمن
D7: من | E7: إلي
B8: السبت | C8: لغة عربية وخط | D8: 8 | E8: 10 | F8: ساعتان
B9: 2018-01-01 | C9: التربية الدينية | D9: 10.15 | E9: 11.45 | F9: ساعة
B10: الأحد | C10: الرياضيات | D10: 8 | E10: 9.3 | F10: ساعة ونصف
B11: 2018-01-02 | C11: اللغة الإنجليزية {شفهي} | D11: 9.45 | E11: 11.15 | F11: ساعة ونصف

Sheet قائمة الصف الثاني
A1: عدد اللجان | B1: من | C1: إلى | D1: اللجنة | E1: =MAX(M:M) -> 580 | G1: حدد بنفسك العدد باللجنة | H1: عدد اللجنة | I1: من | J1: إلى | L1: عدد طلابك | N1: =MAX(M:M) -> 580 | O1: اكتب بداية رقم الجلوس | P1: 30 | Q1: بنون | R1: =COUNTIFS(P4:P603,"ذكر") -> 26 | S1: مسلم | T1: =COUNTIFS(R3:R602,"مسلم") -> 8
A2: =IF($H2="","",MAX($F$1:$F1)+1) -> 1 | B2: =P1 -> 30 | C2: =IF(H2="","",B2+H2-1) -> 49 | D2: =IF($H2="","",MAX($F$1:$F1)+1) -> 1 | E2: =IF($H2="","","اللجنة") -> اللجنة | F2: =IF($H2="","",MAX($F$1:$F1)+1) -> 1 | H2: =IF(SUM($H$1:$H1,IF(G2="",20,G2))<$E$1,IF($G2="",20,$G2),IF(SUM($H1:$H$2)=$E$1,"",$E$1-SUM($H1:$H$2))) -> 20 | I2: =IF($H2="","",SUM($H$1:$H1)+1) -> 1 | J2: =IF($H2="","",SUM($H2,$I2,-1)) -> 20 | K2: =IF($H2="","",MAX($F$1:$F1)+1) -> 1 | L2: آخر رقم جلوس | N2: =MAX(B2:C43) -> 609 | O2: الصف الثاني | Q2: بنات | R2: =COUNTIFS(P4:P603,"انثى") -> 21 | S2: مسيحي | T2: =COUNTIFS(R4:R603,"مسيحي") -> 0
A3: =IF($H3="","",MAX($F$1:$F2)+1) -> 2 | B3: =IF(H1="","",IF(A3="","",C2+1)) -> 50 | C3: =IF(H2="","",IF(A3="","",B3+H3-1)) -> 69 | D3: =IF($H3="","",MAX($F$1:$F2)+1) -> 2 | E3: =IF($H3="","","اللجنة") -> اللجنة | F3: =IF($H3="","",MAX($F$1:$F2)+1) -> 2 | H3: =IF(SUM($H$1:$H2,IF(G3="",20,G3))<$E$1,IF($G3="",20,$G3),IF(SUM($H2:$H$2)=$E$1,"",$E$1-SUM($H2:$H$2))) -> 20 | I3: =IF($H3="","",SUM($H$1:$H2)+1) -> 21 | J3: =IF($H3="","",SUM($H3,$I3,-1)) -> 40 | K3: =IF($H3="","",MAX($F$1:$F2)+1) -> 2 | M3: م | N3: رقم الجلوس | O3: الاســــــــــــــــــــــــم | P3: النوع | Q3: حالقة القيد | R3: الديانة | S3: رقم اللجنة | T3: ملاحظات
A4: =IF($H4="","",MAX($F$1:$F3)+1) -> 3 | B4: =IF(H2="","",IF(A4="","",C3+1)) -> 70 | C4: =IF(H3="","",IF(A4="","",B4+H4-1)) -> 89 | D4: =IF($H4="","",MAX($F$1:$F3)+1) -> 3 | E4: =IF($H4="","","اللجنة") -> اللجنة | F4: =IF($H4="","",MAX($F$1:$F3)+1) -> 3 | H4: =IF(SUM($H$1:$H3,IF(G4="",20,G4))<$E$1,IF($G4="",20,$G4),IF(SUM($H$2:$H3)=$E$1,"",$E$1-SUM($H$2:$H3))) -> 20 | I4: =IF($H4="","",SUM($H$1:$H3)+1) -> 41 | J4: =IF($H4="","",SUM($H4,$I4,-1)) -> 60 | K4: =IF($H4="","",MAX($F$1:$F3)+1) -> 3 | M4: =IF(O4="","",MAX($M$3:$M3)+1) -> 1 | N4: =B2 -> 30 | O4: حسن1 | P4: ذكر | R4: مسلم | S4: =IF(M4="","",IF(ISERROR(MATCH($M4,$I:$I,0)),S3,MAX($S$3:$S3)+1)) -> 1 | T4: =IF(S4=S5,"","نهاية اللجنة") ->  | U4: ذكر
A5: =IF($H5="","",MAX($F$1:$F4)+1) -> 4 | B5: 90 | C5: 109 | D5: =IF($H5="","",MAX($F$1:$F4)+1) -> 4 | E5: اللجنة | F5: =IF($H5="","",MAX($F$1:$F4)+1) -> 4 | H5: =IF(SUM($H$1:$H4,IF(G5="",20,G5))<$E$1,IF($G5="",20,$G5),IF(SUM($H$2:$H4)=$E$1,"",$E$1-SUM($H$2:$H4))) -> 20 | I5: =IF($H5="","",SUM($H$1:$H4)+1) -> 61 | J5: 80 | K5: =IF($H5="","",MAX($F$1:$F4)+1) -> 4 | M5: =IF(O5="","",MAX($M$3:$M4)+1) -> 2 | N5: =IF(M5="","",N4+1) -> 31 | O5: حسن2 | P5: ذكر | S5: =IF(M5="","",IF(ISERROR(MATCH($M5,$I:$I,0)),S4,MAX($S$3:$S4)+1)) -> 1 | T5: =IF(S5=S6,"","نهاية اللجنة") ->  | U5: انثى
A6: =IF($H6="","",MAX($F$1:$F5)+1) -> 5 | B6: 110 | C6: 129 | D6: =IF($H6="","",MAX($F$1:$F5)+1) -> 5 | E6: اللجنة | F6: =IF($H6="","",MAX($F$1:$F5)+1) -> 5 | H6: =IF(SUM($H$1:$H5,IF(G6="",20,G6))<$E$1,IF($G6="",20,$G6),IF(SUM($H$2:$H5)=$E$1,"",$E$1-SUM($H$2:$H5))) -> 20 | I6: =IF($H6="","",SUM($H$1:$H5)+1) -> 81 | J6: 100 | K6: =IF($H6="","",MAX($F$1:$F5)+1) -> 5 | M6: =IF(O6="","",MAX($M$3:$M5)+1) -> 3 | N6: =IF(M6="","",N5+1) -> 32 | O6: حسن3 | P6: ذكر | R6: مسلم | S6: =IF(M6="","",IF(ISERROR(MATCH($M6,$I:$I,0)),S5,MAX($S$3:$S5)+1)) -> 1
A7: =IF($H7="","",MAX($F$1:$F6)+1) -> 6 | B7: 130 | C7: 149 | D7: =IF($H7="","",MAX($F$1:$F6)+1) -> 6 | E7: اللجنة | F7: =IF($H7="","",MAX($F$1:$F6)+1) -> 6 | H7: =IF(SUM($H$1:$H6,IF(G7="",20,G7))<$E$1,IF($G7="",20,$G7),IF(SUM($H$2:$H6)=$E$1,"",$E$1-SUM($H$2:$H6))) -> 20 | I7: =IF($H7="","",SUM($H$1:$H6)+1) -> 101 | J7: 120 | K7: =IF($H7="","",MAX($F$1:$F6)+1) -> 6 | M7: =IF(O7="","",MAX($M$3:$M6)+1) -> 4 | N7: 33 | O7: حسن4 | P7: ذكر | Q7: معيد | S7: =IF(M7="","",IF(ISERROR(MATCH($M7,$I:$I,0)),S6,MAX($S$3:$S6)+1)) -> 1 | U7: =MAX(J:J) -> 580
A8: =IF($H8="","",MAX($F$1:$F7)+1) -> 7 | B8: 150 | C8: 169 | D8: =IF($H8="","",MAX($F$1:$F7)+1) -> 7 | E8: اللجنة | F8: =IF($H8="","",MAX($F$1:$F7)+1) -> 7 | H8: =IF(SUM($H$1:$H7,IF(G8="",20,G8))<$E$1,IF($G8="",20,$G8),IF(SUM($H$2:$H7)=$E$1,"",$E$1-SUM($H$2:$H7))) -> 20 | I8: =IF($H8="","",SUM($H$1:$H7)+1) -> 121 | J8: 140 | K8: =IF($H8="","",MAX($F$1:$F7)+1) -> 7 | M8: =IF(O8="","",MAX($M$3:$M7)+1) -> 5 | N8: 34 | O8: حسن5 | P8: ذكر | S8: =IF(M8="","",IF(ISERROR(MATCH($M8,$I:$I,0)),S7,MAX($S$3:$S7)+1)) -> 1 | U8: =IF(U7=N1,"التلاميذ مقسمون التقسيم الصحيح","راجع من فضلك تقسيم اللجان") -> التلاميذ مقسمون التقسيم الصحيح
A9: =IF($H9="","",MAX($F$1:$F8)+1) -> 8 | B9: 170 | C9: 189 | D9: =IF($H9="","",MAX($F$1:$F8)+1) -> 8 | E9: اللجنة | F9: =IF($H9="","",MAX($F$1:$F8)+1) -> 8 | H9: =IF(SUM($H$1:$H8,IF(G9="",20,G9))<$E$1,IF($G9="",20,$G9),IF(SUM($H$2:$H8)=$E$1,"",$E$1-SUM($H$2:$H8))) -> 20 | I9: =IF($H9="","",SUM($H$1:$H8)+1) -> 141 | J9: 160 | K9: =IF($H9="","",MAX($F$1:$F8)+1) -> 8 | L9: =IF(N1=0,"من فضلك سجل الاسماء",IF(N2=0," من فضلك سجل الاسماء;""",)) -> 0 | M9: =IF(O9="","",MAX($M$3:$M8)+1) -> 6 | N9: 35 | O9: حسن6 | P9: ذكر | R9: مسلم | S9: =IF(M9="","",IF(ISERROR(MATCH($M9,$I:$I,0)),S8,MAX($S$3:$S8)+1)) -> 1
A10: =IF($H10="","",MAX($F$1:$F9)+1) -> 9 | B10: 190 | C10: 209 | D10: =IF($H10="","",MAX($F$1:$F9)+1) -> 9 | E10: اللجنة | F10: =IF($H10="","",MAX($F$1:$F9)+1) -> 9 | H10: =IF(SUM($H$1:$H9,IF(G10="",20,G10))<$E$1,IF($G10="",20,$G10),IF(SUM($H$2:$H9)=$E$1,"",$E$1-SUM($H$2:$H9))) -> 20 | I10: =IF($H10="","",SUM($H$1:$H9)+1) -> 161 | J10: 180 | K10: =IF($H10="","",MAX($F$1:$F9)+1) -> 9 | M10: =IF(O10="","",MAX($M$3:$M9)+1) -> 7 | N10: 36 | O10: حسن7 | P10: ذكر | R10: مسلم | S10: =IF(M10="","",IF(ISERROR(MATCH($M10,$I:$I,0)),S9,MAX($S$3:$S9)+1)) -> 1
A11: =IF($H11="","",MAX($F$1:$F10)+1) -> 10 | B11: 210 | C11: 229 | D11: =IF($H11="","",MAX($F$1:$F10)+1) -> 10 | E11: اللجنة | F11: =IF($H11="","",MAX($F$1:$F10)+1) -> 10 | H11: =IF(SUM($H$1:$H10,IF(G11="",20,G11))<$E$1,IF($G11="",20,$G11),IF(SUM($H$2:$H10)=$E$1,"",$E$1-SUM($H$2:$H10))) -> 20 | I11: =IF($H11="","",SUM($H$1:$H10)+1) -> 181 | J11: 200 | K11: =IF($H11="","",MAX($F$1:$F10)+1) -> 10 | M11: =IF(O11="","",MAX($M$3:$M10)+1) -> 8 | N11: 37 | O11: حسن8 | P11: ذكر | S11: =IF(M11="","",IF(ISERROR(MATCH($M11,$I:$I,0)),S10,MAX($S$3:$S10)+1)) -> 1
A12: =IF($H12="","",MAX($F$1:$F11)+1) -> 11 | B12: 230 | C12: 249 | D12: =IF($H12="","",MAX($F$1:$F11)+1) -> 11 | E12: اللجنة | F12: =IF($H12="","",MAX($F$1:$F11)+1) -> 11 | H12: =IF(SUM($H$1:$H11,IF(G12="",20,G12))<$E$1,IF($G12="",20,$G12),IF(SUM($H$2:$H11)=$E$1,"",$E$1-SUM($H$2:$H11))) -> 20 | I12: =IF($H12="","",SUM($H$1:$H11)+1) -> 201 | J12: 220 | K12: =IF($H12="","",MAX($F$1:$F11)+1) -> 11 | M12: =IF(O12="","",MAX($M$3:$M11)+1) -> 9 | N12: 38 | O12: حسن9 | P12: ذكر | Q12: معيد | S12: =IF(M12="","",IF(ISERROR(MATCH($M12,$I:$I,0)),S11,MAX($S$3:$S11)+1)) -> 1
A13: =IF($H13="","",MAX($F$1:$F12)+1) -> 12 | B13: 250 | C13: 269 | D13: =IF($H13="","",MAX($F$1:$F12)+1) -> 12 | E13: اللجنة | F13: =IF($H13="","",MAX($F$1:$F12)+1) -> 12 | H13: =IF(SUM($H$1:$H12,IF(G13="",20,G13))<$E$1,IF($G13="",20,$G13),IF(SUM($H$2:$H12)=$E$1,"",$E$1-SUM($H$2:$H12))) -> 20 | I13: =IF($H13="","",SUM($H$1:$H12)+1) -> 221 | J13: 240 | K13: =IF($H13="","",MAX($F$1:$F12)+1) -> 12 | M13: =IF(O13="","",MAX($M$3:$M12)+1) -> 10 | N13: 39 | O13: حسن10 | P13: ذكر | R13: مسلم | S13: =IF(M13="","",IF(ISERROR(MATCH($M13,$I:$I,0)),S12,MAX($S$3:$S12)+1)) -> 1
A14: =IF($H14="","",MAX($F$1:$F13)+1) -> 13 | B14: 270 | C14: 289 | D14: =IF($H14="","",MAX($F$1:$F13)+1) -> 13 | E14: اللجنة | F14: =IF($H14="","",MAX($F$1:$F13)+1) -> 13 | H14: =IF(SUM($H$1:$H13,IF(G14="",20,G14))<$E$1,IF($G14="",20,$G14),IF(SUM($H$2:$H13)=$E$1,"",$E$1-SUM($H$2:$H13))) -> 20 | I14: =IF($H14="","",SUM($H$1:$H13)+1) -> 241 | J14: 260 | K14: =IF($H14="","",MAX($F$1:$F13)+1) -> 13 | M14: =IF(O14="","",MAX($M$3:$M13)+1) -> 11 | N14: 40 | O14: حسن11 | P14: ذكر | Q14: م للسنة الأولي | S14: =IF(M14="","",IF(ISERROR(MATCH($M14,$I:$I,0)),S13,MAX($S$3:$S13)+1)) -> 1
A15: =IF($H15="","",MAX($F$1:$F14)+1) -> 14 | B15: 290 | C15: 309 | D15: =IF($H15="","",MAX($F$1:$F14)+1) -> 14 | E15: اللجنة | F15: =IF($H15="","",MAX($F$1:$F14)+1) -> 14 | H15: =IF(SUM($H$1:$H14,IF(G15="",20,G15))<$E$1,IF($G15="",20,$G15),IF(SUM($H$2:$H14)=$E$1,"",$E$1-SUM($H$2:$H14))) -> 20 | I15: =IF($H15="","",SUM($H$1:$H14)+1) -> 261 | J15: 280 | K15: =IF($H15="","",MAX($F$1:$F14)+1) -> 14 | M15: =IF(O15="","",MAX($M$3:$M14)+1) -> 12 | N15: 41 | O15: حسن12 | P15: ذكر | S15: =IF(M15="","",IF(ISERROR(MATCH($M15,$I:$I,0)),S14,MAX($S$3:$S14)+1)) -> 1
A16: =IF($H16="","",MAX($F$1:$F15)+1) -> 15 | B16: 310 | C16: 329 | D16: =IF($H16="","",MAX($F$1:$F15)+1) -> 15 | E16: اللجنة | F16: =IF($H16="","",MAX($F$1:$F15)+1) -> 15 | H16: =IF(SUM($H$1:$H15,IF(G16="",20,G16))<$E$1,IF($G16="",20,$G16),IF(SUM($H$2:$H15)=$E$1,"",$E$1-SUM($H$2:$H15))) -> 20 | I16: =IF($H16="","",SUM($H$1:$H15)+1) -> 281 | J16: 300 | K16: =IF($H16="","",MAX($F$1:$F15)+1) -> 15 | M16: =IF(O16="","",MAX($M$3:$M15)+1) -> 13 | N16: 42 | O16: حسن13 | P16: ذكر | R16: مسلم | S16: =IF(M16="","",IF(ISERROR(MATCH($M16,$I:$I,0)),S15,MAX($S$3:$S15)+1)) -> 1 | U16: =MAX(C:C) -> 609
A17: =IF($H17="","",MAX($F$1:$F16)+1) -> 16 | B17: 330 | C17: 349 | D17: =IF($H17="","",MAX($F$1:$F16)+1) -> 16 | E17: اللجنة | F17: =IF($H17="","",MAX($F$1:$F16)+1) -> 16 | H17: =IF(SUM($H$1:$H16,IF(G17="",20,G17))<$E$1,IF($G17="",20,$G17),IF(SUM($H$2:$H16)=$E$1,"",$E$1-SUM($H$2:$H16))) -> 20 | I17: =IF($H17="","",SUM($H$1:$H16)+1) -> 301 | J17: 320 | K17: =IF($H17="","",MAX($F$1:$F16)+1) -> 16 | M17: =IF(O17="","",MAX($M$3:$M16)+1) -> 14 | N17: 43 | O17: حسن14 | P17: ذكر | S17: =IF(M17="","",IF(ISERROR(MATCH($M17,$I:$I,0)),S16,MAX($S$3:$S16)+1)) -> 1 | U17: =IF(U16=N2,"أرقام جلوس الفصل سليمة","رجاءً راجع أرقام الجلوس") -> أرقام جلوس الفصل سليمة
A18: =IF($H18="","",MAX($F$1:$F17)+1) -> 17 | B18: 350 | C18: 369 | D18: =IF($H18="","",MAX($F$1:$F17)+1) -> 17 | E18: اللجنة | F18: =IF($H18="","",MAX($F$1:$F17)+1) -> 17 | H18: =IF(SUM($H$1:$H17,IF(G18="",20,G18))<$E$1,IF($G18="",20,$G18),IF(SUM($H$2:$H17)=$E$1,"",$E$1-SUM($H$2:$H17))) -> 20 | I18: =IF($H18="","",SUM($H$1:$H17)+1) -> 321 | J18: 340 | K18: =IF($H18="","",MAX($F$1:$F17)+1) -> 17 | M18: =IF(O18="","",MAX($M$3:$M17)+1) -> 15 | N18: 44 | O18: حسن15 | P18: ذكر | S18: =IF(M18="","",IF(ISERROR(MATCH($M18,$I:$I,0)),S17,MAX($S$3:$S17)+1)) -> 1
A19: =IF($H19="","",MAX($F$1:$F18)+1) -> 18 | B19: 370 | C19: 389 | D19: =IF($H19="","",MAX($F$1:$F18)+1) -> 18 | E19: اللجنة | F19: =IF($H19="","",MAX($F$1:$F18)+1) -> 18 | H19: =IF(SUM($H$1:$H18,IF(G19="",20,G19))<$E$1,IF($G19="",20,$G19),IF(SUM($H$2:$H18)=$E$1,"",$E$1-SUM($H$2:$H18))) -> 20 | I19: =IF($H19="","",SUM($H$1:$H18)+1) -> 341 | J19: 360 | K19: =IF($H19="","",MAX($F$1:$F18)+1) -> 18 | M19: =IF(O19="","",MAX($M$3:$M18)+1) -> 16 | N19: 45 | O19: حسن16 | P19: ذكر | S19: =IF(M19="","",IF(ISERROR(MATCH($M19,$I:$I,0)),S18,MAX($S$3:$S18)+1)) -> 1
A20: =IF($H20="","",MAX($F$1:$F19)+1) -> 19 | B20: 390 | C20: 409 | D20: =IF($H20="","",MAX($F$1:$F19)+1) -> 19 | E20: اللجنة | F20: =IF($H20="","",MAX($F$1:$F19)+1) -> 19 | H20: =IF(SUM($H$1:$H19,IF(G20="",20,G20))<$E$1,IF($G20="",20,$G20),IF(SUM($H$2:$H19)=$E$1,"",$E$1-SUM($H$2:$H19))) -> 20 | I20: =IF($H20="","",SUM($H$1:$H19)+1) -> 361 | J20: 380 | K20: =IF($H20="","",MAX($F$1:$F19)+1) -> 19 | M20: =IF(O20="","",MAX($M$3:$M19)+1) -> 17 | N20: 46 | O20: حسن17 | P20: ذكر | S20: =IF(M20="","",IF(ISERROR(MATCH($M20,$I:$I,0)),S19,MAX($S$3:$S19)+1)) -> 1
A21: =IF($H21="","",MAX($F$1:$F20)+1) -> 20 | B21: 410 | C21: 429 | D21: =IF($H21="","",MAX($F$1:$F20)+1) -> 20 | E21: اللجنة | F21: =IF($H21="","",MAX($F$1:$F20)+1) -> 20 | H21: =IF(SUM($H$1:$H20,IF(G21="",20,G21))<$E$1,IF($G21="",20,$G21),IF(SUM($H$2:$H20)=$E$1,"",$E$1-SUM($H$2:$H20))) -> 20 | I21: =IF($H21="","",SUM($H$1:$H20)+1) -> 381 | J21: 400 | K21: =IF($H21="","",MAX($F$1:$F20)+1) -> 20 | M21: =IF(O21="","",MAX($M$3:$M20)+1) -> 18 | N21: 47 | O21: حسن18 | P21: ذكر | R21: مسلم | S21: =IF(M21="","",IF(ISERROR(MATCH($M21,$I:$I,0)),S20,MAX($S$3:$S20)+1)) -> 1
A22: =IF($H22="","",MAX($F$1:$F21)+1) -> 21 | B22: 430 | C22: 449 | D22: =IF($H22="","",MAX($F$1:$F21)+1) -> 21 | E22: اللجنة | F22: =IF($H22="","",MAX($F$1:$F21)+1) -> 21 | H22: =IF(SUM($H$1:$H21,IF(G22="",20,G22))<$E$1,IF($G22="",20,$G22),IF(SUM($H$2:$H21)=$E$1,"",$E$1-SUM($H$2:$H21))) -> 20 | I22: =IF($H22="","",SUM($H$1:$H21)+1) -> 401 | J22: 420 | K22: =IF($H22="","",MAX($F$1:$F21)+1) -> 21 | M22: =IF(O22="","",MAX($M$3:$M21)+1) -> 19 | N22: 48 | O22: حسن19 | P22: ذكر | S22: =IF(M22="","",IF(ISERROR(MATCH($M22,$I:$I,0)),S21,MAX($S$3:$S21)+1)) -> 1
A23: =IF($H23="","",MAX($F$1:$F22)+1) -> 22 | B23: 450 | C23: 469 | D23: =IF($H23="","",MAX($F$1:$F22)+1) -> 22 | E23: اللجنة | F23: =IF($H23="","",MAX($F$1:$F22)+1) -> 22 | H23: =IF(SUM($H$1:$H22,IF(G23="",20,G23))<$E$1,IF($G23="",20,$G23),IF(SUM($H$2:$H22)=$E$1,"",$E$1-SUM($H$2:$H22))) -> 20 | I23: =IF($H23="","",SUM($H$1:$H22)+1) -> 421 | J23: 440 | K23: =IF($H23="","",MAX($F$1:$F22)+1) -> 22 | M23: =IF(O23="","",MAX($M$3:$M22)+1) -> 20 | N23: 49 | O23: حسن20 | P23: ذكر | S23: =IF(M23="","",IF(ISERROR(MATCH($M23,$I:$I,0)),S22,MAX($S$3:$S22)+1)) -> 1 | T23: نهاية اللجنة
A24: =IF($H24="","",MAX($F$1:$F23)+1) -> 23 | B24: 470 | C24: 489 | D24: =IF($H24="","",MAX($F$1:$F23)+1) -> 23 | E24: اللجنة | F24: =IF($H24="","",MAX($F$1:$F23)+1) -> 23 | H24: =IF(SUM($H$1:$H23,IF(G24="",20,G24))<$E$1,IF($G24="",20,$G24),IF(SUM($H$2:$H23)=$E$1,"",$E$1-SUM($H$2:$H23))) -> 20 | I24: =IF($H24="","",SUM($H$1:$H23)+1) -> 441 | J24: 460 | K24: =IF($H24="","",MAX($F$1:$F23)+1) -> 23 | M24: =IF(O24="","",MAX($M$3:$M23)+1) -> 21 | N24: 50 | O24: حسن21 | P24: ذكر | S24: =IF(M24="","",IF(ISERROR(MATCH($M24,$I:$I,0)),S23,MAX($S$3:$S23)+1)) -> 2
A25: =IF($H25="","",MAX($F$1:$F24)+1) -> 24 | B25: 490 | C25: 509 | D25: =IF($H25="","",MAX($F$1:$F24)+1) -> 24 | E25: اللجنة | F25: =IF($H25="","",MAX($F$1:$F24)+1) -> 24 | H25: =IF(SUM($H$1:$H24,IF(G25="",20,G25))<$E$1,IF($G25="",20,$G25),IF(SUM($H$2:$H24)=$E$1,"",$E$1-SUM($H$2:$H24))) -> 20 | I25: =IF($H25="","",SUM($H$1:$H24)+1) -> 461 | J25: 480 | K25: =IF($H25="","",MAX($F$1:$F24)+1) -> 24 | M25: =IF(O25="","",MAX($M$3:$M24)+1) -> 22 | N25: 51 | O25: حسن22 | P25: ذكر | S25: =IF(M25="","",IF(ISERROR(MATCH($M25,$I:$I,0)),S24,MAX($S$3:$S24)+1)) -> 2
A26: =IF($H26="","",MAX($F$1:$F25)+1) -> 25 | B26: 510 | C26: 529 | D26: =IF($H26="","",MAX($F$1:$F25)+1) -> 25 | E26: اللجنة | F26: =IF($H26="","",MAX($F$1:$F25)+1) -> 25 | H26: =IF(SUM($H$1:$H25,IF(G26="",20,G26))<$E$1,IF($G26="",20,$G26),IF(SUM($H$2:$H25)=$E$1,"",$E$1-SUM($H$2:$H25))) -> 20 | I26: =IF($H26="","",SUM($H$1:$H25)+1) -> 481 | J26: 500 | K26: =IF($H26="","",MAX($F$1:$F25)+1) -> 25 | M26: =IF(O26="","",MAX($M$3:$M25)+1) -> 23 | N26: 52 | O26: حسن23 | P26: ذكر | S26: =IF(M26="","",IF(ISERROR(MATCH($M26,$I:$I,0)),S25,MAX($S$3:$S25)+1)) -> 2
A27: =IF($H27="","",MAX($F$1:$F26)+1) -> 26 | B27: 530 | C27: 549 | D27: =IF($H27="","",MAX($F$1:$F26)+1) -> 26 | E27: اللجنة | F27: =IF($H27="","",MAX($F$1:$F26)+1) -> 26 | H27: =IF(SUM($H$1:$H26,IF(G27="",20,G27))<$E$1,IF($G27="",20,$G27),IF(SUM($H$2:$H26)=$E$1,"",$E$1-SUM($H$2:$H26))) -> 20 | I27: =IF($H27="","",SUM($H$1:$H26)+1) -> 501 | J27: 520 | K27: =IF($H27="","",MAX($F$1:$F26)+1) -> 26 | M27: =IF(O27="","",MAX($M$3:$M26)+1) -> 24 | N27: 53 | O27: حسن24 | P27: ذكر | S27: =IF(M27="","",IF(ISERROR(MATCH($M27,$I:$I,0)),S26,MAX($S$3:$S26)+1)) -> 2
A28: =IF($H28="","",MAX($F$1:$F27)+1) -> 27 | B28: 550 | C28: 569 | D28: =IF($H28="","",MAX($F$1:$F27)+1) -> 27 | E28: اللجنة | F28: =IF($H28="","",MAX($F$1:$F27)+1) -> 27 | H28: =IF(SUM($H$1:$H27,IF(G28="",20,G28))<$E$1,IF($G28="",20,$G28),IF(SUM($H$2:$H27)=$E$1,"",$E$1-SUM($H$2:$H27))) -> 20 | I28: =IF($H28="","",SUM($H$1:$H27)+1) -> 521 | J28: 540 | K28: =IF($H28="","",MAX($F$1:$F27)+1) -> 27 | M28: =IF(O28="","",MAX($M$3:$M27)+1) -> 25 | N28: 54 | O28: حسن25 | P28: ذكر | S28: =IF(M28="","",IF(ISERROR(MATCH($M28,$I:$I,0)),S27,MAX($S$3:$S27)+1)) -> 2
A29: =IF($H29="","",MAX($F$1:$F28)+1) -> 28 | B29: 570 | C29: 589 | D29: =IF($H29="","",MAX($F$1:$F28)+1) -> 28 | E29: اللجنة | F29: =IF($H29="","",MAX($F$1:$F28)+1) -> 28 | H29: =IF(SUM($H$1:$H28,IF(G29="",20,G29))<$E$1,IF($G29="",20,$G29),IF(SUM($H$2:$H28)=$E$1,"",$E$1-SUM($H$2:$H28))) -> 20 | I29: =IF($H29="","",SUM($H$1:$H28)+1) -> 541 | J29: 560 | K29: =IF($H29="","",MAX($F$1:$F28)+1) -> 28 | M29: =IF(O29="","",MAX($M$3:$M28)+1) -> 26 | N29: 55 | O29: حسن26 | P29: ذكر | S29: =IF(M29="","",IF(ISERROR(MATCH($M29,$I:$I,0)),S28,MAX($S$3:$S28)+1)) -> 2
A30: =IF($H30="","",MAX($F$1:$F29)+1) -> 29 | B30: 590 | C30: 609 | D30: =IF($H30="","",MAX($F$1:$F29)+1) -> 29 | E30: اللجنة | F30: =IF($H30="","",MAX($F$1:$F29)+1) -> 29 | H30: =IF(SUM($H$1:$H29,IF(G30="",20,G30))<$E$1,IF($G30="",20,$G30),IF(SUM($H$2:$H29)=$E$1,"",$E$1-SUM($H$2:$H29))) -> 20 | I30: =IF($H30="","",SUM($H$1:$H29)+1) -> 561 | J30: 580 | K30: =IF($H30="","",MAX($F$1:$F29)+1) -> 29 | M30: =IF(O30="","",MAX($M$3:$M29)+1) -> 27 | N30: 56 | O30: حسن27 | P30: انثى | S30: =IF(M30="","",IF(ISERROR(MATCH($M30,$I:$I,0)),S29,MAX($S$3:$S29)+1)) -> 2
A31: =IF($H31="","",MAX($F$1:$F30)+1) ->  | D31: =IF($H31="","",MAX($F$1:$F30)+1) ->  | F31: =IF($H31="","",MAX($F$1:$F30)+1) ->  | H31: =IF(SUM($H$1:$H30,IF(G31="",20,G31))<$E$1,IF($G31="",20,$G31),IF(SUM($H$2:$H30)=$E$1,"",$E$1-SUM($H$2:$H30))) ->  | I31: =IF($H31="","",SUM($H$1:$H30)+1) ->  | K31: =IF($H31="","",MAX($F$1:$F30)+1) ->  | M31: =IF(O31="","",MAX($M$3:$M30)+1) -> 28 | N31: 57 | O31: حسن28 | P31: انثى | S31: =IF(M31="","",IF(ISERROR(MATCH($M31,$I:$I,0)),S30,MAX($S$3:$S30)+1)) -> 2
A32: =IF($H32="","",MAX($F$1:$F31)+1) ->  | D32: =IF($H32="","",MAX($F$1:$F31)+1) ->  | F32: =IF($H32="","",MAX($F$1:$F31)+1) ->  | H32: =IF(SUM($H$1:$H31,IF(G32="",20,G32))<$E$1,IF($G32="",20,$G32),IF(SUM($H$2:$H31)=$E$1,"",$E$1-SUM($H$2:$H31))) ->  | I32: =IF($H32="","",SUM($H$1:$H31)+1) ->  | K32: =IF($H32="","",MAX($F$1:$F31)+1) ->  | M32: =IF(O32="","",MAX($M$3:$M31)+1) -> 29 | N32: 58 | O32: حسن29 | P32: انثى | S32: =IF(M32="","",IF(ISERROR(MATCH($M32,$I:$I,0)),S31,MAX($S$3:$S31)+1)) -> 2
A33: =IF($H33="","",MAX($F$1:$F32)+1) ->  | D33: =IF($H33="","",MAX($F$1:$F32)+1) ->  | F33: =IF($H33="","",MAX($F$1:$F32)+1) ->  | H33: =IF(SUM($H$1:$H32,IF(G33="",20,G33))<$E$1,IF($G33="",20,$G33),IF(SUM($H$2:$H32)=$E$1,"",$E$1-SUM($H$2:$H32))) ->  | I33: =IF($H33="","",SUM($H$1:$H32)+1) ->  | K33: =IF($H33="","",MAX($F$1:$F32)+1) ->  | M33: =IF(O33="","",MAX($M$3:$M32)+1) -> 30 | N33: 59 | O33: حسن30 | P33: انثى | R33: مسلم | S33: =IF(M33="","",IF(ISERROR(MATCH($M33,$I:$I,0)),S32,MAX($S$3:$S32)+1)) -> 2
A34: =IF($H34="","",MAX($F$1:$F33)+1) ->  | D34: =IF($H34="","",MAX($F$1:$F33)+1) ->  | F34: =IF($H34="","",MAX($F$1:$F33)+1) ->  | H34: =IF(SUM($H$1:$H33,IF(G34="",20,G34))<$E$1,IF($G34="",20,$G34),IF(SUM($H$2:$H33)=$E$1,"",$E$1-SUM($H$2:$H33))) ->  | I34: =IF($H34="","",SUM($H$1:$H33)+1) ->  | K34: =IF($H34="","",MAX($F$1:$F33)+1) ->  | M34: =IF(O34="","",MAX($M$3:$M33)+1) -> 31 | N34: 60 | O34: حسن31 | P34: انثى | S34: =IF(M34="","",IF(ISERROR(MATCH($M34,$I:$I,0)),S33,MAX($S$3:$S33)+1)) -> 2
A35: =IF($H35="","",MAX($F$1:$F34)+1) ->  | D35: =IF($H35="","",MAX($F$1:$F34)+1) ->  | F35: =IF($H35="","",MAX($F$1:$F34)+1) ->  | H35: =IF(SUM($H$1:$H34,IF(G35="",20,G35))<$E$1,IF($G35="",20,$G35),IF(SUM($H$2:$H34)=$E$1,"",$E$1-SUM($H$2:$H34))) ->  | I35: =IF($H35="","",SUM($H$1:$H34)+1) ->  | K35: =IF($H35="","",MAX($F$1:$F34)+1) ->  | M35: =IF(O35="","",MAX($M$3:$M34)+1) -> 32 | N35: 61 | O35: حسن32 | P35: انثى | Q35: معيد | S35: =IF(M35="","",IF(ISERROR(MATCH($M35,$I:$I,0)),S34,MAX($S$3:$S34)+1)) -> 2
A36: =IF($H36="","",MAX($F$1:$F35)+1) ->  | D36: =IF($H36="","",MAX($F$1:$F35)+1) ->  | F36: =IF($H36="","",MAX($F$1:$F35)+1) ->  | H36: =IF(SUM($H$1:$H35,IF(G36="",20,G36))<$E$1,IF($G36="",20,$G36),IF(SUM($H$2:$H35)=$E$1,"",$E$1-SUM($H$2:$H35))) ->  | I36: =IF($H36="","",SUM($H$1:$H35)+1) ->  | K36: =IF($H36="","",MAX($F$1:$F35)+1) ->  | M36: =IF(O36="","",MAX($M$3:$M35)+1) -> 33 | N36: 62 | O36: حسن33 | P36: انثى | R36: أخري | S36: =IF(M36="","",IF(ISERROR(MATCH($M36,$I:$I,0)),S35,MAX($S$3:$S35)+1)) -> 2
A37: =IF($H37="","",MAX($F$1:$F36)+1) ->  | D37: =IF($H37="","",MAX($F$1:$F36)+1) ->  | F37: =IF($H37="","",MAX($F$1:$F36)+1) ->  | H37: =IF(SUM($H$1:$H36,IF(G37="",20,G37))<$E$1,IF($G37="",20,$G37),IF(SUM($H$2:$H36)=$E$1,"",$E$1-SUM($H$2:$H36))) ->  | I37: =IF($H37="","",SUM($H$1:$H36)+1) ->  | K37: =IF($H37="","",MAX($F$1:$F36)+1) ->  | M37: =IF(O37="","",MAX($M$3:$M36)+1) -> 34 | N37: 63 | O37: حسن34 | P37: انثى | Q37: م للسنة الثانية | S37: =IF(M37="","",IF(ISERROR(MATCH($M37,$I:$I,0)),S36,MAX($S$3:$S36)+1)) -> 2
A38: =IF($H38="","",MAX($F$1:$F37)+1) ->  | D38: =IF($H38="","",MAX($F$1:$F37)+1) ->  | F38: =IF($H38="","",MAX($F$1:$F37)+1) ->  | H38: =IF(SUM($H$1:$H37,IF(G38="",20,G38))<$E$1,IF($G38="",20,$G38),IF(SUM($H$2:$H37)=$E$1,"",$E$1-SUM($H$2:$H37))) ->  | I38: =IF($H38="","",SUM($H$1:$H37)+1) ->  | K38: =IF($H38="","",MAX($F$1:$F37)+1) ->  | M38: =IF(O38="","",MAX($M$3:$M37)+1) -> 35 | N38: 64 | O38: حسن35 | P38: انثى | S38: =IF(M38="","",IF(ISERROR(MATCH($M38,$I:$I,0)),S37,MAX($S$3:$S37)+1)) -> 2
A39: =IF($H39="","",MAX($F$1:$F38)+1) ->  | D39: =IF($H39="","",MAX($F$1:$F38)+1) ->  | F39: =IF($H39="","",MAX($F$1:$F38)+1) ->  | H39: =IF(SUM($H$1:$H38,IF(G39="",20,G39))<$E$1,IF($G39="",20,$G39),IF(SUM($H$2:$H38)=$E$1,"",$E$1-SUM($H$2:$H38))) ->  | I39: =IF($H39="","",SUM($H$1:$H38)+1) ->  | K39: =IF($H39="","",MAX($F$1:$F38)+1) ->  | M39: =IF(O39="","",MAX($M$3:$M38)+1) -> 36 | N39: 65 | O39: حسن36 | P39: انثى | S39: =IF(M39="","",IF(ISERROR(MATCH($M39,$I:$I,0)),S38,MAX($S$3:$S38)+1)) -> 2
A40: =IF($H40="","",MAX($F$1:$F39)+1) ->  | D40: =IF($H40="","",MAX($F$1:$F39)+1) ->  | F40: =IF($H40="","",MAX($F$1:$F39)+1) ->  | H40: =IF(SUM($H$1:$H39,IF(G40="",20,G40))<$E$1,IF($G40="",20,$G40),IF(SUM($H$2:$H39)=$E$1,"",$E$1-SUM($H$2:$H39))) ->  | I40: =IF($H40="","",SUM($H$1:$H39)+1) ->  | K40: =IF($H40="","",MAX($F$1:$F39)+1) ->  | M40: =IF(O40="","",MAX($M$3:$M39)+1) -> 37 | N40: 66 | O40: حسن37 | P40: انثى | S40: =IF(M40="","",IF(ISERROR(MATCH($M40,$I:$I,0)),S39,MAX($S$3:$S39)+1)) -> 2
A41: =IF($H41="","",MAX($F$1:$F40)+1) ->  | D41: =IF($H41="","",MAX($F$1:$F40)+1) ->  | F41: =IF($H41="","",MAX($F$1:$F40)+1) ->  | H41: =IF(SUM($H$1:$H40,IF(G41="",20,G41))<$E$1,IF($G41="",20,$G41),IF(SUM($H$2:$H40)=$E$1,"",$E$1-SUM($H$2:$H40))) ->  | I41: =IF($H41="","",SUM($H$1:$H40)+1) ->  | K41: =IF($H41="","",MAX($F$1:$F40)+1) ->  | M41: =IF(O41="","",MAX($M$3:$M40)+1) -> 38 | N41: 67 | O41: حسن38 | P41: انثى | S41: =IF(M41="","",IF(ISERROR(MATCH($M41,$I:$I,0)),S40,MAX($S$3:$S40)+1)) -> 2
A42: =IF($H42="","",MAX($F$1:$F41)+1) ->  | D42: =IF($H42="","",MAX($F$1:$F41)+1) ->  | F42: =IF($H42="","",MAX($F$1:$F41)+1) ->  | H42: =IF(SUM($H$1:$H41,IF(G42="",20,G42))<$E$1,IF($G42="",20,$G42),IF(SUM($H$2:$H41)=$E$1,"",$E$1-SUM($H$2:$H41))) ->  | I42: =IF($H42="","",SUM($H$1:$H41)+1) ->  | K42: =IF($H42="","",MAX($F$1:$F41)+1) ->  | M42: =IF(O42="","",MAX($M$3:$M41)+1) -> 39 | N42: 68 | O42: حسن39 | P42: انثى | S42: =IF(M42="","",IF(ISERROR(MATCH($M42,$I:$I,0)),S41,MAX($S$3:$S41)+1)) -> 2
A43: =IF($H43="","",MAX($F$1:$F42)+1) ->  | D43: =IF($H43="","",MAX($F$1:$F42)+1) ->  | F43: =IF($H43="","",MAX($F$1:$F42)+1) ->  | H43: =IF(SUM($H$1:$H42,IF(G43="",20,G43))<$E$1,IF($G43="",20,$G43),IF(SUM($H$2:$H42)=$E$1,"",$E$1-SUM($H$2:$H42))) ->  | I43: =IF($H43="","",SUM($H$1:$H42)+1) ->  | K43: =IF($H43="","",MAX($F$1:$F42)+1) ->  | M43: =IF(O43="","",MAX($M$3:$M42)+1) -> 40 | N43: 69 | O43: حسن40 | P43: انثى | S43: =IF(M43="","",IF(ISERROR(MATCH($M43,$I:$I,0)),S42,MAX($S$3:$S42)+1)) -> 2 | T43: نهاية اللجنة
A44: =IF($H44="","",MAX($F$1:$F43)+1) ->  | D44: =IF($H44="","",MAX($F$1:$F43)+1) ->  | F44: =IF($H44="","",MAX($F$1:$F43)+1) ->  | H44: =IF(SUM($H$1:$H43,IF(G44="",20,G44))<$E$1,IF($G44="",20,$G44),IF(SUM($H$2:$H43)=$E$1,"",$E$1-SUM($H$2:$H43))) ->  | I44: =IF($H44="","",SUM($H$1:$H43)+1) ->  | K44: =IF($H44="","",MAX($F$1:$F43)+1) ->  | M44: =IF(O44="","",MAX($M$3:$M43)+1) -> 41 | N44: 70 | O44: حسن41 | P44: انثى | S44: =IF(M44="","",IF(ISERROR(MATCH($M44,$I:$I,0)),S43,MAX($S$3:$S43)+1)) -> 3
M45: =IF(O45="","",MAX($M$3:$M44)+1) -> 42 | N45: 71 | O45: حسن42 | P45: انثى | S45: =IF(M45="","",IF(ISERROR(MATCH($M45,$I:$I,0)),S44,MAX($S$3:$S44)+1)) -> 3
B46: =MAX(J:J) -> 580 | M46: =IF(O46="","",MAX($M$3:$M45)+1) -> 43 | N46: 72 | O46: حسن43 | P46: انثى | S46: =IF(M46="","",IF(ISERROR(MATCH($M46,$I:$I,0)),S45,MAX($S$3:$S45)+1)) -> 3
B47: =IF(B46=N1,"التلاميذ مقسمون التقسيم الصحيح","راجع من فضلك تقسيم اللجان") -> التلاميذ مقسمون التقسيم الصحيح | M47: =IF(O47="","",MAX($M$3:$M46)+1) -> 44 | N47: 73 | O47: حسن44 | P47: انثى | S47: =IF(M47="","",IF(ISERROR(MATCH($M47,$I:$I,0)),S46,MAX($S$3:$S46)+1)) -> 3
M48: =IF(O48="","",MAX($M$3:$M47)+1) -> 45 | N48: 74 | O48: حسن45 | P48: انثى | S48: =IF(M48="","",IF(ISERROR(MATCH($M48,$I:$I,0)),S47,MAX($S$3:$S47)+1)) -> 3
M49: =IF(O49="","",MAX($M$3:$M48)+1) -> 46 | N49: 75 | O49: حسن46 | P49: انثى | S49: =IF(M49="","",IF(ISERROR(MATCH($M49,$I:$I,0)),S48,MAX($S$3:$S48)+1)) -> 3
M50: =IF(O50="","",MAX($M$3:$M49)+1) -> 47 | N50: 76 | O50: حسن47 | P50: انثى | S50: =IF(M50="","",IF(ISERROR(MATCH($M50,$I:$I,0)),S49,MAX($S$3:$S49)+1)) -> 3
M51: =IF(O51="","",MAX($M$3:$M50)+1) -> 48 | N51: 77 | O51: حسن48 | S51: =IF(M51="","",IF(ISERROR(MATCH($M51,$I:$I,0)),S50,MAX($S$3:$S50)+1)) -> 3
I52: معيد | M52: =IF(O52="","",MAX($M$3:$M51)+1) -> 49 | N52: 78 | O52: حسن49 | S52: =IF(M52="","",IF(ISERROR(MATCH($M52,$I:$I,0)),S51,MAX($S$3:$S51)+1)) -> 3
I53: م للسنة الأولي | M53: =IF(O53="","",MAX($M$3:$M52)+1) -> 50 | N53: 79 | O53: حسن50 | S53: =IF(M53="","",IF(ISERROR(MATCH($M53,$I:$I,0)),S52,MAX($S$3:$S52)+1)) -> 3
I54: م للسنة الثانية | M54: =IF(O54="","",MAX($M$3:$M53)+1) -> 51 | N54: 80 | O54: حسن51 | S54: =IF(M54="","",IF(ISERROR(MATCH($M54,$I:$I,0)),S53,MAX($S$3:$S53)+1)) -> 3
M55: =IF(O55="","",MAX($M$3:$M54)+1) -> 52 | N55: 81 | O55: حسن52 | S55: =IF(M55="","",IF(ISERROR(MATCH($M55,$I:$I,0)),S54,MAX($S$3:$S54)+1)) -> 3
I56: مسلم | M56: =IF(O56="","",MAX($M$3:$M55)+1) -> 53 | N56: 82 | O56: حسن53 | S56: =IF(M56="","",IF(ISERROR(MATCH($M56,$I:$I,0)),S55,MAX($S$3:$S55)+1)) -> 3
I57: مسيحي | M57: =IF(O57="","",MAX($M$3:$M56)+1) -> 54 | N57: 83 | O57: حسن54 | S57: =IF(M57="","",IF(ISERROR(MATCH($M57,$I:$I,0)),S56,MAX($S$3:$S56)+1)) -> 3
I58: أخري | M58: =IF(O58="","",MAX($M$3:$M57)+1) -> 55 | N58: 84 | O58: حسن55 | S58: =IF(M58="","",IF(ISERROR(MATCH($M58,$I:$I,0)),S57,MAX($S$3:$S57)+1)) -> 3
M59: =IF(O59="","",MAX($M$3:$M58)+1) -> 56 | N59: 85 | O59: حسن56 | S59: =IF(M59="","",IF(ISERROR(MATCH($M59,$I:$I,0)),S58,MAX($S$3:$S58)+1)) -> 3
M60: =IF(O60="","",MAX($M$3:$M59)+1) -> 57 | N60: 86 | O60: حسن57 | S60: =IF(M60="","",IF(ISERROR(MATCH($M60,$I:$I,0)),S59,MAX($S$3:$S59)+1)) -> 3
M61: =IF(O61="","",MAX($M$3:$M60)+1) -> 58 | N61: 87 | O61: حسن58 | S61: =IF(M61="","",IF(ISERROR(MATCH($M61,$I:$I,0)),S60,MAX($S$3:$S60)+1)) -> 3
M62: =IF(O62="","",MAX($M$3:$M61)+1) -> 59 | N62: 88 | O62: حسن59 | S62: =IF(M62="","",IF(ISERROR(MATCH($M62,$I:$I,0)),S61,MAX($S$3:$S61)+1)) -> 3
M63: =IF(O63="","",MAX($M$3:$M62)+1) -> 60 | N63: 89 | O63: حسن60 | S63: =IF(M63="","",IF(ISERROR(MATCH($M63,$I:$I,0)),S62,MAX($S$3:$S62)+1)) -> 3 | T63: نهاية اللجنة
M64: =IF(O64="","",MAX($M$3:$M63)+1) -> 61 | N64: 90 | O64: حسن61 | S64: =IF(M64="","",IF(ISERROR(MATCH($M64,$I:$I,0)),S63,MAX($S$3:$S63)+1)) -> 4
M65: =IF(O65="","",MAX($M$3:$M64)+1) -> 62 | N65: 91 | O65: حسن62 | S65: =IF(M65="","",IF(ISERROR(MATCH($M65,$I:$I,0)),S64,MAX($S$3:$S64)+1)) -> 4
M66: =IF(O66="","",MAX($M$3:$M65)+1) -> 63 | N66: 92 | O66: حسن63 | S66: =IF(M66="","",IF(ISERROR(MATCH($M66,$I:$I,0)),S65,MAX($S$3:$S65)+1)) -> 4
M67: =IF(O67="","",MAX($M$3:$M66)+1) -> 64 | N67: 93 | O67: حسن64 | S67: =IF(M67="","",IF(ISERROR(MATCH($M67,$I:$I,0)),S66,MAX($S$3:$S66)+1)) -> 4
M68: =IF(O68="","",MAX($M$3:$M67)+1) -> 65 | N68: 94 | O68: حسن65 | S68: =IF(M68="","",IF(ISERROR(MATCH($M68,$I:$I,0)),S67,MAX($S$3:$S67)+1)) -> 4
M69: =IF(O69="","",MAX($M$3:$M68)+1) -> 66 | N69: 95 | O69: حسن66 | S69: =IF(M69="","",IF(ISERROR(MATCH($M69,$I:$I,0)),S68,MAX($S$3:$S68)+1)) -> 4 | T69: =IF(S69=S70,"","نهاية اللجنة") -> 
M70: =IF(O70="","",MAX($M$3:$M69)+1) -> 67 | N70: =IF(M70="","",N69+1) -> 96 | O70: حسن67 | S70: =IF(M70="","",IF(ISERROR(MATCH($M70,$I:$I,0)),S69,MAX($S$3:$S69)+1)) -> 4
M71: =IF(O71="","",MAX($M$3:$M70)+1) -> 68 | N71: 97 | O71: حسن68 | S71: =IF(M71="","",IF(ISERROR(MATCH($M71,$I:$I,0)),S70,MAX($S$3:$S70)+1)) -> 4
M72: =IF(O72="","",MAX($M$3:$M71)+1) -> 69 | N72: 98 | O72: حسن69 | S72: =IF(M72="","",IF(ISERROR(MATCH($M72,$I:$I,0)),S71,MAX($S$3:$S71)+1)) -> 4
M73: =IF(O73="","",MAX($M$3:$M72)+1) -> 70 | N73: 99 | O73: حسن70 | S73: =IF(M73="","",IF(ISERROR(MATCH($M73,$I:$I,0)),S72,MAX($S$3:$S72)+1)) -> 4
M74: =IF(O74="","",MAX($M$3:$M73)+1) -> 71 | N74: 100 | O74: حسن71 | S74: =IF(M74="","",IF(ISERROR(MATCH($M74,$I:$I,0)),S73,MAX($S$3:$S73)+1)) -> 4
M75: =IF(O75="","",MAX($M$3:$M74)+1) -> 72 | N75: 101 | O75: حسن72 | S75: =IF(M75="","",IF(ISERROR(MATCH($M75,$I:$I,0)),S74,MAX($S$3:$S74)+1)) -> 4
M76: =IF(O76="","",MAX($M$3:$M75)+1) -> 73 | N76: 102 | O76: حسن73 | S76: =IF(M76="","",IF(ISERROR(MATCH($M76,$I:$I,0)),S75,MAX($S$3:$S75)+1)) -> 4
M77: =IF(O77="","",MAX($M$3:$M76)+1) -> 74 | N77: 103 | O77: حسن74 | S77: =IF(M77="","",IF(ISERROR(MATCH($M77,$I:$I,0)),S76,MAX($S$3:$S76)+1)) -> 4
M78: =IF(O78="","",MAX($M$3:$M77)+1) -> 75 | N78: 104 | O78: حسن75 | S78: =IF(M78="","",IF(ISERROR(MATCH($M78,$I:$I,0)),S77,MAX($S$3:$S77)+1)) -> 4
M79: =IF(O79="","",MAX($M$3:$M78)+1) -> 76 | N79: 105 | O79: حسن76 | S79: =IF(M79="","",IF(ISERROR(MATCH($M79,$I:$I,0)),S78,MAX($S$3:$S78)+1)) -> 4
M80: =IF(O80="","",MAX($M$3:$M79)+1) -> 77 | N80: 106 | O80: حسن77 | S80: =IF(M80="","",IF(ISERROR(MATCH($M80,$I:$I,0)),S79,MAX($S$3:$S79)+1)) -> 4
M81: =IF(O81="","",MAX($M$3:$M80)+1) -> 78 | N81: 107 | O81: حسن78 | S81: =IF(M81="","",IF(ISERROR(MATCH($M81,$I:$I,0)),S80,MAX($S$3:$S80)+1)) -> 4
M82: =IF(O82="","",MAX($M$3:$M81)+1) -> 79 | N82: 108 | O82: حسن79 | S82: =IF(M82="","",IF(ISERROR(MATCH($M82,$I:$I,0)),S81,MAX($S$3:$S81)+1)) -> 4
M83: =IF(O83="","",MAX($M$3:$M82)+1) -> 80 | N83: 109 | O83: حسن80 | S83: =IF(M83="","",IF(ISERROR(MATCH($M83,$I:$I,0)),S82,MAX($S$3:$S82)+1)) -> 4 | T83: نهاية اللجنة
M84: =IF(O84="","",MAX($M$3:$M83)+1) -> 81 | N84: 110 | O84: حسن81 | S84: =IF(M84="","",IF(ISERROR(MATCH($M84,$I:$I,0)),S83,MAX($S$3:$S83)+1)) -> 5
M85: =IF(O85="","",MAX($M$3:$M84)+1) -> 82 | N85: 111 | O85: حسن82 | S85: =IF(M85="","",IF(ISERROR(MATCH($M85,$I:$I,0)),S84,MAX($S$3:$S84)+1)) -> 5
M86: =IF(O86="","",MAX($M$3:$M85)+1) -> 83 | N86: 112 | O86: حسن83 | S86: =IF(M86="","",IF(ISERROR(MATCH($M86,$I:$I,0)),S85,MAX($S$3:$S85)+1)) -> 5
M87: =IF(O87="","",MAX($M$3:$M86)+1) -> 84 | N87: 113 | O87: حسن84 | S87: =IF(M87="","",IF(ISERROR(MATCH($M87,$I:$I,0)),S86,MAX($S$3:$S86)+1)) -> 5
M88: =IF(O88="","",MAX($M$3:$M87)+1) -> 85 | N88: 114 | O88: حسن85 | S88: =IF(M88="","",IF(ISERROR(MATCH($M88,$I:$I,0)),S87,MAX($S$3:$S87)+1)) -> 5
M89: =IF(O89="","",MAX($M$3:$M88)+1) -> 86 | N89: 115 | O89: حسن86 | S89: =IF(M89="","",IF(ISERROR(MATCH($M89,$I:$I,0)),S88,MAX($S$3:$S88)+1)) -> 5
M90: =IF(O90="","",MAX($M$3:$M89)+1) -> 87 | N90: 116 | O90: حسن87 | S90: =IF(M90="","",IF(ISERROR(MATCH($M90,$I:$I,0)),S89,MAX($S$3:$S89)+1)) -> 5
M91: =IF(O91="","",MAX($M$3:$M90)+1) -> 88 | N91: 117 | O91: حسن88 | S91: =IF(M91="","",IF(ISERROR(MATCH($M91,$I:$I,0)),S90,MAX($S$3:$S90)+1)) -> 5
M92: =IF(O92="","",MAX($M$3:$M91)+1) -> 89 | N92: 118 | O92: حسن89 | S92: =IF(M92="","",IF(ISERROR(MATCH($M92,$I:$I,0)),S91,MAX($S$3:$S91)+1)) -> 5
M93: =IF(O93="","",MAX($M$3:$M92)+1) -> 90 | N93: 119 | O93: حسن90 | S93: =IF(M93="","",IF(ISERROR(MATCH($M93,$I:$I,0)),S92,MAX($S$3:$S92)+1)) -> 5
M94: =IF(O94="","",MAX($M$3:$M93)+1) -> 91 | N94: 120 | O94: حسن91 | S94: =IF(M94="","",IF(ISERROR(MATCH($M94,$I:$I,0)),S93,MAX($S$3:$S93)+1)) -> 5
M95: =IF(O95="","",MAX($M$3:$M94)+1) -> 92 | N95: 121 | O95: حسن92 | S95: =IF(M95="","",IF(ISERROR(MATCH($M95,$I:$I,0)),S94,MAX($S$3:$S94)+1)) -> 5
M96: =IF(O96="","",MAX($M$3:$M95)+1) -> 93 | N96: 122 | O96: حسن93 | S96: =IF(M96="","",IF(ISERROR(MATCH($M96,$I:$I,0)),S95,MAX($S$3:$S95)+1)) -> 5
M97: =IF(O97="","",MAX($M$3:$M96)+1) -> 94 | N97: 123 | O97: حسن94 | S97: =IF(M97="","",IF(ISERROR(MATCH($M97,$I:$I,0)),S96,MAX($S$3:$S96)+1)) -> 5
M98: =IF(O98="","",MAX($M$3:$M97)+1) -> 95 | N98: 124 | O98: حسن95 | S98: =IF(M98="","",IF(ISERROR(MATCH($M98,$I:$I,0)),S97,MAX($S$3:$S97)+1)) -> 5
M99: =IF(O99="","",MAX($M$3:$M98)+1) -> 96 | N99: 125 | O99: حسن96 | S99: =IF(M99="","",IF(ISERROR(MATCH($M99,$I:$I,0)),S98,MAX($S$3:$S98)+1)) -> 5
M100: =IF(O100="","",MAX($M$3:$M99)+1) -> 97 | N100: 126 | O100: حسن97 | S100: =IF(M100="","",IF(ISERROR(MATCH($M100,$I:$I,0)),S99,MAX($S$3:$S99)+1)) -> 5
M101: =IF(O101="","",MAX($M$3:$M100)+1) -> 98 | N101: 127 | O101: حسن98 | S101: =IF(M101="","",IF(ISERROR(MATCH($M101,$I:$I,0)),S100,MAX($S$3:$S100)+1)) -> 5
M102: =IF(O102="","",MAX($M$3:$M101)+1) -> 99 | N102: 128 | O102: حسن99 | S102: =IF(M102="","",IF(ISERROR(MATCH($M102,$I:$I,0)),S101,MAX($S$3:$S101)+1)) -> 5
M103: =IF(O103="","",MAX($M$3:$M102)+1) -> 100 | N103: 129 | O103: حسن100 | S103: =IF(M103="","",IF(ISERROR(MATCH($M103,$I:$I,0)),S102,MAX($S$3:$S102)+1)) -> 5 | T103: نهاية اللجنة
M104: =IF(O104="","",MAX($M$3:$M103)+1) -> 101 | N104: 130 | O104: حسن101 | S104: =IF(M104="","",IF(ISERROR(MATCH($M104,$I:$I,0)),S103,MAX($S$3:$S103)+1)) -> 6
M105: =IF(O105="","",MAX($M$3:$M104)+1) -> 102 | N105: 131 | O105: حسن102 | S105: =IF(M105="","",IF(ISERROR(MATCH($M105,$I:$I,0)),S104,MAX($S$3:$S104)+1)) -> 6
M106: =IF(O106="","",MAX($M$3:$M105)+1) -> 103 | N106: 132 | O106: حسن103 | S106: =IF(M106="","",IF(ISERROR(MATCH($M106,$I:$I,0)),S105,MAX($S$3:$S105)+1)) -> 6
M107: =IF(O107="","",MAX($M$3:$M106)+1) -> 104 | N107: 133 | O107: حسن104 | S107: =IF(M107="","",IF(ISERROR(MATCH($M107,$I:$I,0)),S106,MAX($S$3:$S106)+1)) -> 6
M108: =IF(O108="","",MAX($M$3:$M107)+1) -> 105 | N108: 134 | O108: حسن105 | S108: =IF(M108="","",IF(ISERROR(MATCH($M108,$I:$I,0)),S107,MAX($S$3:$S107)+1)) -> 6
M109: =IF(O109="","",MAX($M$3:$M108)+1) -> 106 | N109: 135 | O109: حسن106 | S109: =IF(M109="","",IF(ISERROR(MATCH($M109,$I:$I,0)),S108,MAX($S$3:$S108)+1)) -> 6
M110: =IF(O110="","",MAX($M$3:$M109)+1) -> 107 | N110: 136 | O110: حسن107 | S110: =IF(M110="","",IF(ISERROR(MATCH($M110,$I:$I,0)),S109,MAX($S$3:$S109)+1)) -> 6
M111: =IF(O111="","",MAX($M$3:$M110)+1) -> 108 | N111: 137 | O111: حسن108 | S111: =IF(M111="","",IF(ISERROR(MATCH($M111,$I:$I,0)),S110,MAX($S$3:$S110)+1)) -> 6
M112: =IF(O112="","",MAX($M$3:$M111)+1) -> 109 | N112: 138 | O112: حسن109 | S112: =IF(M112="","",IF(ISERROR(MATCH($M112,$I:$I,0)),S111,MAX($S$3:$S111)+1)) -> 6
M113: =IF(O113="","",MAX($M$3:$M112)+1) -> 110 | N113: 139 | O113: حسن110 | S113: =IF(M113="","",IF(ISERROR(MATCH($M113,$I:$I,0)),S112,MAX($S$3:$S112)+1)) -> 6
M114: =IF(O114="","",MAX($M$3:$M113)+1) -> 111 | N114: 140 | O114: حسن111 | S114: =IF(M114="","",IF(ISERROR(MATCH($M114,$I:$I,0)),S113,MAX($S$3:$S113)+1)) -> 6
M115: =IF(O115="","",MAX($M$3:$M114)+1) -> 112 | N115: 141 | O115: حسن112 | S115: =IF(M115="","",IF(ISERROR(MATCH($M115,$I:$I,0)),S114,MAX($S$3:$S114)+1)) -> 6
M116: =IF(O116="","",MAX($M$3:$M115)+1) -> 113 | N116: 142 | O116: حسن113 | S116: =IF(M116="","",IF(ISERROR(MATCH($M116,$I:$I,0)),S115,MAX($S$3:$S115)+1)) -> 6
M117: =IF(O117="","",MAX($M$3:$M116)+1) -> 114 | N117: 143 | O117: حسن114 | S117: =IF(M117="","",IF(ISERROR(MATCH($M117,$I:$I,0)),S116,MAX($S$3:$S116)+1)) -> 6
M118: =IF(O118="","",MAX($M$3:$M117)+1) -> 115 | N118: 144 | O118: حسن115 | S118: =IF(M118="","",IF(ISERROR(MATCH($M118,$I:$I,0)),S117,MAX($S$3:$S117)+1)) -> 6
M119: =IF(O119="","",MAX($M$3:$M118)+1) -> 116 | N119: 145 | O119: حسن116 | S119: =IF(M119="","",IF(ISERROR(MATCH($M119,$I:$I,0)),S118,MAX($S$3:$S118)+1)) -> 6
M120: =IF(O120="","",MAX($M$3:$M119)+1) -> 117 | N120: 146 | O120: حسن117 | S120: =IF(M120="","",IF(ISERROR(MATCH($M120,$I:$I,0)),S119,MAX($S$3:$S119)+1)) -> 6
M121: =IF(O121="","",MAX($M$3:$M120)+1) -> 118 | N121: 147 | O121: حسن118 | S121: =IF(M121="","",IF(ISERROR(MATCH($M121,$I:$I,0)),S120,MAX($S$3:$S120)+1)) -> 6
M122: =IF(O122="","",MAX($M$3:$M121)+1) -> 119 | N122: 148 | O122: حسن119 | S122: =IF(M122="","",IF(ISERROR(MATCH($M122,$I:$I,0)),S121,MAX($S$3:$S121)+1)) -> 6
M123: =IF(O123="","",MAX($M$3:$M122)+1) -> 120 | N123: 149 | O123: حسن120 | S123: =IF(M123="","",IF(ISERROR(MATCH($M123,$I:$I,0)),S122,MAX($S$3:$S122)+1)) -> 6 | T123: نهاية اللجنة
M124: =IF(O124="","",MAX($M$3:$M123)+1) -> 121 | N124: 150 | O124: حسن121 | S124: =IF(M124="","",IF(ISERROR(MATCH($M124,$I:$I,0)),S123,MAX($S$3:$S123)+1)) -> 7
M125: =IF(O125="","",MAX($M$3:$M124)+1) -> 122 | N125: 151 | O125: حسن122 | S125: =IF(M125="","",IF(ISERROR(MATCH($M125,$I:$I,0)),S124,MAX($S$3:$S124)+1)) -> 7
M126: =IF(O126="","",MAX($M$3:$M125)+1) -> 123 | N126: 152 | O126: حسن123 | S126: =IF(M126="","",IF(ISERROR(MATCH($M126,$I:$I,0)),S125,MAX($S$3:$S125)+1)) -> 7
M127: =IF(O127="","",MAX($M$3:$M126)+1) -> 124 | N127: 153 | O127: حسن124 | S127: =IF(M127="","",IF(ISERROR(MATCH($M127,$I:$I,0)),S126,MAX($S$3:$S126)+1)) -> 7
M128: =IF(O128="","",MAX($M$3:$M127)+1) -> 125 | N128: 154 | O128: حسن125 | S128: =IF(M128="","",IF(ISERROR(MATCH($M128,$I:$I,0)),S127,MAX($S$3:$S127)+1)) -> 7
M129: =IF(O129="","",MAX($M$3:$M128)+1) -> 126 | N129: 155 | O129: حسن126 | S129: =IF(M129="","",IF(ISERROR(MATCH($M129,$I:$I,0)),S128,MAX($S$3:$S128)+1)) -> 7
M130: =IF(O130="","",MAX($M$3:$M129)+1) -> 127 | N130: 156 | O130: حسن127 | S130: =IF(M130="","",IF(ISERROR(MATCH($M130,$I:$I,0)),S129,MAX($S$3:$S129)+1)) -> 7
M131: =IF(O131="","",MAX($M$3:$M130)+1) -> 128 | N131: 157 | O131: حسن128 | S131: =IF(M131="","",IF(ISERROR(MATCH($M131,$I:$I,0)),S130,MAX($S$3:$S130)+1)) -> 7
M132: =IF(O132="","",MAX($M$3:$M131)+1) -> 129 | N132: 158 | O132: حسن129 | S132: =IF(M132="","",IF(ISERROR(MATCH($M132,$I:$I,0)),S131,MAX($S$3:$S131)+1)) -> 7
M133: =IF(O133="","",MAX($M$3:$M132)+1) -> 130 | N133: 159 | O133: حسن130 | S133: =IF(M133="","",IF(ISERROR(MATCH($M133,$I:$I,0)),S132,MAX($S$3:$S132)+1)) -> 7 | T133: =IF(S133=S134,"","نهاية اللجنة") -> 
M134: =IF(O134="","",MAX($M$3:$M133)+1) -> 131 | N134: =IF(M134="","",N133+1) -> 160 | O134: حسن131 | S134: =IF(M134="","",IF(ISERROR(MATCH($M134,$I:$I,0)),S133,MAX($S$3:$S133)+1)) -> 7
M135: =IF(O135="","",MAX($M$3:$M134)+1) -> 132 | N135: 161 | O135: حسن132 | S135: =IF(M135="","",IF(ISERROR(MATCH($M135,$I:$I,0)),S134,MAX($S$3:$S134)+1)) -> 7
M136: =IF(O136="","",MAX($M$3:$M135)+1) -> 133 | N136: 162 | O136: حسن133 | S136: =IF(M136="","",IF(ISERROR(MATCH($M136,$I:$I,0)),S135,MAX($S$3:$S135)+1)) -> 7
M137: =IF(O137="","",MAX($M$3:$M136)+1) -> 134 | N137: 163 | O137: حسن134 | S137: =IF(M137="","",IF(ISERROR(MATCH($M137,$I:$I,0)),S136,MAX($S$3:$S136)+1)) -> 7
M138: =IF(O138="","",MAX($M$3:$M137)+1) -> 135 | N138: 164 | O138: حسن135 | S138: =IF(M138="","",IF(ISERROR(MATCH($M138,$I:$I,0)),S137,MAX($S$3:$S137)+1)) -> 7
M139: =IF(O139="","",MAX($M$3:$M138)+1) -> 136 | N139: 165 | O139: حسن136 | S139: =IF(M139="","",IF(ISERROR(MATCH($M139,$I:$I,0)),S138,MAX($S$3:$S138)+1)) -> 7
M140: =IF(O140="","",MAX($M$3:$M139)+1) -> 137 | N140: 166 | O140: حسن137 | S140: =IF(M140="","",IF(ISERROR(MATCH($M140,$I:$I,0)),S139,MAX($S$3:$S139)+1)) -> 7
M141: =IF(O141="","",MAX($M$3:$M140)+1) -> 138 | N141: 167 | O141: حسن138 | S141: =IF(M141="","",IF(ISERROR(MATCH($M141,$I:$I,0)),S140,MAX($S$3:$S140)+1)) -> 7
M142: =IF(O142="","",MAX($M$3:$M141)+1) -> 139 | N142: 168 | O142: حسن139 | S142: =IF(M142="","",IF(ISERROR(MATCH($M142,$I:$I,0)),S141,MAX($S$3:$S141)+1)) -> 7
M143: =IF(O143="","",MAX($M$3:$M142)+1) -> 140 | N143: 169 | O143: حسن140 | S143: =IF(M143="","",IF(ISERROR(MATCH($M143,$I:$I,0)),S142,MAX($S$3:$S142)+1)) -> 7 | T143: نهاية اللجنة
M144: =IF(O144="","",MAX($M$3:$M143)+1) -> 141 | N144: 170 | O144: حسن141 | S144: =IF(M144="","",IF(ISERROR(MATCH($M144,$I:$I,0)),S143,MAX($S$3:$S143)+1)) -> 8
M145: =IF(O145="","",MAX($M$3:$M144)+1) -> 142 | N145: 171 | O145: حسن142 | S145: =IF(M145="","",IF(ISERROR(MATCH($M145,$I:$I,0)),S144,MAX($S$3:$S144)+1)) -> 8
M146: =IF(O146="","",MAX($M$3:$M145)+1) -> 143 | N146: 172 | O146: حسن143 | S146: =IF(M146="","",IF(ISERROR(MATCH($M146,$I:$I,0)),S145,MAX($S$3:$S145)+1)) -> 8
M147: =IF(O147="","",MAX($M$3:$M146)+1) -> 144 | N147: 173 | O147: حسن144 | S147: =IF(M147="","",IF(ISERROR(MATCH($M147,$I:$I,0)),S146,MAX($S$3:$S146)+1)) -> 8
M148: =IF(O148="","",MAX($M$3:$M147)+1) -> 145 | N148: 174 | O148: حسن145 | S148: =IF(M148="","",IF(ISERROR(MATCH($M148,$I:$I,0)),S147,MAX($S$3:$S147)+1)) -> 8
M149: =IF(O149="","",MAX($M$3:$M148)+1) -> 146 | N149: 175 | O149: حسن146 | S149: =IF(M149="","",IF(ISERROR(MATCH($M149,$I:$I,0)),S148,MAX($S$3:$S148)+1)) -> 8
M150: =IF(O150="","",MAX($M$3:$M149)+1) -> 147 | N150: 176 | O150: حسن147 | S150: =IF(M150="","",IF(ISERROR(MATCH($M150,$I:$I,0)),S149,MAX($S$3:$S149)+1)) -> 8
M151: =IF(O151="","",MAX($M$3:$M150)+1) -> 148 | N151: 177 | O151: حسن148 | S151: =IF(M151="","",IF(ISERROR(MATCH($M151,$I:$I,0)),S150,MAX($S$3:$S150)+1)) -> 8
M152: =IF(O152="","",MAX($M$3:$M151)+1) -> 149 | N152: 178 | O152: حسن149 | S152: =IF(M152="","",IF(ISERROR(MATCH($M152,$I:$I,0)),S151,MAX($S$3:$S151)+1)) -> 8
M153: =IF(O153="","",MAX($M$3:$M152)+1) -> 150 | N153: 179 | O153: حسن150 | S153: =IF(M153="","",IF(ISERROR(MATCH($M153,$I:$I,0)),S152,MAX($S$3:$S152)+1)) -> 8
M154: =IF(O154="","",MAX($M$3:$M153)+1) -> 151 | N154: 180 | O154: حسن151 | S154: =IF(M154="","",IF(ISERROR(MATCH($M154,$I:$I,0)),S153,MAX($S$3:$S153)+1)) -> 8
M155: =IF(O155="","",MAX($M$3:$M154)+1) -> 152 | N155: 181 | O155: حسن152 | S155: =IF(M155="","",IF(ISERROR(MATCH($M155,$I:$I,0)),S154,MAX($S$3:$S154)+1)) -> 8
M156: =IF(O156="","",MAX($M$3:$M155)+1) -> 153 | N156: 182 | O156: حسن153 | S156: =IF(M156="","",IF(ISERROR(MATCH($M156,$I:$I,0)),S155,MAX($S$3:$S155)+1)) -> 8
M157: =IF(O157="","",MAX($M$3:$M156)+1) -> 154 | N157: 183 | O157: حسن154 | S157: =IF(M157="","",IF(ISERROR(MATCH($M157,$I:$I,0)),S156,MAX($S$3:$S156)+1)) -> 8
M158: =IF(O158="","",MAX($M$3:$M157)+1) -> 155 | N158: 184 | O158: حسن155 | S158: =IF(M158="","",IF(ISERROR(MATCH($M158,$I:$I,0)),S157,MAX($S$3:$S157)+1)) -> 8
M159: =IF(O159="","",MAX($M$3:$M158)+1) -> 156 | N159: 185 | O159: حسن156 | S159: =IF(M159="","",IF(ISERROR(MATCH($M159,$I:$I,0)),S158,MAX($S$3:$S158)+1)) -> 8
M160: =IF(O160="","",MAX($M$3:$M159)+1) -> 157 | N160: 186 | O160: حسن157 | S160: =IF(M160="","",IF(ISERROR(MATCH($M160,$I:$I,0)),S159,MAX($S$3:$S159)+1)) -> 8
M161: =IF(O161="","",MAX($M$3:$M160)+1) -> 158 | N161: 187 | O161: حسن158 | S161: =IF(M161="","",IF(ISERROR(MATCH($M161,$I:$I,0)),S160,MAX($S$3:$S160)+1)) -> 8
M162: =IF(O162="","",MAX($M$3:$M161)+1) -> 159 | N162: 188 | O162: حسن159 | S162: =IF(M162="","",IF(ISERROR(MATCH($M162,$I:$I,0)),S161,MAX($S$3:$S161)+1)) -> 8
M163: =IF(O163="","",MAX($M$3:$M162)+1) -> 160 | N163: 189 | O163: حسن160 | S163: =IF(M163="","",IF(ISERROR(MATCH($M163,$I:$I,0)),S162,MAX($S$3:$S162)+1)) -> 8 | T163: نهاية اللجنة
M164: =IF(O164="","",MAX($M$3:$M163)+1) -> 161 | N164: 190 | O164: حسن161 | S164: =IF(M164="","",IF(ISERROR(MATCH($M164,$I:$I,0)),S163,MAX($S$3:$S163)+1)) -> 9
M165: =IF(O165="","",MAX($M$3:$M164)+1) -> 162 | N165: 191 | O165: حسن162 | S165: =IF(M165="","",IF(ISERROR(MATCH($M165,$I:$I,0)),S164,MAX($S$3:$S164)+1)) -> 9
M166: =IF(O166="","",MAX($M$3:$M165)+1) -> 163 | N166: 192 | O166: حسن163 | S166: =IF(M166="","",IF(ISERROR(MATCH($M166,$I:$I,0)),S165,MAX($S$3:$S165)+1)) -> 9
M167: =IF(O167="","",MAX($M$3:$M166)+1) -> 164 | N167: 193 | O167: حسن164 | S167: =IF(M167="","",IF(ISERROR(MATCH($M167,$I:$I,0)),S166,MAX($S$3:$S166)+1)) -> 9
M168: =IF(O168="","",MAX($M$3:$M167)+1) -> 165 | N168: 194 | O168: حسن165 | S168: =IF(M168="","",IF(ISERROR(MATCH($M168,$I:$I,0)),S167,MAX($S$3:$S167)+1)) -> 9
M169: =IF(O169="","",MAX($M$3:$M168)+1) -> 166 | N169: 195 | O169: حسن166 | S169: =IF(M169="","",IF(ISERROR(MATCH($M169,$I:$I,0)),S168,MAX($S$3:$S168)+1)) -> 9
M170: =IF(O170="","",MAX($M$3:$M169)+1) -> 167 | N170: 196 | O170: حسن167 | S170: =IF(M170="","",IF(ISERROR(MATCH($M170,$I:$I,0)),S169,MAX($S$3:$S169)+1)) -> 9
M171: =IF(O171="","",MAX($M$3:$M170)+1) -> 168 | N171: 197 | O171: حسن168 | S171: =IF(M171="","",IF(ISERROR(MATCH($M171,$I:$I,0)),S170,MAX($S$3:$S170)+1)) -> 9
M172: =IF(O172="","",MAX($M$3:$M171)+1) -> 169 | N172: 198 | O172: حسن169 | S172: =IF(M172="","",IF(ISERROR(MATCH($M172,$I:$I,0)),S171,MAX($S$3:$S171)+1)) -> 9
M173: =IF(O173="","",MAX($M$3:$M172)+1) -> 170 | N173: 199 | O173: حسن170 | S173: =IF(M173="","",IF(ISERROR(MATCH($M173,$I:$I,0)),S172,MAX($S$3:$S172)+1)) -> 9
M174: =IF(O174="","",MAX($M$3:$M173)+1) -> 171 | N174: 200 | O174: حسن171 | S174: =IF(M174="","",IF(ISERROR(MATCH($M174,$I:$I,0)),S173,MAX($S$3:$S173)+1)) -> 9
M175: =IF(O175="","",MAX($M$3:$M174)+1) -> 172 | N175: 201 | O175: حسن172 | S175: =IF(M175="","",IF(ISERROR(MATCH($M175,$I:$I,0)),S174,MAX($S$3:$S174)+1)) -> 9
M176: =IF(O176="","",MAX($M$3:$M175)+1) -> 173 | N176: 202 | O176: حسن173 | S176: =IF(M176="","",IF(ISERROR(MATCH($M176,$I:$I,0)),S175,MAX($S$3:$S175)+1)) -> 9
M177: =IF(O177="","",MAX($M$3:$M176)+1) -> 174 | N177: 203 | O177: حسن174 | S177: =IF(M177="","",IF(ISERROR(MATCH($M177,$I:$I,0)),S176,MAX($S$3:$S176)+1)) -> 9
M178: =IF(O178="","",MAX($M$3:$M177)+1) -> 175 | N178: 204 | O178: حسن175 | S178: =IF(M178="","",IF(ISERROR(MATCH($M178,$I:$I,0)),S177,MAX($S$3:$S177)+1)) -> 9
M179: =IF(O179="","",MAX($M$3:$M178)+1) -> 176 | N179: 205 | O179: حسن176 | S179: =IF(M179="","",IF(ISERROR(MATCH($M179,$I:$I,0)),S178,MAX($S$3:$S178)+1)) -> 9
M180: =IF(O180="","",MAX($M$3:$M179)+1) -> 177 | N180: 206 | O180: حسن177 | S180: =IF(M180="","",IF(ISERROR(MATCH($M180,$I:$I,0)),S179,MAX($S$3:$S179)+1)) -> 9
M181: =IF(O181="","",MAX($M$3:$M180)+1) -> 178 | N181: 207 | O181: حسن178 | S181: =IF(M181="","",IF(ISERROR(MATCH($M181,$I:$I,0)),S180,MAX($S$3:$S180)+1)) -> 9
M182: =IF(O182="","",MAX($M$3:$M181)+1) -> 179 | N182: 208 | O182: حسن179 | S182: =IF(M182="","",IF(ISERROR(MATCH($M182,$I:$I,0)),S181,MAX($S$3:$S181)+1)) -> 9
M183: =IF(O183="","",MAX($M$3:$M182)+1) -> 180 | N183: 209 | O183: حسن180 | S183: =IF(M183="","",IF(ISERROR(MATCH($M183,$I:$I,0)),S182,MAX($S$3:$S182)+1)) -> 9 | T183: نهاية اللجنة
M184: =IF(O184="","",MAX($M$3:$M183)+1) -> 181 | N184: 210 | O184: حسن181 | S184: =IF(M184="","",IF(ISERROR(MATCH($M184,$I:$I,0)),S183,MAX($S$3:$S183)+1)) -> 10
M185: =IF(O185="","",MAX($M$3:$M184)+1) -> 182 | N185: 211 | O185: حسن182 | S185: =IF(M185="","",IF(ISERROR(MATCH($M185,$I:$I,0)),S184,MAX($S$3:$S184)+1)) -> 10
M186: =IF(O186="","",MAX($M$3:$M185)+1) -> 183 | N186: 212 | O186: حسن183 | S186: =IF(M186="","",IF(ISERROR(MATCH($M186,$I:$I,0)),S185,MAX($S$3:$S185)+1)) -> 10
M187: =IF(O187="","",MAX($M$3:$M186)+1) -> 184 | N187: 213 | O187: حسن184 | S187: =IF(M187="","",IF(ISERROR(MATCH($M187,$I:$I,0)),S186,MAX($S$3:$S186)+1)) -> 10
M188: =IF(O188="","",MAX($M$3:$M187)+1) -> 185 | N188: 214 | O188: حسن185 | S188: =IF(M188="","",IF(ISERROR(MATCH($M188,$I:$I,0)),S187,MAX($S$3:$S187)+1)) -> 10
M189: =IF(O189="","",MAX($M$3:$M188)+1) -> 186 | N189: 215 | O189: حسن186 | S189: =IF(M189="","",IF(ISERROR(MATCH($M189,$I:$I,0)),S188,MAX($S$3:$S188)+1)) -> 10
M190: =IF(O190="","",MAX($M$3:$M189)+1) -> 187 | N190: 216 | O190: حسن187 | S190: =IF(M190="","",IF(ISERROR(MATCH($M190,$I:$I,0)),S189,MAX($S$3:$S189)+1)) -> 10
M191: =IF(O191="","",MAX($M$3:$M190)+1) -> 188 | N191: 217 | O191: حسن188 | S191: =IF(M191="","",IF(ISERROR(MATCH($M191,$I:$I,0)),S190,MAX($S$3:$S190)+1)) -> 10
M192: =IF(O192="","",MAX($M$3:$M191)+1) -> 189 | N192: 218 | O192: حسن189 | S192: =IF(M192="","",IF(ISERROR(MATCH($M192,$I:$I,0)),S191,MAX($S$3:$S191)+1)) -> 10
M193: =IF(O193="","",MAX($M$3:$M192)+1) -> 190 | N193: 219 | O193: حسن190 | S193: =IF(M193="","",IF(ISERROR(MATCH($M193,$I:$I,0)),S192,MAX($S$3:$S192)+1)) -> 10
M194: =IF(O194="","",MAX($M$3:$M193)+1) -> 191 | N194: 220 | O194: حسن191 | S194: =IF(M194="","",IF(ISERROR(MATCH($M194,$I:$I,0)),S193,MAX($S$3:$S193)+1)) -> 10
M195: =IF(O195="","",MAX($M$3:$M194)+1) -> 192 | N195: 221 | O195: حسن192 | S195: =IF(M195="","",IF(ISERROR(MATCH($M195,$I:$I,0)),S194,MAX($S$3:$S194)+1)) -> 10
M196: =IF(O196="","",MAX($M$3:$M195)+1) -> 193 | N196: 222 | O196: حسن193 | S196: =IF(M196="","",IF(ISERROR(MATCH($M196,$I:$I,0)),S195,MAX($S$3:$S195)+1)) -> 10
M197: =IF(O197="","",MAX($M$3:$M196)+1) -> 194 | N197: 223 | O197: حسن194 | S197: =IF(M197="","",IF(ISERROR(MATCH($M197,$I:$I,0)),S196,MAX($S$3:$S196)+1)) -> 10 | T197: =IF(S197=S198,"","نهاية اللجنة") -> 
M198: =IF(O198="","",MAX($M$3:$M197)+1) -> 195 | N198: =IF(M198="","",N197+1) -> 224 | O198: حسن195 | S198: =IF(M198="","",IF(ISERROR(MATCH($M198,$I:$I,0)),S197,MAX($S$3:$S197)+1)) -> 10
M199: =IF(O199="","",MAX($M$3:$M198)+1) -> 196 | N199: 225 | O199: حسن196 | S199: =IF(M199="","",IF(ISERROR(MATCH($M199,$I:$I,0)),S198,MAX($S$3:$S198)+1)) -> 10
M200: =IF(O200="","",MAX($M$3:$M199)+1) -> 197 | N200: 226 | O200: حسن197 | S200: =IF(M200="","",IF(ISERROR(MATCH($M200,$I:$I,0)),S199,MAX($S$3:$S199)+1)) -> 10
... 403 more rows

Sheet أرقام جلوس الثاني
A1: ='جدول الصف الثاني'!$A$1 -> إدارة /غرب المحلة الكبرى التعليمية | D1: رقم اللجنة | E1: =VLOOKUP(E2,اسماء_الثاني,7,FALSE) -> 1 | G1: ='جدول الصف الثاني'!$A$1 -> إدارة /غرب المحلة الكبرى التعليمية | J1: رقم اللجنة | K1: =VLOOKUP(K2,اسماء_الثاني,7,FALSE) -> 2 | O1: 1
A2: ='جدول الصف الثاني'!$A$2 -> مدرسة د/علي علي حبيش الابتدائية | C2: ='جدول الصف الثاني'!$C$5 -> الصف الثاني | E2: =O1 -> 1 | G2: ='جدول الصف الثاني'!$A$2 -> مدرسة د/علي علي حبيش الابتدائية | I2: ='جدول الصف الثاني'!$C$5 -> الصف الثاني | K2: =E211+1 -> 21
A3: ='جدول الصف الثاني'!$B$4 -> جدول امتحان الفصل الدراسي الأول / الثاني للعام الدراسي 2019/2018 | G3: ='جدول الصف الثاني'!$B$4 -> جدول امتحان الفصل الدراسي الأول / الثاني للعام الدراسي 2019/2018
A4: اسم التلميذ | B4: =VLOOKUP(E2,اسماء_الثاني,3,FALSE) -> حسن1 | C4: رقم الجلوس | D4: =VLOOKUP(E2,اسماء_الثاني,2,FALSE) -> 30 | G4: اسم التلميذ | H4: =VLOOKUP(K2,اسماء_الثاني,3,FALSE) -> حسن21 | I4: رقم الجلوس | J4: =VLOOKUP(K2,اسماء_الثاني,2,FALSE) -> 50
A5: اليوم والتاريخ | B5: المــــــــــــــادة | C5: الوقـــت | E5: الزمن | G5: اليوم والتاريخ | H5: المــــــــــــــادة | I5: الوقـــت | K5: الزمن
C6: من | D6: إلي | I6: من | J6: إلي
A7: ='جدول الصف الثاني'!$B$8 -> السبت | B7: ='جدول الصف الثاني'!$C$8 -> لغة عربية وخط | C7: ='جدول الصف الثاني'!$D$8 -> 8 | D7: ='جدول الصف الثاني'!$E$8 -> 10 | E7: ='جدول الصف الثاني'!$F$8 -> ساعتان | G7: ='جدول الصف الثاني'!$B$8 -> السبت | H7: ='جدول الصف الثاني'!$C$8 -> لغة عربية وخط | I7: ='جدول الصف الثاني'!$D$8 -> 8 | J7: ='جدول الصف الثاني'!$E$8 -> 10 | K7: ='جدول الصف الثاني'!$F$8 -> ساعتان
A8: ='جدول الصف الثاني'!$B$9 -> 2018-01-01 | B8: ='جدول الصف الثاني'!$C$9 -> التربية الدينية | C8: ='جدول الصف الثاني'!$D$9 -> 10.15 | D8: ='جدول الصف الثاني'!$E$9 -> 11.45 | E8: ='جدول الصف الثاني'!$F$9 -> ساعة | G8: ='جدول الصف الثاني'!$B$9 -> 2018-01-01 | H8: ='جدول الصف الثاني'!$C$9 -> التربية الدينية | I8: ='جدول الصف الثاني'!$D$9 -> 10.15 | J8: ='جدول الصف الثاني'!$E$9 -> 11.45 | K8: ='جدول الصف الثاني'!$F$9 -> ساعة
A9: ='جدول الصف الثاني'!$B$10 -> الأحد | B9: ='جدول الصف الثاني'!$C$10 -> الرياضيات | C9: ='جدول الصف الثاني'!$D$10 -> 8 | D9: ='جدول الصف الثاني'!$E$10 -> 9.3 | E9: ='جدول الصف الثاني'!$F$10 -> ساعة ونصف | G9: ='جدول الصف الثاني'!$B$10 -> الأحد | H9: ='جدول الصف الثاني'!$C$10 -> الرياضيات | I9: ='جدول الصف الثاني'!$D$10 -> 8 | J9: ='جدول الصف الثاني'!$E$10 -> 9.3 | K9: ='جدول الصف الثاني'!$F$10 -> ساعة ونصف
A10: ='جدول الصف الثاني'!$B$11 -> 2018-01-02 | B10: ='جدول الصف الثاني'!$C$11 -> اللغة الإنجليزية {شفهي} | C10: ='جدول الصف الثاني'!$D$11 -> 9.45 | D10: ='جدول الصف الثاني'!$E$11 -> 11.15 | E10: ='جدول الصف الثاني'!$F$11 -> ساعة ونصف | G10: ='جدول الصف الثاني'!$B$11 -> 2018-01-02 | H10: ='جدول الصف الثاني'!$C$11 -> اللغة الإنجليزية {شفهي} | I10: ='جدول الصف الثاني'!$D$11 -> 9.45 | J10: ='جدول الصف الثاني'!$E$11 -> 11.15 | K10: ='جدول الصف الثاني'!$F$11 -> ساعة ونصف
A12: ='جدول الصف الثاني'!$A$1 -> إدارة /غرب المحلة الكبرى التعليمية | D12: رقم اللجنة | E12: =VLOOKUP(E13,اسماء_الثاني,7,FALSE) -> 1 | G12: ='جدول الصف الثاني'!$A$1 -> إدارة /غرب المحلة الكبرى التعليمية | J12: رقم اللجنة | K12: =VLOOKUP(K13,اسماء_الثاني,7,FALSE) -> 2
A13: ='جدول الصف الثاني'!$A$2 -> مدرسة د/علي علي حبيش الابتدائية | C13: ='جدول الصف الثاني'!$C$5 -> الصف الثاني | E13: =E2+1 -> 2 | G13: ='جدول الصف الثاني'!$A$2 -> مدرسة د/علي علي حبيش الابتدائية | I13: ='جدول الصف الثاني'!$C$5 -> الصف الثاني | K13: =K2+1 -> 22
A14: ='جدول الصف الثاني'!$B$4 -> جدول امتحان الفصل الدراسي الأول / الثاني للعام الدراسي 2019/2018 | G14: ='جدول الصف الثاني'!$B$4 -> جدول امتحان الفصل الدراسي الأول / الثاني للعام الدراسي 2019/2018
A15: اسم التلميذ | B15: =VLOOKUP(E13,اسماء_الثاني,3,FALSE) -> حسن2 | C15: رقم الجلوس | D15: =VLOOKUP(E13,اسماء_الثاني,2,FALSE) -> 31 | G15: اسم التلميذ | H15: =VLOOKUP(K13,اسماء_الثاني,3,FALSE) -> حسن22 | I15: رقم الجلوس | J15: =VLOOKUP(K13,اسماء_الثاني,2,FALSE) -> 51
A16: اليوم والتاريخ | B16: المــــــــــــــادة | C16: الوقـــت | E16: الزمن | G16: اليوم والتاريخ | H16: المــــــــــــــادة | I16: الوقـــت | K16: الزمن
C17: من | D17: إلي | I17: من | J17: إلي
A18: ='جدول الصف الثاني'!$B$8 -> السبت | B18: ='جدول الصف الثاني'!$C$8 -> لغة عربية وخط | C18: ='جدول الصف الثاني'!$D$8 -> 8 | D18: ='جدول الصف الثاني'!$E$8 -> 10 | E18: ='جدول الصف الثاني'!$F$8 -> ساعتان | G18: ='جدول الصف الثاني'!$B$8 -> السبت | H18: ='جدول الصف الثاني'!$C$8 -> لغة عربية وخط | I18: ='جدول الصف الثاني'!$D$8 -> 8 | J18: ='جدول الصف الثاني'!$E$8 -> 10 | K18: ='جدول الصف الثاني'!$F$8 -> ساعتان
A19: ='جدول الصف الثاني'!$B$9 -> 2018-01-01 | B19: ='جدول الصف الثاني'!$C$9 -> التربية الدينية | C19: ='جدول الصف الثاني'!$D$9 -> 10.15 | D19: ='جدول الصف الثاني'!$E$9 -> 11.45 | E19: ='جدول الصف الثاني'!$F$9 -> ساعة | G19: ='جدول الصف الثاني'!$B$9 -> 2018-01-01 | H19: ='جدول الصف الثاني'!$C$9 -> التربية الدينية | I19: ='جدول الصف الثاني'!$D$9 -> 10.15 | J19: ='جدول الصف الثاني'!$E$9 -> 11.45 | K19: ='جدول الصف الثاني'!$F$9 -> ساعة
A20: ='جدول الصف الثاني'!$B$10 -> الأحد | B20: ='جدول الصف الثاني'!$C$10 -> الرياضيات | C20: ='جدول الصف الثاني'!$D$10 -> 8 | D20: ='جدول الصف الثاني'!$E$10 -> 9.3 | E20: ='جدول الصف الثاني'!$F$10 -> ساعة ونصف | G20: ='جدول الصف الثاني'!$B$10 -> الأحد | H20: ='جدول الصف الثاني'!$C$10 -> الرياضيات | I20: ='جدول الصف الثاني'!$D$10 -> 8 | J20: ='جدول الصف الثاني'!$E$10 -> 9.3 | K20: ='جدول الصف الثاني'!$F$10 -> ساعة ونصف
A21: ='جدول الصف الثاني'!$B$11 -> 2018-01-02 | B21: ='جدول الصف الثاني'!$C$11 -> اللغة الإنجليزية {شفهي} | C21: ='جدول الصف الثاني'!$D$11 -> 9.45 | D21: ='جدول الصف الثاني'!$E$11 -> 11.15 | E21: ='جدول الصف الثاني'!$F$11 -> ساعة ونصف | G21: ='جدول الصف الثاني'!$B$11 -> 2018-01-02 | H21: ='جدول الصف الثاني'!$C$11 -> اللغة الإنجليزية {شفهي} | I21: ='جدول الصف الثاني'!$D$11 -> 9.45 | J21: ='جدول الصف الثاني'!$E$11 -> 11.15 | K21: ='جدول الصف الثاني'!$F$11 -> ساعة ونصف
A23: ='جدول الصف الثاني'!$A$1 -> إدارة /غرب المحلة الكبرى التعليمية | D23: رقم اللجنة | E23: =VLOOKUP(E24,اسماء_الثاني,7,FALSE) -> 1 | G23: ='جدول الصف الثاني'!$A$1 -> إدارة /غرب المحلة الكبرى التعليمية | J23: رقم اللجنة | K23: =VLOOKUP(K24,اسماء_الثاني,7,FALSE) -> 2
A24: ='جدول الصف الثاني'!$A$2 -> مدرسة د/علي علي حبيش الابتدائية | C24: ='جدول الصف الثاني'!$C$5 -> الصف الثاني | E24: =E13+1 -> 3 | G24: ='جدول الصف الثاني'!$A$2 -> مدرسة د/علي علي حبيش الابتدائية | I24: ='جدول الصف الثاني'!$C$5 -> الصف الثاني | K24: =K13+1 -> 23
A25: ='جدول الصف الثاني'!$B$4 -> جدول امتحان الفصل الدراسي الأول / الثاني للعام الدراسي 2019/2018 | G25: ='جدول الصف الثاني'!$B$4 -> جدول امتحان الفصل الدراسي الأول / الثاني للعام الدراسي 2019/2018
A26: اسم التلميذ | B26: =VLOOKUP(E24,اسماء_الثاني,3,FALSE) -> حسن3 | C26: رقم الجلوس | D26: =VLOOKUP(E24,اسماء_الثاني,2,FALSE) -> 32 | G26: اسم التلميذ | H26: =VLOOKUP(K24,اسماء_الثاني,3,FALSE) -> حسن23 | I26: رقم الجلوس | J26: =VLOOKUP(K24,اسماء_الثاني,2,FALSE) -> 52
A27: اليوم والتاريخ | B27: المــــــــــــــادة | C27: الوقـــت | E27: الزمن | G27: اليوم والتاريخ | H27: المــــــــــــــادة | I27: الوقـــت | K27: الزمن
C28: من | D28: إلي | I28: من | J28: إلي
A29: ='جدول الصف الثاني'!$B$8 -> السبت | B29: ='جدول الصف الثاني'!$C$8 -> لغة عربية وخط | C29: ='جدول الصف الثاني'!$D$8 -> 8 | D29: ='جدول الصف الثاني'!$E$8 -> 10 | E29: ='جدول الصف الثاني'!$F$8 -> ساعتان | G29: ='جدول الصف الثاني'!$B$8 -> السبت | H29: ='جدول الصف الثاني'!$C$8 -> لغة عربية وخط | I29: ='جدول الصف الثاني'!$D$8 -> 8 | J29: ='جدول الصف الثاني'!$E$8 -> 10 | K29: ='جدول الصف الثاني'!$F$8 -> ساعتان
A30: ='جدول الصف الثاني'!$B$9 -> 2018-01-01 | B30: ='جدول الصف الثاني'!$C$9 -> التربية الدينية | C30: ='جدول الصف الثاني'!$D$9 -> 10.15 | D30: ='جدول الصف الثاني'!$E$9 -> 11.45 | E30: ='جدول الصف الثاني'!$F$9 -> ساعة | G30: ='جدول الصف الثاني'!$B$9 -> 2018-01-01 | H30: ='جدول الصف الثاني'!$C$9 -> التربية الدينية | I30: ='جدول الصف الثاني'!$D$9 -> 10.15 | J30: ='جدول الصف الثاني'!$E$9 -> 11.45 | K30: ='جدول الصف الثاني'!$F$9 -> ساعة
A31: ='جدول الصف الثاني'!$B$10 -> الأحد | B31: ='جدول الصف الثاني'!$C$10 -> الرياضيات | C31: ='جدول الصف الثاني'!$D$10 -> 8 | D31: ='جدول الصف الثاني'!$E$10 -> 9.3 | E31: ='جدول الصف الثاني'!$F$10 -> ساعة ونصف | G31: ='جدول الصف الثاني'!$B$10 -> الأحد | H31: ='جدول الصف الثاني'!$C$10 -> الرياضيات | I31: ='جدول الصف الثاني'!$D$10 -> 8 | J31: ='جدول الصف الثاني'!$E$10 -> 9.3 | K31: ='جدول الصف الثاني'!$F$10 -> ساعة ونصف
A32: ='جدول الصف الثاني'!$B$11 -> 2018-01-02 | B32: ='جدول الصف الثاني'!$C$11 -> اللغة الإنجليزية {شفهي} | C32: ='جدول الصف الثاني'!$D$11 -> 9.45 | D32: ='جدول الصف الثاني'!$E$11 -> 11.15 | E32: ='جدول الصف الثاني'!$F$11 -> ساعة ونصف | G32: ='جدول الصف الثاني'!$B$11 -> 2018-01-02 | H32: ='جدول الصف الثاني'!$C$11 -> اللغة الإنجليزية {شفهي} | I32: ='جدول الصف الثاني'!$D$11 -> 9.45 | J32: ='جدول الصف الثاني'!$E$11 -> 11.15 | K32: ='جدول الصف الثاني'!$F$11 -> ساعة ونصف
A34: ='جدول الصف الثاني'!$A$1 -> إدارة /غرب المحلة الكبرى التعليمية | D34: رقم اللجنة | E34: =VLOOKUP(E35,اسماء_الثاني,7,FALSE) -> 1 | G34: ='جدول الصف الثاني'!$A$1 -> إدارة /غرب المحلة الكبرى التعليمية | J34: رقم اللجنة | K34: =VLOOKUP(K35,اسماء_الثاني,7,FALSE) -> 2
A35: ='جدول الصف الثاني'!$A$2 -> مدرسة د/علي علي حبيش الابتدائية | C35: ='جدول الصف الثاني'!$C$5 -> الصف الثاني | E35: =E24+1 -> 4 | G35: ='جدول الصف الثاني'!$A$2 -> مدرسة د/علي علي حبيش الابتدائية | I35: ='جدول الصف الثاني'!$C$5 -> الصف الثاني | K35: =K24+1 -> 24
A36: ='جدول الصف الثاني'!$B$4 -> جدول امتحان الفصل الدراسي الأول / الثاني للعام الدراسي 2019/2018 | G36: ='جدول الصف الثاني'!$B$4 -> جدول امتحان الفصل الدراسي الأول / الثاني للعام الدراسي 2019/2018
A37: اسم التلميذ | B37: =VLOOKUP(E35,اسماء_الثاني,3,FALSE) -> حسن4 | C37: رقم الجلوس | D37: =VLOOKUP(E35,اسماء_الثاني,2,FALSE) -> 33 | G37: اسم التلميذ | H37: =VLOOKUP(K35,اسماء_الثاني,3,FALSE) -> حسن24 | I37: رقم الجلوس | J37: =VLOOKUP(K35,اسماء_الثاني,2,FALSE) -> 53
A38: اليوم والتاريخ | B38: المــــــــــــــادة | C38: الوقـــت | E38: الزمن | G38: اليوم والتاريخ | H38: المــــــــــــــادة | I38: الوقـــت | K38: الزمن
C39: من | D39: إلي | I39: من | J39: إلي
A40: ='جدول الصف الثاني'!$B$8 -> السبت | B40: ='جدول الصف الثاني'!$C$8 -> لغة عربية وخط | C40: ='جدول الصف الثاني'!$D$8 -> 8 | D40: ='جدول الصف الثاني'!$E$8 -> 10 | E40: ='جدول الصف الثاني'!$F$8 -> ساعتان | G40: ='جدول الصف الثاني'!$B$8 -> السبت | H40: ='جدول الصف الثاني'!$C$8 -> لغة عربية وخط | I40: ='جدول الصف الثاني'!$D$8 -> 8 | J40: ='جدول الصف الثاني'!$E$8 -> 10 | K40: ='جدول الصف الثاني'!$F$8 -> ساعتان
A41: ='جدول الصف الثاني'!$B$9 -> 2018-01-01 | B41: ='جدول الصف الثاني'!$C$9 -> التربية الدينية | C41: ='جدول الصف الثاني'!$D$9 -> 10.15 | D41: ='جدول الصف الثاني'!$E$9 -> 11.45 | E41: ='جدول الصف الثاني'!$F$9 -> ساعة | G41: ='جدول الصف الثاني'!$B$9 -> 2018-01-01 | H41: ='جدول الصف الثاني'!$C$9 -> التربية الدينية | I41: ='جدول الصف الثاني'!$D$9 -> 10.15 | J41: ='جدول الصف الثاني'!$E$9 -> 11.45 | K41: ='جدول الصف الثاني'!$F$9 -> ساعة
A42: ='جدول الصف الثاني'!$B$10 -> الأحد | B42: ='جدول الصف الثاني'!$C$10 -> الرياضيات | C42: ='جدول الصف الثاني'!$D$10 -> 8 | D42: ='جدول الصف الثاني'!$E$10 -> 9.3 | E42: ='جدول الصف الثاني'!$F$10 -> ساعة ونصف | G42: ='جدول الصف الثاني'!$B$10 -> الأحد | H42: ='جدول الصف الثاني'!$C$10 -> الرياضيات | I42: ='جدول الصف الثاني'!$D$10 -> 8 | J42: ='جدول الصف الثاني'!$E$10 -> 9.3 | K42: ='جدول الصف الثاني'!$F$10 -> ساعة ونصف
A43: ='جدول الصف الثاني'!$B$11 -> 2018-01-02 | B43: ='جدول الصف الثاني'!$C$11 -> اللغة الإنجليزية {شفهي} | C43: ='جدول الصف الثاني'!$D$11 -> 9.45 | D43: ='جدول الصف الثاني'!$E$11 -> 11.15 | E43: ='جدول الصف الثاني'!$F$11 -> ساعة ونصف | G43: ='جدول الصف الثاني'!$B$11 -> 2018-01-02 | H43: ='جدول الصف الثاني'!$C$11 -> اللغة الإنجليزية {شفهي} | I43: ='جدول الصف الثاني'!$D$11 -> 9.45 | J43: ='جدول الصف الثاني'!$E$11 -> 11.15 | K43: ='جدول الصف الثاني'!$F$11 -> ساعة ونصف
A45: ='جدول الصف الثاني'!$A$1 -> إدارة /غرب المحلة الكبرى التعليمية | D45: رقم اللجنة | E45: =VLOOKUP(E46,اسماء_الثاني,7,FALSE) -> 1 | G45: ='جدول الصف الثاني'!$A$1 -> إدارة /غرب المحلة الكبرى التعليمية | J45: رقم اللجنة | K45: =VLOOKUP(K46,اسماء_الثاني,7,FALSE) -> 2
A46: ='جدول الصف الثاني'!$A$2 -> مدرسة د/علي علي حبيش الابتدائية | C46: ='جدول الصف الثاني'!$C$5 -> الصف الثاني | E46: =E35+1 -> 5 | G46: ='جدول الصف الثاني'!$A$2 -> مدرسة د/علي علي حبيش الابتدائية | I46: ='جدول الصف الثاني'!$C$5 -> الصف الثاني | K46: =K35+1 -> 25
A47: ='جدول الصف الثاني'!$B$4 -> جدول امتحان الفصل الدراسي الأول / الثاني للعام الدراسي 2019/2018 | G47: ='جدول الصف الثاني'!$B$4 -> جدول امتحان الفصل الدراسي الأول / الثاني للعام الدراسي 2019/2018
A48: اسم التلميذ | B48: =VLOOKUP(E46,اسماء_الثاني,3,FALSE) -> حسن5 | C48: رقم الجلوس | D48: =VLOOKUP(E46,اسماء_الثاني,2,FALSE) -> 34 | G48: اسم التلميذ | H48: =VLOOKUP(K46,اسماء_الثاني,3,FALSE) -> حسن25 | I48: رقم الجلوس | J48: =VLOOKUP(K46,اسماء_الثاني,2,FALSE) -> 54
A49: اليوم والتاريخ | B49: المــــــــــــــادة | C49: الوقـــت | E49: الزمن | G49: اليوم والتاريخ | H49: المــــــــــــــادة | I49: الوقـــت | K49: الزمن
C50: من | D50: إلي | I50: من | J50: إلي
A51: ='جدول الصف الثاني'!$B$8 -> السبت | B51: ='جدول الصف الثاني'!$C$8 -> لغة عربية وخط | C51: ='جدول الصف الثاني'!$D$8 -> 8 | D51: ='جدول الصف الثاني'!$E$8 -> 10 | E51: ='جدول الصف الثاني'!$F$8 -> ساعتان | G51: ='جدول الصف الثاني'!$B$8 -> السبت | H51: ='جدول الصف الثاني'!$C$8 -> لغة عربية وخط | I51: ='جدول الصف الثاني'!$D$8 -> 8 | J51: ='جدول الصف الثاني'!$E$8 -> 10 | K51: ='جدول الصف الثاني'!$F$8 -> ساعتان
A52: ='جدول الصف الثاني'!$B$9 -> 2018-01-01 | B52: ='جدول الصف الثاني'!$C$9 -> التربية الدينية | C52: ='جدول الصف الثاني'!$D$9 -> 10.15 | D52: ='جدول الصف الثاني'!$E$9 -> 11.45 | E52: ='جدول الصف الثاني'!$F$9 -> ساعة | G52: ='جدول الصف الثاني'!$B$9 -> 2018-01-01 | H52: ='جدول الصف الثاني'!$C$9 -> التربية الدينية | I52: ='جدول الصف الثاني'!$D$9 -> 10.15 | J52: ='جدول الصف الثاني'!$E$9 -> 11.45 | K52: ='جدول الصف الثاني'!$F$9 -> ساعة
A53: ='جدول الصف الثاني'!$B$10 -> الأحد | B53: ='جدول الصف الثاني'!$C$10 -> الرياضيات | C53: ='جدول الصف الثاني'!$D$10 -> 8 | D53: ='جدول الصف الثاني'!$E$10 -> 9.3 | E53: ='جدول الصف الثاني'!$F$10 -> ساعة ونصف | G53: ='جدول الصف الثاني'!$B$10 -> الأحد | H53: ='جدول الصف الثاني'!$C$10 -> الرياضيات | I53: ='جدول الصف الثاني'!$D$10 -> 8 | J53: ='جدول الصف الثاني'!$E$10 -> 9.3 | K53: ='جدول الصف الثاني'!$F$10 -> ساعة ونصف
A54: ='جدول الصف الثاني'!$B$11 -> 2018-01-02 | B54: ='جدول الصف الثاني'!$C$11 -> اللغة الإنجليزية {شفهي} | C54: ='جدول الصف الثاني'!$D$11 -> 9.45 | D54: ='جدول الصف الثاني'!$E$11 -> 11.15 | E54: ='جدول الصف الثاني'!$F$11 -> ساعة ونصف | G54: ='جدول الصف الثاني'!$B$11 -> 2018-01-02 | H54: ='جدول الصف الثاني'!$C$11 -> اللغة الإنجليزية {شفهي} | I54: ='جدول الصف الثاني'!$D$11 -> 9.45 | J54: ='جدول الصف الثاني'!$E$11 -> 11.15 | K54: ='جدول الصف الثاني'!$F$11 -> ساعة ونصف
A56: ='جدول الصف الثاني'!$A$1 -> إدارة /غرب المحلة الكبرى التعليمية | D56: رقم اللجنة | E56: =VLOOKUP(E57,اسماء_الثاني,7,FALSE) -> 1 | G56: ='جدول الصف الثاني'!$A$1 -> إدارة /غرب المحلة الكبرى التعليمية | J56: رقم اللجنة | K56: =VLOOKUP(K57,اسماء_الثاني,7,FALSE) -> 2
A57: ='جدول الصف الثاني'!$A$2 -> مدرسة د/علي علي حبيش الابتدائية | C57: ='جدول الصف الثاني'!$C$5 -> الصف الثاني | E57: =E46+1 -> 6 | G57: ='جدول الصف الثاني'!$A$2 -> مدرسة د/علي علي حبيش الابتدائية | I57: ='جدول الصف الثاني'!$C$5 -> الصف الثاني | K57: =K46+1 -> 26
A58: ='جدول الصف الثاني'!$B$4 -> جدول امتحان الفصل الدراسي الأول / الثاني للعام الدراسي 2019/2018 | G58: ='جدول الصف الثاني'!$B$4 -> جدول امتحان الفصل الدراسي الأول / الثاني للعام الدراسي 2019/2018
A59: اسم التلميذ | B59: =VLOOKUP(E57,اسماء_الثاني,3,FALSE) -> حسن6 | C59: رقم الجلوس | D59: =VLOOKUP(E57,اسماء_الثاني,2,FALSE) -> 35 | G59: اسم التلميذ | H59: =VLOOKUP(K57,اسماء_الثاني,3,FALSE) -> حسن26 | I59: رقم الجلوس | J59: =VLOOKUP(K57,اسماء_الثاني,2,FALSE) -> 55
A60: اليوم والتاريخ | B60: المــــــــــــــادة | C60: الوقـــت | E60: الزمن | G60: اليوم والتاريخ | H60: المــــــــــــــادة | I60: الوقـــت | K60: الزمن
C61: من | D61: إلي | I61: من | J61: إلي
A62: ='جدول الصف الثاني'!$B$8 -> السبت | B62: ='جدول الصف الثاني'!$C$8 -> لغة عربية وخط | C62: ='جدول الصف الثاني'!$D$8 -> 8 | D62: ='جدول الصف الثاني'!$E$8 -> 10 | E62: ='جدول الصف الثاني'!$F$8 -> ساعتان | G62: ='جدول الصف الثاني'!$B$8 -> السبت | H62: ='جدول الصف الثاني'!$C$8 -> لغة عربية وخط | I62: ='جدول الصف الثاني'!$D$8 -> 8 | J62: ='جدول الصف الثاني'!$E$8 -> 10 | K62: ='جدول الصف الثاني'!$F$8 -> ساعتان
A63: ='جدول الصف الثاني'!$B$9 -> 2018-01-01 | B63: ='جدول الصف الثاني'!$C$9 -> التربية الدينية | C63: ='جدول الصف الثاني'!$D$9 -> 10.15 | D63: ='جدول الصف الثاني'!$E$9 -> 11.45 | E63: ='جدول الصف الثاني'!$F$9 -> ساعة | G63: ='جدول الصف الثاني'!$B$9 -> 2018-01-01 | H63: ='جدول الصف الثاني'!$C$9 -> التربية الدينية | I63: ='جدول الصف الثاني'!$D$9 -> 10.15 | J63: ='جدول الصف الثاني'!$E$9 -> 11.45 | K63: ='جدول الصف الثاني'!$F$9 -> ساعة
A64: ='جدول الصف الثاني'!$B$10 -> الأحد | B64: ='جدول الصف الثاني'!$C$10 -> الرياضيات | C64: ='جدول الصف الثاني'!$D$10 -> 8 | D64: ='جدول الصف الثاني'!$E$10 -> 9.3 | E64: ='جدول الصف الثاني'!$F$10 -> ساعة ونصف | G64: ='جدول الصف الثاني'!$B$10 -> الأحد | H64: ='جدول الصف الثاني'!$C$10 -> الرياضيات | I64: ='جدول الصف الثاني'!$D$10 -> 8 | J64: ='جدول الصف الثاني'!$E$10 -> 9.3 | K64: ='جدول الصف الثاني'!$F$10 -> ساعة ونصف
A65: ='جدول الصف الثاني'!$B$11 -> 2018-01-02 | B65: ='جدول الصف الثاني'!$C$11 -> اللغة الإنجليزية {شفهي} | C65: ='جدول الصف الثاني'!$D$11 -> 9.45 | D65: ='جدول الصف الثاني'!$E$11 -> 11.15 | E65: ='جدول الصف الثاني'!$F$11 -> ساعة ونصف | G65: ='جدول الصف الثاني'!$B$11 -> 2018-01-02 | H65: ='جدول الصف الثاني'!$C$11 -> اللغة الإنجليزية {شفهي} | I65: ='جدول الصف الثاني'!$D$11 -> 9.45 | J65: ='جدول الصف الثاني'!$E$11 -> 11.15 | K65: ='جدول الصف الثاني'!$F$11 -> ساعة ونصف
A67: ='جدول الصف الثاني'!$A$1 -> إدارة /غرب المحلة الكبرى التعليمية | D67: رقم اللجنة | E67: =VLOOKUP(E68,اسماء_الثاني,7,FALSE) -> 1 | G67: ='جدول الصف الثاني'!$A$1 -> إدارة /غرب المحلة الكبرى التعليمية | J67: رقم اللجنة | K67: =VLOOKUP(K68,اسماء_الثاني,7,FALSE) -> 2
A68: ='جدول الصف الثاني'!$A$2 -> مدرسة د/علي علي حبيش الابتدائية | C68: ='جدول الصف الثاني'!$C$5 -> الصف الثاني | E68: =E57+1 -> 7 | G68: ='جدول الصف الثاني'!$A$2 -> مدرسة د/علي علي حبيش الابتدائية | I68: ='جدول الصف الثاني'!$C$5 -> الصف الثاني | K68: =K57+1 -> 27
A69: ='جدول الصف الثاني'!$B$4 -> جدول امتحان الفصل الدراسي الأول / الثاني للعام الدراسي 2019/2018 | G69: ='جدول الصف الثاني'!$B$4 -> جدول امتحان الفصل الدراسي الأول / الثاني للعام الدراسي 2019/2018
A70: اسم التلميذ | B70: =VLOOKUP(E68,اسماء_الثاني,3,FALSE) -> حسن7 | C70: رقم الجلوس | D70: =VLOOKUP(E68,اسماء_الثاني,2,FALSE) -> 36 | G70: اسم التلميذ | H70: =VLOOKUP(K68,اسماء_الثاني,3,FALSE) -> حسن27 | I70: رقم الجلوس | J70: =VLOOKUP(K68,اسماء_الثاني,2,FALSE) -> 56
A71: اليوم والتاريخ | B71: المــــــــــــــادة | C71: الوقـــت | E71: الزمن | G71: اليوم والتاريخ | H71: المــــــــــــــادة | I71: الوقـــت | K71: الزمن
C72: من | D72: إلي | I72: من | J72: إلي
A73: ='جدول الصف الثاني'!$B$8 -> السبت | B73: ='جدول الصف الثاني'!$C$8 -> لغة عربية وخط | C73: ='جدول الصف الثاني'!$D$8 -> 8 | D73: ='جدول الصف الثاني'!$E$8 -> 10 | E73: ='جدول الصف الثاني'!$F$8 -> ساعتان | G73: ='جدول الصف الثاني'!$B$8 -> السبت | H73: ='جدول الصف الثاني'!$C$8 -> لغة عربية وخط | I73: ='جدول الصف الثاني'!$D$8 -> 8 | J73: ='جدول الصف الثاني'!$E$8 -> 10 | K73: ='جدول الصف الثاني'!$F$8 -> ساعتان
A74: ='جدول الصف الثاني'!$B$9 -> 2018-01-01 | B74: ='جدول الصف الثاني'!$C$9 -> التربية الدينية | C74: ='جدول الصف الثاني'!$D$9 -> 10.15 | D74: ='جدول الصف الثاني'!$E$9 -> 11.45 | E74: ='جدول الصف الثاني'!$F$9 -> ساعة | G74: ='جدول الصف الثاني'!$B$9 -> 2018-01-01 | H74: ='جدول الصف الثاني'!$C$9 -> التربية الدينية | I74: ='جدول الصف الثاني'!$D$9 -> 10.15 | J74: ='جدول الصف الثاني'!$E$9 -> 11.45 | K74: ='جدول الصف الثاني'!$F$9 -> ساعة
A75: ='جدول الصف الثاني'!$B$10 -> الأحد | B75: ='جدول الصف الثاني'!$C$10 -> الرياضيات | C75: ='جدول الصف الثاني'!$D$10 -> 8 | D75: ='جدول الصف الثاني'!$E$10 -> 9.3 | E75: ='جدول الصف الثاني'!$F$10 -> ساعة ونصف | G75: ='جدول الصف الثاني'!$B$10 -> الأحد | H75: ='جدول الصف الثاني'!$C$10 -> الرياضيات | I75: ='جدول الصف الثاني'!$D$10 -> 8 | J75: ='جدول الصف الثاني'!$E$10 -> 9.3 | K75: ='جدول الصف الثاني'!$F$10 -> ساعة ونصف
A76: ='جدول الصف الثاني'!$B$11 -> 2018-01-02 | B76: ='جدول الصف الثاني'!$C$11 -> اللغة الإنجليزية {شفهي} | C76: ='جدول الصف الثاني'!$D$11 -> 9.45 | D76: ='جدول الصف الثاني'!$E$11 -> 11.15 | E76: ='جدول الصف الثاني'!$F$11 -> ساعة ونصف | G76: ='جدول الصف الثاني'!$B$11 -> 2018-01-02 | H76: ='جدول الصف الثاني'!$C$11 -> اللغة الإنجليزية {شفهي} | I76: ='جدول الصف الثاني'!$D$11 -> 9.45 | J76: ='جدول الصف الثاني'!$E$11 -> 11.15 | K76: ='جدول الصف الثاني'!$F$11 -> ساعة ونصف
A78: ='جدول الصف الثاني'!$A$1 -> إدارة /غرب المحلة الكبرى التعليمية | D78: رقم اللجنة | E78: =VLOOKUP(E79,اسماء_الثاني,7,FALSE) -> 1 | G78: ='جدول الصف الثاني'!$A$1 -> إدارة /غرب المحلة الكبرى التعليمية | J78: رقم اللجنة | K78: =VLOOKUP(K79,اسماء_الثاني,7,FALSE) -> 2
A79: ='جدول الصف الثاني'!$A$2 -> مدرسة د/علي علي حبيش الابتدائية | C79: ='جدول الصف الثاني'!$C$5 -> الصف الثاني | E79: =E68+1 -> 8 | G79: ='جدول الصف الثاني'!$A$2 -> مدرسة د/علي علي حبيش الابتدائية | I79: ='جدول الصف الثاني'!$C$5 -> الصف الثاني | K79: =K68+1 -> 28
A80: ='جدول الصف الثاني'!$B$4 -> جدول امتحان الفصل الدراسي الأول / الثاني للعام الدراسي 2019/2018 | G80: ='جدول الصف الثاني'!$B$4 -> جدول امتحان الفصل الدراسي الأول / الثاني للعام الدراسي 2019/2018
A81: اسم التلميذ | B81: =VLOOKUP(E79,اسماء_الثاني,3,FALSE) -> حسن8 | C81: رقم الجلوس | D81: =VLOOKUP(E79,اسماء_الثاني,2,FALSE) -> 37 | G81: اسم التلميذ | H81: =VLOOKUP(K79,اسماء_الثاني,3,FALSE) -> حسن28 | I81: رقم الجلوس | J81: =VLOOKUP(K79,اسماء_الثاني,2,FALSE) -> 57
A82: اليوم والتاريخ | B82: المــــــــــــــادة | C82: الوقـــت | E82: الزمن | G82: اليوم والتاريخ | H82: المــــــــــــــادة | I82: الوقـــت | K82: الزمن
C83: من | D83: إلي | I83: من | J83: إلي
A84: ='جدول الصف الثاني'!$B$8 -> السبت | B84: ='جدول الصف الثاني'!$C$8 -> لغة عربية وخط | C84: ='جدول الصف الثاني'!$D$8 -> 8 | D84: ='جدول الصف الثاني'!$E$8 -> 10 | E84: ='جدول الصف الثاني'!$F$8 -> ساعتان | G84: ='جدول الصف الثاني'!$B$8 -> السبت | H84: ='جدول الصف الثاني'!$C$8 -> لغة عربية وخط | I84: ='جدول الصف الثاني'!$D$8 -> 8 | J84: ='جدول الصف الثاني'!$E$8 -> 10 | K84: ='جدول الصف الثاني'!$F$8 -> ساعتان
A85: ='جدول الصف الثاني'!$B$9 -> 2018-01-01 | B85: ='جدول الصف الثاني'!$C$9 -> التربية الدينية | C85: ='جدول الصف الثاني'!$D$9 -> 10.15 | D85: ='جدول الصف الثاني'!$E$9 -> 11.45 | E85: ='جدول الصف الثاني'!$F$9 -> ساعة | G85: ='جدول الصف الثاني'!$B$9 -> 2018-01-01 | H85: ='جدول الصف الثاني'!$C$9 -> التربية الدينية | I85: ='جدول الصف الثاني'!$D$9 -> 10.15 | J85: ='جدول الصف الثاني'!$E$9 -> 11.45 | K85: ='جدول الصف الثاني'!$F$9 -> ساعة
A86: ='جدول الصف الثاني'!$B$10 -> الأحد | B86: ='جدول الصف الثاني'!$C$10 -> الرياضيات | C86: ='جدول الصف الثاني'!$D$10 -> 8 | D86: ='جدول الصف الثاني'!$E$10 -> 9.3 | E86: ='جدول الصف الثاني'!$F$10 -> ساعة ونصف | G86: ='جدول الصف الثاني'!$B$10 -> الأحد | H86: ='جدول الصف الثاني'!$C$10 -> الرياضيات | I86: ='جدول الصف الثاني'!$D$10 -> 8 | J86: ='جدول الصف الثاني'!$E$10 -> 9.3 | K86: ='جدول الصف الثاني'!$F$10 -> ساعة ونصف
A87: ='جدول الصف الثاني'!$B$11 -> 2018-01-02 | B87: ='جدول الصف الثاني'!$C$11 -> اللغة الإنجليزية {شفهي} | C87: ='جدول الصف الثاني'!$D$11 -> 9.45 | D87: ='جدول الصف الثاني'!$E$11 -> 11.15 | E87: ='جدول الصف الثاني'!$F$11 -> ساعة ونصف | G87: ='جدول الصف الثاني'!$B$11 -> 2018-01-02 | H87: ='جدول الصف الثاني'!$C$11 -> اللغة الإنجليزية {شفهي} | I87: ='جدول الصف الثاني'!$D$11 -> 9.45 | J87: ='جدول الصف الثاني'!$E$11 -> 11.15 | K87: ='جدول الصف الثاني'!$F$11 -> ساعة ونصف
A89: ='جدول الصف الثاني'!$A$1 -> إدارة /غرب المحلة الكبرى التعليمية | D89: رقم اللجنة | E89: =VLOOKUP(E90,اسماء_الثاني,7,FALSE) -> 1 | G89: ='جدول الصف الثاني'!$A$1 -> إدارة /غرب المحلة الكبرى التعليمية | J89: رقم اللجنة | K89: =VLOOKUP(K90,اسماء_الثاني,7,FALSE) -> 2
A90: ='جدول الصف الثاني'!$A$2 -> مدرسة د/علي علي حبيش الابتدائية | C90: ='جدول الصف الثاني'!$C$5 -> الصف الثاني | E90: =E79+1 -> 9 | G90: ='جدول الصف الثاني'!$A$2 -> مدرسة د/علي علي حبيش الابتدائية | I90: ='جدول الصف الثاني'!$C$5 -> الصف الثاني | K90: =K79+1 -> 29
A91: ='جدول الصف الثاني'!$B$4 -> جدول امتحان الفصل الدراسي الأول / الثاني للعام الدراسي 2019/2018 | G91: ='جدول الصف الثاني'!$B$4 -> جدول امتحان الفصل الدراسي الأول / الثاني للعام الدراسي 2019/2018
A92: اسم التلميذ | B92: =VLOOKUP(E90,اسماء_الثاني,3,FALSE) -> حسن9 | C92: رقم الجلوس | D92: =VLOOKUP(E90,اسماء_الثاني,2,FALSE) -> 38 | G92: اسم التلميذ | H92: =VLOOKUP(K90,اسماء_الثاني,3,FALSE) -> حسن29 | I92: رقم الجلوس | J92: =VLOOKUP(K90,اسماء_الثاني,2,FALSE) -> 58
A93: اليوم والتاريخ | B93: المــــــــــــــادة | C93: الوقـــت | E93: الزمن | G93: اليوم والتاريخ | H93: المــــــــــــــادة | I93: الوقـــت | K93: الزمن
C94: من | D94: إلي | I94: من | J94: إلي
A95: ='جدول الصف الثاني'!$B$8 -> السبت | B95: ='جدول الصف الثاني'!$C$8 -> لغة عربية وخط | C95: ='جدول الصف الثاني'!$D$8 -> 8 | D95: ='جدول الصف الثاني'!$E$8 -> 10 | E95: ='جدول الصف الثاني'!$F$8 -> ساعتان | G95: ='جدول الصف الثاني'!$B$8 -> السبت | H95: ='جدول الصف الثاني'!$C$8 -> لغة عربية وخط | I95: ='جدول الصف الثاني'!$D$8 -> 8 | J95: ='جدول الصف الثاني'!$E$8 -> 10 | K95: ='جدول الصف الثاني'!$F$8 -> ساعتان
A96: ='جدول الصف الثاني'!$B$9 -> 2018-01-01 | B96: ='جدول الصف الثاني'!$C$9 -> التربية الدينية | C96: ='جدول الصف الثاني'!$D$9 -> 10.15 | D96: ='جدول الصف الثاني'!$E$9 -> 11.45 | E96: ='جدول الصف الثاني'!$F$9 -> ساعة | G96: ='جدول الصف الثاني'!$B$9 -> 2018-01-01 | H96: ='جدول الصف الثاني'!$C$9 -> التربية الدينية | I96: ='جدول الصف الثاني'!$D$9 -> 10.15 | J96: ='جدول الصف الثاني'!$E$9 -> 11.45 | K96: ='جدول الصف الثاني'!$F$9 -> ساعة
A97: ='جدول الصف الثاني'!$B$10 -> الأحد | B97: ='جدول الصف الثاني'!$C$10 -> الرياضيات | C97: ='جدول الصف الثاني'!$D$10 -> 8 | D97: ='جدول الصف الثاني'!$E$10 -> 9.3 | E97: ='جدول الصف الثاني'!$F$10 -> ساعة ونصف | G97: ='جدول الصف الثاني'!$B$10 -> الأحد | H97: ='جدول الصف الثاني'!$C$10 -> الرياضيات | I97: ='جدول الصف الثاني'!$D$10 -> 8 | J97: ='جدول الصف الثاني'!$E$10 -> 9.3 | K97: ='جدول الصف الثاني'!$F$10 -> ساعة ونصف
A98: ='جدول الصف الثاني'!$B$11 -> 2018-01-02 | B98: ='جدول الصف الثاني'!$C$11 -> اللغة الإنجليزية {شفهي} | C98: ='جدول الصف الثاني'!$D$11 -> 9.45 | D98: ='جدول الصف الثاني'!$E$11 -> 11.15 | E98: ='جدول الصف الثاني'!$F$11 -> ساعة ونصف | G98: ='جدول الصف الثاني'!$B$11 -> 2018-01-02 | H98: ='جدول الصف الثاني'!$C$11 -> اللغة الإنجليزية {شفهي} | I98: ='جدول الصف الثاني'!$D$11 -> 9.45 | J98: ='جدول الصف الثاني'!$E$11 -> 11.15 | K98: ='جدول الصف الثاني'!$F$11 -> ساعة ونصف
A100: ='جدول الصف الثاني'!$A$1 -> إدارة /غرب المحلة الكبرى التعليمية | D100: رقم اللجنة | E100: =VLOOKUP(E101,اسماء_الثاني,7,FALSE) -> 1 | G100: ='جدول الصف الثاني'!$A$1 -> إدارة /غرب المحلة الكبرى التعليمية | J100: رقم اللجنة | K100: =VLOOKUP(K101,اسماء_الثاني,7,FALSE) -> 2
A101: ='جدول الصف الثاني'!$A$2 -> مدرسة د/علي علي حبيش الابتدائية | C101: ='جدول الصف الثاني'!$C$5 -> الصف الثاني | E101: =E90+1 -> 10 | G101: ='جدول الصف الثاني'!$A$2 -> مدرسة د/علي علي حبيش الابتدائية | I101: ='جدول الصف الثاني'!$C$5 -> الصف الثاني | K101: =K90+1 -> 30
A102: ='جدول الصف الثاني'!$B$4 -> جدول امتحان الفصل الدراسي الأول / الثاني للعام الدراسي 2019/2018 | G102: ='جدول الصف الثاني'!$B$4 -> جدول امتحان الفصل الدراسي الأول / الثاني للعام الدراسي 2019/2018
A103: اسم التلميذ | B103: =VLOOKUP(E101,اسماء_الثاني,3,FALSE) -> حسن10 | C103: رقم الجلوس | D103: =VLOOKUP(E101,اسماء_الثاني,2,FALSE) -> 39 | G103: اسم التلميذ | H103: =VLOOKUP(K101,اسماء_الثاني,3,FALSE) -> حسن30 | I103: رقم الجلوس | J103: =VLOOKUP(K101,اسماء_الثاني,2,FALSE) -> 59
A104: اليوم والتاريخ | B104: المــــــــــــــادة | C104: الوقـــت | E104: الزمن | G104: اليوم والتاريخ | H104: المــــــــــــــادة | I104: الوقـــت | K104: الزمن
C105: من | D105: إلي | I105: من | J105: إلي
A106: ='جدول الصف الثاني'!$B$8 -> السبت | B106: ='جدول الصف الثاني'!$C$8 -> لغة عربية وخط | C106: ='جدول الصف الثاني'!$D$8 -> 8 | D106: ='جدول الصف الثاني'!$E$8 -> 10 | E106: ='جدول الصف الثاني'!$F$8 -> ساعتان | G106: ='جدول الصف الثاني'!$B$8 -> السبت | H106: ='جدول الصف الثاني'!$C$8 -> لغة عربية وخط | I106: ='جدول الصف الثاني'!$D$8 -> 8 | J106: ='جدول الصف الثاني'!$E$8 -> 10 | K106: ='جدول الصف الثاني'!$F$8 -> ساعتان
A107: ='جدول الصف الثاني'!$B$9 -> 2018-01-01 | B107: ='جدول الصف الثاني'!$C$9 -> التربية الدينية | C107: ='جدول الصف الثاني'!$D$9 -> 10.15 | D107: ='جدول الصف الثاني'!$E$9 -> 11.45 | E107: ='جدول الصف الثاني'!$F$9 -> ساعة | G107: ='جدول الصف الثاني'!$B$9 -> 2018-01-01 | H107: ='جدول الصف الثاني'!$C$9 -> التربية الدينية | I107: ='جدول الصف الثاني'!$D$9 -> 10.15 | J107: ='جدول الصف الثاني'!$E$9 -> 11.45 | K107: ='جدول الصف الثاني'!$F$9 -> ساعة
A108: ='جدول الصف الثاني'!$B$10 -> الأحد | B108: ='جدول الصف الثاني'!$C$10 -> الرياضيات | C108: ='جدول الصف الثاني'!$D$10 -> 8 | D108: ='جدول الصف الثاني'!$E$10 -> 9.3 | E108: ='جدول الصف الثاني'!$F$10 -> ساعة ونصف | G108: ='جدول الصف الثاني'!$B$10 -> الأحد | H108: ='جدول الصف الثاني'!$C$10 -> الرياضيات | I108: ='جدول الصف الثاني'!$D$10 -> 8 | J108: ='جدول الصف الثاني'!$E$10 -> 9.3 | K108: ='جدول الصف الثاني'!$F$10 -> ساعة ونصف
A109: ='جدول الصف الثاني'!$B$11 -> 2018-01-02 | B109: ='جدول الصف الثاني'!$C$11 -> اللغة الإنجليزية {شفهي} | C109: ='جدول الصف الثاني'!$D$11 -> 9.45 | D109: ='جدول الصف الثاني'!$E$11 -> 11.15 | E109: ='جدول الصف الثاني'!$F$11 -> ساعة ونصف | G109: ='جدول الصف الثاني'!$B$11 -> 2018-01-02 | H109: ='جدول الصف الثاني'!$C$11 -> اللغة الإنجليزية {شفهي} | I109: ='جدول الصف الثاني'!$D$11 -> 9.45 | J109: ='جدول الصف الثاني'!$E$11 -> 11.15 | K109: ='جدول الصف الثاني'!$F$11 -> ساعة ونصف
A111: ='جدول الصف الثاني'!$A$1 -> إدارة /غرب المحلة الكبرى التعليمية | D111: رقم اللجنة | E111: =VLOOKUP(E112,اسماء_الثاني,7,FALSE) -> 1 | G111: ='جدول الصف الثاني'!$A$1 -> إدارة /غرب المحلة الكبرى التعليمية | J111: رقم اللجنة | K111: =VLOOKUP(K112,اسماء_الثاني,7,FALSE) -> 2
A112: ='جدول الصف الثاني'!$A$2 -> مدرسة د/علي علي حبيش الابتدائية | C112: ='جدول الصف الثاني'!$C$5 -> الصف الثاني | E112: =E101+1 -> 11 | G112: ='جدول الصف الثاني'!$A$2 -> مدرسة د/علي علي حبيش الابتدائية | I112: ='جدول الصف الثاني'!$C$5 -> الصف الثاني | K112: =K101+1 -> 31
A113: ='جدول الصف الثاني'!$B$4 -> جدول امتحان الفصل الدراسي الأول / الثاني للعام الدراسي 2019/2018 | G113: ='جدول الصف الثاني'!$B$4 -> جدول امتحان الفصل الدراسي الأول / الثاني للعام الدراسي 2019/2018
A114: اسم التلميذ | B114: =VLOOKUP(E112,اسماء_الثاني,3,FALSE) -> حسن11 | C114: رقم الجلوس | D114: =VLOOKUP(E112,اسماء_الثاني,2,FALSE) -> 40 | G114: اسم التلميذ | H114: =VLOOKUP(K112,اسماء_الثاني,3,FALSE) -> حسن31 | I114: رقم الجلوس | J114: =VLOOKUP(K112,اسماء_الثاني,2,FALSE) -> 60
A115: اليوم والتاريخ | B115: المــــــــــــــادة | C115: الوقـــت | E115: الزمن | G115: اليوم والتاريخ | H115: المــــــــــــــادة | I115: الوقـــت | K115: الزمن
C116: من | D116: إلي | I116: من | J116: إلي
A117: ='جدول الصف الثاني'!$B$8 -> السبت | B117: ='جدول الصف الثاني'!$C$8 -> لغة عربية وخط | C117: ='جدول الصف الثاني'!$D$8 -> 8 | D117: ='جدول الصف الثاني'!$E$8 -> 10 | E117: ='جدول الصف الثاني'!$F$8 -> ساعتان | G117: ='جدول الصف الثاني'!$B$8 -> السبت | H117: ='جدول الصف الثاني'!$C$8 -> لغة عربية وخط | I117: ='جدول الصف الثاني'!$D$8 -> 8 | J117: ='جدول الصف الثاني'!$E$8 -> 10 | K117: ='جدول الصف الثاني'!$F$8 -> ساعتان
A118: ='جدول الصف الثاني'!$B$9 -> 2018-01-01 | B118: ='جدول الصف الثاني'!$C$9 -> التربية الدينية | C118: ='جدول الصف الثاني'!$D$9 -> 10.15 | D118: ='جدول الصف الثاني'!$E$9 -> 11.45 | E118: ='جدول الصف الثاني'!$F$9 -> ساعة | G118: ='جدول الصف الثاني'!$B$9 -> 2018-01-01 | H118: ='جدول الصف الثاني'!$C$9 -> التربية الدينية | I118: ='جدول الصف الثاني'!$D$9 -> 10.15 | J118: ='جدول الصف الثاني'!$E$9 -> 11.45 | K118: ='جدول الصف الثاني'!$F$9 -> ساعة
A119: ='جدول الصف الثاني'!$B$10 -> الأحد | B119: ='جدول الصف الثاني'!$C$10 -> الرياضيات | C119: ='جدول الصف الثاني'!$D$10 -> 8 | D119: ='جدول الصف الثاني'!$E$10 -> 9.3 | E119: ='جدول الصف الثاني'!$F$10 -> ساعة ونصف | G119: ='جدول الصف الثاني'!$B$10 -> الأحد | H119: ='جدول الصف الثاني'!$C$10 -> الرياضيات | I119: ='جدول الصف الثاني'!$D$10 -> 8 | J119: ='جدول الصف الثاني'!$E$10 -> 9.3 | K119: ='جدول الصف الثاني'!$F$10 -> ساعة ونصف
A120: ='جدول الصف الثاني'!$B$11 -> 2018-01-02 | B120: ='جدول الصف الثاني'!$C$11 -> اللغة الإنجليزية {شفهي} | C120: ='جدول الصف الثاني'!$D$11 -> 9.45 | D120: ='جدول الصف الثاني'!$E$11 -> 11.15 | E120: ='جدول الصف الثاني'!$F$11 -> ساعة ونصف | G120: ='جدول الصف الثاني'!$B$11 -> 2018-01-02 | H120: ='جدول الصف الثاني'!$C$11 -> اللغة الإنجليزية {شفهي} | I120: ='جدول الصف الثاني'!$D$11 -> 9.45 | J120: ='جدول الصف الثاني'!$E$11 -> 11.15 | K120: ='جدول الصف الثاني'!$F$11 -> ساعة ونصف
A122: ='جدول الصف الثاني'!$A$1 -> إدارة /غرب المحلة الكبرى التعليمية | D122: رقم اللجنة | E122: =VLOOKUP(E123,اسماء_الثاني,7,FALSE) -> 1 | G122: ='جدول الصف الثاني'!$A$1 -> إدارة /غرب المحلة الكبرى التعليمية | J122: رقم اللجنة | K122: =VLOOKUP(K123,اسماء_الثاني,7,FALSE) -> 2
A123: ='جدول الصف الثاني'!$A$2 -> مدرسة د/علي علي حبيش الابتدائية | C123: ='جدول الصف الثاني'!$C$5 -> الصف الثاني | E123: =E112+1 -> 12 | G123: ='جدول الصف الثاني'!$A$2 -> مدرسة د/علي علي حبيش الابتدائية | I123: ='جدول الصف الثاني'!$C$5 -> الصف الثاني | K123: =K112+1 -> 32
A124: ='جدول الصف الثاني'!$B$4 -> جدول امتحان الفصل الدراسي الأول / الثاني للعام الدراسي 2019/2018 | G124: ='جدول الصف الثاني'!$B$4 -> جدول امتحان الفصل الدراسي الأول / الثاني للعام الدراسي 2019/2018
A125: اسم التلميذ | B125: =VLOOKUP(E123,اسماء_الثاني,3,FALSE) -> حسن12 | C125: رقم الجلوس | D125: =VLOOKUP(E123,اسماء_الثاني,2,FALSE) -> 41 | G125: اسم التلميذ | H125: =VLOOKUP(K123,اسماء_الثاني,3,FALSE) -> حسن32 | I125: رقم الجلوس | J125: =VLOOKUP(K123,اسماء_الثاني,2,FALSE) -> 61
A126: اليوم والتاريخ | B126: المــــــــــــــادة | C126: الوقـــت | E126: الزمن | G126: اليوم والتاريخ | H126: المــــــــــــــادة | I126: الوقـــت | K126: الزمن
C127: من | D127: إلي | I127: من | J127: إلي
A128: ='جدول الصف الثاني'!$B$8 -> السبت | B128: ='جدول الصف الثاني'!$C$8 -> لغة عربية وخط | C128: ='جدول الصف الثاني'!$D$8 -> 8 | D128: ='جدول الصف الثاني'!$E$8 -> 10 | E128: ='جدول الصف الثاني'!$F$8 -> ساعتان | G128: ='جدول الصف الثاني'!$B$8 -> السبت | H128: ='جدول الصف الثاني'!$C$8 -> لغة عربية وخط | I128: ='جدول الصف الثاني'!$D$8 -> 8 | J128: ='جدول الصف الثاني'!$E$8 -> 10 | K128: ='جدول الصف الثاني'!$F$8 -> ساعتان
A129: ='جدول الصف الثاني'!$B$9 -> 2018-01-01 | B129: ='جدول الصف الثاني'!$C$9 -> التربية الدينية | C129: ='جدول الصف الثاني'!$D$9 -> 10.15 | D129: ='جدول الصف الثاني'!$E$9 -> 11.45 | E129: ='جدول الصف الثاني'!$F$9 -> ساعة | G129: ='جدول الصف الثاني'!$B$9 -> 2018-01-01 | H129: ='جدول الصف الثاني'!$C$9 -> التربية الدينية | I129: ='جدول الصف الثاني'!$D$9 -> 10.15 | J129: ='جدول الصف الثاني'!$E$9 -> 11.45 | K129: ='جدول الصف الثاني'!$F$9 -> ساعة
A130: ='جدول الصف الثاني'!$B$10 -> الأحد | B130: ='جدول الصف الثاني'!$C$10 -> الرياضيات | C130: ='جدول الصف الثاني'!$D$10 -> 8 | D130: ='جدول الصف الثاني'!$E$10 -> 9.3 | E130: ='جدول الصف الثاني'!$F$10 -> ساعة ونصف | G130: ='جدول الصف الثاني'!$B$10 -> الأحد | H130: ='جدول الصف الثاني'!$C$10 -> الرياضيات | I130: ='جدول الصف الثاني'!$D$10 -> 8 | J130: ='جدول الصف الثاني'!$E$10 -> 9.3 | K130: ='جدول الصف الثاني'!$F$10 -> ساعة ونصف
A131: ='جدول الصف الثاني'!$B$11 -> 2018-01-02 | B131: ='جدول الصف الثاني'!$C$11 -> اللغة الإنجليزية {شفهي} | C131: ='جدول الصف الثاني'!$D$11 -> 9.45 | D131: ='جدول الصف الثاني'!$E$11 -> 11.15 | E131: ='جدول الصف الثاني'!$F$11 -> ساعة ونصف | G131: ='جدول الصف الثاني'!$B$11 -> 2018-01-02 | H131: ='جدول الصف الثاني'!$C$11 -> اللغة الإنجليزية {شفهي} | I131: ='جدول الصف الثاني'!$D$11 -> 9.45 | J131: ='جدول الصف الثاني'!$E$11 -> 11.15 | K131: ='جدول الصف الثاني'!$F$11 -> ساعة ونصف
A133: ='جدول الصف الثاني'!$A$1 -> إدارة /غرب المحلة الكبرى التعليمية | D133: رقم اللجنة | E133: =VLOOKUP(E134,اسماء_الثاني,7,FALSE) -> 1 | G133: ='جدول الصف الثاني'!$A$1 -> إدارة /غرب المحلة الكبرى التعليمية | J133: رقم اللجنة | K133: =VLOOKUP(K134,اسماء_الثاني,7,FALSE) -> 2
A134: ='جدول الصف الثاني'!$A$2 -> مدرسة د/علي علي حبيش الابتدائية | C134: ='جدول الصف الثاني'!$C$5 -> الصف الثاني | E134: =E123+1 -> 13 | G134: ='جدول الصف الثاني'!$A$2 -> مدرسة د/علي علي حبيش الابتدائية | I134: ='جدول الصف الثاني'!$C$5 -> الصف الثاني | K134: =K123+1 -> 33
A135: ='جدول الصف الثاني'!$B$4 -> جدول امتحان الفصل الدراسي الأول / الثاني للعام الدراسي 2019/2018 | G135: ='جدول الصف الثاني'!$B$4 -> جدول امتحان الفصل الدراسي الأول / الثاني للعام الدراسي 2019/2018
A136: اسم التلميذ | B136: =VLOOKUP(E134,اسماء_الثاني,3,FALSE) -> حسن13 | C136: رقم الجلوس | D136: =VLOOKUP(E134,اسماء_الثاني,2,FALSE) -> 42 | G136: اسم التلميذ | H136: =VLOOKUP(K134,اسماء_الثاني,3,FALSE) -> حسن33 | I136: رقم الجلوس | J136: =VLOOKUP(K134,اسماء_الثاني,2,FALSE) -> 62
A137: اليوم والتاريخ | B137: المــــــــــــــادة | C137: الوقـــت | E137: الزمن | G137: اليوم والتاريخ | H137: المــــــــــــــادة | I137: الوقـــت | K137: الزمن
C138: من | D138: إلي | I138: من | J138: إلي
A139: ='جدول الصف الثاني'!$B$8 -> السبت | B139: ='جدول الصف الثاني'!$C$8 -> لغة عربية وخط | C139: ='جدول الصف الثاني'!$D$8 -> 8 | D139: ='جدول الصف الثاني'!$E$8 -> 10 | E139: ='جدول الصف الثاني'!$F$8 -> ساعتان | G139: ='جدول الصف الثاني'!$B$8 -> السبت | H139: ='جدول الصف الثاني'!$C$8 -> لغة عربية وخط | I139: ='جدول الصف الثاني'!$D$8 -> 8 | J139: ='جدول الصف الثاني'!$E$8 -> 10 | K139: ='جدول الصف الثاني'!$F$8 -> ساعتان
A140: ='جدول الصف الثاني'!$B$9 -> 2018-01-01 | B140: ='جدول الصف الثاني'!$C$9 -> التربية الدينية | C140: ='جدول الصف الثاني'!$D$9 -> 10.15 | D140: ='جدول الصف الثاني'!$E$9 -> 11.45 | E140: ='جدول الصف الثاني'!$F$9 -> ساعة | G140: ='جدول الصف الثاني'!$B$9 -> 2018-01-01 | H140: ='جدول الصف الثاني'!$C$9 -> التربية الدينية | I140: ='جدول الصف الثاني'!$D$9 -> 10.15 | J140: ='جدول الصف الثاني'!$E$9 -> 11.45 | K140: ='جدول الصف الثاني'!$F$9 -> ساعة
A141: ='جدول الصف الثاني'!$B$10 -> الأحد | B141: ='جدول الصف الثاني'!$C$10 -> الرياضيات | C141: ='جدول الصف الثاني'!$D$10 -> 8 | D141: ='جدول الصف الثاني'!$E$10 -> 9.3 | E141: ='جدول الصف الثاني'!$F$10 -> ساعة ونصف | G141: ='جدول الصف الثاني'!$B$10 -> الأحد | H141: ='جدول الصف الثاني'!$C$10 -> الرياضيات | I141: ='جدول الصف الثاني'!$D$10 -> 8 | J141: ='جدول الصف الثاني'!$E$10 -> 9.3 | K141: ='جدول الصف الثاني'!$F$10 -> ساعة ونصف
A142: ='جدول الصف الثاني'!$B$11 -> 2018-01-02 | B142: ='جدول الصف الثاني'!$C$11 -> اللغة الإنجليزية {شفهي} | C142: ='جدول الصف الثاني'!$D$11 -> 9.45 | D142: ='جدول الصف الثاني'!$E$11 -> 11.15 | E142: ='جدول الصف الثاني'!$F$11 -> ساعة ونصف | G142: ='جدول الصف الثاني'!$B$11 -> 2018-01-02 | H142: ='جدول الصف الثاني'!$C$11 -> اللغة الإنجليزية {شفهي} | I142: ='جدول الصف الثاني'!$D$11 -> 9.45 | J142: ='جدول الصف الثاني'!$E$11 -> 11.15 | K142: ='جدول الصف الثاني'!$F$11 -> ساعة ونصف
A144: ='جدول الصف الثاني'!$A$1 -> إدارة /غرب المحلة الكبرى التعليمية | D144: رقم اللجنة | E144: =VLOOKUP(E145,اسماء_الثاني,7,FALSE) -> 1 | G144: ='جدول الصف الثاني'!$A$1 -> إدارة /غرب المحلة الكبرى التعليمية | J144: رقم اللجنة | K144: =VLOOKUP(K145,اسماء_الثاني,7,FALSE) -> 2
A145: ='جدول الصف الثاني'!$A$2 -> مدرسة د/علي علي حبيش الابتدائية | C145: ='جدول الصف الثاني'!$C$5 -> الصف الثاني | E145: =E134+1 -> 14 | G145: ='جدول الصف الثاني'!$A$2 -> مدرسة د/علي علي حبيش الابتدائية | I145: ='جدول الصف الثاني'!$C$5 -> الصف الثاني | K145: =K134+1 -> 34
A146: ='جدول الصف الثاني'!$B$4 -> جدول امتحان الفصل الدراسي الأول / الثاني للعام الدراسي 2019/2018 | G146: ='جدول الصف الثاني'!$B$4 -> جدول امتحان الفصل الدراسي الأول / الثاني للعام الدراسي 2019/2018
A147: اسم التلميذ | B147: =VLOOKUP(E145,اسماء_الثاني,3,FALSE) -> حسن14 | C147: رقم الجلوس | D147: =VLOOKUP(E145,اسماء_الثاني,2,FALSE) -> 43 | G147: اسم التلميذ | H147: =VLOOKUP(K145,اسماء_الثاني,3,FALSE) -> حسن34 | I147: رقم الجلوس | J147: =VLOOKUP(K145,اسماء_الثاني,2,FALSE) -> 63
A148: اليوم والتاريخ | B148: المــــــــــــــادة | C148: الوقـــت | E148: الزمن | G148: اليوم والتاريخ | H148: المــــــــــــــادة | I148: الوقـــت | K148: الزمن
C149: من | D149: إلي | I149: من | J149: إلي
A150: ='جدول الصف الثاني'!$B$8 -> السبت | B150: ='جدول الصف الثاني'!$C$8 -> لغة عربية وخط | C150: ='جدول الصف الثاني'!$D$8 -> 8 | D150: ='جدول الصف الثاني'!$E$8 -> 10 | E150: ='جدول الصف الثاني'!$F$8 -> ساعتان | G150: ='جدول الصف الثاني'!$B$8 -> السبت | H150: ='جدول الصف الثاني'!$C$8 -> لغة عربية وخط | I150: ='جدول الصف الثاني'!$D$8 -> 8 | J150: ='جدول الصف الثاني'!$E$8 -> 10 | K150: ='جدول الصف الثاني'!$F$8 -> ساعتان
A151: ='جدول الصف الثاني'!$B$9 -> 2018-01-01 | B151: ='جدول الصف الثاني'!$C$9 -> التربية الدينية | C151: ='جدول الصف الثاني'!$D$9 -> 10.15 | D151: ='جدول الصف الثاني'!$E$9 -> 11.45 | E151: ='جدول الصف الثاني'!$F$9 -> ساعة | G151: ='جدول الصف الثاني'!$B$9 -> 2018-01-01 | H151: ='جدول الصف الثاني'!$C$9 -> التربية الدينية | I151: ='جدول الصف الثاني'!$D$9 -> 10.15 | J151: ='جدول الصف الثاني'!$E$9 -> 11.45 | K151: ='جدول الصف الثاني'!$F$9 -> ساعة
A152: ='جدول الصف الثاني'!$B$10 -> الأحد | B152: ='جدول الصف الثاني'!$C$10 -> الرياضيات | C152: ='جدول الصف الثاني'!$D$10 -> 8 | D152: ='جدول الصف الثاني'!$E$10 -> 9.3 | E152: ='جدول الصف الثاني'!$F$10 -> ساعة ونصف | G152: ='جدول الصف الثاني'!$B$10 -> الأحد | H152: ='جدول الصف الثاني'!$C$10 -> الرياضيات | I152: ='جدول الصف الثاني'!$D$10 -> 8 | J152: ='جدول الصف الثاني'!$E$10 -> 9.3 | K152: ='جدول الصف الثاني'!$F$10 -> ساعة ونصف
A153: ='جدول الصف الثاني'!$B$11 -> 2018-01-02 | B153: ='جدول الصف الثاني'!$C$11 -> اللغة الإنجليزية {شفهي} | C153: ='جدول الصف الثاني'!$D$11 -> 9.45 | D153: ='جدول الصف الثاني'!$E$11 -> 11.15 | E153: ='جدول الصف الثاني'!$F$11 -> ساعة ونصف | G153: ='جدول الصف الثاني'!$B$11 -> 2018-01-02 | H153: ='جدول الصف الثاني'!$C$11 -> اللغة الإنجليزية {شفهي} | I153: ='جدول الصف الثاني'!$D$11 -> 9.45 | J153: ='جدول الصف الثاني'!$E$11 -> 11.15 | K153: ='جدول الصف الثاني'!$F$11 -> ساعة ونصف
A155: ='جدول الصف الثاني'!$A$1 -> إدارة /غرب المحلة الكبرى التعليمية | D155: رقم اللجنة | E155: =VLOOKUP(E156,اسماء_الثاني,7,FALSE) -> 1 | G155: ='جدول الصف الثاني'!$A$1 -> إدارة /غرب المحلة الكبرى التعليمية | J155: رقم اللجنة | K155: =VLOOKUP(K156,اسماء_الثاني,7,FALSE) -> 2
A156: ='جدول الصف الثاني'!$A$2 -> مدرسة د/علي علي حبيش الابتدائية | C156: ='جدول الصف الثاني'!$C$5 -> الصف الثاني | E156: =E145+1 -> 15 | G156: ='جدول الصف الثاني'!$A$2 -> مدرسة د/علي علي حبيش الابتدائية | I156: ='جدول الصف الثاني'!$C$5 -> الصف الثاني | K156: =K145+1 -> 35
A157: ='جدول الصف الثاني'!$B$4 -> جدول امتحان الفصل الدراسي الأول / الثاني للعام الدراسي 2019/2018 | G157: ='جدول الصف الثاني'!$B$4 -> جدول امتحان الفصل الدراسي الأول / الثاني للعام الدراسي 2019/2018
A158: اسم التلميذ | B158: =VLOOKUP(E156,اسماء_الثاني,3,FALSE) -> حسن15 | C158: رقم الجلوس | D158: =VLOOKUP(E156,اسماء_الثاني,2,FALSE) -> 44 | G158: اسم التلميذ | H158: =VLOOKUP(K156,اسماء_الثاني,3,FALSE) -> حسن35 | I158: رقم الجلوس | J158: =VLOOKUP(K156,اسماء_الثاني,2,FALSE) -> 64
A159: اليوم والتاريخ | B159: المــــــــــــــادة | C159: الوقـــت | E159: الزمن | G159: اليوم والتاريخ | H159: المــــــــــــــادة | I159: الوقـــت | K159: الزمن
C160: من | D160: إلي | I160: من | J160: إلي
A161: ='جدول الصف الثاني'!$B$8 -> السبت | B161: ='جدول الصف الثاني'!$C$8 -> لغة عربية وخط | C161: ='جدول الصف الثاني'!$D$8 -> 8 | D161: ='جدول الصف الثاني'!$E$8 -> 10 | E161: ='جدول الصف الثاني'!$F$8 -> ساعتان | G161: ='جدول الصف الثاني'!$B$8 -> السبت | H161: ='جدول الصف الثاني'!$C$8 -> لغة عربية وخط | I161: ='جدول الصف الثاني'!$D$8 -> 8 | J161: ='جدول الصف الثاني'!$E$8 -> 10 | K161: ='جدول الصف الثاني'!$F$8 -> ساعتان
A162: ='جدول الصف الثاني'!$B$9 -> 2018-01-01 | B162: ='جدول الصف الثاني'!$C$9 -> التربية الدينية | C162: ='جدول الصف الثاني'!$D$9 -> 10.15 | D162: ='جدول الصف الثاني'!$E$9 -> 11.45 | E162: ='جدول الصف الثاني'!$F$9 -> ساعة | G162: ='جدول الصف الثاني'!$B$9 -> 2018-01-01 | H162: ='جدول الصف الثاني'!$C$9 -> التربية الدينية | I162: ='جدول الصف الثاني'!$D$9 -> 10.15 | J162: ='جدول الصف الثاني'!$E$9 -> 11.45 | K162: ='جدول الصف الثاني'!$F$9 -> ساعة
A163: ='جدول الصف الثاني'!$B$10 -> الأحد | B163: ='جدول الصف الثاني'!$C$10 -> الرياضيات | C163: ='جدول الصف الثاني'!$D$10 -> 8 | D163: ='جدول الصف الثاني'!$E$10 -> 9.3 | E163: ='جدول الصف الثاني'!$F$10 -> ساعة ونصف | G163: ='جدول الصف الثاني'!$B$10 -> الأحد | H163: ='جدول الصف الثاني'!$C$10 -> الرياضيات | I163: ='جدول الصف الثاني'!$D$10 -> 8 | J163: ='جدول الصف الثاني'!$E$10 -> 9.3 | K163: ='جدول الصف الثاني'!$F$10 -> ساعة ونصف
A164: ='جدول الصف الثاني'!$B$11 -> 2018-01-02 | B164: ='جدول الصف الثاني'!$C$11 -> اللغة الإنجليزية {شفهي} | C164: ='جدول الصف الثاني'!$D$11 -> 9.45 | D164: ='جدول الصف الثاني'!$E$11 -> 11.15 | E164: ='جدول الصف الثاني'!$F$11 -> ساعة ونصف | G164: ='جدول الصف الثاني'!$B$11 -> 2018-01-02 | H164: ='جدول الصف الثاني'!$C$11 -> اللغة الإنجليزية {شفهي} | I164: ='جدول الصف الثاني'!$D$11 -> 9.45 | J164: ='جدول الصف الثاني'!$E$11 -> 11.15 | K164: ='جدول الصف الثاني'!$F$11 -> ساعة ونصف
A166: ='جدول الصف الثاني'!$A$1 -> إدارة /غرب المحلة الكبرى التعليمية | D166: رقم اللجنة | E166: =VLOOKUP(E167,اسماء_الثاني,7,FALSE) -> 1 | G166: ='جدول الصف الثاني'!$A$1 -> إدارة /غرب المحلة الكبرى التعليمية | J166: رقم اللجنة | K166: =VLOOKUP(K167,اسماء_الثاني,7,FALSE) -> 2
A167: ='جدول الصف الثاني'!$A$2 -> مدرسة د/علي علي حبيش الابتدائية | C167: ='جدول الصف الثاني'!$C$5 -> الصف الثاني | E167: =E156+1 -> 16 | G167: ='جدول الصف الثاني'!$A$2 -> مدرسة د/علي علي حبيش الابتدائية | I167: ='جدول الصف الثاني'!$C$5 -> الصف الثاني | K167: =K156+1 -> 36
A168: ='جدول الصف الثاني'!$B$4 -> جدول امتحان الفصل الدراسي الأول / الثاني للعام الدراسي 2019/2018 | G168: ='جدول الصف الثاني'!$B$4 -> جدول امتحان الفصل الدراسي الأول / الثاني للعام الدراسي 2019/2018
A169: اسم التلميذ | B169: =VLOOKUP(E167,اسماء_الثاني,3,FALSE) -> حسن16 | C169: رقم الجلوس | D169: =VLOOKUP(E167,اسماء_الثاني,2,FALSE) -> 45 | G169: اسم التلميذ | H169: =VLOOKUP(K167,اسماء_الثاني,3,FALSE) -> حسن36 | I169: رقم الجلوس | J169: =VLOOKUP(K167,اسماء_الثاني,2,FALSE) -> 65
A170: اليوم والتاريخ | B170: المــــــــــــــادة | C170: الوقـــت | E170: الزمن | G170: اليوم والتاريخ | H170: المــــــــــــــادة | I170: الوقـــت | K170: الزمن
C171: من | D171: إلي | I171: من | J171: إلي
A172: ='جدول الصف الثاني'!$B$8 -> السبت | B172: ='جدول الصف الثاني'!$C$8 -> لغة عربية وخط | C172: ='جدول الصف الثاني'!$D$8 -> 8 | D172: ='جدول الصف الثاني'!$E$8 -> 10 | E172: ='جدول الصف الثاني'!$F$8 -> ساعتان | G172: ='جدول الصف الثاني'!$B$8 -> السبت | H172: ='جدول الصف الثاني'!$C$8 -> لغة عربية وخط | I172: ='جدول الصف الثاني'!$D$8 -> 8 | J172: ='جدول الصف الثاني'!$E$8 -> 10 | K172: ='جدول الصف الثاني'!$F$8 -> ساعتان
A173: ='جدول الصف الثاني'!$B$9 -> 2018-01-01 | B173: ='جدول الصف الثاني'!$C$9 -> التربية الدينية | C173: ='جدول الصف الثاني'!$D$9 -> 10.15 | D173: ='جدول الصف الثاني'!$E$9 -> 11.45 | E173: ='جدول الصف الثاني'!$F$9 -> ساعة | G173: ='جدول الصف الثاني'!$B$9 -> 2018-01-01 | H173: ='جدول الصف الثاني'!$C$9 -> التربية الدينية | I173: ='جدول الصف الثاني'!$D$9 -> 10.15 | J173: ='جدول الصف الثاني'!$E$9 -> 11.45 | K173: ='جدول الصف الثاني'!$F$9 -> ساعة
A174: ='جدول الصف الثاني'!$B$10 -> الأحد | B174: ='جدول الصف الثاني'!$C$10 -> الرياضيات | C174: ='جدول الصف الثاني'!$D$10 -> 8 | D174: ='جدول الصف الثاني'!$E$10 -> 9.3 | E174: ='جدول الصف الثاني'!$F$10 -> ساعة ونصف | G174: ='جدول الصف الثاني'!$B$10 -> الأحد | H174: ='جدول الصف الثاني'!$C$10 -> الرياضيات | I174: ='جدول الصف الثاني'!$D$10 -> 8 | J174: ='جدول الصف الثاني'!$E$10 -> 9.3 | K174: ='جدول الصف الثاني'!$F$10 -> ساعة ونصف
A175: ='جدول الصف الثاني'!$B$11 -> 2018-01-02 | B175: ='جدول الصف الثاني'!$C$11 -> اللغة الإنجليزية {شفهي} | C175: ='جدول الصف الثاني'!$D$11 -> 9.45 | D175: ='جدول الصف الثاني'!$E$11 -> 11.15 | E175: ='جدول الصف الثاني'!$F$11 -> ساعة ونصف | G175: ='جدول الصف الثاني'!$B$11 -> 2018-01-02 | H175: ='جدول الصف الثاني'!$C$11 -> اللغة الإنجليزية {شفهي} | I175: ='جدول الصف الثاني'!$D$11 -> 9.45 | J175: ='جدول الصف الثاني'!$E$11 -> 11.15 | K175: ='جدول الصف الثاني'!$F$11 -> ساعة ونصف
A177: ='جدول الصف الثاني'!$A$1 -> إدارة /غرب المحلة الكبرى التعليمية | D177: رقم اللجنة | E177: =VLOOKUP(E178,اسماء_الثاني,7,FALSE) -> 1 | G177: ='جدول الصف الثاني'!$A$1 -> إدارة /غرب المحلة الكبرى التعليمية | J177: رقم اللجنة | K177: =VLOOKUP(K178,اسماء_الثاني,7,FALSE) -> 2
A178: ='جدول الصف الثاني'!$A$2 -> مدرسة د/علي علي حبيش الابتدائية | C178: ='جدول الصف الثاني'!$C$5 -> الصف الثاني | E178: =E167+1 -> 17 | G178: ='جدول الصف الثاني'!$A$2 -> مدرسة د/علي علي حبيش الابتدائية | I178: ='جدول الصف الثاني'!$C$5 -> الصف الثاني | K178: =K167+1 -> 37
A179: ='جدول الصف الثاني'!$B$4 -> جدول امتحان الفصل الدراسي الأول / الثاني للعام الدراسي 2019/2018 | G179: ='جدول الصف الثاني'!$B$4 -> جدول امتحان الفصل الدراسي الأول / الثاني للعام الدراسي 2019/2018
A180: اسم التلميذ | B180: =VLOOKUP(E178,اسماء_الثاني,3,FALSE) -> حسن17 | C180: رقم الجلوس | D180: =VLOOKUP(E178,اسماء_الثاني,2,FALSE) -> 46 | G180: اسم التلميذ | H180: =VLOOKUP(K178,اسماء_الثاني,3,FALSE) -> حسن37 | I180: رقم الجلوس | J180: =VLOOKUP(K178,اسماء_الثاني,2,FALSE) -> 66
A181: اليوم والتاريخ | B181: المــــــــــــــادة | C181: الوقـــت | E181: الزمن | G181: اليوم والتاريخ | H181: المــــــــــــــادة | I181: الوقـــت | K181: الزمن
C182: من | D182: إلي | I182: من | J182: إلي
A183: ='جدول الصف الثاني'!$B$8 -> السبت | B183: ='جدول الصف الثاني'!$C$8 -> لغة عربية وخط | C183: ='جدول الصف الثاني'!$D$8 -> 8 | D183: ='جدول الصف الثاني'!$E$8 -> 10 | E183: ='جدول الصف الثاني'!$F$8 -> ساعتان | G183: ='جدول الصف الثاني'!$B$8 -> السبت | H183: ='جدول الصف الثاني'!$C$8 -> لغة عربية وخط | I183: ='جدول الصف الثاني'!$D$8 -> 8 | J183: ='جدول الصف الثاني'!$E$8 -> 10 | K183: ='جدول الصف الثاني'!$F$8 -> ساعتان
A184: ='جدول الصف الثاني'!$B$9 -> 2018-01-01 | B184: ='جدول الصف الثاني'!$C$9 -> التربية الدينية | C184: ='جدول الصف الثاني'!$D$9 -> 10.15 | D184: ='جدول الصف الثاني'!$E$9 -> 11.45 | E184: ='جدول الصف الثاني'!$F$9 -> ساعة | G184: ='جدول الصف الثاني'!$B$9 -> 2018-01-01 | H184: ='جدول الصف الثاني'!$C$9 -> التربية الدينية | I184: ='جدول الصف الثاني'!$D$9 -> 10.15 | J184: ='جدول الصف الثاني'!$E$9 -> 11.45 | K184: ='جدول الصف الثاني'!$F$9 -> ساعة
A185: ='جدول الصف الثاني'!$B$10 -> الأحد | B185: ='جدول الصف الثاني'!$C$10 -> الرياضيات | C185: ='جدول الصف الثاني'!$D$10 -> 8 | D185: ='جدول الصف الثاني'!$E$10 -> 9.3 | E185: ='جدول الصف الثاني'!$F$10 -> ساعة ونصف | G185: ='جدول الصف الثاني'!$B$10 -> الأحد | H185: ='جدول الصف الثاني'!$C$10 -> الرياضيات | I185: ='جدول الصف الثاني'!$D$10 -> 8 | J185: ='جدول الصف الثاني'!$E$10 -> 9.3 | K185: ='جدول الصف الثاني'!$F$10 -> ساعة ونصف
A186: ='جدول الصف الثاني'!$B$11 -> 2018-01-02 | B186: ='جدول الصف الثاني'!$C$11 -> اللغة الإنجليزية {شفهي} | C186: ='جدول الصف الثاني'!$D$11 -> 9.45 | D186: ='جدول الصف الثاني'!$E$11 -> 11.15 | E186: ='جدول الصف الثاني'!$F$11 -> ساعة ونصف | G186: ='جدول الصف الثاني'!$B$11 -> 2018-01-02 | H186: ='جدول الصف الثاني'!$C$11 -> اللغة الإنجليزية {شفهي} | I186: ='جدول الصف الثاني'!$D$11 -> 9.45 | J186: ='جدول الصف الثاني'!$E$11 -> 11.15 | K186: ='جدول الصف الثاني'!$F$11 -> ساعة ونصف
A188: ='جدول الصف الثاني'!$A$1 -> إدارة /غرب المحلة الكبرى التعليمية | D188: رقم اللجنة | E188: =VLOOKUP(E189,اسماء_الثاني,7,FALSE) -> 1 | G188: ='جدول الصف الثاني'!$A$1 -> إدارة /غرب المحلة الكبرى التعليمية | J188: رقم اللجنة | K188: =VLOOKUP(K189,اسماء_الثاني,7,FALSE) -> 2
A189: ='جدول الصف الثاني'!$A$2 -> مدرسة د/علي علي حبيش الابتدائية | C189: ='جدول الصف الثاني'!$C$5 -> الصف الثاني | E189: =E178+1 -> 18 | G189: ='جدول الصف الثاني'!$A$2 -> مدرسة د/علي علي حبيش الابتدائية | I189: ='جدول الصف الثاني'!$C$5 -> الصف الثاني | K189: =K178+1 -> 38
A190: ='جدول الصف الثاني'!$B$4 -> جدول امتحان الفصل الدراسي الأول / الثاني للعام الدراسي 2019/2018 | G190: ='جدول الصف الثاني'!$B$4 -> جدول امتحان الفصل الدراسي الأول / الثاني للعام الدراسي 2019/2018
A191: اسم التلميذ | B191: =VLOOKUP(E189,اسماء_الثاني,3,FALSE) -> حسن18 | C191: رقم الجلوس | D191: =VLOOKUP(E189,اسماء_الثاني,2,FALSE) -> 47 | G191: اسم التلميذ | H191: =VLOOKUP(K189,اسماء_الثاني,3,FALSE) -> حسن38 | I191: رقم الجلوس | J191: =VLOOKUP(K189,اسماء_الثاني,2,FALSE) -> 67
A192: اليوم والتاريخ | B192: المــــــــــــــادة | C192: الوقـــت | E192: الزمن | G192: اليوم والتاريخ | H192: المــــــــــــــادة | I192: الوقـــت | K192: الزمن
C193: من | D193: إلي | I193: من | J193: إلي
A194: ='جدول الصف الثاني'!$B$8 -> السبت | B194: ='جدول الصف الثاني'!$C$8 -> لغة عربية وخط | C194: ='جدول الصف الثاني'!$D$8 -> 8 | D194: ='جدول الصف الثاني'!$E$8 -> 10 | E194: ='جدول الصف الثاني'!$F$8 -> ساعتان | G194: ='جدول الصف الثاني'!$B$8 -> السبت | H194: ='جدول الصف الثاني'!$C$8 -> لغة عربية وخط | I194: ='جدول الصف الثاني'!$D$8 -> 8 | J194: ='جدول الصف الثاني'!$E$8 -> 10 | K194: ='جدول الصف الثاني'!$F$8 -> ساعتان
A195: ='جدول الصف الثاني'!$B$9 -> 2018-01-01 | B195: ='جدول الصف الثاني'!$C$9 -> التربية الدينية | C195: ='جدول الصف الثاني'!$D$9 -> 10.15 | D195: ='جدول الصف الثاني'!$E$9 -> 11.45 | E195: ='جدول الصف الثاني'!$F$9 -> ساعة | G195: ='جدول الصف الثاني'!$B$9 -> 2018-01-01 | H195: ='جدول الصف الثاني'!$C$9 -> التربية الدينية | I195: ='جدول الصف الثاني'!$D$9 -> 10.15 | J195: ='جدول الصف الثاني'!$E$9 -> 11.45 | K195: ='جدول الصف الثاني'!$F$9 -> ساعة
A196: ='جدول الصف الثاني'!$B$10 -> الأحد | B196: ='جدول الصف الثاني'!$C$10 -> الرياضيات | C196: ='جدول الصف الثاني'!$D$10 -> 8 | D196: ='جدول الصف الثاني'!$E$10 -> 9.3 | E196: ='جدول الصف الثاني'!$F$10 -> ساعة ونصف | G196: ='جدول الصف الثاني'!$B$10 -> الأحد | H196: ='جدول الصف الثاني'!$C$10 -> الرياضيات | I196: ='جدول الصف الثاني'!$D$10 -> 8 | J196: ='جدول الصف الثاني'!$E$10 -> 9.3 | K196: ='جدول الصف الثاني'!$F$10 -> ساعة ونصف
A197: ='جدول الصف الثاني'!$B$11 -> 2018-01-02 | B197: ='جدول الصف الثاني'!$C$11 -> اللغة الإنجليزية {شفهي} | C197: ='جدول الصف الثاني'!$D$11 -> 9.45 | D197: ='جدول الصف الثاني'!$E$11 -> 11.15 | E197: ='جدول الصف الثاني'!$F$11 -> ساعة ونصف | G197: ='جدول الصف الثاني'!$B$11 -> 2018-01-02 | H197: ='جدول الصف الثاني'!$C$11 -> اللغة الإنجليزية {شفهي} | I197: ='جدول الصف الثاني'!$D$11 -> 9.45 | J197: ='جدول الصف الثاني'!$E$11 -> 11.15 | K197: ='جدول الصف الثاني'!$F$11 -> ساعة ونصف
A199: ='جدول الصف الثاني'!$A$1 -> إدارة /غرب المحلة الكبرى التعليمية | D199: رقم اللجنة | E199: =VLOOKUP(E200,اسماء_الثاني,7,FALSE) -> 1 | G199: ='جدول الصف الثاني'!$A$1 -> إدارة /غرب المحلة الكبرى التعليمية | J199: رقم اللجنة | K199: =VLOOKUP(K200,اسماء_الثاني,7,FALSE) -> 2
A200: ='جدول الصف الثاني'!$A$2 -> مدرسة د/علي علي حبيش الابتدائية | C200: ='جدول الصف الثاني'!$C$5 -> الصف الثاني | E200: =E189+1 -> 19 | G200: ='جدول الصف الثاني'!$A$2 -> مدرسة د/علي علي حبيش الابتدائية | I200: ='جدول الصف الثاني'!$C$5 -> الصف الثاني | K200: =K189+1 -> 39
A201: ='جدول الصف الثاني'!$B$4 -> جدول امتحان الفصل الدراسي الأول / الثاني للعام الدراسي 2019/2018 | G201: ='جدول الصف الثاني'!$B$4 -> جدول امتحان الفصل الدراسي الأول / الثاني للعام الدراسي 2019/2018
A202: اسم التلميذ | B202: =VLOOKUP(E200,اسماء_الثاني,3,FALSE) -> حسن19 | C202: رقم الجلوس | D202: =VLOOKUP(E200,اسماء_الثاني,2,FALSE) -> 48 | G202: اسم التلميذ | H202: =VLOOKUP(K200,اسماء_الثاني,3,FALSE) -> حسن39 | I202: رقم الجلوس | J202: =VLOOKUP(K200,اسماء_الثاني,2,FALSE) -> 68
A203: اليوم والتاريخ | B203: المــــــــــــــادة | C203: الوقـــت | E203: الزمن | G203: اليوم والتاريخ | H203: المــــــــــــــادة | I203: الوقـــت | K203: الزمن
C204: من | D204: إلي | I204: من | J204: إلي
A205: ='جدول الصف الثاني'!$B$8 -> السبت | B205: ='جدول الصف الثاني'!$C$8 -> لغة عربية وخط | C205: ='جدول الصف الثاني'!$D$8 -> 8 | D205: ='جدول الصف الثاني'!$E$8 -> 10 | E205: ='جدول الصف الثاني'!$F$8 -> ساعتان | G205: ='جدول الصف الثاني'!$B$8 -> السبت | H205: ='جدول الصف الثاني'!$C$8 -> لغة عربية وخط | I205: ='جدول الصف الثاني'!$D$8 -> 8 | J205: ='جدول الصف الثاني'!$E$8 -> 10 | K205: ='جدول الصف الثاني'!$F$8 -> ساعتان
A206: ='جدول الصف الثاني'!$B$9 -> 2018-01-01 | B206: ='جدول الصف الثاني'!$C$9 -> التربية الدينية | C206: ='جدول الصف الثاني'!$D$9 -> 10.15 | D206: ='جدول الصف الثاني'!$E$9 -> 11.45 | E206: ='جدول الصف الثاني'!$F$9 -> ساعة | G206: ='جدول الصف الثاني'!$B$9 -> 2018-01-01 | H206: ='جدول الصف الثاني'!$C$9 -> التربية الدينية | I206: ='جدول الصف الثاني'!$D$9 -> 10.15 | J206: ='جدول الصف الثاني'!$E$9 -> 11.45 | K206: ='جدول الصف الثاني'!$F$9 -> ساعة
A207: ='جدول الصف الثاني'!$B$10 -> الأحد | B207: ='جدول الصف الثاني'!$C$10 -> الرياضيات | C207: ='جدول الصف الثاني'!$D$10 -> 8 | D207: ='جدول الصف الثاني'!$E$10 -> 9.3 | E207: ='جدول الصف الثاني'!$F$10 -> ساعة ونصف | G207: ='جدول الصف الثاني'!$B$10 -> الأحد | H207: ='جدول الصف الثاني'!$C$10 -> الرياضيات | I207: ='جدول الصف الثاني'!$D$10 -> 8 | J207: ='جدول الصف الثاني'!$E$10 -> 9.3 | K207: ='جدول الصف الثاني'!$F$10 -> ساعة ونصف
A208: ='جدول الصف الثاني'!$B$11 -> 2018-01-02 | B208: ='جدول الصف الثاني'!$C$11 -> اللغة الإنجليزية {شفهي} | C208: ='جدول الصف الثاني'!$D$11 -> 9.45 | D208: ='جدول الصف الثاني'!$E$11 -> 11.15 | E208: ='جدول الصف الثاني'!$F$11 -> ساعة ونصف | G208: ='جدول الصف الثاني'!$B$11 -> 2018-01-02 | H208: ='جدول الصف الثاني'!$C$11 -> اللغة الإنجليزية {شفهي} | I208: ='جدول الصف الثاني'!$D$11 -> 9.45 | J208: ='جدول الصف الثاني'!$E$11 -> 11.15 | K208: ='جدول الصف الثاني'!$F$11 -> ساعة ونصف
A210: ='جدول الصف الثاني'!$A$1 -> إدارة /غرب المحلة الكبرى التعليمية | D210: رقم اللجنة | E210: =VLOOKUP(E211,اسماء_الثاني,7,FALSE) -> 1 | G210: ='جدول الصف الثاني'!$A$1 -> إدارة /غرب المحلة الكبرى التعليمية | J210: رقم اللجنة | K210: =VLOOKUP(K211,اسماء_الثاني,7,FALSE) -> 2
A211: ='جدول الصف الثاني'!$A$2 -> مدرسة د/علي علي حبيش الابتدائية | C211: ='جدول الصف الثاني'!$C$5 -> الصف الثاني | E211: =E200+1 -> 20 | G211: ='جدول الصف الثاني'!$A$2 -> مدرسة د/علي علي حبيش الابتدائية | I211: ='جدول الصف الثاني'!$C$5 -> الصف الثاني | K211: =K200+1 -> 40
A212: ='جدول الصف الثاني'!$B$4 -> جدول امتحان الفصل الدراسي الأول / الثاني للعام الدراسي 2019/2018 | G212: ='جدول الصف الثاني'!$B$4 -> جدول امتحان الفصل الدراسي الأول / الثاني للعام الدراسي 2019/2018
A213: اسم التلميذ | B213: =VLOOKUP(E211,اسماء_الثاني,3,FALSE) -> حسن20 | C213: رقم الجلوس | D213: =VLOOKUP(E211,اسماء_الثاني,2,FALSE) -> 49 | G213: اسم التلميذ | H213: =VLOOKUP(K211,اسماء_الثاني,3,FALSE) -> حسن40 | I213: رقم الجلوس | J213: =VLOOKUP(K211,اسماء_الثاني,2,FALSE) -> 69
A214: اليوم والتاريخ | B214: المــــــــــــــادة | C214: الوقـــت | E214: الزمن | G214: اليوم والتاريخ | H214: المــــــــــــــادة | I214: الوقـــت | K214: الزمن
C215: من | D215: إلي | I215: من | J215: إلي
A216: ='جدول الصف الثاني'!$B$8 -> السبت | B216: ='جدول الصف الثاني'!$C$8 -> لغة عربية وخط | C216: ='جدول الصف الثاني'!$D$8 -> 8 | D216: ='جدول الصف الثاني'!$E$8 -> 10 | E216: ='جدول الصف الثاني'!$F$8 -> ساعتان | G216: ='جدول الصف الثاني'!$B$8 -> السبت | H216: ='جدول الصف الثاني'!$C$8 -> لغة عربية وخط | I216: ='جدول الصف الثاني'!$D$8 -> 8 | J216: ='جدول الصف الثاني'!$E$8 -> 10 | K216: ='جدول الصف الثاني'!$F$8 -> ساعتان
A217: ='جدول الصف الثاني'!$B$9 -> 2018-01-01 | B217: ='جدول الصف الثاني'!$C$9 -> التربية الدينية | C217: ='جدول الصف الثاني'!$D$9 -> 10.15 | D217: ='جدول الصف الثاني'!$E$9 -> 11.45 | E217: ='جدول الصف الثاني'!$F$9 -> ساعة | G217: ='جدول الصف الثاني'!$B$9 -> 2018-01-01 | H217: ='جدول الصف الثاني'!$C$9 -> التربية الدينية | I217: ='جدول الصف الثاني'!$D$9 -> 10.15 | J217: ='جدول الصف الثاني'!$E$9 -> 11.45 | K217: ='جدول الصف الثاني'!$F$9 -> ساعة
A218: ='جدول الصف الثاني'!$B$10 -> الأحد | B218: ='جدول الصف الثاني'!$C$10 -> الرياضيات | C218: ='جدول الصف الثاني'!$D$10 -> 8 | D218: ='جدول الصف الثاني'!$E$10 -> 9.3 | E218: ='جدول الصف الثاني'!$F$10 -> ساعة ونصف | G218: ='جدول الصف الثاني'!$B$10 -> الأحد | H218: ='جدول الصف الثاني'!$C$10 -> الرياضيات | I218: ='جدول الصف الثاني'!$D$10 -> 8 | J218: ='جدول الصف الثاني'!$E$10 -> 9.3 | K218: ='جدول الصف الثاني'!$F$10 -> ساعة ونصف
A219: ='جدول الصف الثاني'!$B$11 -> 2018-01-02 | B219: ='جدول الصف الثاني'!$C$11 -> اللغة الإنجليزية {شفهي} | C219: ='جدول الصف الثاني'!$D$11 -> 9.45 | D219: ='جدول الصف الثاني'!$E$11 -> 11.15 | E219: ='جدول الصف الثاني'!$F$11 -> ساعة ونصف | G219: ='جدول الصف الثاني'!$B$11 -> 2018-01-02 | H219: ='جدول الصف الثاني'!$C$11 -> اللغة الإنجليزية {شفهي} | I219: ='جدول الصف الثاني'!$D$11 -> 9.45 | J219: ='جدول الصف الثاني'!$E$11 -> 11.15 | K219: ='جدول الصف الثاني'!$F$11 -> ساعة ونصف

Sheet كشوف مناداة الصف الثاني
B1: ='البيانات الأساسية'!$A$1 -> إدارة /غرب المحلة الكبرى التعليمية | H1: ='البيانات الأساسية'!$A$1 -> إدارة /غرب المحلة الكبرى التعليمية | P1: 1
B2: ='البيانات الأساسية'!$A$2 -> مدرسة د/علي علي حبيش الابتدائية | H2: ='البيانات الأساسية'!$A$2 -> مدرسة د/علي علي حبيش الابتدائية
B3: ='البيانات الأساسية'!$A$4 -> كشف مناداة الصف الثاني فصل أول وثانٍ للعام الدراسي 2019/2018 | H3: ='البيانات الأساسية'!$A$4 -> كشف مناداة الصف الثاني فصل أول وثانٍ للعام الدراسي 2019/2018 | Q3: =MAX('قائمة الصف الثاني'!K:K) -> 29 | R3: =VLOOKUP(J4,عدد_اللجنة2,3) -> 20 | S3: الصف الثاني
C4: اللجنة رقم | D4: =IF(P1>R3,"",P1) -> 1 | I4: اللجنة رقم | J4: =P1+1 -> 2 | Q4: =MAX('قائمة الصف الثاني'!K:K) -> 29 | R4: =VLOOKUP(J4,عدد_اللجنة2,3) -> 20 | S4: الصف الثاني
B5: م | C5: الاســـــــــــــــــــــــــــــم | D5: رقم الجلوس | E5: القيد | F5: الديانة | H5: م | I5: الاســـــــــــــــــــــــــــــم | J5: رقم الجلوس | K5: القيد | L5: الديانة
A6: 1 | B6: =IF(D4="","",1) -> 1 | C6: =IF(B6="","",VLOOKUP(D6,الثاني_مناداه,2)) -> حسن1 | D6: =IF(D4="","",VLOOKUP(D4,رقم_جلوس2_مناداة,2)) -> 30 | E6: =IF(B6="","",VLOOKUP(D6,الثاني_مناداه,4,FALSE)) -> 0 | F6: =IF(B6="","",VLOOKUP(D6,الثاني_مناداه,5,FALSE)) -> مسلم | H6: =IF(J4="","",1) -> 1 | I6: =IF(H6="","",VLOOKUP(J6,الثاني_مناداه,2)) -> حسن21 | J6: =IF(J4="","",VLOOKUP(J4,رقم_جلوس2_مناداة,2)) -> 50 | K6: =IF(H6="","",VLOOKUP(J6,الثاني_مناداه,4,FALSE)) -> 0 | L6: =IF(H6="","",VLOOKUP(J6,الثاني_مناداه,5,FALSE)) -> 0
A7: 2 | B7: =IF(B6="","",IF(B6+1>$R$3,"",B6+1)) -> 2 | C7: حسن2 | D7: =IF(B6="","",IF(B7="","",D6+1)) -> 31 | E7: 0 | F7: 0 | H7: =IF(H6="","",IF(H6+1>$R$3,"",H6+1)) -> 2 | I7: حسن22 | J7: =IF(H6="","",IF(H7="","",J6+1)) -> 51 | K7: 0 | L7: 0
A8: 3 | B8: =IF(B7="","",IF(B7+1>$R$3,"",B7+1)) -> 3 | C8: حسن3 | D8: =IF(B7="","",IF(B8="","",D7+1)) -> 32 | E8: 0 | F8: مسلم | H8: =IF(H7="","",IF(H7+1>$R$3,"",H7+1)) -> 3 | I8: حسن23 | J8: =IF(H7="","",IF(H8="","",J7+1)) -> 52 | K8: 0 | L8: 0
A9: 4 | B9: 4 | C9: حسن4 | D9: 33 | E9: معيد | F9: 0 | H9: 4 | I9: حسن24 | J9: 53 | K9: 0 | L9: 0
A10: 5 | B10: 5 | C10: حسن5 | D10: 34 | E10: 0 | F10: 0 | H10: 5 | I10: حسن25 | J10: 54 | K10: 0 | L10: 0
A11: 6 | B11: 6 | C11: حسن6 | D11: 35 | E11: 0 | F11: مسلم | H11: 6 | I11: حسن26 | J11: 55 | K11: 0 | L11: 0
A12: 7 | B12: 7 | C12: حسن7 | D12: 36 | E12: 0 | F12: مسلم | H12: 7 | I12: حسن27 | J12: 56 | K12: 0 | L12: 0
A13: 8 | B13: 8 | C13: حسن8 | D13: 37 | E13: 0 | F13: 0 | H13: 8 | I13: حسن28 | J13: 57 | K13: 0 | L13: 0
A14: 9 | B14: 9 | C14: حسن9 | D14: 38 | E14: معيد | F14: 0 | H14: 9 | I14: حسن29 | J14: 58 | K14: 0 | L14: 0
A15: 10 | B15: 10 | C15: حسن10 | D15: 39 | E15: 0 | F15: مسلم | H15: 10 | I15: حسن30 | J15: 59 | K15: 0 | L15: مسلم
A16: 11 | B16: 11 | C16: حسن11 | D16: 40 | E16: م للسنة الأولي | F16: 0 | H16: 11 | I16: حسن31 | J16: 60 | K16: 0 | L16: 0
A17: 12 | B17: 12 | C17: حسن12 | D17: 41 | E17: 0 | F17: 0 | H17: 12 | I17: حسن32 | J17: 61 | K17: معيد | L17: 0
A18: 13 | B18: 13 | C18: حسن13 | D18: 42 | E18: 0 | F18: مسلم | H18: 13 | I18: حسن33 | J18: 62 | K18: 0 | L18: أخري
A19: 14 | B19: 14 | C19: حسن14 | D19: 43 | E19: 0 | F19: 0 | H19: 14 | I19: حسن34 | J19: 63 | K19: م للسنة الثانية | L19: 0
A20: 15 | B20: 15 | C20: حسن15 | D20: 44 | E20: 0 | F20: 0 | H20: 15 | I20: حسن35 | J20: 64 | K20: 0 | L20: 0
A21: 16 | B21: 16 | C21: حسن16 | D21: 45 | E21: 0 | F21: 0 | H21: 16 | I21: حسن36 | J21: 65 | K21: 0 | L21: 0
A22: 17 | B22: 17 | C22: حسن17 | D22: 46 | E22: 0 | F22: 0 | H22: 17 | I22: حسن37 | J22: 66 | K22: 0 | L22: 0
A23: 18 | B23: 18 | C23: حسن18 | D23: 47 | E23: 0 | F23: مسلم | H23: 18 | I23: حسن38 | J23: 67 | K23: 0 | L23: 0
A24: 19 | B24: 19 | C24: حسن19 | D24: 48 | E24: 0 | F24: 0 | H24: 19 | I24: حسن39 | J24: 68 | K24: 0 | L24: 0
A25: 20 | B25: 20 | C25: حسن20 | D25: 49 | E25: 0 | F25: 0 | H25: 20 | I25: حسن40 | J25: 69 | K25: 0 | L25: 0
A26: 21
A27: 22
B36: =IF(B35="","",IF(B35+1>$R$3,"",B35+1)) -> 
B37: =IF(B36="","",IF(B36+1>$R$3,"",B36+1)) -> 
B39: ='البيانات الأساسية'!$A$10 -> مراقب الكنترول | D39: ='البيانات الأساسية'!$C$10 -> رئيس الكنترول | H39: ='البيانات الأساسية'!$A$10 -> مراقب الكنترول | J39: ='البيانات الأساسية'!$C$10 -> رئيس الكنترول
B40: ='البيانات الأساسية'!$A$11 -> أ/ عبد الحميد | D40: ='البيانات الأساسية'!$A$11 -> أ/ عبد الحميد | H40: ='البيانات الأساسية'!$A$11 -> أ/ عبد الحميد | J40: ='البيانات الأساسية'!$A$11 -> أ/ عبد الحميد
B42: ='البيانات الأساسية'!$A$1 -> إدارة /غرب المحلة الكبرى التعليمية | H42: ='البيانات الأساسية'!$A$1 -> إدارة /غرب المحلة الكبرى التعليمية
B43: ='البيانات الأساسية'!$A$2 -> مدرسة د/علي علي حبيش الابتدائية | H43: ='البيانات الأساسية'!$A$2 -> مدرسة د/علي علي حبيش الابتدائية
B44: ='البيانات الأساسية'!$A$4 -> كشف مناداة الصف الثاني فصل أول وثانٍ للعام الدراسي 2019/2018 | H44: ='البيانات الأساسية'!$A$4 -> كشف مناداة الصف الثاني فصل أول وثانٍ للعام الدراسي 2019/2018
C45: اللجنة رقم | D45: =D4+2 -> 3 | I45: اللجنة رقم | J45: =J4+2 -> 4
B46: م | C46: الاســـــــــــــــــــــــــــــم | D46: رقم الجلوس | E46: القيد | F46: الديانة | H46: م | I46: الاســـــــــــــــــــــــــــــم | J46: رقم الجلوس | K46: القيد | L46: الديانة
A47: 23 | B47: =IF(D45="","",1) -> 1 | C47: =IF(B47="","",VLOOKUP(D47,الثاني_مناداه,2)) -> حسن41 | D47: =IF(D45="","",VLOOKUP(D45,رقم_جلوس2_مناداة,2)) -> 70 | E47: =IF(B47="","",VLOOKUP(D47,الثاني_مناداه,4,FALSE)) -> 0 | F47: =IF(B47="","",VLOOKUP(D47,الثاني_مناداه,5,FALSE)) -> 0 | H47: =IF(J45="","",1) -> 1 | I47: =IF(H47="","",VLOOKUP(J47,الثاني_مناداه,2)) -> حسن61 | J47: =IF(J45="","",VLOOKUP(J45,رقم_جلوس2_مناداة,2)) -> 90 | K47: =IF(H47="","",VLOOKUP(J47,الثاني_مناداه,4,FALSE)) -> 0 | L47: =IF(H47="","",VLOOKUP(J47,الثاني_مناداه,5,FALSE)) -> 0
A48: 24 | B48: =IF(B47="","",IF(B47+1>$R$3,"",B47+1)) -> 2 | C48: حسن42 | D48: =IF(B47="","",IF(B48="","",D47+1)) -> 71 | E48: 0 | F48: 0 | H48: =IF(H47="","",IF(H47+1>$R$3,"",H47+1)) -> 2 | I48: حسن62 | J48: =IF(H47="","",IF(H48="","",J47+1)) -> 91 | K48: 0 | L48: 0
A49: 25 | B49: 3 | C49: حسن43 | D49: 72 | E49: 0 | F49: 0 | H49: 3 | I49: حسن63 | J49: 92 | K49: 0 | L49: 0
A50: 26 | B50: 4 | C50: حسن44 | D50: 73 | E50: 0 | F50: 0 | H50: 4 | I50: حسن64 | J50: 93 | K50: 0 | L50: 0
A51: 27 | B51: 5 | C51: حسن45 | D51: 74 | E51: 0 | F51: 0 | H51: 5 | I51: حسن65 | J51: 94 | K51: 0 | L51: 0
A52: 28 | B52: 6 | C52: حسن46 | D52: 75 | E52: 0 | F52: 0 | H52: 6 | I52: حسن66 | J52: 95 | K52: 0 | L52: 0
A53: 29 | B53: 7 | C53: حسن47 | D53: 76 | E53: 0 | F53: 0 | H53: 7 | I53: حسن67 | J53: 96 | K53: 0 | L53: 0
A54: 30 | B54: 8 | C54: حسن48 | D54: 77 | E54: 0 | F54: 0 | H54: 8 | I54: حسن68 | J54: 97 | K54: 0 | L54: 0
A55: 31 | B55: 9 | C55: حسن49 | D55: 78 | E55: 0 | F55: 0 | H55: 9 | I55: حسن69 | J55: 98 | K55: 0 | L55: 0
A56: 32 | B56: 10 | C56: حسن50 | D56: 79 | E56: 0 | F56: 0 | H56: 10 | I56: حسن70 | J56: 99 | K56: 0 | L56: 0
A57: 33 | B57: 11 | C57: حسن51 | D57: 80 | E57: 0 | F57: 0 | H57: 11 | I57: حسن71 | J57: 100 | K57: 0 | L57: 0
A58: 34 | B58: 12 | C58: حسن52 | D58: 81 | E58: 0 | F58: 0 | H58: 12 | I58: حسن72 | J58: 101 | K58: 0 | L58: 0
A59: 35 | B59: 13 | C59: حسن53 | D59: 82 | E59: 0 | F59: 0 | H59: 13 | I59: حسن73 | J59: 102 | K59: 0 | L59: 0
A60: 36 | B60: 14 | C60: حسن54 | D60: 83 | E60: 0 | F60: 0 | H60: 14 | I60: حسن74 | J60: 103 | K60: 0 | L60: 0
A61: 37 | B61: 15 | C61: حسن55 | D61: 84 | E61: 0 | F61: 0 | H61: 15 | I61: حسن75 | J61: 104 | K61: 0 | L61: 0
A62: 38 | B62: 16 | C62: حسن56 | D62: 85 | E62: 0 | F62: 0 | H62: 16 | I62: حسن76 | J62: 105 | K62: 0 | L62: 0
A63: 39 | B63: 17 | C63: حسن57 | D63: 86 | E63: 0 | F63: 0 | H63: 17 | I63: حسن77 | J63: 106 | K63: 0 | L63: 0
A64: 40 | B64: 18 | C64: حسن58 | D64: 87 | E64: 0 | F64: 0 | H64: 18 | I64: حسن78 | J64: 107 | K64: 0 | L64: 0
A65: 41 | B65: 19 | C65: حسن59 | D65: 88 | E65: 0 | F65: 0 | H65: 19 | I65: حسن79 | J65: 108 | K65: 0 | L65: 0
A66: 42 | B66: 20 | C66: حسن60 | D66: 89 | E66: 0 | F66: 0 | H66: 20 | I66: حسن80 | J66: 109 | K66: 0 | L66: 0
A67: 43
A68: 44
B80: ='البيانات الأساسية'!$A$10 -> مراقب الكنترول | D80: ='البيانات الأساسية'!$C$10 -> رئيس الكنترول | H80: ='البيانات الأساسية'!$A$10 -> مراقب الكنترول | J80: ='البيانات الأساسية'!$C$10 -> رئيس الكنترول
B81: ='البيانات الأساسية'!$A$11 -> أ/ عبد الحميد | D81: ='البيانات الأساسية'!$A$11 -> أ/ عبد الحميد | H81: ='البيانات الأساسية'!$A$11 -> أ/ عبد الحميد | J81: ='البيانات الأساسية'!$A$11 -> أ/ عبد الحميد
B84: ='البيانات الأساسية'!$A$1 -> إدارة /غرب المحلة الكبرى التعليمية | H84: ='البيانات الأساسية'!$A$1 -> إدارة /غرب المحلة الكبرى التعليمية
B85: ='البيانات الأساسية'!$A$2 -> مدرسة د/علي علي حبيش الابتدائية | H85: ='البيانات الأساسية'!$A$2 -> مدرسة د/علي علي حبيش الابتدائية
B86: ='البيانات الأساسية'!$A$4 -> كشف مناداة الصف الثاني فصل أول وثانٍ للعام الدراسي 2019/2018 | H86: ='البيانات الأساسية'!$A$4 -> كشف مناداة الصف الثاني فصل أول وثانٍ للعام الدراسي 2019/2018
C87: اللجنة رقم | D87: =D45+2 -> 5 | I87: اللجنة رقم | J87: =J45+2 -> 6
B88: م | C88: الاســـــــــــــــــــــــــــــم | D88: رقم الجلوس | E88: القيد | F88: الديانة | H88: م | I88: الاســـــــــــــــــــــــــــــم | J88: رقم الجلوس | K88: القيد | L88: الديانة
A89: 45 | B89: =IF(D87="","",1) -> 1 | C89: =IF(B89="","",VLOOKUP(D89,الثاني_مناداه,2)) -> حسن81 | D89: =IF(D87="","",VLOOKUP(D87,رقم_جلوس2_مناداة,2)) -> 110 | E89: =IF(B89="","",VLOOKUP(D89,الثاني_مناداه,4,FALSE)) -> 0 | F89: =IF(B89="","",VLOOKUP(D89,الثاني_مناداه,5,FALSE)) -> 0 | H89: =IF(J87="","",1) -> 1 | I89: =IF(H89="","",VLOOKUP(J89,الثاني_مناداه,2)) -> حسن101 | J89: =IF(J87="","",VLOOKUP(J87,رقم_جلوس2_مناداة,2)) -> 130 | K89: =IF(H89="","",VLOOKUP(J89,الثاني_مناداه,4,FALSE)) -> 0 | L89: =IF(H89="","",VLOOKUP(J89,الثاني_مناداه,5,FALSE)) -> 0
A90: 46 | B90: =IF(B89="","",IF(B89+1>$R$3,"",B89+1)) -> 2 | C90: حسن82 | D90: =IF(B89="","",IF(B90="","",D89+1)) -> 111 | E90: 0 | F90: 0 | H90: =IF(H89="","",IF(H89+1>$R$3,"",H89+1)) -> 2 | I90: حسن102 | J90: =IF(H89="","",IF(H90="","",J89+1)) -> 131 | K90: 0 | L90: 0
A91: 47 | B91: 3 | C91: حسن83 | D91: 112 | E91: 0 | F91: 0 | H91: 3 | I91: حسن103 | J91: 132 | K91: 0 | L91: 0
A92: 48 | B92: 4 | C92: حسن84 | D92: 113 | E92: 0 | F92: 0 | H92: 4 | I92: حسن104 | J92: 133 | K92: 0 | L92: 0
A93: 49 | B93: 5 | C93: حسن85 | D93: 114 | E93: 0 | F93: 0 | H93: 5 | I93: حسن105 | J93: 134 | K93: 0 | L93: 0
A94: 50 | B94: 6 | C94: حسن86 | D94: 115 | E94: 0 | F94: 0 | H94: 6 | I94: حسن106 | J94: 135 | K94: 0 | L94: 0
A95: 51 | B95: 7 | C95: حسن87 | D95: 116 | E95: 0 | F95: 0 | H95: 7 | I95: حسن107 | J95: 136 | K95: 0 | L95: 0
A96: 52 | B96: 8 | C96: حسن88 | D96: 117 | E96: 0 | F96: 0 | H96: 8 | I96: حسن108 | J96: 137 | K96: 0 | L96: 0
A97: 53 | B97: 9 | C97: حسن89 | D97: 118 | E97: 0 | F97: 0 | H97: 9 | I97: حسن109 | J97: 138 | K97: 0 | L97: 0
A98: 54 | B98: 10 | C98: حسن90 | D98: 119 | E98: 0 | F98: 0 | H98: 10 | I98: حسن110 | J98: 139 | K98: 0 | L98: 0
A99: 55 | B99: 11 | C99: حسن91 | D99: 120 | E99: 0 | F99: 0 | H99: 11 | I99: حسن111 | J99: 140 | K99: 0 | L99: 0
A100: 56 | B100: 12 | C100: حسن92 | D100: 121 | E100: 0 | F100: 0 | H100: 12 | I100: حسن112 | J100: 141 | K100: 0 | L100: 0
A101: 57 | B101: 13 | C101: حسن93 | D101: 122 | E101: 0 | F101: 0 | H101: 13 | I101: حسن113 | J101: 142 | K101: 0 | L101: 0
A102: 58 | B102: 14 | C102: حسن94 | D102: 123 | E102: 0 | F102: 0 | H102: 14 | I102: حسن114 | J102: 143 | K102: 0 | L102: 0
A103: 59 | B103: 15 | C103: حسن95 | D103: 124 | E103: 0 | F103: 0 | H103: 15 | I103: حسن115 | J103: 144 | K103: 0 | L103: 0
A104: 60 | B104: 16 | C104: حسن96 | D104: 125 | E104: 0 | F104: 0 | H104: 16 | I104: حسن116 | J104: 145 | K104: 0 | L104: 0
A105: 61 | B105: 17 | C105: حسن97 | D105: 126 | E105: 0 | F105: 0 | H105: 17 | I105: حسن117 | J105: 146 | K105: 0 | L105: 0
A106: 62 | B106: 18 | C106: حسن98 | D106: 127 | E106: 0 | F106: 0 | H106: 18 | I106: حسن118 | J106: 147 | K106: 0 | L106: 0
A107: 63 | B107: 19 | C107: حسن99 | D107: 128 | E107: 0 | F107: 0 | H107: 19 | I107: حسن119 | J107: 148 | K107: 0 | L107: 0
A108: 64 | B108: 20 | C108: حسن100 | D108: 129 | E108: 0 | F108: 0 | H108: 20 | I108: حسن120 | J108: 149 | K108: 0 | L108: 0
A109: 65
A110: 66
B122: ='البيانات الأساسية'!$A$10 -> مراقب الكنترول | D122: ='البيانات الأساسية'!$C$10 -> رئيس الكنترول | H122: ='البيانات الأساسية'!$A$10 -> مراقب الكنترول | J122: ='البيانات الأساسية'!$C$10 -> رئيس الكنترول
B123: ='البيانات الأساسية'!$A$11 -> أ/ عبد الحميد | D123: ='البيانات الأساسية'!$A$11 -> أ/ عبد الحميد | H123: ='البيانات الأساسية'!$A$11 -> أ/ عبد الحميد | J123: ='البيانات الأساسية'!$A$11 -> أ/ عبد الحميد
B126: ='البيانات الأساسية'!$A$1 -> إدارة /غرب المحلة الكبرى التعليمية | H126: ='البيانات الأساسية'!$A$1 -> إدارة /غرب المحلة الكبرى التعليمية
B127: ='البيانات الأساسية'!$A$2 -> مدرسة د/علي علي حبيش الابتدائية | H127: ='البيانات الأساسية'!$A$2 -> مدرسة د/علي علي حبيش الابتدائية
B128: ='البيانات الأساسية'!$A$4 -> كشف مناداة الصف الثاني فصل أول وثانٍ للعام الدراسي 2019/2018 | H128: ='البيانات الأساسية'!$A$4 -> كشف مناداة الصف الثاني فصل أول وثانٍ للعام الدراسي 2019/2018
C129: اللجنة رقم | D129: =D87+2 -> 7 | I129: اللجنة رقم | J129: =J87+2 -> 8
B130: م | C130: الاســـــــــــــــــــــــــــــم | D130: رقم الجلوس | E130: القيد | F130: الديانة | H130: م | I130: الاســـــــــــــــــــــــــــــم | J130: رقم الجلوس | K130: القيد | L130: الديانة
A131: 67 | B131: =IF(D129="","",1) -> 1 | C131: =IF(B131="","",VLOOKUP(D131,الثاني_مناداه,2)) -> حسن121 | D131: =IF(D129="","",VLOOKUP(D129,رقم_جلوس2_مناداة,2)) -> 150 | E131: =IF(B131="","",VLOOKUP(D131,الثاني_مناداه,4,FALSE)) -> 0 | F131: =IF(B131="","",VLOOKUP(D131,الثاني_مناداه,5,FALSE)) -> 0 | H131: =IF(J129="","",1) -> 1 | I131: =IF(H131="","",VLOOKUP(J131,الثاني_مناداه,2)) -> حسن141 | J131: =IF(J129="","",VLOOKUP(J129,رقم_جلوس2_مناداة,2)) -> 170 | K131: =IF(H131="","",VLOOKUP(J131,الثاني_مناداه,4,FALSE)) -> 0 | L131: =IF(H131="","",VLOOKUP(J131,الثاني_مناداه,5,FALSE)) -> 0
A132: 68 | B132: =IF(B131="","",IF(B131+1>$R$3,"",B131+1)) -> 2 | C132: حسن122 | D132: =IF(B131="","",IF(B132="","",D131+1)) -> 151 | E132: 0 | F132: 0 | H132: =IF(H131="","",IF(H131+1>$R$3,"",H131+1)) -> 2 | I132: حسن142 | J132: =IF(H131="","",IF(H132="","",J131+1)) -> 171 | K132: 0 | L132: 0
A133: 69 | B133: 3 | C133: حسن123 | D133: 152 | E133: 0 | F133: 0 | H133: 3 | I133: حسن143 | J133: 172 | K133: 0 | L133: 0
A134: 70 | B134: 4 | C134: حسن124 | D134: 153 | E134: 0 | F134: 0 | H134: 4 | I134: حسن144 | J134: 173 | K134: 0 | L134: 0
A135: 71 | B135: 5 | C135: حسن125 | D135: 154 | E135: 0 | F135: 0 | H135: 5 | I135: حسن145 | J135: 174 | K135: 0 | L135: 0
A136: 72 | B136: 6 | C136: حسن126 | D136: 155 | E136: 0 | F136: 0 | H136: 6 | I136: حسن146 | J136: 175 | K136: 0 | L136: 0
A137: 73 | B137: 7 | C137: حسن127 | D137: 156 | E137: 0 | F137: 0 | H137: 7 | I137: حسن147 | J137: 176 | K137: 0 | L137: 0
A138: 74 | B138: 8 | C138: حسن128 | D138: 157 | E138: 0 | F138: 0 | H138: 8 | I138: حسن148 | J138: 177 | K138: 0 | L138: 0
A139: 75 | B139: 9 | C139: حسن129 | D139: 158 | E139: 0 | F139: 0 | H139: 9 | I139: حسن149 | J139: 178 | K139: 0 | L139: 0
A140: 76 | B140: 10 | C140: حسن130 | D140: 159 | E140: 0 | F140: 0 | H140: 10 | I140: حسن150 | J140: 179 | K140: 0 | L140: 0
A141: 77 | B141: 11 | C141: حسن131 | D141: 160 | E141: 0 | F141: 0 | H141: 11 | I141: حسن151 | J141: 180 | K141: 0 | L141: 0
A142: 78 | B142: 12 | C142: حسن132 | D142: 161 | E142: 0 | F142: 0 | H142: 12 | I142: حسن152 | J142: 181 | K142: 0 | L142: 0
A143: 79 | B143: 13 | C143: حسن133 | D143: 162 | E143: 0 | F143: 0 | H143: 13 | I143: حسن153 | J143: 182 | K143: 0 | L143: 0
A144: 80 | B144: 14 | C144: حسن134 | D144: 163 | E144: 0 | F144: 0 | H144: 14 | I144: حسن154 | J144: 183 | K144: 0 | L144: 0
A145: 81 | B145: 15 | C145: حسن135 | D145: 164 | E145: 0 | F145: 0 | H145: 15 | I145: حسن155 | J145: 184 | K145: 0 | L145: 0
A146: 82 | B146: 16 | C146: حسن136 | D146: 165 | E146: 0 | F146: 0 | H146: 16 | I146: حسن156 | J146: 185 | K146: 0 | L146: 0
A147: 83 | B147: 17 | C147: حسن137 | D147: 166 | E147: 0 | F147: 0 | H147: 17 | I147: حسن157 | J147: 186 | K147: 0 | L147: 0
A148: 84 | B148: 18 | C148: حسن138 | D148: 167 | E148: 0 | F148: 0 | H148: 18 | I148: حسن158 | J148: 187 | K148: 0 | L148: 0
A149: 85 | B149: 19 | C149: حسن139 | D149: 168 | E149: 0 | F149: 0 | H149: 19 | I149: حسن159 | J149: 188 | K149: 0 | L149: 0
A150: 86 | B150: 20 | C150: حسن140 | D150: 169 | E150: 0 | F150: 0 | H150: 20 | I150: حسن160 | J150: 189 | K150: 0 | L150: 0
A151: 87
A152: 88
B164: ='البيانات الأساسية'!$A$10 -> مراقب الكنترول | D164: ='البيانات الأساسية'!$C$10 -> رئيس الكنترول | H164: ='البيانات الأساسية'!$A$10 -> مراقب الكنترول | J164: ='البيانات الأساسية'!$C$10 -> رئيس الكنترول
B165: ='البيانات الأساسية'!$A$11 -> أ/ عبد الحميد | D165: ='البيانات الأساسية'!$A$11 -> أ/ عبد الحميد | H165: ='البيانات الأساسية'!$A$11 -> أ/ عبد الحميد | J165: ='البيانات الأساسية'!$A$11 -> أ/ عبد الحميد
B168: ='البيانات الأساسية'!$A$1 -> إدارة /غرب المحلة الكبرى التعليمية | H168: ='البيانات الأساسية'!$A$1 -> إدارة /غرب المحلة الكبرى التعليمية
B169: ='البيانات الأساسية'!$A$2 -> مدرسة د/علي علي حبيش الابتدائية | H169: ='البيانات الأساسية'!$A$2 -> مدرسة د/علي علي حبيش الابتدائية
B170: ='البيانات الأساسية'!$A$4 -> كشف مناداة الصف الثاني فصل أول وثانٍ للعام الدراسي 2019/2018 | H170: ='البيانات الأساسية'!$A$4 -> كشف مناداة الصف الثاني فصل أول وثانٍ للعام الدراسي 2019/2018
C171: اللجنة رقم | D171: =D129+2 -> 9 | I171: اللجنة رقم | J171: =J129+2 -> 10
B172: م | C172: الاســـــــــــــــــــــــــــــم | D172: رقم الجلوس | E172: القيد | F172: الديانة | H172: م | I172: الاســـــــــــــــــــــــــــــم | J172: رقم الجلوس | K172: القيد | L172: الديانة
A173: 89 | B173: =IF(D171="","",1) -> 1 | C173: =IF(B173="","",VLOOKUP(D173,الثاني_مناداه,2)) -> حسن161 | D173: =IF(D171="","",VLOOKUP(D171,رقم_جلوس2_مناداة,2)) -> 190 | E173: =IF(B173="","",VLOOKUP(D173,الثاني_مناداه,4,FALSE)) -> 0 | F173: =IF(B173="","",VLOOKUP(D173,الثاني_مناداه,5,FALSE)) -> 0 | H173: =IF(J171="","",1) -> 1 | I173: =IF(H173="","",VLOOKUP(J173,الثاني_مناداه,2)) -> حسن181 | J173: =IF(J171="","",VLOOKUP(J171,رقم_جلوس2_مناداة,2)) -> 210 | K173: =IF(H173="","",VLOOKUP(J173,الثاني_مناداه,4,FALSE)) -> 0 | L173: =IF(H173="","",VLOOKUP(J173,الثاني_مناداه,5,FALSE)) -> 0
A174: 90 | B174: =IF(B173="","",IF(B173+1>$R$3,"",B173+1)) -> 2 | C174: حسن162 | D174: =IF(B173="","",IF(B174="","",D173+1)) -> 191 | E174: 0 | F174: 0 | H174: =IF(H173="","",IF(H173+1>$R$3,"",H173+1)) -> 2 | I174: حسن182 | J174: =IF(H173="","",IF(H174="","",J173+1)) -> 211 | K174: 0 | L174: 0
A175: 91 | B175: 3 | C175: حسن163 | D175: 192 | E175: 0 | F175: 0 | H175: 3 | I175: حسن183 | J175: 212 | K175: 0 | L175: 0
A176: 92 | B176: 4 | C176: حسن164 | D176: 193 | E176: 0 | F176: 0 | H176: 4 | I176: حسن184 | J176: 213 | K176: 0 | L176: 0
A177: 93 | B177: 5 | C177: حسن165 | D177: 194 | E177: 0 | F177: 0 | H177: 5 | I177: حسن185 | J177: 214 | K177: 0 | L177: 0
A178: 94 | B178: 6 | C178: حسن166 | D178: 195 | E178: 0 | F178: 0 | H178: 6 | I178: حسن186 | J178: 215 | K178: 0 | L178: 0
A179: 95 | B179: 7 | C179: حسن167 | D179: 196 | E179: 0 | F179: 0 | H179: 7 | I179: حسن187 | J179: 216 | K179: 0 | L179: 0
A180: 96 | B180: 8 | C180: حسن168 | D180: 197 | E180: 0 | F180: 0 | H180: 8 | I180: حسن188 | J180: 217 | K180: 0 | L180: 0
A181: 97 | B181: 9 | C181: حسن169 | D181: 198 | E181: 0 | F181: 0 | H181: 9 | I181: حسن189 | J181: 218 | K181: 0 | L181: 0
A182: 98 | B182: 10 | C182: حسن170 | D182: 199 | E182: 0 | F182: 0 | H182: 10 | I182: حسن190 | J182: 219 | K182: 0 | L182: 0
A183: 99 | B183: 11 | C183: حسن171 | D183: 200 | E183: 0 | F183: 0 | H183: 11 | I183: حسن191 | J183: 220 | K183: 0 | L183: 0
A184: 100 | B184: 12 | C184: حسن172 | D184: 201 | E184: 0 | F184: 0 | H184: 12 | I184: حسن192 | J184: 221 | K184: 0 | L184: 0
A185: 101 | B185: 13 | C185: حسن173 | D185: 202 | E185: 0 | F185: 0 | H185: 13 | I185: حسن193 | J185: 222 | K185: 0 | L185: 0
A186: 102 | B186: 14 | C186: حسن174 | D186: 203 | E186: 0 | F186: 0 | H186: 14 | I186: حسن194 | J186: 223 | K186: 0 | L186: 0
A187: 103 | B187: 15 | C187: حسن175 | D187: 204 | E187: 0 | F187: 0 | H187: 15 | I187: حسن195 | J187: 224 | K187: 0 | L187: 0
A188: 104 | B188: 16 | C188: حسن176 | D188: 205 | E188: 0 | F188: 0 | H188: 16 | I188: حسن196 | J188: 225 | K188: 0 | L188: 0
A189: 105 | B189: 17 | C189: حسن177 | D189: 206 | E189: 0 | F189: 0 | H189: 17 | I189: حسن197 | J189: 226 | K189: 0 | L189: 0
A190: 106 | B190: 18 | C190: حسن178 | D190: 207 | E190: 0 | F190: 0 | H190: 18 | I190: حسن198 | J190: 227 | K190: 0 | L190: 0
A191: 107 | B191: 19 | C191: حسن179 | D191: 208 | E191: 0 | F191: 0 | H191: 19 | I191: حسن199 | J191: 228 | K191: 0 | L191: 0
A192: 108 | B192: 20 | C192: حسن180 | D192: 209 | E192: 0 | F192: 0 | H192: 20 | I192: حسن200 | J192: 229 | K192: 0 | L192: 0
A193: 109
A194: 110
B206: ='البيانات الأساسية'!$A$10 -> مراقب الكنترول | D206: ='البيانات الأساسية'!$C$10 -> رئيس الكنترول | H206: ='البيانات الأساسية'!$A$10 -> مراقب الكنترول | J206: ='البيانات الأساسية'!$C$10 -> رئيس الكنترول
B207: ='البيانات الأساسية'!$A$11 -> أ/ عبد الحميد | D207: ='البيانات الأساسية'!$A$11 -> أ/ عبد الحميد | H207: ='البيانات الأساسية'!$A$11 -> أ/ عبد الحميد | J207: ='البيانات الأساسية'!$A$11 -> أ/ عبد الحميد
B210: ='البيانات الأساسية'!$A$1 -> إدارة /غرب المحلة الكبرى التعليمية | H210: ='البيانات الأساسية'!$A$1 -> إدارة /غرب المحلة الكبرى التعليمية
B211: ='البيانات الأساسية'!$A$2 -> مدرسة د/علي علي حبيش الابتدائية | H211: ='البيانات الأساسية'!$A$2 -> مدرسة د/علي علي حبيش الابتدائية
B212: ='البيانات الأساسية'!$A$4 -> كشف مناداة الصف الثاني فصل أول وثانٍ للعام الدراسي 2019/2018 | H212: ='البيانات الأساسية'!$A$4 -> كشف مناداة الصف الثاني فصل أول وثانٍ للعام الدراسي 2019/2018
C213: اللجنة رقم | D213: =D171+2 -> 11 | I213: اللجنة رقم | J213: =J171+2 -> 12
B214: م | C214: الاســـــــــــــــــــــــــــــم | D214: رقم الجلوس | E214: القيد | F214: الديانة | H214: م | I214: الاســـــــــــــــــــــــــــــم | J214: رقم الجلوس | K214: القيد | L214: الديانة
A215: 111 | B215: =IF(D213="","",1) -> 1 | C215: =IF(B215="","",VLOOKUP(D215,الثاني_مناداه,2)) -> حسن201 | D215: =IF(D213="","",VLOOKUP(D213,رقم_جلوس2_مناداة,2)) -> 230 | E215: =IF(B215="","",VLOOKUP(D215,الثاني_مناداه,4,FALSE)) -> 0 | F215: =IF(B215="","",VLOOKUP(D215,الثاني_مناداه,5,FALSE)) -> 0 | H215: =IF(J213="","",1) -> 1 | I215: =IF(H215="","",VLOOKUP(J215,الثاني_مناداه,2)) -> حسن221 | J215: =IF(J213="","",VLOOKUP(J213,رقم_جلوس2_مناداة,2)) -> 250 | K215: =IF(H215="","",VLOOKUP(J215,الثاني_مناداه,4,FALSE)) -> 0 | L215: =IF(H215="","",VLOOKUP(J215,الثاني_مناداه,5,FALSE)) -> 0
A216: 112 | B216: =IF(B215="","",IF(B215+1>$R$3,"",B215+1)) -> 2 | C216: حسن202 | D216: =IF(B215="","",IF(B216="","",D215+1)) -> 231 | E216: 0 | F216: 0 | H216: =IF(H215="","",IF(H215+1>$R$3,"",H215+1)) -> 2 | I216: حسن222 | J216: =IF(H215="","",IF(H216="","",J215+1)) -> 251 | K216: 0 | L216: 0
A217: 113 | B217: 3 | C217: حسن203 | D217: 232 | E217: 0 | F217: 0 | H217: 3 | I217: حسن223 | J217: 252 | K217: 0 | L217: 0
A218: 114 | B218: 4 | C218: حسن204 | D218: 233 | E218: 0 | F218: 0 | H218: 4 | I218: حسن224 | J218: 253 | K218: 0 | L218: 0
A219: 115 | B219: 5 | C219: حسن205 | D219: 234 | E219: 0 | F219: 0 | H219: 5 | I219: حسن225 | J219: 254 | K219: 0 | L219: 0
A220: 116 | B220: 6 | C220: حسن206 | D220: 235 | E220: 0 | F220: 0 | H220: 6 | I220: حسن226 | J220: 255 | K220: 0 | L220: 0
A221: 117 | B221: 7 | C221: حسن207 | D221: 236 | E221: 0 | F221: 0 | H221: 7 | I221: حسن227 | J221: 256 | K221: 0 | L221: 0
A222: 118 | B222: 8 | C222: حسن208 | D222: 237 | E222: 0 | F222: 0 | H222: 8 | I222: حسن228 | J222: 257 | K222: 0 | L222: 0
A223: 119 | B223: 9 | C223: حسن209 | D223: 238 | E223: 0 | F223: 0 | H223: 9 | I223: حسن229 | J223: 258 | K223: 0 | L223: 0
A224: 120 | B224: 10 | C224: حسن210 | D224: 239 | E224: 0 | F224: 0 | H224: 10 | I224: حسن230 | J224: 259 | K224: 0 | L224: 0
A225: 121 | B225: 11 | C225: حسن211 | D225: 240 | E225: 0 | F225: 0 | H225: 11 | I225: حسن231 | J225: 260 | K225: 0 | L225: 0
A226: 122 | B226: 12 | C226: حسن212 | D226: 241 | E226: 0 | F226: 0 | H226: 12 | I226: حسن232 | J226: 261 | K226: 0 | L226: 0
A227: 123 | B227: 13 | C227: حسن213 | D227: 242 | E227: 0 | F227: 0 | H227: 13 | I227: حسن233 | J227: 262 | K227: 0 | L227: 0
A228: 124 | B228: 14 | C228: حسن214 | D228: 243 | E228: 0 | F228: 0 | H228: 14 | I228: حسن234 | J228: 263 | K228: 0 | L228: 0
A229: 125 | B229: 15 | C229: حسن215 | D229: 244 | E229: 0 | F229: 0 | H229: 15 | I229: حسن235 | J229: 264 | K229: 0 | L229: 0
A230: 126 | B230: 16 | C230: حسن216 | D230: 245 | E230: 0 | F230: 0 | H230: 16 | I230: حسن236 | J230: 265 | K230: 0 | L230: 0
A231: 127 | B231: 17 | C231: حسن217 | D231: 246 | E231: 0 | F231: 0 | H231: 17 | I231: حسن237 | J231: 266 | K231: 0 | L231: 0
A232: 128 | B232: 18 | C232: حسن218 | D232: 247 | E232: 0 | F232: 0 | H232: 18 | I232: حسن238 | J232: 267 | K232: 0 | L232: 0
A233: 129 | B233: 19 | C233: حسن219 | D233: 248 | E233: 0 | F233: 0 | H233: 19 | I233: حسن239 | J233: 268 | K233: 0 | L233: 0
A234: 130 | B234: 20 | C234: حسن220 | D234: 249 | E234: 0 | F234: 0 | H234: 20 | I234: حسن240 | J234: 269 | K234: 0 | L234: 0
A235: 131
A236: 132
B248: ='البيانات الأساسية'!$A$10 -> مراقب الكنترول | D248: ='البيانات الأساسية'!$C$10 -> رئيس الكنترول | H248: ='البيانات الأساسية'!$A$10 -> مراقب الكنترول | J248: ='البيانات الأساسية'!$C$10 -> رئيس الكنترول
B249: ='البيانات الأساسية'!$A$11 -> أ/ عبد الحميد | D249: ='البيانات الأساسية'!$A$11 -> أ/ عبد الحميد | H249: ='البيانات الأساسية'!$A$11 -> أ/ عبد الحميد | J249: ='البيانات الأساسية'!$A$11 -> أ/ عبد الحميد
B252: ='البيانات الأساسية'!$A$1 -> إدارة /غرب المحلة الكبرى التعليمية | H252: ='البيانات الأساسية'!$A$1 -> إدارة /غرب المحلة الكبرى التعليمية
B253: ='البيانات الأساسية'!$A$2 -> مدرسة د/علي علي حبيش الابتدائية | H253: ='البيانات الأساسية'!$A$2 -> مدرسة د/علي علي حبيش الابتدائية
B254: ='البيانات الأساسية'!$A$4 -> كشف مناداة الصف الثاني فصل أول وثانٍ للعام الدراسي 2019/2018 | H254: ='البيانات الأساسية'!$A$4 -> كشف مناداة الصف الثاني فصل أول وثانٍ للعام الدراسي 2019/2018
C255: اللجنة رقم | D255: =D213+2 -> 13 | I255: اللجنة رقم | J255: =J213+2 -> 14
B256: م | C256: الاســـــــــــــــــــــــــــــم | D256: رقم الجلوس | E256: القيد | F256: الديانة | H256: م | I256: الاســـــــــــــــــــــــــــــم | J256: رقم الجلوس | K256: القيد | L256: الديانة
A257: 133 | B257: =IF(D255="","",1) -> 1 | C257: =IF(B257="","",VLOOKUP(D257,الثاني_مناداه,2)) -> حسن241 | D257: =IF(D255="","",VLOOKUP(D255,رقم_جلوس2_مناداة,2)) -> 270 | E257: =IF(B257="","",VLOOKUP(D257,الثاني_مناداه,4,FALSE)) -> 0 | F257: =IF(B257="","",VLOOKUP(D257,الثاني_مناداه,5,FALSE)) -> 0 | H257: =IF(J255="","",1) -> 1 | I257: =IF(H257="","",VLOOKUP(J257,الثاني_مناداه,2)) -> حسن261 | J257: =IF(J255="","",VLOOKUP(J255,رقم_جلوس2_مناداة,2)) -> 290 | K257: =IF(H257="","",VLOOKUP(J257,الثاني_مناداه,4,FALSE)) -> 0 | L257: =IF(H257="","",VLOOKUP(J257,الثاني_مناداه,5,FALSE)) -> 0
A258: 134 | B258: =IF(B257="","",IF(B257+1>$R$3,"",B257+1)) -> 2 | C258: حسن242 | D258: =IF(B257="","",IF(B258="","",D257+1)) -> 271 | E258: 0 | F258: 0 | H258: =IF(H257="","",IF(H257+1>$R$3,"",H257+1)) -> 2 | I258: حسن262 | J258: =IF(H257="","",IF(H258="","",J257+1)) -> 291 | K258: 0 | L258: 0
A259: 135 | B259: 3 | C259: حسن243 | D259: 272 | E259: 0 | F259: 0 | H259: 3 | I259: حسن263 | J259: 292 | K259: 0 | L259: 0
A260: 136 | B260: 4 | C260: حسن244 | D260: 273 | E260: 0 | F260: 0 | H260: 4 | I260: حسن264 | J260: 293 | K260: 0 | L260: 0
A261: 137 | B261: 5 | C261: حسن245 | D261: 274 | E261: 0 | F261: 0 | H261: 5 | I261: حسن265 | J261: 294 | K261: 0 | L261: 0
A262: 138 | B262: 6 | C262: حسن246 | D262: 275 | E262: 0 | F262: 0 | H262: 6 | I262: حسن266 | J262: 295 | K262: 0 | L262: 0
A263: 139 | B263: 7 | C263: حسن247 | D263: 276 | E263: 0 | F263: 0 | H263: 7 | I263: حسن267 | J263: 296 | K263: 0 | L263: 0
A264: 140 | B264: 8 | C264: حسن248 | D264: 277 | E264: 0 | F264: 0 | H264: 8 | I264: حسن268 | J264: 297 | K264: 0 | L264: 0
A265: 141 | B265: 9 | C265: حسن249 | D265: 278 | E265: 0 | F265: 0 | H265: 9 | I265: حسن269 | J265: 298 | K265: 0 | L265: 0
A266: 142 | B266: 10 | C266: حسن250 | D266: 279 | E266: 0 | F266: 0 | H266: 10 | I266: حسن270 | J266: 299 | K266: 0 | L266: 0
A267: 143 | B267: 11 | C267: حسن251 | D267: 280 | E267: 0 | F267: 0 | H267: 11 | I267: حسن271 | J267: 300 | K267: 0 | L267: 0
A268: 144 | B268: 12 | C268: حسن252 | D268: 281 | E268: 0 | F268: 0 | H268: 12 | I268: حسن272 | J268: 301 | K268: 0 | L268: 0
A269: 145 | B269: 13 | C269: حسن253 | D269: 282 | E269: 0 | F269: 0 | H269: 13 | I269: حسن273 | J269: 302 | K269: 0 | L269: 0
A270: 146 | B270: 14 | C270: حسن254 | D270: 283 | E270: 0 | F270: 0 | H270: 14 | I270: حسن274 | J270: 303 | K270: 0 | L270: 0
A271: 147 | B271: 15 | C271: حسن255 | D271: 284 | E271: 0 | F271: 0 | H271: 15 | I271: حسن275 | J271: 304 | K271: 0 | L271: 0
A272: 148 | B272: 16 | C272: حسن256 | D272: 285 | E272: 0 | F272: 0 | H272: 16 | I272: حسن276 | J272: 305 | K272: 0 | L272: 0
A273: 149 | B273: 17 | C273: حسن257 | D273: 286 | E273: 0 | F273: 0 | H273: 17 | I273: حسن277 | J273: 306 | K273: 0 | L273: 0
A274: 150 | B274: 18 | C274: حسن258 | D274: 287 | E274: 0 | F274: 0 | H274: 18 | I274: حسن278 | J274: 307 | K274: 0 | L274: 0
A275: 151 | B275: 19 | C275: حسن259 | D275: 288 | E275: 0 | F275: 0 | H275: 19 | I275: حسن279 | J275: 308 | K275: 0 | L275: 0
... 121 more rows

Sheet جدول الصف الثالث
A1: ='البيانات الأساسية'!$A$1 -> إدارة /غرب المحلة الكبرى التعليمية
A2: ='البيانات الأساسية'!$A$2 -> مدرسة د/علي علي حبيش الابتدائية
B4: جدول امتحان الفصل الدراسي الأول / الثاني للعام الدراسي 2019/2018
C5: الصف الثالث
B6: اليوم والترايخ | C6: المـــــــــــــــــــــــــــادة | D6: الزمن | F6: الزمن
D7: من | E7: إلي
B8: السبت | C8: لغة عربية وخط | D8: 8 | E8: 10 | F8: ساعتان
B9: 2018-01-01 | C9: التربية الدينية | D9: 10.15 | E9: 11.45 | F9: ساعة
B10: الأحد | C10: الرياضيات | D10: 8 | E10: 9.3 | F10: ساعة ونصف
B11: 2018-01-02 | C11: اللغة الإنجليزية | D11: 9.45 | E11: 11.15 | F11: ساعة ونصف

Sheet قائمة الصف الثالث
A1: رقم اللجنة | B1: من | C1: إلى | D1: اللجنة | E1: =MAX(M:M) -> 586 | G1: حدد عدد اللحنة بنفسك | H1: عدد اللجنة | I1: من | J1: إلى | K1: اللجنة | L1: عدد طلابك | N1: =MAX(M:M) -> 586 | O1: اكتب بداية رقم الجلوس | P1: 40 | Q1: بنون | R1: =COUNTIFS(P4:P603,"ذكر") -> 25 | S1: مسلم | T1: =COUNTIFS(R3:R602,"مسلم") -> 3
A2: =IF($H2="","",MAX($F$1:$F1)+1) -> 1 | B2: =P1 -> 40 | C2: =IF(H2="","",B2+H2-1) -> 59 | D2: =IF($H2="","",MAX($F$1:$F1)+1) -> 1 | E2: =IF($H2="","","اللجنة") -> اللجنة | F2: =IF($H2="","",MAX($F$1:$F1)+1) -> 1 | H2: =IF(SUM($H$1:$H1,IF(G2="",20,G2))<$E$1,IF($G2="",20,$G2),IF(SUM($H1:$H$2)=$E$1,"",$E$1-SUM($H1:$H$2))) -> 20 | I2: =IF($H2="","",SUM($H$1:$H1)+1) -> 1 | J2: =IF($H2="","",SUM($H2,$I2,-1)) -> 20 | K2: =IF($H2="","",MAX($F$1:$F1)+1) -> 1 | L2: آخر رقم جلوس | N2: =MAX(C4:C43) -> 625 | O2: الصف الثالث | Q2: بنات | R2: =COUNTIFS(P4:P603,"انثى") -> 561 | S2: مسيحي | T2: =COUNTIFS(R4:R603,"مسيحي") -> 0
A3: =IF($H3="","",MAX($F$1:$F2)+1) -> 2 | B3: =IF(H3="","",IF(A3="","",C2+1)) -> 60 | C3: =IF(H3="","",IF(B3="","",B3+H3-1)) -> 79 | D3: =IF($H3="","",MAX($F$1:$F2)+1) -> 2 | E3: =IF($H3="","","اللجنة") -> اللجنة | F3: =IF($H3="","",MAX($F$1:$F2)+1) -> 2 | H3: =IF(SUM($H$1:$H2,IF(G3="",20,G3))<$E$1,IF($G3="",20,$G3),IF(SUM($H2:$H$2)=$E$1,"",$E$1-SUM($H2:$H$2))) -> 20 | I3: =IF($H3="","",SUM($H$1:$H2)+1) -> 21 | J3: =IF($H3="","",SUM($H3,$I3,-1)) -> 40 | K3: =IF($H3="","",MAX($F$1:$F2)+1) -> 2 | M3: م | N3: رقم الجلوس | O3: الاســــــــــــــــــــــــم | P3: النوع | Q3: القيد | R3: الديانة | S3: رقم اللجنة | T3: ملاحظات | U3: ذكر
A4: =IF($H4="","",MAX($F$1:$F3)+1) -> 3 | B4: =IF(H4="","",C3+1) -> 80 | C4: =IF(H4="","",IF(B4="","",B4+H4-1)) -> 99 | D4: =IF($H4="","",MAX($F$1:$F3)+1) -> 3 | E4: =IF($F4="","","اللجنة") -> اللجنة | F4: =IF($H4="","",MAX($F$1:$F3)+1) -> 3 | H4: =IF(SUM($H$1:$H3,IF(G4="",20,G4))<$E$1,IF($G4="",20,$G4),IF(SUM($H$2:$H3)=$E$1,"",$E$1-SUM($H$2:$H3))) -> 20 | I4: =IF($H4="","",SUM($H$1:$H3)+1) -> 41 | J4: 60 | K4: =IF($H4="","",MAX($F$1:$F3)+1) -> 3 | M4: 1 | N4: =B2 -> 40 | O4: محمود1 | P4: ذكر | S4: =IF(M4="","",IF(ISERROR(MATCH($M4,$I:$I,0)),S3,MAX($S$3:$S3)+1)) -> 1 | T4: =IF(S4=S5,"","نهاية اللجنة") ->  | U4: انثى
A5: =IF($H5="","",MAX($F$1:$F4)+1) -> 4 | B5: =IF(H5="","",C4+1) -> 100 | C5: =IF(H5="","",IF(B5="","",B5+H5-1)) -> 119 | D5: =IF($H5="","",MAX($F$1:$F4)+1) -> 4 | E5: اللجنة | F5: =IF($H5="","",MAX($F$1:$F4)+1) -> 4 | H5: =IF(SUM($H$1:$H4,IF(G5="",20,G5))<$E$1,IF($G5="",20,$G5),IF(SUM($H$2:$H4)=$E$1,"",$E$1-SUM($H$2:$H4))) -> 20 | I5: =IF($H5="","",SUM($H$1:$H4)+1) -> 61 | J5: 80 | K5: =IF($H5="","",MAX($F$1:$F4)+1) -> 4 | M5: =(IF(O5="","",ROW()-3)) -> 2 | N5: =IF(N4="","",IF(N4+1>$N$2,"",N4+1)) -> 41 | O5: محمود2 | P5: ذكر | R5: مسلم | S5: =IF(M5="","",IF(ISERROR(MATCH($M5,$I:$I,0)),S4,MAX($S$3:$S4)+1)) -> 1 | T5: =IF(S5=S6,"","نهاية اللجنة") -> 
A6: =IF($H6="","",MAX($F$1:$F5)+1) -> 5 | B6: 120 | C6: 139 | D6: =IF($H6="","",MAX($F$1:$F5)+1) -> 5 | E6: اللجنة | F6: =IF($H6="","",MAX($F$1:$F5)+1) -> 5 | H6: =IF(SUM($H$1:$H5,IF(G6="",20,G6))<$E$1,IF($G6="",20,$G6),IF(SUM($H$2:$H5)=$E$1,"",$E$1-SUM($H$2:$H5))) -> 20 | I6: =IF($H6="","",SUM($H$1:$H5)+1) -> 81 | J6: 100 | K6: =IF($H6="","",MAX($F$1:$F5)+1) -> 5 | M6: 3 | N6: =IF(M6="","",N5+1) -> 42 | O6: محمود3 | P6: ذكر | S6: =IF(M6="","",IF(ISERROR(MATCH($M6,$I:$I,0)),S5,MAX($S$3:$S5)+1)) -> 1 | U6: =MAX(J:J) -> 586
A7: =IF($H7="","",MAX($F$1:$F6)+1) -> 6 | B7: 140 | C7: 159 | D7: =IF($H7="","",MAX($F$1:$F6)+1) -> 6 | E7: اللجنة | F7: =IF($H7="","",MAX($F$1:$F6)+1) -> 6 | H7: =IF(SUM($H$1:$H6,IF(G7="",20,G7))<$E$1,IF($G7="",20,$G7),IF(SUM($H$2:$H6)=$E$1,"",$E$1-SUM($H$2:$H6))) -> 20 | I7: =IF($H7="","",SUM($H$1:$H6)+1) -> 101 | J7: 120 | K7: =IF($H7="","",MAX($F$1:$F6)+1) -> 6 | M7: 4 | N7: 43 | O7: محمود4 | P7: ذكر | R7: مسلم | S7: =IF(M7="","",IF(ISERROR(MATCH($M7,$I:$I,0)),S6,MAX($S$3:$S6)+1)) -> 1 | U7: =IF(U6=N1,"التلاميذ مقسمون التقسيم الصحيح","راجع من فضلك تقسيم اللجان") -> التلاميذ مقسمون التقسيم الصحيح
A8: =IF($H8="","",MAX($F$1:$F7)+1) -> 7 | B8: 160 | C8: 179 | D8: =IF($H8="","",MAX($F$1:$F7)+1) -> 7 | E8: اللجنة | F8: =IF($H8="","",MAX($F$1:$F7)+1) -> 7 | H8: =IF(SUM($H$1:$H7,IF(G8="",20,G8))<$E$1,IF($G8="",20,$G8),IF(SUM($H$2:$H7)=$E$1,"",$E$1-SUM($H$2:$H7))) -> 20 | I8: =IF($H8="","",SUM($H$1:$H7)+1) -> 121 | J8: 140 | K8: =IF($H8="","",MAX($F$1:$F7)+1) -> 7 | L8: =IF(N1=0,"من فضلك سجل الاسماء",IF(N2=0," من فضلك سجل الاسماء;""",)) -> 0 | M8: 5 | N8: 44 | O8: محمود5 | P8: ذكر | S8: =IF(M8="","",IF(ISERROR(MATCH($M8,$I:$I,0)),S7,MAX($S$3:$S7)+1)) -> 1
A9: =IF($H9="","",MAX($F$1:$F8)+1) -> 8 | B9: 180 | C9: 199 | D9: =IF($H9="","",MAX($F$1:$F8)+1) -> 8 | E9: اللجنة | F9: =IF($H9="","",MAX($F$1:$F8)+1) -> 8 | H9: =IF(SUM($H$1:$H8,IF(G9="",20,G9))<$E$1,IF($G9="",20,$G9),IF(SUM($H$2:$H8)=$E$1,"",$E$1-SUM($H$2:$H8))) -> 20 | I9: =IF($H9="","",SUM($H$1:$H8)+1) -> 141 | J9: 160 | K9: =IF($H9="","",MAX($F$1:$F8)+1) -> 8 | M9: 6 | N9: 45 | O9: محمود6 | P9: ذكر | S9: =IF(M9="","",IF(ISERROR(MATCH($M9,$I:$I,0)),S8,MAX($S$3:$S8)+1)) -> 1
A10: =IF($H10="","",MAX($F$1:$F9)+1) -> 9 | B10: 200 | C10: 219 | D10: =IF($H10="","",MAX($F$1:$F9)+1) -> 9 | E10: اللجنة | F10: =IF($H10="","",MAX($F$1:$F9)+1) -> 9 | H10: =IF(SUM($H$1:$H9,IF(G10="",20,G10))<$E$1,IF($G10="",20,$G10),IF(SUM($H$2:$H9)=$E$1,"",$E$1-SUM($H$2:$H9))) -> 20 | I10: =IF($H10="","",SUM($H$1:$H9)+1) -> 161 | J10: 180 | K10: =IF($H10="","",MAX($F$1:$F9)+1) -> 9 | M10: 7 | N10: 46 | O10: محمود7 | P10: ذكر | S10: =IF(M10="","",IF(ISERROR(MATCH($M10,$I:$I,0)),S9,MAX($S$3:$S9)+1)) -> 1
A11: =IF($H11="","",MAX($F$1:$F10)+1) -> 10 | B11: 220 | C11: 239 | D11: =IF($H11="","",MAX($F$1:$F10)+1) -> 10 | E11: اللجنة | F11: =IF($H11="","",MAX($F$1:$F10)+1) -> 10 | H11: =IF(SUM($H$1:$H10,IF(G11="",20,G11))<$E$1,IF($G11="",20,$G11),IF(SUM($H$2:$H10)=$E$1,"",$E$1-SUM($H$2:$H10))) -> 20 | I11: =IF($H11="","",SUM($H$1:$H10)+1) -> 181 | J11: 200 | K11: =IF($H11="","",MAX($F$1:$F10)+1) -> 10 | M11: 8 | N11: 47 | O11: محمود8 | P11: ذكر | S11: =IF(M11="","",IF(ISERROR(MATCH($M11,$I:$I,0)),S10,MAX($S$3:$S10)+1)) -> 1
A12: =IF($H12="","",MAX($F$1:$F11)+1) -> 11 | B12: 240 | C12: 259 | D12: =IF($H12="","",MAX($F$1:$F11)+1) -> 11 | E12: اللجنة | F12: =IF($H12="","",MAX($F$1:$F11)+1) -> 11 | H12: =IF(SUM($H$1:$H11,IF(G12="",20,G12))<$E$1,IF($G12="",20,$G12),IF(SUM($H$2:$H11)=$E$1,"",$E$1-SUM($H$2:$H11))) -> 20 | I12: =IF($H12="","",SUM($H$1:$H11)+1) -> 201 | J12: 220 | K12: =IF($H12="","",MAX($F$1:$F11)+1) -> 11 | M12: 9 | N12: 48 | O12: محمود9 | P12: ذكر | S12: =IF(M12="","",IF(ISERROR(MATCH($M12,$I:$I,0)),S11,MAX($S$3:$S11)+1)) -> 1
A13: =IF($H13="","",MAX($F$1:$F12)+1) -> 12 | B13: 260 | C13: 279 | D13: =IF($H13="","",MAX($F$1:$F12)+1) -> 12 | E13: اللجنة | F13: =IF($H13="","",MAX($F$1:$F12)+1) -> 12 | H13: =IF(SUM($H$1:$H12,IF(G13="",20,G13))<$E$1,IF($G13="",20,$G13),IF(SUM($H$2:$H12)=$E$1,"",$E$1-SUM($H$2:$H12))) -> 20 | I13: =IF($H13="","",SUM($H$1:$H12)+1) -> 221 | J13: 240 | K13: =IF($H13="","",MAX($F$1:$F12)+1) -> 12 | M13: 10 | N13: 49 | O13: محمود10 | P13: ذكر | S13: =IF(M13="","",IF(ISERROR(MATCH($M13,$I:$I,0)),S12,MAX($S$3:$S12)+1)) -> 1
A14: =IF($H14="","",MAX($F$1:$F13)+1) -> 13 | B14: 280 | C14: 299 | D14: =IF($H14="","",MAX($F$1:$F13)+1) -> 13 | E14: اللجنة | F14: =IF($H14="","",MAX($F$1:$F13)+1) -> 13 | H14: =IF(SUM($H$1:$H13,IF(G14="",20,G14))<$E$1,IF($G14="",20,$G14),IF(SUM($H$2:$H13)=$E$1,"",$E$1-SUM($H$2:$H13))) -> 20 | I14: =IF($H14="","",SUM($H$1:$H13)+1) -> 241 | J14: 260 | K14: =IF($H14="","",MAX($F$1:$F13)+1) -> 13 | M14: 11 | N14: 50 | O14: محمود11 | P14: ذكر | R14: مسلم | S14: =IF(M14="","",IF(ISERROR(MATCH($M14,$I:$I,0)),S13,MAX($S$3:$S13)+1)) -> 1
A15: =IF($H15="","",MAX($F$1:$F14)+1) -> 14 | B15: 300 | C15: 319 | D15: =IF($H15="","",MAX($F$1:$F14)+1) -> 14 | E15: اللجنة | F15: =IF($H15="","",MAX($F$1:$F14)+1) -> 14 | H15: =IF(SUM($H$1:$H14,IF(G15="",20,G15))<$E$1,IF($G15="",20,$G15),IF(SUM($H$2:$H14)=$E$1,"",$E$1-SUM($H$2:$H14))) -> 20 | I15: =IF($H15="","",SUM($H$1:$H14)+1) -> 261 | J15: 280 | K15: =IF($H15="","",MAX($F$1:$F14)+1) -> 14 | M15: 12 | N15: 51 | O15: محمود12 | P15: ذكر | S15: =IF(M15="","",IF(ISERROR(MATCH($M15,$I:$I,0)),S14,MAX($S$3:$S14)+1)) -> 1
A16: =IF($H16="","",MAX($F$1:$F15)+1) -> 15 | B16: 320 | C16: 339 | D16: =IF($H16="","",MAX($F$1:$F15)+1) -> 15 | E16: اللجنة | F16: =IF($H16="","",MAX($F$1:$F15)+1) -> 15 | H16: =IF(SUM($H$1:$H15,IF(G16="",20,G16))<$E$1,IF($G16="",20,$G16),IF(SUM($H$2:$H15)=$E$1,"",$E$1-SUM($H$2:$H15))) -> 20 | I16: =IF($H16="","",SUM($H$1:$H15)+1) -> 281 | J16: 300 | K16: =IF($H16="","",MAX($F$1:$F15)+1) -> 15 | M16: 13 | N16: 52 | O16: محمود13 | P16: ذكر | S16: =IF(M16="","",IF(ISERROR(MATCH($M16,$I:$I,0)),S15,MAX($S$3:$S15)+1)) -> 1 | U16: =MAX(C:C) -> 625
A17: =IF($H17="","",MAX($F$1:$F16)+1) -> 16 | B17: 340 | C17: 359 | D17: =IF($H17="","",MAX($F$1:$F16)+1) -> 16 | E17: اللجنة | F17: =IF($H17="","",MAX($F$1:$F16)+1) -> 16 | H17: =IF(SUM($H$1:$H16,IF(G17="",20,G17))<$E$1,IF($G17="",20,$G17),IF(SUM($H$2:$H16)=$E$1,"",$E$1-SUM($H$2:$H16))) -> 20 | I17: =IF($H17="","",SUM($H$1:$H16)+1) -> 301 | J17: 320 | K17: =IF($H17="","",MAX($F$1:$F16)+1) -> 16 | M17: 14 | N17: 53 | O17: محمود14 | P17: ذكر | S17: =IF(M17="","",IF(ISERROR(MATCH($M17,$I:$I,0)),S16,MAX($S$3:$S16)+1)) -> 1 | U17: =IF(U16=N2,"أرقام جلوس الفصل سليمة","رجاءً راجع أرقام الجلوس") -> أرقام جلوس الفصل سليمة
A18: =IF($H18="","",MAX($F$1:$F17)+1) -> 17 | B18: 360 | C18: 379 | D18: =IF($H18="","",MAX($F$1:$F17)+1) -> 17 | E18: اللجنة | F18: =IF($H18="","",MAX($F$1:$F17)+1) -> 17 | H18: =IF(SUM($H$1:$H17,IF(G18="",20,G18))<$E$1,IF($G18="",20,$G18),IF(SUM($H$2:$H17)=$E$1,"",$E$1-SUM($H$2:$H17))) -> 20 | I18: =IF($H18="","",SUM($H$1:$H17)+1) -> 321 | J18: 340 | K18: =IF($H18="","",MAX($F$1:$F17)+1) -> 17 | M18: 15 | N18: 54 | O18: محمود15 | P18: ذكر | S18: =IF(M18="","",IF(ISERROR(MATCH($M18,$I:$I,0)),S17,MAX($S$3:$S17)+1)) -> 1
A19: =IF($H19="","",MAX($F$1:$F18)+1) -> 18 | B19: 380 | C19: 399 | D19: =IF($H19="","",MAX($F$1:$F18)+1) -> 18 | E19: اللجنة | F19: =IF($H19="","",MAX($F$1:$F18)+1) -> 18 | H19: =IF(SUM($H$1:$H18,IF(G19="",20,G19))<$E$1,IF($G19="",20,$G19),IF(SUM($H$2:$H18)=$E$1,"",$E$1-SUM($H$2:$H18))) -> 20 | I19: =IF($H19="","",SUM($H$1:$H18)+1) -> 341 | J19: 360 | K19: =IF($H19="","",MAX($F$1:$F18)+1) -> 18 | M19: 16 | N19: 55 | O19: محمود16 | P19: ذكر | S19: =IF(M19="","",IF(ISERROR(MATCH($M19,$I:$I,0)),S18,MAX($S$3:$S18)+1)) -> 1
A20: =IF($H20="","",MAX($F$1:$F19)+1) -> 19 | B20: 400 | C20: 419 | D20: =IF($H20="","",MAX($F$1:$F19)+1) -> 19 | E20: اللجنة | F20: =IF($H20="","",MAX($F$1:$F19)+1) -> 19 | H20: =IF(SUM($H$1:$H19,IF(G20="",20,G20))<$E$1,IF($G20="",20,$G20),IF(SUM($H$2:$H19)=$E$1,"",$E$1-SUM($H$2:$H19))) -> 20 | I20: =IF($H20="","",SUM($H$1:$H19)+1) -> 361 | J20: 380 | K20: =IF($H20="","",MAX($F$1:$F19)+1) -> 19 | M20: 17 | N20: 56 | O20: محمود17 | P20: ذكر | S20: =IF(M20="","",IF(ISERROR(MATCH($M20,$I:$I,0)),S19,MAX($S$3:$S19)+1)) -> 1
A21: =IF($H21="","",MAX($F$1:$F20)+1) -> 20 | B21: 420 | C21: 439 | D21: =IF($H21="","",MAX($F$1:$F20)+1) -> 20 | E21: اللجنة | F21: =IF($H21="","",MAX($F$1:$F20)+1) -> 20 | H21: =IF(SUM($H$1:$H20,IF(G21="",20,G21))<$E$1,IF($G21="",20,$G21),IF(SUM($H$2:$H20)=$E$1,"",$E$1-SUM($H$2:$H20))) -> 20 | I21: =IF($H21="","",SUM($H$1:$H20)+1) -> 381 | J21: 400 | K21: =IF($H21="","",MAX($F$1:$F20)+1) -> 20 | M21: 18 | N21: 57 | O21: محمود18 | P21: ذكر | S21: =IF(M21="","",IF(ISERROR(MATCH($M21,$I:$I,0)),S20,MAX($S$3:$S20)+1)) -> 1
A22: =IF($H22="","",MAX($F$1:$F21)+1) -> 21 | B22: 440 | C22: 459 | D22: =IF($H22="","",MAX($F$1:$F21)+1) -> 21 | E22: اللجنة | F22: =IF($H22="","",MAX($F$1:$F21)+1) -> 21 | H22: =IF(SUM($H$1:$H21,IF(G22="",20,G22))<$E$1,IF($G22="",20,$G22),IF(SUM($H$2:$H21)=$E$1,"",$E$1-SUM($H$2:$H21))) -> 20 | I22: =IF($H22="","",SUM($H$1:$H21)+1) -> 401 | J22: 420 | K22: =IF($H22="","",MAX($F$1:$F21)+1) -> 21 | M22: 19 | N22: 58 | O22: محمود19 | P22: ذكر | S22: =IF(M22="","",IF(ISERROR(MATCH($M22,$I:$I,0)),S21,MAX($S$3:$S21)+1)) -> 1
A23: =IF($H23="","",MAX($F$1:$F22)+1) -> 22 | B23: 460 | C23: 479 | D23: =IF($H23="","",MAX($F$1:$F22)+1) -> 22 | E23: اللجنة | F23: =IF($H23="","",MAX($F$1:$F22)+1) -> 22 | H23: =IF(SUM($H$1:$H22,IF(G23="",20,G23))<$E$1,IF($G23="",20,$G23),IF(SUM($H$2:$H22)=$E$1,"",$E$1-SUM($H$2:$H22))) -> 20 | I23: =IF($H23="","",SUM($H$1:$H22)+1) -> 421 | J23: 440 | K23: =IF($H23="","",MAX($F$1:$F22)+1) -> 22 | M23: 20 | N23: 59 | O23: محمود20 | P23: ذكر | S23: =IF(M23="","",IF(ISERROR(MATCH($M23,$I:$I,0)),S22,MAX($S$3:$S22)+1)) -> 1 | T23: نهاية اللجنة
A24: =IF($H24="","",MAX($F$1:$F23)+1) -> 23 | B24: 480 | C24: 499 | D24: =IF($H24="","",MAX($F$1:$F23)+1) -> 23 | E24: اللجنة | F24: =IF($H24="","",MAX($F$1:$F23)+1) -> 23 | H24: =IF(SUM($H$1:$H23,IF(G24="",20,G24))<$E$1,IF($G24="",20,$G24),IF(SUM($H$2:$H23)=$E$1,"",$E$1-SUM($H$2:$H23))) -> 20 | I24: =IF($H24="","",SUM($H$1:$H23)+1) -> 441 | J24: 460 | K24: =IF($H24="","",MAX($F$1:$F23)+1) -> 23 | M24: 21 | N24: 60 | O24: محمود21 | P24: ذكر | S24: =IF(M24="","",IF(ISERROR(MATCH($M24,$I:$I,0)),S23,MAX($S$3:$S23)+1)) -> 2
A25: =IF($H25="","",MAX($F$1:$F24)+1) -> 24 | B25: 500 | C25: 519 | D25: =IF($H25="","",MAX($F$1:$F24)+1) -> 24 | E25: اللجنة | F25: =IF($H25="","",MAX($F$1:$F24)+1) -> 24 | H25: =IF(SUM($H$1:$H24,IF(G25="",20,G25))<$E$1,IF($G25="",20,$G25),IF(SUM($H$2:$H24)=$E$1,"",$E$1-SUM($H$2:$H24))) -> 20 | I25: =IF($H25="","",SUM($H$1:$H24)+1) -> 461 | J25: 480 | K25: =IF($H25="","",MAX($F$1:$F24)+1) -> 24 | M25: 22 | N25: 61 | O25: محمود22 | P25: ذكر | S25: =IF(M25="","",IF(ISERROR(MATCH($M25,$I:$I,0)),S24,MAX($S$3:$S24)+1)) -> 2
A26: =IF($H26="","",MAX($F$1:$F25)+1) -> 25 | B26: 520 | C26: 539 | D26: =IF($H26="","",MAX($F$1:$F25)+1) -> 25 | E26: اللجنة | F26: =IF($H26="","",MAX($F$1:$F25)+1) -> 25 | H26: =IF(SUM($H$1:$H25,IF(G26="",20,G26))<$E$1,IF($G26="",20,$G26),IF(SUM($H$2:$H25)=$E$1,"",$E$1-SUM($H$2:$H25))) -> 20 | I26: =IF($H26="","",SUM($H$1:$H25)+1) -> 481 | J26: 500 | K26: =IF($H26="","",MAX($F$1:$F25)+1) -> 25 | M26: 23 | N26: 62 | O26: محمود23 | P26: ذكر | S26: =IF(M26="","",IF(ISERROR(MATCH($M26,$I:$I,0)),S25,MAX($S$3:$S25)+1)) -> 2
A27: =IF($H27="","",MAX($F$1:$F26)+1) -> 26 | B27: 540 | C27: 559 | D27: =IF($H27="","",MAX($F$1:$F26)+1) -> 26 | E27: اللجنة | F27: =IF($H27="","",MAX($F$1:$F26)+1) -> 26 | H27: =IF(SUM($H$1:$H26,IF(G27="",20,G27))<$E$1,IF($G27="",20,$G27),IF(SUM($H$2:$H26)=$E$1,"",$E$1-SUM($H$2:$H26))) -> 20 | I27: =IF($H27="","",SUM($H$1:$H26)+1) -> 501 | J27: 520 | K27: =IF($H27="","",MAX($F$1:$F26)+1) -> 26 | M27: 24 | N27: 63 | O27: محمود24 | P27: ذكر | R27: أخري | S27: =IF(M27="","",IF(ISERROR(MATCH($M27,$I:$I,0)),S26,MAX($S$3:$S26)+1)) -> 2
A28: =IF($H28="","",MAX($F$1:$F27)+1) -> 27 | B28: 560 | C28: 579 | D28: =IF($H28="","",MAX($F$1:$F27)+1) -> 27 | E28: اللجنة | F28: =IF($H28="","",MAX($F$1:$F27)+1) -> 27 | H28: =IF(SUM($H$1:$H27,IF(G28="",20,G28))<$E$1,IF($G28="",20,$G28),IF(SUM($H$2:$H27)=$E$1,"",$E$1-SUM($H$2:$H27))) -> 20 | I28: =IF($H28="","",SUM($H$1:$H27)+1) -> 521 | J28: 540 | K28: =IF($H28="","",MAX($F$1:$F27)+1) -> 27 | M28: 25 | N28: 64 | O28: محمود25 | P28: ذكر | Q28: معيد | S28: =IF(M28="","",IF(ISERROR(MATCH($M28,$I:$I,0)),S27,MAX($S$3:$S27)+1)) -> 2
A29: =IF($H29="","",MAX($F$1:$F28)+1) -> 28 | B29: 580 | C29: 599 | D29: =IF($H29="","",MAX($F$1:$F28)+1) -> 28 | E29: اللجنة | F29: =IF($H29="","",MAX($F$1:$F28)+1) -> 28 | H29: =IF(SUM($H$1:$H28,IF(G29="",20,G29))<$E$1,IF($G29="",20,$G29),IF(SUM($H$2:$H28)=$E$1,"",$E$1-SUM($H$2:$H28))) -> 20 | I29: =IF($H29="","",SUM($H$1:$H28)+1) -> 541 | J29: 560 | K29: =IF($H29="","",MAX($F$1:$F28)+1) -> 28 | M29: 26 | N29: 65 | O29: محمود26 | P29: انثى | S29: =IF(M29="","",IF(ISERROR(MATCH($M29,$I:$I,0)),S28,MAX($S$3:$S28)+1)) -> 2
A30: =IF($H30="","",MAX($F$1:$F29)+1) -> 29 | B30: 600 | C30: 619 | D30: =IF($H30="","",MAX($F$1:$F29)+1) -> 29 | E30: اللجنة | F30: =IF($H30="","",MAX($F$1:$F29)+1) -> 29 | H30: =IF(SUM($H$1:$H29,IF(G30="",20,G30))<$E$1,IF($G30="",20,$G30),IF(SUM($H$2:$H29)=$E$1,"",$E$1-SUM($H$2:$H29))) -> 20 | I30: =IF($H30="","",SUM($H$1:$H29)+1) -> 561 | J30: 580 | K30: =IF($H30="","",MAX($F$1:$F29)+1) -> 29 | M30: 27 | N30: 66 | O30: محمود27 | P30: انثى | S30: =IF(M30="","",IF(ISERROR(MATCH($M30,$I:$I,0)),S29,MAX($S$3:$S29)+1)) -> 2
A31: =IF($H31="","",MAX($F$1:$F30)+1) -> 30 | B31: =IF(H31="","",C30+1) -> 620 | C31: =IF(H31="","",IF(B31="","",B31+H31-1)) -> 625 | D31: =IF($H31="","",MAX($F$1:$F30)+1) -> 30 | E31: اللجنة | F31: =IF($H31="","",MAX($F$1:$F30)+1) -> 30 | H31: =IF(SUM($H$1:$H30,IF(G31="",20,G31))<$E$1,IF($G31="",20,$G31),IF(SUM($H$2:$H30)=$E$1,"",$E$1-SUM($H$2:$H30))) -> 6 | I31: =IF($H31="","",SUM($H$1:$H30)+1) -> 581 | J31: 586 | K31: =IF($H31="","",MAX($F$1:$F30)+1) -> 30 | M31: 28 | N31: 67 | O31: محمود28 | P31: انثى | S31: =IF(M31="","",IF(ISERROR(MATCH($M31,$I:$I,0)),S30,MAX($S$3:$S30)+1)) -> 2
B32: =MAX(J:J) -> 586 | M32: 29 | N32: 68 | O32: محمود29 | P32: انثى | S32: =IF(M32="","",IF(ISERROR(MATCH($M32,$I:$I,0)),S31,MAX($S$3:$S31)+1)) -> 2
B33: =IF(B32=N1,"التلاميذ مقسمون التقسيم الصحيح","راجع من فضلك تقسيم اللجان") -> التلاميذ مقسمون التقسيم الصحيح | M33: 30 | N33: 69 | O33: محمود30 | P33: انثى | S33: =IF(M33="","",IF(ISERROR(MATCH($M33,$I:$I,0)),S32,MAX($S$3:$S32)+1)) -> 2
M34: 31 | N34: 70 | O34: محمود31 | P34: انثى | S34: =IF(M34="","",IF(ISERROR(MATCH($M34,$I:$I,0)),S33,MAX($S$3:$S33)+1)) -> 2
M35: 32 | N35: 71 | O35: محمود32 | P35: انثى | S35: =IF(M35="","",IF(ISERROR(MATCH($M35,$I:$I,0)),S34,MAX($S$3:$S34)+1)) -> 2
M36: 33 | N36: 72 | O36: محمود33 | P36: انثى | S36: =IF(M36="","",IF(ISERROR(MATCH($M36,$I:$I,0)),S35,MAX($S$3:$S35)+1)) -> 2
M37: 34 | N37: 73 | O37: محمود34 | P37: انثى | S37: =IF(M37="","",IF(ISERROR(MATCH($M37,$I:$I,0)),S36,MAX($S$3:$S36)+1)) -> 2
H38: معيد | M38: 35 | N38: 74 | O38: محمود35 | P38: انثى | S38: =IF(M38="","",IF(ISERROR(MATCH($M38,$I:$I,0)),S37,MAX($S$3:$S37)+1)) -> 2
H39: م للسنة الأولي | M39: 36 | N39: 75 | O39: محمود36 | P39: انثى | S39: =IF(M39="","",IF(ISERROR(MATCH($M39,$I:$I,0)),S38,MAX($S$3:$S38)+1)) -> 2
H40: م للسنة الثانية | M40: 37 | N40: 76 | O40: محمود37 | P40: انثى | S40: =IF(M40="","",IF(ISERROR(MATCH($M40,$I:$I,0)),S39,MAX($S$3:$S39)+1)) -> 2
M41: 38 | N41: 77 | O41: محمود38 | P41: انثى | S41: =IF(M41="","",IF(ISERROR(MATCH($M41,$I:$I,0)),S40,MAX($S$3:$S40)+1)) -> 2
H42: مسلم | M42: 39 | N42: 78 | O42: محمود39 | P42: انثى | S42: =IF(M42="","",IF(ISERROR(MATCH($M42,$I:$I,0)),S41,MAX($S$3:$S41)+1)) -> 2
H43: مسيحي | M43: 40 | N43: 79 | O43: محمود40 | P43: انثى | S43: =IF(M43="","",IF(ISERROR(MATCH($M43,$I:$I,0)),S42,MAX($S$3:$S42)+1)) -> 2 | T43: نهاية اللجنة
H44: أخري | M44: 41 | N44: 80 | O44: محمود41 | P44: انثى | S44: =IF(M44="","",IF(ISERROR(MATCH($M44,$I:$I,0)),S43,MAX($S$3:$S43)+1)) -> 3
M45: 42 | N45: 81 | O45: محمود42 | P45: انثى | S45: =IF(M45="","",IF(ISERROR(MATCH($M45,$I:$I,0)),S44,MAX($S$3:$S44)+1)) -> 3
M46: 43 | N46: 82 | O46: محمود43 | P46: انثى | S46: =IF(M46="","",IF(ISERROR(MATCH($M46,$I:$I,0)),S45,MAX($S$3:$S45)+1)) -> 3
M47: 44 | N47: 83 | O47: محمود44 | P47: انثى | S47: =IF(M47="","",IF(ISERROR(MATCH($M47,$I:$I,0)),S46,MAX($S$3:$S46)+1)) -> 3
M48: 45 | N48: 84 | O48: محمود45 | P48: انثى | S48: =IF(M48="","",IF(ISERROR(MATCH($M48,$I:$I,0)),S47,MAX($S$3:$S47)+1)) -> 3
M49: 46 | N49: 85 | O49: محمود46 | P49: انثى | S49: =IF(M49="","",IF(ISERROR(MATCH($M49,$I:$I,0)),S48,MAX($S$3:$S48)+1)) -> 3
M50: 47 | N50: 86 | O50: محمود47 | P50: انثى | S50: =IF(M50="","",IF(ISERROR(MATCH($M50,$I:$I,0)),S49,MAX($S$3:$S49)+1)) -> 3
M51: 48 | N51: 87 | O51: محمود48 | P51: انثى | S51: =IF(M51="","",IF(ISERROR(MATCH($M51,$I:$I,0)),S50,MAX($S$3:$S50)+1)) -> 3
M52: 49 | N52: 88 | O52: محمود49 | P52: انثى | S52: =IF(M52="","",IF(ISERROR(MATCH($M52,$I:$I,0)),S51,MAX($S$3:$S51)+1)) -> 3
M53: 50 | N53: 89 | O53: محمود50 | P53: انثى | S53: =IF(M53="","",IF(ISERROR(MATCH($M53,$I:$I,0)),S52,MAX($S$3:$S52)+1)) -> 3
M54: 51 | N54: 90 | O54: محمود51 | P54: انثى | S54: =IF(M54="","",IF(ISERROR(MATCH($M54,$I:$I,0)),S53,MAX($S$3:$S53)+1)) -> 3
M55: 52 | N55: 91 | O55: محمود52 | P55: =IF(O55="","",P52) -> انثى | S55: =IF(M55="","",IF(ISERROR(MATCH($M55,$I:$I,0)),S54,MAX($S$3:$S54)+1)) -> 3
M56: 53 | N56: 92 | O56: محمود53 | P56: انثى | S56: =IF(M56="","",IF(ISERROR(MATCH($M56,$I:$I,0)),S55,MAX($S$3:$S55)+1)) -> 3
M57: 54 | N57: 93 | O57: محمود54 | P57: انثى | S57: =IF(M57="","",IF(ISERROR(MATCH($M57,$I:$I,0)),S56,MAX($S$3:$S56)+1)) -> 3
M58: 55 | N58: 94 | O58: محمود55 | P58: انثى | S58: =IF(M58="","",IF(ISERROR(MATCH($M58,$I:$I,0)),S57,MAX($S$3:$S57)+1)) -> 3
M59: 56 | N59: 95 | O59: محمود56 | P59: انثى | S59: =IF(M59="","",IF(ISERROR(MATCH($M59,$I:$I,0)),S58,MAX($S$3:$S58)+1)) -> 3
M60: 57 | N60: 96 | O60: محمود57 | P60: انثى | S60: =IF(M60="","",IF(ISERROR(MATCH($M60,$I:$I,0)),S59,MAX($S$3:$S59)+1)) -> 3
M61: 58 | N61: 97 | O61: محمود58 | P61: انثى | S61: =IF(M61="","",IF(ISERROR(MATCH($M61,$I:$I,0)),S60,MAX($S$3:$S60)+1)) -> 3
M62: 59 | N62: 98 | O62: محمود59 | P62: انثى | S62: =IF(M62="","",IF(ISERROR(MATCH($M62,$I:$I,0)),S61,MAX($S$3:$S61)+1)) -> 3
M63: 60 | N63: 99 | O63: محمود60 | P63: انثى | S63: =IF(M63="","",IF(ISERROR(MATCH($M63,$I:$I,0)),S62,MAX($S$3:$S62)+1)) -> 3 | T63: نهاية اللجنة
M64: 61 | N64: 100 | O64: محمود61 | P64: انثى | S64: =IF(M64="","",IF(ISERROR(MATCH($M64,$I:$I,0)),S63,MAX($S$3:$S63)+1)) -> 4
M65: 62 | N65: 101 | O65: محمود62 | P65: انثى | S65: =IF(M65="","",IF(ISERROR(MATCH($M65,$I:$I,0)),S64,MAX($S$3:$S64)+1)) -> 4
M66: 63 | N66: 102 | O66: محمود63 | P66: انثى | S66: =IF(M66="","",IF(ISERROR(MATCH($M66,$I:$I,0)),S65,MAX($S$3:$S65)+1)) -> 4
M67: 64 | N67: 103 | O67: محمود64 | P67: انثى | S67: =IF(M67="","",IF(ISERROR(MATCH($M67,$I:$I,0)),S66,MAX($S$3:$S66)+1)) -> 4
M68: 65 | N68: 104 | O68: محمود65 | P68: انثى | S68: =IF(M68="","",IF(ISERROR(MATCH($M68,$I:$I,0)),S67,MAX($S$3:$S67)+1)) -> 4
M69: =(IF(O69="","",ROW()-3)) -> 66 | N69: 105 | O69: محمود66 | P69: =IF(O69="","",P66) -> انثى | S69: =IF(M69="","",IF(ISERROR(MATCH($M69,$I:$I,0)),S68,MAX($S$3:$S68)+1)) -> 4 | T69: =IF(S69=S70,"","نهاية اللجنة") -> 
M70: 67 | N70: =IF(M70="","",N69+1) -> 106 | O70: محمود67 | P70: انثى | S70: =IF(M70="","",IF(ISERROR(MATCH($M70,$I:$I,0)),S69,MAX($S$3:$S69)+1)) -> 4
M71: 68 | N71: 107 | O71: محمود68 | P71: انثى | S71: =IF(M71="","",IF(ISERROR(MATCH($M71,$I:$I,0)),S70,MAX($S$3:$S70)+1)) -> 4
M72: 69 | N72: 108 | O72: محمود69 | P72: انثى | S72: =IF(M72="","",IF(ISERROR(MATCH($M72,$I:$I,0)),S71,MAX($S$3:$S71)+1)) -> 4
M73: 70 | N73: 109 | O73: محمود70 | P73: انثى | S73: =IF(M73="","",IF(ISERROR(MATCH($M73,$I:$I,0)),S72,MAX($S$3:$S72)+1)) -> 4
M74: 71 | N74: 110 | O74: محمود71 | P74: انثى | S74: =IF(M74="","",IF(ISERROR(MATCH($M74,$I:$I,0)),S73,MAX($S$3:$S73)+1)) -> 4
M75: 72 | N75: 111 | O75: محمود72 | P75: انثى | S75: =IF(M75="","",IF(ISERROR(MATCH($M75,$I:$I,0)),S74,MAX($S$3:$S74)+1)) -> 4
M76: 73 | N76: 112 | O76: محمود73 | P76: انثى | S76: =IF(M76="","",IF(ISERROR(MATCH($M76,$I:$I,0)),S75,MAX($S$3:$S75)+1)) -> 4
M77: 74 | N77: 113 | O77: محمود74 | P77: انثى | S77: =IF(M77="","",IF(ISERROR(MATCH($M77,$I:$I,0)),S76,MAX($S$3:$S76)+1)) -> 4
M78: 75 | N78: 114 | O78: محمود75 | P78: انثى | S78: =IF(M78="","",IF(ISERROR(MATCH($M78,$I:$I,0)),S77,MAX($S$3:$S77)+1)) -> 4
M79: 76 | N79: 115 | O79: محمود76 | P79: انثى | S79: =IF(M79="","",IF(ISERROR(MATCH($M79,$I:$I,0)),S78,MAX($S$3:$S78)+1)) -> 4
M80: 77 | N80: 116 | O80: محمود77 | P80: انثى | S80: =IF(M80="","",IF(ISERROR(MATCH($M80,$I:$I,0)),S79,MAX($S$3:$S79)+1)) -> 4
M81: 78 | N81: 117 | O81: محمود78 | P81: انثى | S81: =IF(M81="","",IF(ISERROR(MATCH($M81,$I:$I,0)),S80,MAX($S$3:$S80)+1)) -> 4
M82: 79 | N82: 118 | O82: محمود79 | P82: انثى | S82: =IF(M82="","",IF(ISERROR(MATCH($M82,$I:$I,0)),S81,MAX($S$3:$S81)+1)) -> 4
M83: 80 | N83: 119 | O83: محمود80 | P83: انثى | S83: =IF(M83="","",IF(ISERROR(MATCH($M83,$I:$I,0)),S82,MAX($S$3:$S82)+1)) -> 4 | T83: نهاية اللجنة
M84: 81 | N84: 120 | O84: محمود81 | P84: انثى | S84: =IF(M84="","",IF(ISERROR(MATCH($M84,$I:$I,0)),S83,MAX($S$3:$S83)+1)) -> 5
M85: 82 | N85: 121 | O85: محمود82 | P85: انثى | S85: =IF(M85="","",IF(ISERROR(MATCH($M85,$I:$I,0)),S84,MAX($S$3:$S84)+1)) -> 5
M86: 83 | N86: 122 | O86: محمود83 | P86: انثى | S86: =IF(M86="","",IF(ISERROR(MATCH($M86,$I:$I,0)),S85,MAX($S$3:$S85)+1)) -> 5
M87: 84 | N87: 123 | O87: محمود84 | P87: انثى | S87: =IF(M87="","",IF(ISERROR(MATCH($M87,$I:$I,0)),S86,MAX($S$3:$S86)+1)) -> 5
M88: 85 | N88: 124 | O88: محمود85 | P88: انثى | S88: =IF(M88="","",IF(ISERROR(MATCH($M88,$I:$I,0)),S87,MAX($S$3:$S87)+1)) -> 5
M89: 86 | N89: 125 | O89: محمود86 | P89: انثى | S89: =IF(M89="","",IF(ISERROR(MATCH($M89,$I:$I,0)),S88,MAX($S$3:$S88)+1)) -> 5
M90: 87 | N90: 126 | O90: محمود87 | P90: انثى | S90: =IF(M90="","",IF(ISERROR(MATCH($M90,$I:$I,0)),S89,MAX($S$3:$S89)+1)) -> 5
M91: 88 | N91: 127 | O91: محمود88 | P91: انثى | S91: =IF(M91="","",IF(ISERROR(MATCH($M91,$I:$I,0)),S90,MAX($S$3:$S90)+1)) -> 5
M92: 89 | N92: 128 | O92: محمود89 | P92: انثى | S92: =IF(M92="","",IF(ISERROR(MATCH($M92,$I:$I,0)),S91,MAX($S$3:$S91)+1)) -> 5
M93: 90 | N93: 129 | O93: محمود90 | P93: انثى | S93: =IF(M93="","",IF(ISERROR(MATCH($M93,$I:$I,0)),S92,MAX($S$3:$S92)+1)) -> 5
M94: 91 | N94: 130 | O94: محمود91 | P94: انثى | S94: =IF(M94="","",IF(ISERROR(MATCH($M94,$I:$I,0)),S93,MAX($S$3:$S93)+1)) -> 5
M95: 92 | N95: 131 | O95: محمود92 | P95: انثى | S95: =IF(M95="","",IF(ISERROR(MATCH($M95,$I:$I,0)),S94,MAX($S$3:$S94)+1)) -> 5
M96: 93 | N96: 132 | O96: محمود93 | P96: انثى | S96: =IF(M96="","",IF(ISERROR(MATCH($M96,$I:$I,0)),S95,MAX($S$3:$S95)+1)) -> 5
M97: 94 | N97: 133 | O97: محمود94 | P97: انثى | S97: =IF(M97="","",IF(ISERROR(MATCH($M97,$I:$I,0)),S96,MAX($S$3:$S96)+1)) -> 5
M98: 95 | N98: 134 | O98: محمود95 | P98: انثى | S98: =IF(M98="","",IF(ISERROR(MATCH($M98,$I:$I,0)),S97,MAX($S$3:$S97)+1)) -> 5
M99: 96 | N99: 135 | O99: محمود96 | P99: انثى | S99: =IF(M99="","",IF(ISERROR(MATCH($M99,$I:$I,0)),S98,MAX($S$3:$S98)+1)) -> 5
M100: 97 | N100: 136 | O100: محمود97 | P100: انثى | S100: =IF(M100="","",IF(ISERROR(MATCH($M100,$I:$I,0)),S99,MAX($S$3:$S99)+1)) -> 5
M101: 98 | N101: 137 | O101: محمود98 | P101: انثى | S101: =IF(M101="","",IF(ISERROR(MATCH($M101,$I:$I,0)),S100,MAX($S$3:$S100)+1)) -> 5
M102: 99 | N102: 138 | O102: محمود99 | P102: انثى | S102: =IF(M102="","",IF(ISERROR(MATCH($M102,$I:$I,0)),S101,MAX($S$3:$S101)+1)) -> 5
M103: 100 | N103: 139 | O103: محمود100 | P103: انثى | S103: =IF(M103="","",IF(ISERROR(MATCH($M103,$I:$I,0)),S102,MAX($S$3:$S102)+1)) -> 5 | T103: نهاية اللجنة
M104: 101 | N104: 140 | O104: محمود101 | P104: انثى | S104: =IF(M104="","",IF(ISERROR(MATCH($M104,$I:$I,0)),S103,MAX($S$3:$S103)+1)) -> 6
M105: 102 | N105: 141 | O105: محمود102 | P105: انثى | S105: =IF(M105="","",IF(ISERROR(MATCH($M105,$I:$I,0)),S104,MAX($S$3:$S104)+1)) -> 6
M106: 103 | N106: 142 | O106: محمود103 | P106: انثى | S106: =IF(M106="","",IF(ISERROR(MATCH($M106,$I:$I,0)),S105,MAX($S$3:$S105)+1)) -> 6
M107: 104 | N107: 143 | O107: محمود104 | P107: انثى | S107: =IF(M107="","",IF(ISERROR(MATCH($M107,$I:$I,0)),S106,MAX($S$3:$S106)+1)) -> 6
M108: 105 | N108: 144 | O108: محمود105 | P108: انثى | S108: =IF(M108="","",IF(ISERROR(MATCH($M108,$I:$I,0)),S107,MAX($S$3:$S107)+1)) -> 6
M109: 106 | N109: 145 | O109: محمود106 | P109: انثى | S109: =IF(M109="","",IF(ISERROR(MATCH($M109,$I:$I,0)),S108,MAX($S$3:$S108)+1)) -> 6
M110: 107 | N110: 146 | O110: محمود107 | P110: انثى | S110: =IF(M110="","",IF(ISERROR(MATCH($M110,$I:$I,0)),S109,MAX($S$3:$S109)+1)) -> 6
M111: 108 | N111: 147 | O111: محمود108 | P111: انثى | S111: =IF(M111="","",IF(ISERROR(MATCH($M111,$I:$I,0)),S110,MAX($S$3:$S110)+1)) -> 6
M112: 109 | N112: 148 | O112: محمود109 | P112: انثى | S112: =IF(M112="","",IF(ISERROR(MATCH($M112,$I:$I,0)),S111,MAX($S$3:$S111)+1)) -> 6
M113: 110 | N113: 149 | O113: محمود110 | P113: انثى | S113: =IF(M113="","",IF(ISERROR(MATCH($M113,$I:$I,0)),S112,MAX($S$3:$S112)+1)) -> 6
M114: 111 | N114: 150 | O114: محمود111 | P114: انثى | S114: =IF(M114="","",IF(ISERROR(MATCH($M114,$I:$I,0)),S113,MAX($S$3:$S113)+1)) -> 6
M115: 112 | N115: 151 | O115: محمود112 | P115: انثى | S115: =IF(M115="","",IF(ISERROR(MATCH($M115,$I:$I,0)),S114,MAX($S$3:$S114)+1)) -> 6
M116: 113 | N116: 152 | O116: محمود113 | P116: انثى | S116: =IF(M116="","",IF(ISERROR(MATCH($M116,$I:$I,0)),S115,MAX($S$3:$S115)+1)) -> 6
M117: 114 | N117: 153 | O117: محمود114 | P117: انثى | S117: =IF(M117="","",IF(ISERROR(MATCH($M117,$I:$I,0)),S116,MAX($S$3:$S116)+1)) -> 6
M118: 115 | N118: 154 | O118: محمود115 | P118: انثى | S118: =IF(M118="","",IF(ISERROR(MATCH($M118,$I:$I,0)),S117,MAX($S$3:$S117)+1)) -> 6
M119: 116 | N119: 155 | O119: محمود116 | P119: انثى | S119: =IF(M119="","",IF(ISERROR(MATCH($M119,$I:$I,0)),S118,MAX($S$3:$S118)+1)) -> 6
M120: 117 | N120: 156 | O120: محمود117 | P120: انثى | S120: =IF(M120="","",IF(ISERROR(MATCH($M120,$I:$I,0)),S119,MAX($S$3:$S119)+1)) -> 6
M121: 118 | N121: 157 | O121: محمود118 | P121: انثى | S121: =IF(M121="","",IF(ISERROR(MATCH($M121,$I:$I,0)),S120,MAX($S$3:$S120)+1)) -> 6
M122: 119 | N122: 158 | O122: محمود119 | P122: انثى | S122: =IF(M122="","",IF(ISERROR(MATCH($M122,$I:$I,0)),S121,MAX($S$3:$S121)+1)) -> 6
M123: 120 | N123: 159 | O123: محمود120 | P123: انثى | S123: =IF(M123="","",IF(ISERROR(MATCH($M123,$I:$I,0)),S122,MAX($S$3:$S122)+1)) -> 6 | T123: نهاية اللجنة
M124: 121 | N124: 160 | O124: محمود121 | P124: انثى | S124: =IF(M124="","",IF(ISERROR(MATCH($M124,$I:$I,0)),S123,MAX($S$3:$S123)+1)) -> 7
M125: 122 | N125: 161 | O125: محمود122 | P125: انثى | S125: =IF(M125="","",IF(ISERROR(MATCH($M125,$I:$I,0)),S124,MAX($S$3:$S124)+1)) -> 7
M126: 123 | N126: 162 | O126: محمود123 | P126: انثى | S126: =IF(M126="","",IF(ISERROR(MATCH($M126,$I:$I,0)),S125,MAX($S$3:$S125)+1)) -> 7
M127: 124 | N127: 163 | O127: محمود124 | P127: انثى | S127: =IF(M127="","",IF(ISERROR(MATCH($M127,$I:$I,0)),S126,MAX($S$3:$S126)+1)) -> 7
M128: 125 | N128: 164 | O128: محمود125 | P128: انثى | S128: =IF(M128="","",IF(ISERROR(MATCH($M128,$I:$I,0)),S127,MAX($S$3:$S127)+1)) -> 7
M129: 126 | N129: 165 | O129: محمود126 | P129: انثى | S129: =IF(M129="","",IF(ISERROR(MATCH($M129,$I:$I,0)),S128,MAX($S$3:$S128)+1)) -> 7
M130: 127 | N130: 166 | O130: محمود127 | P130: انثى | S130: =IF(M130="","",IF(ISERROR(MATCH($M130,$I:$I,0)),S129,MAX($S$3:$S129)+1)) -> 7
M131: 128 | N131: 167 | O131: محمود128 | P131: انثى | S131: =IF(M131="","",IF(ISERROR(MATCH($M131,$I:$I,0)),S130,MAX($S$3:$S130)+1)) -> 7
M132: 129 | N132: 168 | O132: محمود129 | P132: انثى | S132: =IF(M132="","",IF(ISERROR(MATCH($M132,$I:$I,0)),S131,MAX($S$3:$S131)+1)) -> 7
M133: =(IF(O133="","",ROW()-3)) -> 130 | N133: 169 | O133: محمود130 | P133: =IF(O133="","",P130) -> انثى | S133: =IF(M133="","",IF(ISERROR(MATCH($M133,$I:$I,0)),S132,MAX($S$3:$S132)+1)) -> 7 | T133: =IF(S133=S134,"","نهاية اللجنة") -> 
M134: 131 | N134: =IF(M134="","",N133+1) -> 170 | O134: محمود131 | P134: انثى | S134: =IF(M134="","",IF(ISERROR(MATCH($M134,$I:$I,0)),S133,MAX($S$3:$S133)+1)) -> 7
M135: 132 | N135: 171 | O135: محمود132 | P135: انثى | S135: =IF(M135="","",IF(ISERROR(MATCH($M135,$I:$I,0)),S134,MAX($S$3:$S134)+1)) -> 7
M136: 133 | N136: 172 | O136: محمود133 | P136: انثى | S136: =IF(M136="","",IF(ISERROR(MATCH($M136,$I:$I,0)),S135,MAX($S$3:$S135)+1)) -> 7
M137: 134 | N137: 173 | O137: محمود134 | P137: انثى | S137: =IF(M137="","",IF(ISERROR(MATCH($M137,$I:$I,0)),S136,MAX($S$3:$S136)+1)) -> 7
M138: 135 | N138: 174 | O138: محمود135 | P138: انثى | S138: =IF(M138="","",IF(ISERROR(MATCH($M138,$I:$I,0)),S137,MAX($S$3:$S137)+1)) -> 7
M139: 136 | N139: 175 | O139: محمود136 | P139: انثى | S139: =IF(M139="","",IF(ISERROR(MATCH($M139,$I:$I,0)),S138,MAX($S$3:$S138)+1)) -> 7
M140: 137 | N140: 176 | O140: محمود137 | P140: انثى | S140: =IF(M140="","",IF(ISERROR(MATCH($M140,$I:$I,0)),S139,MAX($S$3:$S139)+1)) -> 7
M141: 138 | N141: 177 | O141: محمود138 | P141: انثى | S141: =IF(M141="","",IF(ISERROR(MATCH($M141,$I:$I,0)),S140,MAX($S$3:$S140)+1)) -> 7
M142: 139 | N142: 178 | O142: محمود139 | P142: انثى | S142: =IF(M142="","",IF(ISERROR(MATCH($M142,$I:$I,0)),S141,MAX($S$3:$S141)+1)) -> 7
M143: 140 | N143: 179 | O143: محمود140 | P143: انثى | S143: =IF(M143="","",IF(ISERROR(MATCH($M143,$I:$I,0)),S142,MAX($S$3:$S142)+1)) -> 7 | T143: نهاية اللجنة
M144: 141 | N144: 180 | O144: محمود141 | P144: انثى | S144: =IF(M144="","",IF(ISERROR(MATCH($M144,$I:$I,0)),S143,MAX($S$3:$S143)+1)) -> 8
M145: 142 | N145: 181 | O145: محمود142 | P145: انثى | S145: =IF(M145="","",IF(ISERROR(MATCH($M145,$I:$I,0)),S144,MAX($S$3:$S144)+1)) -> 8
M146: 143 | N146: 182 | O146: محمود143 | P146: انثى | S146: =IF(M146="","",IF(ISERROR(MATCH($M146,$I:$I,0)),S145,MAX($S$3:$S145)+1)) -> 8
M147: 144 | N147: 183 | O147: محمود144 | P147: انثى | S147: =IF(M147="","",IF(ISERROR(MATCH($M147,$I:$I,0)),S146,MAX($S$3:$S146)+1)) -> 8
M148: 145 | N148: 184 | O148: محمود145 | P148: انثى | S148: =IF(M148="","",IF(ISERROR(MATCH($M148,$I:$I,0)),S147,MAX($S$3:$S147)+1)) -> 8
M149: 146 | N149: 185 | O149: محمود146 | P149: انثى | S149: =IF(M149="","",IF(ISERROR(MATCH($M149,$I:$I,0)),S148,MAX($S$3:$S148)+1)) -> 8
M150: 147 | N150: 186 | O150: محمود147 | P150: انثى | S150: =IF(M150="","",IF(ISERROR(MATCH($M150,$I:$I,0)),S149,MAX($S$3:$S149)+1)) -> 8
M151: 148 | N151: 187 | O151: محمود148 | P151: انثى | S151: =IF(M151="","",IF(ISERROR(MATCH($M151,$I:$I,0)),S150,MAX($S$3:$S150)+1)) -> 8
M152: 149 | N152: 188 | O152: محمود149 | P152: انثى | S152: =IF(M152="","",IF(ISERROR(MATCH($M152,$I:$I,0)),S151,MAX($S$3:$S151)+1)) -> 8
M153: 150 | N153: 189 | O153: محمود150 | P153: انثى | S153: =IF(M153="","",IF(ISERROR(MATCH($M153,$I:$I,0)),S152,MAX($S$3:$S152)+1)) -> 8
M154: 151 | N154: 190 | O154: محمود151 | P154: انثى | S154: =IF(M154="","",IF(ISERROR(MATCH($M154,$I:$I,0)),S153,MAX($S$3:$S153)+1)) -> 8
M155: 152 | N155: 191 | O155: محمود152 | P155: انثى | S155: =IF(M155="","",IF(ISERROR(MATCH($M155,$I:$I,0)),S154,MAX($S$3:$S154)+1)) -> 8
M156: 153 | N156: 192 | O156: محمود153 | P156: انثى | S156: =IF(M156="","",IF(ISERROR(MATCH($M156,$I:$I,0)),S155,MAX($S$3:$S155)+1)) -> 8
M157: 154 | N157: 193 | O157: محمود154 | P157: انثى | S157: =IF(M157="","",IF(ISERROR(MATCH($M157,$I:$I,0)),S156,MAX($S$3:$S156)+1)) -> 8
M158: 155 | N158: 194 | O158: محمود155 | P158: انثى | S158: =IF(M158="","",IF(ISERROR(MATCH($M158,$I:$I,0)),S157,MAX($S$3:$S157)+1)) -> 8
M159: 156 | N159: 195 | O159: محمود156 | P159: انثى | S159: =IF(M159="","",IF(ISERROR(MATCH($M159,$I:$I,0)),S158,MAX($S$3:$S158)+1)) -> 8
M160: 157 | N160: 196 | O160: محمود157 | P160: انثى | S160: =IF(M160="","",IF(ISERROR(MATCH($M160,$I:$I,0)),S159,MAX($S$3:$S159)+1)) -> 8
M161: 158 | N161: 197 | O161: محمود158 | P161: انثى | S161: =IF(M161="","",IF(ISERROR(MATCH($M161,$I:$I,0)),S160,MAX($S$3:$S160)+1)) -> 8
M162: 159 | N162: 198 | O162: محمود159 | P162: انثى | S162: =IF(M162="","",IF(ISERROR(MATCH($M162,$I:$I,0)),S161,MAX($S$3:$S161)+1)) -> 8
M163: 160 | N163: 199 | O163: محمود160 | P163: انثى | S163: =IF(M163="","",IF(ISERROR(MATCH($M163,$I:$I,0)),S162,MAX($S$3:$S162)+1)) -> 8 | T163: نهاية اللجنة
M164: 161 | N164: 200 | O164: محمود161 | P164: انثى | S164: =IF(M164="","",IF(ISERROR(MATCH($M164,$I:$I,0)),S163,MAX($S$3:$S163)+1)) -> 9
M165: 162 | N165: 201 | O165: محمود162 | P165: انثى | S165: =IF(M165="","",IF(ISERROR(MATCH($M165,$I:$I,0)),S164,MAX($S$3:$S164)+1)) -> 9
M166: 163 | N166: 202 | O166: محمود163 | P166: انثى | S166: =IF(M166="","",IF(ISERROR(MATCH($M166,$I:$I,0)),S165,MAX($S$3:$S165)+1)) -> 9
M167: 164 | N167: 203 | O167: محمود164 | P167: انثى | S167: =IF(M167="","",IF(ISERROR(MATCH($M167,$I:$I,0)),S166,MAX($S$3:$S166)+1)) -> 9
M168: 165 | N168: 204 | O168: محمود165 | P168: انثى | S168: =IF(M168="","",IF(ISERROR(MATCH($M168,$I:$I,0)),S167,MAX($S$3:$S167)+1)) -> 9
M169: 166 | N169: 205 | O169: محمود166 | P169: انثى | S169: =IF(M169="","",IF(ISERROR(MATCH($M169,$I:$I,0)),S168,MAX($S$3:$S168)+1)) -> 9
M170: 167 | N170: 206 | O170: محمود167 | P170: انثى | S170: =IF(M170="","",IF(ISERROR(MATCH($M170,$I:$I,0)),S169,MAX($S$3:$S169)+1)) -> 9
M171: 168 | N171: 207 | O171: محمود168 | P171: انثى | S171: =IF(M171="","",IF(ISERROR(MATCH($M171,$I:$I,0)),S170,MAX($S$3:$S170)+1)) -> 9
M172: 169 | N172: 208 | O172: محمود169 | P172: انثى | S172: =IF(M172="","",IF(ISERROR(MATCH($M172,$I:$I,0)),S171,MAX($S$3:$S171)+1)) -> 9
M173: 170 | N173: 209 | O173: محمود170 | P173: انثى | S173: =IF(M173="","",IF(ISERROR(MATCH($M173,$I:$I,0)),S172,MAX($S$3:$S172)+1)) -> 9
M174: 171 | N174: 210 | O174: محمود171 | P174: انثى | S174: =IF(M174="","",IF(ISERROR(MATCH($M174,$I:$I,0)),S173,MAX($S$3:$S173)+1)) -> 9
M175: 172 | N175: 211 | O175: محمود172 | P175: انثى | S175: =IF(M175="","",IF(ISERROR(MATCH($M175,$I:$I,0)),S174,MAX($S$3:$S174)+1)) -> 9
M176: 173 | N176: 212 | O176: محمود173 | P176: انثى | S176: =IF(M176="","",IF(ISERROR(MATCH($M176,$I:$I,0)),S175,MAX($S$3:$S175)+1)) -> 9
M177: 174 | N177: 213 | O177: محمود174 | P177: انثى | S177: =IF(M177="","",IF(ISERROR(MATCH($M177,$I:$I,0)),S176,MAX($S$3:$S176)+1)) -> 9
M178: 175 | N178: 214 | O178: محمود175 | P178: انثى | S178: =IF(M178="","",IF(ISERROR(MATCH($M178,$I:$I,0)),S177,MAX($S$3:$S177)+1)) -> 9
M179: 176 | N179: 215 | O179: محمود176 | P179: انثى | S179: =IF(M179="","",IF(ISERROR(MATCH($M179,$I:$I,0)),S178,MAX($S$3:$S178)+1)) -> 9
M180: 177 | N180: 216 | O180: محمود177 | P180: انثى | S180: =IF(M180="","",IF(ISERROR(MATCH($M180,$I:$I,0)),S179,MAX($S$3:$S179)+1)) -> 9
M181: 178 | N181: 217 | O181: محمود178 | P181: انثى | S181: =IF(M181="","",IF(ISERROR(MATCH($M181,$I:$I,0)),S180,MAX($S$3:$S180)+1)) -> 9
M182: 179 | N182: 218 | O182: محمود179 | P182: انثى | S182: =IF(M182="","",IF(ISERROR(MATCH($M182,$I:$I,0)),S181,MAX($S$3:$S181)+1)) -> 9
M183: 180 | N183: 219 | O183: محمود180 | P183: انثى | S183: =IF(M183="","",IF(ISERROR(MATCH($M183,$I:$I,0)),S182,MAX($S$3:$S182)+1)) -> 9 | T183: نهاية اللجنة
M184: 181 | N184: 220 | O184: محمود181 | P184: انثى | S184: =IF(M184="","",IF(ISERROR(MATCH($M184,$I:$I,0)),S183,MAX($S$3:$S183)+1)) -> 10
M185: 182 | N185: 221 | O185: محمود182 | P185: انثى | S185: =IF(M185="","",IF(ISERROR(MATCH($M185,$I:$I,0)),S184,MAX($S$3:$S184)+1)) -> 10
M186: 183 | N186: 222 | O186: محمود183 | P186: انثى | S186: =IF(M186="","",IF(ISERROR(MATCH($M186,$I:$I,0)),S185,MAX($S$3:$S185)+1)) -> 10
M187: 184 | N187: 223 | O187: محمود184 | P187: انثى | S187: =IF(M187="","",IF(ISERROR(MATCH($M187,$I:$I,0)),S186,MAX($S$3:$S186)+1)) -> 10
M188: 185 | N188: 224 | O188: محمود185 | P188: انثى | S188: =IF(M188="","",IF(ISERROR(MATCH($M188,$I:$I,0)),S187,MAX($S$3:$S187)+1)) -> 10
M189: 186 | N189: 225 | O189: محمود186 | P189: انثى | S189: =IF(M189="","",IF(ISERROR(MATCH($M189,$I:$I,0)),S188,MAX($S$3:$S188)+1)) -> 10
M190: 187 | N190: 226 | O190: محمود187 | P190: انثى | S190: =IF(M190="","",IF(ISERROR(MATCH($M190,$I:$I,0)),S189,MAX($S$3:$S189)+1)) -> 10
M191: 188 | N191: 227 | O191: محمود188 | P191: انثى | S191: =IF(M191="","",IF(ISERROR(MATCH($M191,$I:$I,0)),S190,MAX($S$3:$S190)+1)) -> 10
M192: 189 | N192: 228 | O192: محمود189 | P192: انثى | S192: =IF(M192="","",IF(ISERROR(MATCH($M192,$I:$I,0)),S191,MAX($S$3:$S191)+1)) -> 10
M193: 190 | N193: 229 | O193: محمود190 | P193: انثى | S193: =IF(M193="","",IF(ISERROR(MATCH($M193,$I:$I,0)),S192,MAX($S$3:$S192)+1)) -> 10
M194: 191 | N194: 230 | O194: محمود191 | P194: انثى | S194: =IF(M194="","",IF(ISERROR(MATCH($M194,$I:$I,0)),S193,MAX($S$3:$S193)+1)) -> 10
M195: 192 | N195: 231 | O195: محمود192 | P195: انثى | S195: =IF(M195="","",IF(ISERROR(MATCH($M195,$I:$I,0)),S194,MAX($S$3:$S194)+1)) -> 10
M196: 193 | N196: 232 | O196: محمود193 | P196: انثى | S196: =IF(M196="","",IF(ISERROR(MATCH($M196,$I:$I,0)),S195,MAX($S$3:$S195)+1)) -> 10
M197: =(IF(O197="","",ROW()-3)) -> 194 | N197: 233 | O197: محمود194 | P197: =IF(O197="","",P194) -> انثى | S197: =IF(M197="","",IF(ISERROR(MATCH($M197,$I:$I,0)),S196,MAX($S$3:$S196)+1)) -> 10 | T197: =IF(S197=S198,"","نهاية اللجنة") -> 
M198: 195 | N198: =IF(M198="","",N197+1) -> 234 | O198: محمود195 | P198: انثى | S198: =IF(M198="","",IF(ISERROR(MATCH($M198,$I:$I,0)),S197,MAX($S$3:$S197)+1)) -> 10
M199: 196 | N199: 235 | O199: محمود196 | P199: انثى | S199: =IF(M199="","",IF(ISERROR(MATCH($M199,$I:$I,0)),S198,MAX($S$3:$S198)+1)) -> 10
M200: 197 | N200: 236 | O200: محمود197 | P200: انثى | S200: =IF(M200="","",IF(ISERROR(MATCH($M200,$I:$I,0)),S199,MAX($S$3:$S199)+1)) -> 10
... 403 more rows

Sheet أرقام جلوس الثالث
A1: ='البيانات الأساسية'!$A$1 -> إدارة /غرب المحلة الكبرى التعليمية | C1: رقم اللجنة | D1: =VLOOKUP(E2,جلوس_أسماء3,7,FALSE) -> 1 | G1: ='البيانات الأساسية'!$A$1 -> إدارة /غرب المحلة الكبرى التعليمية | I1: رقم اللجنة | J1: =VLOOKUP(K2,جلوس_أسماء3,7,FALSE) -> 2 | O1: 1
A2: ='جدول الصف الثالث '!$A$2 -> مدرسة د/علي علي حبيش الابتدائية | C2: ='جدول الصف الثالث '!$C$5 -> الصف الثالث | E2: =O1 -> 1 | G2: ='جدول الصف الثالث '!$A$2 -> مدرسة د/علي علي حبيش الابتدائية | I2: ='جدول الصف الثالث '!$C$5 -> الصف الثالث | K2: =E211+1 -> 21
A3: ='جدول الصف الثالث '!$B$4 -> جدول امتحان الفصل الدراسي الأول / الثاني للعام الدراسي 2019/2018 | G3: ='جدول الصف الثالث '!$B$4 -> جدول امتحان الفصل الدراسي الأول / الثاني للعام الدراسي 2019/2018
A4: اسم التلميذ | B4: =VLOOKUP(E2,جلوس_أسماء3,3,FALSE) -> محمود1 | C4: رقم الجلوس | D4: =VLOOKUP(E2,جلوس_أسماء3,2,FALSE) -> 40 | G4: اسم التلميذ | H4: =VLOOKUP(K2,جلوس_أسماء3,3,FALSE) -> محمود21 | I4: رقم الجلوس | J4: =VLOOKUP(K2,جلوس_أسماء3,2,FALSE) -> 60
A5: اليوم والترايخ | B5: المــــــــــــــــادة | C5: الزمن | E5: الزمن | G5: اليوم والترايخ | H5: المــــــــــــــــادة | I5: الزمن | K5: الزمن
C6: من | D6: إلي | I6: من | J6: إلي
A7: ='جدول الصف الثالث '!$B$8 -> السبت | B7: ='جدول الصف الثالث '!$C$8 -> لغة عربية وخط | C7: ='جدول الصف الثالث '!$D$8 -> 8 | D7: ='جدول الصف الثالث '!$E$8 -> 10 | E7: ='جدول الصف الثالث '!$F$8 -> ساعتان | G7: ='جدول الصف الثالث '!$B$8 -> السبت | H7: ='جدول الصف الثالث '!$C$8 -> لغة عربية وخط | I7: ='جدول الصف الثالث '!$D$8 -> 8 | J7: ='جدول الصف الثالث '!$E$8 -> 10 | K7: ='جدول الصف الثالث '!$F$8 -> ساعتان
A8: ='جدول الصف الثالث '!$B$9 -> 2018-01-01 | B8: ='جدول الصف الثالث '!$C$9 -> التربية الدينية | C8: ='جدول الصف الثالث '!$D$9 -> 10.15 | D8: ='جدول الصف الثالث '!$E$9 -> 11.45 | E8: ='جدول الصف الثالث '!$F$9 -> ساعة | G8: ='جدول الصف الثالث '!$B$9 -> 2018-01-01 | H8: ='جدول الصف الثالث '!$C$9 -> التربية الدينية | I8: ='جدول الصف الثالث '!$D$9 -> 10.15 | J8: ='جدول الصف الثالث '!$E$9 -> 11.45 | K8: ='جدول الصف الثالث '!$F$9 -> ساعة
A9: ='جدول الصف الثالث '!$B$10 -> الأحد | B9: ='جدول الصف الثالث '!$C$10 -> الرياضيات | C9: ='جدول الصف الثالث '!$D$10 -> 8 | D9: ='جدول الصف الثالث '!$E$10 -> 9.3 | E9: ='جدول الصف الثالث '!$F$10 -> ساعة ونصف | G9: ='جدول الصف الثالث '!$B$10 -> الأحد | H9: ='جدول الصف الثالث '!$C$10 -> الرياضيات | I9: ='جدول الصف الثالث '!$D$10 -> 8 | J9: ='جدول الصف الثالث '!$E$10 -> 9.3 | K9: ='جدول الصف الثالث '!$F$10 -> ساعة ونصف
A10: ='جدول الصف الثالث '!$B$11 -> 2018-01-02 | B10: ='جدول الصف الثالث '!$C$11 -> اللغة الإنجليزية | C10: ='جدول الصف الثالث '!$D$11 -> 9.45 | D10: ='جدول الصف الثالث '!$E$11 -> 11.15 | E10: ='جدول الصف الثالث '!$F$11 -> ساعة ونصف | G10: ='جدول الصف الثالث '!$B$11 -> 2018-01-02 | H10: ='جدول الصف الثالث '!$C$11 -> اللغة الإنجليزية | I10: ='جدول الصف الثالث '!$D$11 -> 9.45 | J10: ='جدول الصف الثالث '!$E$11 -> 11.15 | K10: ='جدول الصف الثالث '!$F$11 -> ساعة ونصف
A12: ='جدول الصف الثالث '!$A$1 -> إدارة /غرب المحلة الكبرى التعليمية | C12: رقم اللجنة | D12: =VLOOKUP(E13,جلوس_أسماء3,7,FALSE) -> 1 | G12: ='جدول الصف الثالث '!$A$1 -> إدارة /غرب المحلة الكبرى التعليمية | I12: رقم اللجنة | J12: =VLOOKUP(K13,جلوس_أسماء3,7,FALSE) -> 2
A13: ='جدول الصف الثالث '!$A$2 -> مدرسة د/علي علي حبيش الابتدائية | C13: ='جدول الصف الثالث '!$C$5 -> الصف الثالث | E13: =E2+1 -> 2 | G13: ='جدول الصف الثالث '!$A$2 -> مدرسة د/علي علي حبيش الابتدائية | I13: ='جدول الصف الثالث '!$C$5 -> الصف الثالث | K13: =K2+1 -> 22
A14: ='جدول الصف الثالث '!$B$4 -> جدول امتحان الفصل الدراسي الأول / الثاني للعام الدراسي 2019/2018 | G14: ='جدول الصف الثالث '!$B$4 -> جدول امتحان الفصل الدراسي الأول / الثاني للعام الدراسي 2019/2018
A15: اسم التلميذ | B15: =VLOOKUP(E13,جلوس_أسماء3,3,FALSE) -> محمود2 | C15: رقم الجلوس | D15: =VLOOKUP(E13,جلوس_أسماء3,2,FALSE) -> 41 | G15: اسم التلميذ | H15: =VLOOKUP(K13,جلوس_أسماء3,3,FALSE) -> محمود22 | I15: رقم الجلوس | J15: =VLOOKUP(K13,جلوس_أسماء3,2,FALSE) -> 61
A16: اليوم والترايخ | B16: المــــــــــــــــادة | C16: الزمن | E16: الزمن | G16: اليوم والترايخ | H16: المــــــــــــــــادة | I16: الزمن | K16: الزمن
C17: من | D17: إلي | I17: من | J17: إلي
A18: ='جدول الصف الثالث '!$B$8 -> السبت | B18: ='جدول الصف الثالث '!$C$8 -> لغة عربية وخط | C18: ='جدول الصف الثالث '!$D$8 -> 8 | D18: ='جدول الصف الثالث '!$E$8 -> 10 | E18: ='جدول الصف الثالث '!$F$8 -> ساعتان | G18: ='جدول الصف الثالث '!$B$8 -> السبت | H18: ='جدول الصف الثالث '!$C$8 -> لغة عربية وخط | I18: ='جدول الصف الثالث '!$D$8 -> 8 | J18: ='جدول الصف الثالث '!$E$8 -> 10 | K18: ='جدول الصف الثالث '!$F$8 -> ساعتان
A19: ='جدول الصف الثالث '!$B$9 -> 2018-01-01 | B19: ='جدول الصف الثالث '!$C$9 -> التربية الدينية | C19: ='جدول الصف الثالث '!$D$9 -> 10.15 | D19: ='جدول الصف الثالث '!$E$9 -> 11.45 | E19: ='جدول الصف الثالث '!$F$9 -> ساعة | G19: ='جدول الصف الثالث '!$B$9 -> 2018-01-01 | H19: ='جدول الصف الثالث '!$C$9 -> التربية الدينية | I19: ='جدول الصف الثالث '!$D$9 -> 10.15 | J19: ='جدول الصف الثالث '!$E$9 -> 11.45 | K19: ='جدول الصف الثالث '!$F$9 -> ساعة
A20: ='جدول الصف الثالث '!$B$10 -> الأحد | B20: ='جدول الصف الثالث '!$C$10 -> الرياضيات | C20: ='جدول الصف الثالث '!$D$10 -> 8 | D20: ='جدول الصف الثالث '!$E$10 -> 9.3 | E20: ='جدول الصف الثالث '!$F$10 -> ساعة ونصف | G20: ='جدول الصف الثالث '!$B$10 -> الأحد | H20: ='جدول الصف الثالث '!$C$10 -> الرياضيات | I20: ='جدول الصف الثالث '!$D$10 -> 8 | J20: ='جدول الصف الثالث '!$E$10 -> 9.3 | K20: ='جدول الصف الثالث '!$F$10 -> ساعة ونصف
A21: ='جدول الصف الثالث '!$B$11 -> 2018-01-02 | B21: ='جدول الصف الثالث '!$C$11 -> اللغة الإنجليزية | C21: ='جدول الصف الثالث '!$D$11 -> 9.45 | D21: ='جدول الصف الثالث '!$E$11 -> 11.15 | E21: ='جدول الصف الثالث '!$F$11 -> ساعة ونصف | G21: ='جدول الصف الثالث '!$B$11 -> 2018-01-02 | H21: ='جدول الصف الثالث '!$C$11 -> اللغة الإنجليزية | I21: ='جدول الصف الثالث '!$D$11 -> 9.45 | J21: ='جدول الصف الثالث '!$E$11 -> 11.15 | K21: ='جدول الصف الثالث '!$F$11 -> ساعة ونصف
A23: ='جدول الصف الثالث '!$A$1 -> إدارة /غرب المحلة الكبرى التعليمية | C23: رقم اللجنة | D23: =VLOOKUP(E24,جلوس_أسماء3,7,FALSE) -> 1 | G23: ='جدول الصف الثالث '!$A$1 -> إدارة /غرب المحلة الكبرى التعليمية | I23: رقم اللجنة | J23: =VLOOKUP(K24,جلوس_أسماء3,7,FALSE) -> 2
A24: ='جدول الصف الثالث '!$A$2 -> مدرسة د/علي علي حبيش الابتدائية | C24: ='جدول الصف الثالث '!$C$5 -> الصف الثالث | E24: =E13+1 -> 3 | G24: ='جدول الصف الثالث '!$A$2 -> مدرسة د/علي علي حبيش الابتدائية | I24: ='جدول الصف الثالث '!$C$5 -> الصف الثالث | K24: =K13+1 -> 23
A25: ='جدول الصف الثالث '!$B$4 -> جدول امتحان الفصل الدراسي الأول / الثاني للعام الدراسي 2019/2018 | G25: ='جدول الصف الثالث '!$B$4 -> جدول امتحان الفصل الدراسي الأول / الثاني للعام الدراسي 2019/2018
A26: اسم التلميذ | B26: =VLOOKUP(E24,جلوس_أسماء3,3,FALSE) -> محمود3 | C26: رقم الجلوس | D26: =VLOOKUP(E24,جلوس_أسماء3,2,FALSE) -> 42 | G26: اسم التلميذ | H26: =VLOOKUP(K24,جلوس_أسماء3,3,FALSE) -> محمود23 | I26: رقم الجلوس | J26: =VLOOKUP(K24,جلوس_أسماء3,2,FALSE) -> 62
A27: اليوم والترايخ | B27: المــــــــــــــــادة | C27: الزمن | E27: الزمن | G27: اليوم والترايخ | H27: المــــــــــــــــادة | I27: الزمن | K27: الزمن
C28: من | D28: إلي | I28: من | J28: إلي
A29: ='جدول الصف الثالث '!$B$8 -> السبت | B29: ='جدول الصف الثالث '!$C$8 -> لغة عربية وخط | C29: ='جدول الصف الثالث '!$D$8 -> 8 | D29: ='جدول الصف الثالث '!$E$8 -> 10 | E29: ='جدول الصف الثالث '!$F$8 -> ساعتان | G29: ='جدول الصف الثالث '!$B$8 -> السبت | H29: ='جدول الصف الثالث '!$C$8 -> لغة عربية وخط | I29: ='جدول الصف الثالث '!$D$8 -> 8 | J29: ='جدول الصف الثالث '!$E$8 -> 10 | K29: ='جدول الصف الثالث '!$F$8 -> ساعتان
A30: ='جدول الصف الثالث '!$B$9 -> 2018-01-01 | B30: ='جدول الصف الثالث '!$C$9 -> التربية الدينية | C30: ='جدول الصف الثالث '!$D$9 -> 10.15 | D30: ='جدول الصف الثالث '!$E$9 -> 11.45 | E30: ='جدول الصف الثالث '!$F$9 -> ساعة | G30: ='جدول الصف الثالث '!$B$9 -> 2018-01-01 | H30: ='جدول الصف الثالث '!$C$9 -> التربية الدينية | I30: ='جدول الصف الثالث '!$D$9 -> 10.15 | J30: ='جدول الصف الثالث '!$E$9 -> 11.45 | K30: ='جدول الصف الثالث '!$F$9 -> ساعة
A31: ='جدول الصف الثالث '!$B$10 -> الأحد | B31: ='جدول الصف الثالث '!$C$10 -> الرياضيات | C31: ='جدول الصف الثالث '!$D$10 -> 8 | D31: ='جدول الصف الثالث '!$E$10 -> 9.3 | E31: ='جدول الصف الثالث '!$F$10 -> ساعة ونصف | G31: ='جدول الصف الثالث '!$B$10 -> الأحد | H31: ='جدول الصف الثالث '!$C$10 -> الرياضيات | I31: ='جدول الصف الثالث '!$D$10 -> 8 | J31: ='جدول الصف الثالث '!$E$10 -> 9.3 | K31: ='جدول الصف الثالث '!$F$10 -> ساعة ونصف
A32: ='جدول الصف الثالث '!$B$11 -> 2018-01-02 | B32: ='جدول الصف الثالث '!$C$11 -> اللغة الإنجليزية | C32: ='جدول الصف الثالث '!$D$11 -> 9.45 | D32: ='جدول الصف الثالث '!$E$11 -> 11.15 | E32: ='جدول الصف الثالث '!$F$11 -> ساعة ونصف | G32: ='جدول الصف الثالث '!$B$11 -> 2018-01-02 | H32: ='جدول الصف الثالث '!$C$11 -> اللغة الإنجليزية | I32: ='جدول الصف الثالث '!$D$11 -> 9.45 | J32: ='جدول الصف الثالث '!$E$11 -> 11.15 | K32: ='جدول الصف الثالث '!$F$11 -> ساعة ونصف
A34: ='جدول الصف الثالث '!$A$1 -> إدارة /غرب المحلة الكبرى التعليمية | C34: رقم اللجنة | D34: =VLOOKUP(E35,جلوس_أسماء3,7,FALSE) -> 1 | G34: ='جدول الصف الثالث '!$A$1 -> إدارة /غرب المحلة الكبرى التعليمية | I34: رقم اللجنة | J34: =VLOOKUP(K35,جلوس_أسماء3,7,FALSE) -> 2
A35: ='جدول الصف الثالث '!$A$2 -> مدرسة د/علي علي حبيش الابتدائية | C35: ='جدول الصف الثالث '!$C$5 -> الصف الثالث | E35: =E24+1 -> 4 | G35: ='جدول الصف الثالث '!$A$2 -> مدرسة د/علي علي حبيش الابتدائية | I35: ='جدول الصف الثالث '!$C$5 -> الصف الثالث | K35: =K24+1 -> 24
A36: ='جدول الصف الثالث '!$B$4 -> جدول امتحان الفصل الدراسي الأول / الثاني للعام الدراسي 2019/2018 | G36: ='جدول الصف الثالث '!$B$4 -> جدول امتحان الفصل الدراسي الأول / الثاني للعام الدراسي 2019/2018
A37: اسم التلميذ | B37: =VLOOKUP(E35,جلوس_أسماء3,3,FALSE) -> محمود4 | C37: رقم الجلوس | D37: =VLOOKUP(E35,جلوس_أسماء3,2,FALSE) -> 43 | G37: اسم التلميذ | H37: =VLOOKUP(K35,جلوس_أسماء3,3,FALSE) -> محمود24 | I37: رقم الجلوس | J37: =VLOOKUP(K35,جلوس_أسماء3,2,FALSE) -> 63
A38: اليوم والترايخ | B38: المــــــــــــــــادة | C38: الزمن | E38: الزمن | G38: اليوم والترايخ | H38: المــــــــــــــــادة | I38: الزمن | K38: الزمن
C39: من | D39: إلي | I39: من | J39: إلي
A40: ='جدول الصف الثالث '!$B$8 -> السبت | B40: ='جدول الصف الثالث '!$C$8 -> لغة عربية وخط | C40: ='جدول الصف الثالث '!$D$8 -> 8 | D40: ='جدول الصف الثالث '!$E$8 -> 10 | E40: ='جدول الصف الثالث '!$F$8 -> ساعتان | G40: ='جدول الصف الثالث '!$B$8 -> السبت | H40: ='جدول الصف الثالث '!$C$8 -> لغة عربية وخط | I40: ='جدول الصف الثالث '!$D$8 -> 8 | J40: ='جدول الصف الثالث '!$E$8 -> 10 | K40: ='جدول الصف الثالث '!$F$8 -> ساعتان
A41: ='جدول الصف الثالث '!$B$9 -> 2018-01-01 | B41: ='جدول الصف الثالث '!$C$9 -> التربية الدينية | C41: ='جدول الصف الثالث '!$D$9 -> 10.15 | D41: ='جدول الصف الثالث '!$E$9 -> 11.45 | E41: ='جدول الصف الثالث '!$F$9 -> ساعة | G41: ='جدول الصف الثالث '!$B$9 -> 2018-01-01 | H41: ='جدول الصف الثالث '!$C$9 -> التربية الدينية | I41: ='جدول الصف الثالث '!$D$9 -> 10.15 | J41: ='جدول الصف الثالث '!$E$9 -> 11.45 | K41: ='جدول الصف الثالث '!$F$9 -> ساعة
A42: ='جدول الصف الثالث '!$B$10 -> الأحد | B42: ='جدول الصف الثالث '!$C$10 -> الرياضيات | C42: ='جدول الصف الثالث '!$D$10 -> 8 | D42: ='جدول الصف الثالث '!$E$10 -> 9.3 | E42: ='جدول الصف الثالث '!$F$10 -> ساعة ونصف | G42: ='جدول الصف الثالث '!$B$10 -> الأحد | H42: ='جدول الصف الثالث '!$C$10 -> الرياضيات | I42: ='جدول الصف الثالث '!$D$10 -> 8 | J42: ='جدول الصف الثالث '!$E$10 -> 9.3 | K42: ='جدول الصف الثالث '!$F$10 -> ساعة ونصف
A43: ='جدول الصف الثالث '!$B$11 -> 2018-01-02 | B43: ='جدول الصف الثالث '!$C$11 -> اللغة الإنجليزية | C43: ='جدول الصف الثالث '!$D$11 -> 9.45 | D43: ='جدول الصف الثالث '!$E$11 -> 11.15 | E43: ='جدول الصف الثالث '!$F$11 -> ساعة ونصف | G43: ='جدول الصف الثالث '!$B$11 -> 2018-01-02 | H43: ='جدول الصف الثالث '!$C$11 -> اللغة الإنجليزية | I43: ='جدول الصف الثالث '!$D$11 -> 9.45 | J43: ='جدول الصف الثالث '!$E$11 -> 11.15 | K43: ='جدول الصف الثالث '!$F$11 -> ساعة ونصف
A45: ='جدول الصف الثالث '!$A$1 -> إدارة /غرب المحلة الكبرى التعليمية | C45: رقم اللجنة | D45: =VLOOKUP(E46,جلوس_أسماء3,7,FALSE) -> 1 | G45: ='جدول الصف الثالث '!$A$1 -> إدارة /غرب المحلة الكبرى التعليمية | I45: رقم اللجنة | J45: =VLOOKUP(K46,جلوس_أسماء3,7,FALSE) -> 2
A46: ='جدول الصف الثالث '!$A$2 -> مدرسة د/علي علي حبيش الابتدائية | C46: ='جدول الصف الثالث '!$C$5 -> الصف الثالث | E46: =E35+1 -> 5 | G46: ='جدول الصف الثالث '!$A$2 -> مدرسة د/علي علي حبيش الابتدائية | I46: ='جدول الصف الثالث '!$C$5 -> الصف الثالث | K46: =K35+1 -> 25
A47: ='جدول الصف الثالث '!$B$4 -> جدول امتحان الفصل الدراسي الأول / الثاني للعام الدراسي 2019/2018 | G47: ='جدول الصف الثالث '!$B$4 -> جدول امتحان الفصل الدراسي الأول / الثاني للعام الدراسي 2019/2018
A48: اسم التلميذ | B48: =VLOOKUP(E46,جلوس_أسماء3,3,FALSE) -> محمود5 | C48: رقم الجلوس | D48: =VLOOKUP(E46,جلوس_أسماء3,2,FALSE) -> 44 | G48: اسم التلميذ | H48: =VLOOKUP(K46,جلوس_أسماء3,3,FALSE) -> محمود25 | I48: رقم الجلوس | J48: =VLOOKUP(K46,جلوس_أسماء3,2,FALSE) -> 64
A49: اليوم والترايخ | B49: المــــــــــــــــادة | C49: الزمن | E49: الزمن | G49: اليوم والترايخ | H49: المــــــــــــــــادة | I49: الزمن | K49: الزمن
C50: من | D50: إلي | I50: من | J50: إلي
A51: ='جدول الصف الثالث '!$B$8 -> السبت | B51: ='جدول الصف الثالث '!$C$8 -> لغة عربية وخط | C51: ='جدول الصف الثالث '!$D$8 -> 8 | D51: ='جدول الصف الثالث '!$E$8 -> 10 | E51: ='جدول الصف الثالث '!$F$8 -> ساعتان | G51: ='جدول الصف الثالث '!$B$8 -> السبت | H51: ='جدول الصف الثالث '!$C$8 -> لغة عربية وخط | I51: ='جدول الصف الثالث '!$D$8 -> 8 | J51: ='جدول الصف الثالث '!$E$8 -> 10 | K51: ='جدول الصف الثالث '!$F$8 -> ساعتان
A52: ='جدول الصف الثالث '!$B$9 -> 2018-01-01 | B52: ='جدول الصف الثالث '!$C$9 -> التربية الدينية | C52: ='جدول الصف الثالث '!$D$9 -> 10.15 | D52: ='جدول الصف الثالث '!$E$9 -> 11.45 | E52: ='جدول الصف الثالث '!$F$9 -> ساعة | G52: ='جدول الصف الثالث '!$B$9 -> 2018-01-01 | H52: ='جدول الصف الثالث '!$C$9 -> التربية الدينية | I52: ='جدول الصف الثالث '!$D$9 -> 10.15 | J52: ='جدول الصف الثالث '!$E$9 -> 11.45 | K52: ='جدول الصف الثالث '!$F$9 -> ساعة
A53: ='جدول الصف الثالث '!$B$10 -> الأحد | B53: ='جدول الصف الثالث '!$C$10 -> الرياضيات | C53: ='جدول الصف الثالث '!$D$10 -> 8 | D53: ='جدول الصف الثالث '!$E$10 -> 9.3 | E53: ='جدول الصف الثالث '!$F$10 -> ساعة ونصف | G53: ='جدول الصف الثالث '!$B$10 -> الأحد | H53: ='جدول الصف الثالث '!$C$10 -> الرياضيات | I53: ='جدول الصف الثالث '!$D$10 -> 8 | J53: ='جدول الصف الثالث '!$E$10 -> 9.3 | K53: ='جدول الصف الثالث '!$F$10 -> ساعة ونصف
A54: ='جدول الصف الثالث '!$B$11 -> 2018-01-02 | B54: ='جدول الصف الثالث '!$C$11 -> اللغة الإنجليزية | C54: ='جدول الصف الثالث '!$D$11 -> 9.45 | D54: ='جدول الصف الثالث '!$E$11 -> 11.15 | E54: ='جدول الصف الثالث '!$F$11 -> ساعة ونصف | G54: ='جدول الصف الثالث '!$B$11 -> 2018-01-02 | H54: ='جدول الصف الثالث '!$C$11 -> اللغة الإنجليزية | I54: ='جدول الصف الثالث '!$D$11 -> 9.45 | J54: ='جدول الصف الثالث '!$E$11 -> 11.15 | K54: ='جدول الصف الثالث '!$F$11 -> ساعة ونصف
A56: ='جدول الصف الثالث '!$A$1 -> إدارة /غرب المحلة الكبرى التعليمية | C56: رقم اللجنة | D56: =VLOOKUP(E57,جلوس_أسماء3,7,FALSE) -> 1 | G56: ='جدول الصف الثالث '!$A$1 -> إدارة /غرب المحلة الكبرى التعليمية | I56: رقم اللجنة | J56: =VLOOKUP(K57,جلوس_أسماء3,7,FALSE) -> 2
A57: ='جدول الصف الثالث '!$A$2 -> مدرسة د/علي علي حبيش الابتدائية | C57: ='جدول الصف الثالث '!$C$5 -> الصف الثالث | E57: =E46+1 -> 6 | G57: ='جدول الصف الثالث '!$A$2 -> مدرسة د/علي علي حبيش الابتدائية | I57: ='جدول الصف الثالث '!$C$5 -> الصف الثالث | K57: =K46+1 -> 26
A58: ='جدول الصف الثالث '!$B$4 -> جدول امتحان الفصل الدراسي الأول / الثاني للعام الدراسي 2019/2018 | G58: ='جدول الصف الثالث '!$B$4 -> جدول امتحان الفصل الدراسي الأول / الثاني للعام الدراسي 2019/2018
A59: اسم التلميذ | B59: =VLOOKUP(E57,جلوس_أسماء3,3,FALSE) -> محمود6 | C59: رقم الجلوس | D59: =VLOOKUP(E57,جلوس_أسماء3,2,FALSE) -> 45 | G59: اسم التلميذ | H59: =VLOOKUP(K57,جلوس_أسماء3,3,FALSE) -> محمود26 | I59: رقم الجلوس | J59: =VLOOKUP(K57,جلوس_أسماء3,2,FALSE) -> 65
A60: اليوم والترايخ | B60: المــــــــــــــــادة | C60: الزمن | E60: الزمن | G60: اليوم والترايخ | H60: المــــــــــــــــادة | I60: الزمن | K60: الزمن
C61: من | D61: إلي | I61: من | J61: إلي
A62: ='جدول الصف الثالث '!$B$8 -> السبت | B62: ='جدول الصف الثالث '!$C$8 -> لغة عربية وخط | C62: ='جدول الصف الثالث '!$D$8 -> 8 | D62: ='جدول الصف الثالث '!$E$8 -> 10 | E62: ='جدول الصف الثالث '!$F$8 -> ساعتان | G62: ='جدول الصف الثالث '!$B$8 -> السبت | H62: ='جدول الصف الثالث '!$C$8 -> لغة عربية وخط | I62: ='جدول الصف الثالث '!$D$8 -> 8 | J62: ='جدول الصف الثالث '!$E$8 -> 10 | K62: ='جدول الصف الثالث '!$F$8 -> ساعتان
A63: ='جدول الصف الثالث '!$B$9 -> 2018-01-01 | B63: ='جدول الصف الثالث '!$C$9 -> التربية الدينية | C63: ='جدول الصف الثالث '!$D$9 -> 10.15 | D63: ='جدول الصف الثالث '!$E$9 -> 11.45 | E63: ='جدول الصف الثالث '!$F$9 -> ساعة | G63: ='جدول الصف الثالث '!$B$9 -> 2018-01-01 | H63: ='جدول الصف الثالث '!$C$9 -> التربية الدينية | I63: ='جدول الصف الثالث '!$D$9 -> 10.15 | J63: ='جدول الصف الثالث '!$E$9 -> 11.45 | K63: ='جدول الصف الثالث '!$F$9 -> ساعة
A64: ='جدول الصف الثالث '!$B$10 -> الأحد | B64: ='جدول الصف الثالث '!$C$10 -> الرياضيات | C64: ='جدول الصف الثالث '!$D$10 -> 8 | D64: ='جدول الصف الثالث '!$E$10 -> 9.3 | E64: ='جدول الصف الثالث '!$F$10 -> ساعة ونصف | G64: ='جدول الصف الثالث '!$B$10 -> الأحد | H64: ='جدول الصف الثالث '!$C$10 -> الرياضيات | I64: ='جدول الصف الثالث '!$D$10 -> 8 | J64: ='جدول الصف الثالث '!$E$10 -> 9.3 | K64: ='جدول الصف الثالث '!$F$10 -> ساعة ونصف
A65: ='جدول الصف الثالث '!$B$11 -> 2018-01-02 | B65: ='جدول الصف الثالث '!$C$11 -> اللغة الإنجليزية | C65: ='جدول الصف الثالث '!$D$11 -> 9.45 | D65: ='جدول الصف الثالث '!$E$11 -> 11.15 | E65: ='جدول الصف الثالث '!$F$11 -> ساعة ونصف | G65: ='جدول الصف الثالث '!$B$11 -> 2018-01-02 | H65: ='جدول الصف الثالث '!$C$11 -> اللغة الإنجليزية | I65: ='جدول الصف الثالث '!$D$11 -> 9.45 | J65: ='جدول الصف الثالث '!$E$11 -> 11.15 | K65: ='جدول الصف الثالث '!$F$11 -> ساعة ونصف
A67: ='جدول الصف الثالث '!$A$1 -> إدارة /غرب المحلة الكبرى التعليمية | C67: رقم اللجنة | D67: =VLOOKUP(E68,جلوس_أسماء3,7,FALSE) -> 1 | G67: ='جدول الصف الثالث '!$A$1 -> إدارة /غرب المحلة الكبرى التعليمية | I67: رقم اللجنة | J67: =VLOOKUP(K68,جلوس_أسماء3,7,FALSE) -> 2
A68: ='جدول الصف الثالث '!$A$2 -> مدرسة د/علي علي حبيش الابتدائية | C68: ='جدول الصف الثالث '!$C$5 -> الصف الثالث | E68: =E57+1 -> 7 | G68: ='جدول الصف الثالث '!$A$2 -> مدرسة د/علي علي حبيش الابتدائية | I68: ='جدول الصف الثالث '!$C$5 -> الصف الثالث | K68: =K57+1 -> 27
A69: ='جدول الصف الثالث '!$B$4 -> جدول امتحان الفصل الدراسي الأول / الثاني للعام الدراسي 2019/2018 | G69: ='جدول الصف الثالث '!$B$4 -> جدول امتحان الفصل الدراسي الأول / الثاني للعام الدراسي 2019/2018
A70: اسم التلميذ | B70: =VLOOKUP(E68,جلوس_أسماء3,3,FALSE) -> محمود7 | C70: رقم الجلوس | D70: =VLOOKUP(E68,جلوس_أسماء3,2,FALSE) -> 46 | G70: اسم التلميذ | H70: =VLOOKUP(K68,جلوس_أسماء3,3,FALSE) -> محمود27 | I70: رقم الجلوس | J70: =VLOOKUP(K68,جلوس_أسماء3,2,FALSE) -> 66
A71: اليوم والترايخ | B71: المــــــــــــــــادة | C71: الزمن | E71: الزمن | G71: اليوم والترايخ | H71: المــــــــــــــــادة | I71: الزمن | K71: الزمن
C72: من | D72: إلي | I72: من | J72: إلي
A73: ='جدول الصف الثالث '!$B$8 -> السبت | B73: ='جدول الصف الثالث '!$C$8 -> لغة عربية وخط | C73: ='جدول الصف الثالث '!$D$8 -> 8 | D73: ='جدول الصف الثالث '!$E$8 -> 10 | E73: ='جدول الصف الثالث '!$F$8 -> ساعتان | G73: ='جدول الصف الثالث '!$B$8 -> السبت | H73: ='جدول الصف الثالث '!$C$8 -> لغة عربية وخط | I73: ='جدول الصف الثالث '!$D$8 -> 8 | J73: ='جدول الصف الثالث '!$E$8 -> 10 | K73: ='جدول الصف الثالث '!$F$8 -> ساعتان
A74: ='جدول الصف الثالث '!$B$9 -> 2018-01-01 | B74: ='جدول الصف الثالث '!$C$9 -> التربية الدينية | C74: ='جدول الصف الثالث '!$D$9 -> 10.15 | D74: ='جدول الصف الثالث '!$E$9 -> 11.45 | E74: ='جدول الصف الثالث '!$F$9 -> ساعة | G74: ='جدول الصف الثالث '!$B$9 -> 2018-01-01 | H74: ='جدول الصف الثالث '!$C$9 -> التربية الدينية | I74: ='جدول الصف الثالث '!$D$9 -> 10.15 | J74: ='جدول الصف الثالث '!$E$9 -> 11.45 | K74: ='جدول الصف الثالث '!$F$9 -> ساعة
A75: ='جدول الصف الثالث '!$B$10 -> الأحد | B75: ='جدول الصف الثالث '!$C$10 -> الرياضيات | C75: ='جدول الصف الثالث '!$D$10 -> 8 | D75: ='جدول الصف الثالث '!$E$10 -> 9.3 | E75: ='جدول الصف الثالث '!$F$10 -> ساعة ونصف | G75: ='جدول الصف الثالث '!$B$10 -> الأحد | H75: ='جدول الصف الثالث '!$C$10 -> الرياضيات | I75: ='جدول الصف الثالث '!$D$10 -> 8 | J75: ='جدول الصف الثالث '!$E$10 -> 9.3 | K75: ='جدول الصف الثالث '!$F$10 -> ساعة ونصف
A76: ='جدول الصف الثالث '!$B$11 -> 2018-01-02 | B76: ='جدول الصف الثالث '!$C$11 -> اللغة الإنجليزية | C76: ='جدول الصف الثالث '!$D$11 -> 9.45 | D76: ='جدول الصف الثالث '!$E$11 -> 11.15 | E76: ='جدول الصف الثالث '!$F$11 -> ساعة ونصف | G76: ='جدول الصف الثالث '!$B$11 -> 2018-01-02 | H76: ='جدول الصف الثالث '!$C$11 -> اللغة الإنجليزية | I76: ='جدول الصف الثالث '!$D$11 -> 9.45 | J76: ='جدول الصف الثالث '!$E$11 -> 11.15 | K76: ='جدول الصف الثالث '!$F$11 -> ساعة ونصف
A78: ='جدول الصف الثالث '!$A$1 -> إدارة /غرب المحلة الكبرى التعليمية | C78: رقم اللجنة | D78: =VLOOKUP(E79,جلوس_أسماء3,7,FALSE) -> 1 | G78: ='جدول الصف الثالث '!$A$1 -> إدارة /غرب المحلة الكبرى التعليمية | I78: رقم اللجنة | J78: =VLOOKUP(K79,جلوس_أسماء3,7,FALSE) -> 2
A79: ='جدول الصف الثالث '!$A$2 -> مدرسة د/علي علي حبيش الابتدائية | C79: ='جدول الصف الثالث '!$C$5 -> الصف الثالث | E79: =E68+1 -> 8 | G79: ='جدول الصف الثالث '!$A$2 -> مدرسة د/علي علي حبيش الابتدائية | I79: ='جدول الصف الثالث '!$C$5 -> الصف الثالث | K79: =K68+1 -> 28
A80: ='جدول الصف الثالث '!$B$4 -> جدول امتحان الفصل الدراسي الأول / الثاني للعام الدراسي 2019/2018 | G80: ='جدول الصف الثالث '!$B$4 -> جدول امتحان الفصل الدراسي الأول / الثاني للعام الدراسي 2019/2018
A81: اسم التلميذ | B81: =VLOOKUP(E79,جلوس_أسماء3,3,FALSE) -> محمود8 | C81: رقم الجلوس | D81: =VLOOKUP(E79,جلوس_أسماء3,2,FALSE) -> 47 | G81: اسم التلميذ | H81: =VLOOKUP(K79,جلوس_أسماء3,3,FALSE) -> محمود28 | I81: رقم الجلوس | J81: =VLOOKUP(K79,جلوس_أسماء3,2,FALSE) -> 67
A82: اليوم والترايخ | B82: المــــــــــــــــادة | C82: الزمن | E82: الزمن | G82: اليوم والترايخ | H82: المــــــــــــــــادة | I82: الزمن | K82: الزمن
C83: من | D83: إلي | I83: من | J83: إلي
A84: ='جدول الصف الثالث '!$B$8 -> السبت | B84: ='جدول الصف الثالث '!$C$8 -> لغة عربية وخط | C84: ='جدول الصف الثالث '!$D$8 -> 8 | D84: ='جدول الصف الثالث '!$E$8 -> 10 | E84: ='جدول الصف الثالث '!$F$8 -> ساعتان | G84: ='جدول الصف الثالث '!$B$8 -> السبت | H84: ='جدول الصف الثالث '!$C$8 -> لغة عربية وخط | I84: ='جدول الصف الثالث '!$D$8 -> 8 | J84: ='جدول الصف الثالث '!$E$8 -> 10 | K84: ='جدول الصف الثالث '!$F$8 -> ساعتان
A85: ='جدول الصف الثالث '!$B$9 -> 2018-01-01 | B85: ='جدول الصف الثالث '!$C$9 -> التربية الدينية | C85: ='جدول الصف الثالث '!$D$9 -> 10.15 | D85: ='جدول الصف الثالث '!$E$9 -> 11.45 | E85: ='جدول الصف الثالث '!$F$9 -> ساعة | G85: ='جدول الصف الثالث '!$B$9 -> 2018-01-01 | H85: ='جدول الصف الثالث '!$C$9 -> التربية الدينية | I85: ='جدول الصف الثالث '!$D$9 -> 10.15 | J85: ='جدول الصف الثالث '!$E$9 -> 11.45 | K85: ='جدول الصف الثالث '!$F$9 -> ساعة
A86: ='جدول الصف الثالث '!$B$10 -> الأحد | B86: ='جدول الصف الثالث '!$C$10 -> الرياضيات | C86: ='جدول الصف الثالث '!$D$10 -> 8 | D86: ='جدول الصف الثالث '!$E$10 -> 9.3 | E86: ='جدول الصف الثالث '!$F$10 -> ساعة ونصف | G86: ='جدول الصف الثالث '!$B$10 -> الأحد | H86: ='جدول الصف الثالث '!$C$10 -> الرياضيات | I86: ='جدول الصف الثالث '!$D$10 -> 8 | J86: ='جدول الصف الثالث '!$E$10 -> 9.3 | K86: ='جدول الصف الثالث '!$F$10 -> ساعة ونصف
A87: ='جدول الصف الثالث '!$B$11 -> 2018-01-02 | B87: ='جدول الصف الثالث '!$C$11 -> اللغة الإنجليزية | C87: ='جدول الصف الثالث '!$D$11 -> 9.45 | D87: ='جدول الصف الثالث '!$E$11 -> 11.15 | E87: ='جدول الصف الثالث '!$F$11 -> ساعة ونصف | G87: ='جدول الصف الثالث '!$B$11 -> 2018-01-02 | H87: ='جدول الصف الثالث '!$C$11 -> اللغة الإنجليزية | I87: ='جدول الصف الثالث '!$D$11 -> 9.45 | J87: ='جدول الصف الثالث '!$E$11 -> 11.15 | K87: ='جدول الصف الثالث '!$F$11 -> ساعة ونصف
A89: ='جدول الصف الثالث '!$A$1 -> إدارة /غرب المحلة الكبرى التعليمية | C89: رقم اللجنة | D89: =VLOOKUP(E90,جلوس_أسماء3,7,FALSE) -> 1 | G89: ='جدول الصف الثالث '!$A$1 -> إدارة /غرب المحلة الكبرى التعليمية | I89: رقم اللجنة | J89: =VLOOKUP(K90,جلوس_أسماء3,7,FALSE) -> 2
A90: ='جدول الصف الثالث '!$A$2 -> مدرسة د/علي علي حبيش الابتدائية | C90: ='جدول الصف الثالث '!$C$5 -> الصف الثالث | E90: =E79+1 -> 9 | G90: ='جدول الصف الثالث '!$A$2 -> مدرسة د/علي علي حبيش الابتدائية | I90: ='جدول الصف الثالث '!$C$5 -> الصف الثالث | K90: =K79+1 -> 29
A91: ='جدول الصف الثالث '!$B$4 -> جدول امتحان الفصل الدراسي الأول / الثاني للعام الدراسي 2019/2018 | G91: ='جدول الصف الثالث '!$B$4 -> جدول امتحان الفصل الدراسي الأول / الثاني للعام الدراسي 2019/2018
A92: اسم التلميذ | B92: =VLOOKUP(E90,جلوس_أسماء3,3,FALSE) -> محمود9 | C92: رقم الجلوس | D92: =VLOOKUP(E90,جلوس_أسماء3,2,FALSE) -> 48 | G92: اسم التلميذ | H92: =VLOOKUP(K90,جلوس_أسماء3,3,FALSE) -> محمود29 | I92: رقم الجلوس | J92: =VLOOKUP(K90,جلوس_أسماء3,2,FALSE) -> 68
A93: اليوم والترايخ | B93: المــــــــــــــــادة | C93: الزمن | E93: الزمن | G93: اليوم والترايخ | H93: المــــــــــــــــادة | I93: الزمن | K93: الزمن
C94: من | D94: إلي | I94: من | J94: إلي
A95: ='جدول الصف الثالث '!$B$8 -> السبت | B95: ='جدول الصف الثالث '!$C$8 -> لغة عربية وخط | C95: ='جدول الصف الثالث '!$D$8 -> 8 | D95: ='جدول الصف الثالث '!$E$8 -> 10 | E95: ='جدول الصف الثالث '!$F$8 -> ساعتان | G95: ='جدول الصف الثالث '!$B$8 -> السبت | H95: ='جدول الصف الثالث '!$C$8 -> لغة عربية وخط | I95: ='جدول الصف الثالث '!$D$8 -> 8 | J95: ='جدول الصف الثالث '!$E$8 -> 10 | K95: ='جدول الصف الثالث '!$F$8 -> ساعتان
A96: ='جدول الصف الثالث '!$B$9 -> 2018-01-01 | B96: ='جدول الصف الثالث '!$C$9 -> التربية الدينية | C96: ='جدول الصف الثالث '!$D$9 -> 10.15 | D96: ='جدول الصف الثالث '!$E$9 -> 11.45 | E96: ='جدول الصف الثالث '!$F$9 -> ساعة | G96: ='جدول الصف الثالث '!$B$9 -> 2018-01-01 | H96: ='جدول الصف الثالث '!$C$9 -> التربية الدينية | I96: ='جدول الصف الثالث '!$D$9 -> 10.15 | J96: ='جدول الصف الثالث '!$E$9 -> 11.45 | K96: ='جدول الصف الثالث '!$F$9 -> ساعة
A97: ='جدول الصف الثالث '!$B$10 -> الأحد | B97: ='جدول الصف الثالث '!$C$10 -> الرياضيات | C97: ='جدول الصف الثالث '!$D$10 -> 8 | D97: ='جدول الصف الثالث '!$E$10 -> 9.3 | E97: ='جدول الصف الثالث '!$F$10 -> ساعة ونصف | G97: ='جدول الصف الثالث '!$B$10 -> الأحد | H97: ='جدول الصف الثالث '!$C$10 -> الرياضيات | I97: ='جدول الصف الثالث '!$D$10 -> 8 | J97: ='جدول الصف الثالث '!$E$10 -> 9.3 | K97: ='جدول الصف الثالث '!$F$10 -> ساعة ونصف
A98: ='جدول الصف الثالث '!$B$11 -> 2018-01-02 | B98: ='جدول الصف الثالث '!$C$11 -> اللغة الإنجليزية | C98: ='جدول الصف الثالث '!$D$11 -> 9.45 | D98: ='جدول الصف الثالث '!$E$11 -> 11.15 | E98: ='جدول الصف الثالث '!$F$11 -> ساعة ونصف | G98: ='جدول الصف الثالث '!$B$11 -> 2018-01-02 | H98: ='جدول الصف الثالث '!$C$11 -> اللغة الإنجليزية | I98: ='جدول الصف الثالث '!$D$11 -> 9.45 | J98: ='جدول الصف الثالث '!$E$11 -> 11.15 | K98: ='جدول الصف الثالث '!$F$11 -> ساعة ونصف
A100: ='جدول الصف الثالث '!$A$1 -> إدارة /غرب المحلة الكبرى التعليمية | C100: رقم اللجنة | D100: =VLOOKUP(E101,جلوس_أسماء3,7,FALSE) -> 1 | G100: ='جدول الصف الثالث '!$A$1 -> إدارة /غرب المحلة الكبرى التعليمية | I100: رقم اللجنة | J100: =VLOOKUP(K101,جلوس_أسماء3,7,FALSE) -> 2
A101: ='جدول الصف الثالث '!$A$2 -> مدرسة د/علي علي حبيش الابتدائية | C101: ='جدول الصف الثالث '!$C$5 -> الصف الثالث | E101: =E90+1 -> 10 | G101: ='جدول الصف الثالث '!$A$2 -> مدرسة د/علي علي حبيش الابتدائية | I101: ='جدول الصف الثالث '!$C$5 -> الصف الثالث | K101: =K90+1 -> 30
A102: ='جدول الصف الثالث '!$B$4 -> جدول امتحان الفصل الدراسي الأول / الثاني للعام الدراسي 2019/2018 | G102: ='جدول الصف الثالث '!$B$4 -> جدول امتحان الفصل الدراسي الأول / الثاني للعام الدراسي 2019/2018
A103: اسم التلميذ | B103: =VLOOKUP(E101,جلوس_أسماء3,3,FALSE) -> محمود10 | C103: رقم الجلوس | D103: =VLOOKUP(E101,جلوس_أسماء3,2,FALSE) -> 49 | G103: اسم التلميذ | H103: =VLOOKUP(K101,جلوس_أسماء3,3,FALSE) -> محمود30 | I103: رقم الجلوس | J103: =VLOOKUP(K101,جلوس_أسماء3,2,FALSE) -> 69
A104: اليوم والترايخ | B104: المــــــــــــــــادة | C104: الزمن | E104: الزمن | G104: اليوم والترايخ | H104: المــــــــــــــــادة | I104: الزمن | K104: الزمن
C105: من | D105: إلي | I105: من | J105: إلي
A106: ='جدول الصف الثالث '!$B$8 -> السبت | B106: ='جدول الصف الثالث '!$C$8 -> لغة عربية وخط | C106: ='جدول الصف الثالث '!$D$8 -> 8 | D106: ='جدول الصف الثالث '!$E$8 -> 10 | E106: ='جدول الصف الثالث '!$F$8 -> ساعتان | G106: ='جدول الصف الثالث '!$B$8 -> السبت | H106: ='جدول الصف الثالث '!$C$8 -> لغة عربية وخط | I106: ='جدول الصف الثالث '!$D$8 -> 8 | J106: ='جدول الصف الثالث '!$E$8 -> 10 | K106: ='جدول الصف الثالث '!$F$8 -> ساعتان
A107: ='جدول الصف الثالث '!$B$9 -> 2018-01-01 | B107: ='جدول الصف الثالث '!$C$9 -> التربية الدينية | C107: ='جدول الصف الثالث '!$D$9 -> 10.15 | D107: ='جدول الصف الثالث '!$E$9 -> 11.45 | E107: ='جدول الصف الثالث '!$F$9 -> ساعة | G107: ='جدول الصف الثالث '!$B$9 -> 2018-01-01 | H107: ='جدول الصف الثالث '!$C$9 -> التربية الدينية | I107: ='جدول الصف الثالث '!$D$9 -> 10.15 | J107: ='جدول الصف الثالث '!$E$9 -> 11.45 | K107: ='جدول الصف الثالث '!$F$9 -> ساعة
A108: ='جدول الصف الثالث '!$B$10 -> الأحد | B108: ='جدول الصف الثالث '!$C$10 -> الرياضيات | C108: ='جدول الصف الثالث '!$D$10 -> 8 | D108: ='جدول الصف الثالث '!$E$10 -> 9.3 | E108: ='جدول الصف الثالث '!$F$10 -> ساعة ونصف | G108: ='جدول الصف الثالث '!$B$10 -> الأحد | H108: ='جدول الصف الثالث '!$C$10 -> الرياضيات | I108: ='جدول الصف الثالث '!$D$10 -> 8 | J108: ='جدول الصف الثالث '!$E$10 -> 9.3 | K108: ='جدول الصف الثالث '!$F$10 -> ساعة ونصف
A109: ='جدول الصف الثالث '!$B$11 -> 2018-01-02 | B109: ='جدول الصف الثالث '!$C$11 -> اللغة الإنجليزية | C109: ='جدول الصف الثالث '!$D$11 -> 9.45 | D109: ='جدول الصف الثالث '!$E$11 -> 11.15 | E109: ='جدول الصف الثالث '!$F$11 -> ساعة ونصف | G109: ='جدول الصف الثالث '!$B$11 -> 2018-01-02 | H109: ='جدول الصف الثالث '!$C$11 -> اللغة الإنجليزية | I109: ='جدول الصف الثالث '!$D$11 -> 9.45 | J109: ='جدول الصف الثالث '!$E$11 -> 11.15 | K109: ='جدول الصف الثالث '!$F$11 -> ساعة ونصف
A111: ='جدول الصف الثالث '!$A$1 -> إدارة /غرب المحلة الكبرى التعليمية | C111: رقم اللجنة | D111: =VLOOKUP(E112,جلوس_أسماء3,7,FALSE) -> 1 | G111: ='جدول الصف الثالث '!$A$1 -> إدارة /غرب المحلة الكبرى التعليمية | I111: رقم اللجنة | J111: =VLOOKUP(K112,جلوس_أسماء3,7,FALSE) -> 2
A112: ='جدول الصف الثالث '!$A$2 -> مدرسة د/علي علي حبيش الابتدائية | C112: ='جدول الصف الثالث '!$C$5 -> الصف الثالث | E112: =E101+1 -> 11 | G112: ='جدول الصف الثالث '!$A$2 -> مدرسة د/علي علي حبيش الابتدائية | I112: ='جدول الصف الثالث '!$C$5 -> الصف الثالث | K112: =K101+1 -> 31
A113: ='جدول الصف الثالث '!$B$4 -> جدول امتحان الفصل الدراسي الأول / الثاني للعام الدراسي 2019/2018 | G113: ='جدول الصف الثالث '!$B$4 -> جدول امتحان الفصل الدراسي الأول / الثاني للعام الدراسي 2019/2018
A114: اسم التلميذ | B114: =VLOOKUP(E112,جلوس_أسماء3,3,FALSE) -> محمود11 | C114: رقم الجلوس | D114: =VLOOKUP(E112,جلوس_أسماء3,2,FALSE) -> 50 | G114: اسم التلميذ | H114: =VLOOKUP(K112,جلوس_أسماء3,3,FALSE) -> محمود31 | I114: رقم الجلوس | J114: =VLOOKUP(K112,جلوس_أسماء3,2,FALSE) -> 70
A115: اليوم والترايخ | B115: المــــــــــــــــادة | C115: الزمن | E115: الزمن | G115: اليوم والترايخ | H115: المــــــــــــــــادة | I115: الزمن | K115: الزمن
C116: من | D116: إلي | I116: من | J116: إلي
A117: ='جدول الصف الثالث '!$B$8 -> السبت | B117: ='جدول الصف الثالث '!$C$8 -> لغة عربية وخط | C117: ='جدول الصف الثالث '!$D$8 -> 8 | D117: ='جدول الصف الثالث '!$E$8 -> 10 | E117: ='جدول الصف الثالث '!$F$8 -> ساعتان | G117: ='جدول الصف الثالث '!$B$8 -> السبت | H117: ='جدول الصف الثالث '!$C$8 -> لغة عربية وخط | I117: ='جدول الصف الثالث '!$D$8 -> 8 | J117: ='جدول الصف الثالث '!$E$8 -> 10 | K117: ='جدول الصف الثالث '!$F$8 -> ساعتان
A118: ='جدول الصف الثالث '!$B$9 -> 2018-01-01 | B118: ='جدول الصف الثالث '!$C$9 -> التربية الدينية | C118: ='جدول الصف الثالث '!$D$9 -> 10.15 | D118: ='جدول الصف الثالث '!$E$9 -> 11.45 | E118: ='جدول الصف الثالث '!$F$9 -> ساعة | G118: ='جدول الصف الثالث '!$B$9 -> 2018-01-01 | H118: ='جدول الصف الثالث '!$C$9 -> التربية الدينية | I118: ='جدول الصف الثالث '!$D$9 -> 10.15 | J118: ='جدول الصف الثالث '!$E$9 -> 11.45 | K118: ='جدول الصف الثالث '!$F$9 -> ساعة
A119: ='جدول الصف الثالث '!$B$10 -> الأحد | B119: ='جدول الصف الثالث '!$C$10 -> الرياضيات | C119: ='جدول الصف الثالث '!$D$10 -> 8 | D119: ='جدول الصف الثالث '!$E$10 -> 9.3 | E119: ='جدول الصف الثالث '!$F$10 -> ساعة ونصف | G119: ='جدول الصف الثالث '!$B$10 -> الأحد | H119: ='جدول الصف الثالث '!$C$10 -> الرياضيات | I119: ='جدول الصف الثالث '!$D$10 -> 8 | J119: ='جدول الصف الثالث '!$E$10 -> 9.3 | K119: ='جدول الصف الثالث '!$F$10 -> ساعة ونصف
A120: ='جدول الصف الثالث '!$B$11 -> 2018-01-02 | B120: ='جدول الصف الثالث '!$C$11 -> اللغة الإنجليزية | C120: ='جدول الصف الثالث '!$D$11 -> 9.45 | D120: ='جدول الصف الثالث '!$E$11 -> 11.15 | E120: ='جدول الصف الثالث '!$F$11 -> ساعة ونصف | G120: ='جدول الصف الثالث '!$B$11 -> 2018-01-02 | H120: ='جدول الصف الثالث '!$C$11 -> اللغة الإنجليزية | I120: ='جدول الصف الثالث '!$D$11 -> 9.45 | J120: ='جدول الصف الثالث '!$E$11 -> 11.15 | K120: ='جدول الصف الثالث '!$F$11 -> ساعة ونصف
A122: ='جدول الصف الثالث '!$A$1 -> إدارة /غرب المحلة الكبرى التعليمية | C122: رقم اللجنة | D122: =VLOOKUP(E123,جلوس_أسماء3,7,FALSE) -> 1 | G122: ='جدول الصف الثالث '!$A$1 -> إدارة /غرب المحلة الكبرى التعليمية | I122: رقم اللجنة | J122: =VLOOKUP(K123,جلوس_أسماء3,7,FALSE) -> 2
A123: ='جدول الصف الثالث '!$A$2 -> مدرسة د/علي علي حبيش الابتدائية | C123: ='جدول الصف الثالث '!$C$5 -> الصف الثالث | E123: =E112+1 -> 12 | G123: ='جدول الصف الثالث '!$A$2 -> مدرسة د/علي علي حبيش الابتدائية | I123: ='جدول الصف الثالث '!$C$5 -> الصف الثالث | K123: =K112+1 -> 32
A124: ='جدول الصف الثالث '!$B$4 -> جدول امتحان الفصل الدراسي الأول / الثاني للعام الدراسي 2019/2018 | G124: ='جدول الصف الثالث '!$B$4 -> جدول امتحان الفصل الدراسي الأول / الثاني للعام الدراسي 2019/2018
A125: اسم التلميذ | B125: =VLOOKUP(E123,جلوس_أسماء3,3,FALSE) -> محمود12 | C125: رقم الجلوس | D125: =VLOOKUP(E123,جلوس_أسماء3,2,FALSE) -> 51 | G125: اسم التلميذ | H125: =VLOOKUP(K123,جلوس_أسماء3,3,FALSE) -> محمود32 | I125: رقم الجلوس | J125: =VLOOKUP(K123,جلوس_أسماء3,2,FALSE) -> 71
A126: اليوم والترايخ | B126: المــــــــــــــــادة | C126: الزمن | E126: الزمن | G126: اليوم والترايخ | H126: المــــــــــــــــادة | I126: الزمن | K126: الزمن
C127: من | D127: إلي | I127: من | J127: إلي
A128: ='جدول الصف الثالث '!$B$8 -> السبت | B128: ='جدول الصف الثالث '!$C$8 -> لغة عربية وخط | C128: ='جدول الصف الثالث '!$D$8 -> 8 | D128: ='جدول الصف الثالث '!$E$8 -> 10 | E128: ='جدول الصف الثالث '!$F$8 -> ساعتان | G128: ='جدول الصف الثالث '!$B$8 -> السبت | H128: ='جدول الصف الثالث '!$C$8 -> لغة عربية وخط | I128: ='جدول الصف الثالث '!$D$8 -> 8 | J128: ='جدول الصف الثالث '!$E$8 -> 10 | K128: ='جدول الصف الثالث '!$F$8 -> ساعتان
A129: ='جدول الصف الثالث '!$B$9 -> 2018-01-01 | B129: ='جدول الصف الثالث '!$C$9 -> التربية الدينية | C129: ='جدول الصف الثالث '!$D$9 -> 10.15 | D129: ='جدول الصف الثالث '!$E$9 -> 11.45 | E129: ='جدول الصف الثالث '!$F$9 -> ساعة | G129: ='جدول الصف الثالث '!$B$9 -> 2018-01-01 | H129: ='جدول الصف الثالث '!$C$9 -> التربية الدينية | I129: ='جدول الصف الثالث '!$D$9 -> 10.15 | J129: ='جدول الصف الثالث '!$E$9 -> 11.45 | K129: ='جدول الصف الثالث '!$F$9 -> ساعة
A130: ='جدول الصف الثالث '!$B$10 -> الأحد | B130: ='جدول الصف الثالث '!$C$10 -> الرياضيات | C130: ='جدول الصف الثالث '!$D$10 -> 8 | D130: ='جدول الصف الثالث '!$E$10 -> 9.3 | E130: ='جدول الصف الثالث '!$F$10 -> ساعة ونصف | G130: ='جدول الصف الثالث '!$B$10 -> الأحد | H130: ='جدول الصف الثالث '!$C$10 -> الرياضيات | I130: ='جدول الصف الثالث '!$D$10 -> 8 | J130: ='جدول الصف الثالث '!$E$10 -> 9.3 | K130: ='جدول الصف الثالث '!$F$10 -> ساعة ونصف
A131: ='جدول الصف الثالث '!$B$11 -> 2018-01-02 | B131: ='جدول الصف الثالث '!$C$11 -> اللغة الإنجليزية | C131: ='جدول الصف الثالث '!$D$11 -> 9.45 | D131: ='جدول الصف الثالث '!$E$11 -> 11.15 | E131: ='جدول الصف الثالث '!$F$11 -> ساعة ونصف | G131: ='جدول الصف الثالث '!$B$11 -> 2018-01-02 | H131: ='جدول الصف الثالث '!$C$11 -> اللغة الإنجليزية | I131: ='جدول الصف الثالث '!$D$11 -> 9.45 | J131: ='جدول الصف الثالث '!$E$11 -> 11.15 | K131: ='جدول الصف الثالث '!$F$11 -> ساعة ونصف
A133: ='جدول الصف الثالث '!$A$1 -> إدارة /غرب المحلة الكبرى التعليمية | C133: رقم اللجنة | D133: =VLOOKUP(E134,جلوس_أسماء3,7,FALSE) -> 1 | G133: ='جدول الصف الثالث '!$A$1 -> إدارة /غرب المحلة الكبرى التعليمية | I133: رقم اللجنة | J133: =VLOOKUP(K134,جلوس_أسماء3,7,FALSE) -> 2
A134: ='جدول الصف الثالث '!$A$2 -> مدرسة د/علي علي حبيش الابتدائية | C134: ='جدول الصف الثالث '!$C$5 -> الصف الثالث | E134: =E123+1 -> 13 | G134: ='جدول الصف الثالث '!$A$2 -> مدرسة د/علي علي حبيش الابتدائية | I134: ='جدول الصف الثالث '!$C$5 -> الصف الثالث | K134: =K123+1 -> 33
A135: ='جدول الصف الثالث '!$B$4 -> جدول امتحان الفصل الدراسي الأول / الثاني للعام الدراسي 2019/2018 | G135: ='جدول الصف الثالث '!$B$4 -> جدول امتحان الفصل الدراسي الأول / الثاني للعام الدراسي 2019/2018
A136: اسم التلميذ | B136: =VLOOKUP(E134,جلوس_أسماء3,3,FALSE) -> محمود13 | C136: رقم الجلوس | D136: =VLOOKUP(E134,جلوس_أسماء3,2,FALSE) -> 52 | G136: اسم التلميذ | H136: =VLOOKUP(K134,جلوس_أسماء3,3,FALSE) -> محمود33 | I136: رقم الجلوس | J136: =VLOOKUP(K134,جلوس_أسماء3,2,FALSE) -> 72
A137: اليوم والترايخ | B137: المــــــــــــــــادة | C137: الزمن | E137: الزمن | G137: اليوم والترايخ | H137: المــــــــــــــــادة | I137: الزمن | K137: الزمن
C138: من | D138: إلي | I138: من | J138: إلي
A139: ='جدول الصف الثالث '!$B$8 -> السبت | B139: ='جدول الصف الثالث '!$C$8 -> لغة عربية وخط | C139: ='جدول الصف الثالث '!$D$8 -> 8 | D139: ='جدول الصف الثالث '!$E$8 -> 10 | E139: ='جدول الصف الثالث '!$F$8 -> ساعتان | G139: ='جدول الصف الثالث '!$B$8 -> السبت | H139: ='جدول الصف الثالث '!$C$8 -> لغة عربية وخط | I139: ='جدول الصف الثالث '!$D$8 -> 8 | J139: ='جدول الصف الثالث '!$E$8 -> 10 | K139: ='جدول الصف الثالث '!$F$8 -> ساعتان
A140: ='جدول الصف الثالث '!$B$9 -> 2018-01-01 | B140: ='جدول الصف الثالث '!$C$9 -> التربية الدينية | C140: ='جدول الصف الثالث '!$D$9 -> 10.15 | D140: ='جدول الصف الثالث '!$E$9 -> 11.45 | E140: ='جدول الصف الثالث '!$F$9 -> ساعة | G140: ='جدول الصف الثالث '!$B$9 -> 2018-01-01 | H140: ='جدول الصف الثالث '!$C$9 -> التربية الدينية | I140: ='جدول الصف الثالث '!$D$9 -> 10.15 | J140: ='جدول الصف الثالث '!$E$9 -> 11.45 | K140: ='جدول الصف الثالث '!$F$9 -> ساعة
A141: ='جدول الصف الثالث '!$B$10 -> الأحد | B141: ='جدول الصف الثالث '!$C$10 -> الرياضيات | C141: ='جدول الصف الثالث '!$D$10 -> 8 | D141: ='جدول الصف الثالث '!$E$10 -> 9.3 | E141: ='جدول الصف الثالث '!$F$10 -> ساعة ونصف | G141: ='جدول الصف الثالث '!$B$10 -> الأحد | H141: ='جدول الصف الثالث '!$C$10 -> الرياضيات | I141: ='جدول الصف الثالث '!$D$10 -> 8 | J141: ='جدول الصف الثالث '!$E$10 -> 9.3 | K141: ='جدول الصف الثالث '!$F$10 -> ساعة ونصف
A142: ='جدول الصف الثالث '!$B$11 -> 2018-01-02 | B142: ='جدول الصف الثالث '!$C$11 -> اللغة الإنجليزية | C142: ='جدول الصف الثالث '!$D$11 -> 9.45 | D142: ='جدول الصف الثالث '!$E$11 -> 11.15 | E142: ='جدول الصف الثالث '!$F$11 -> ساعة ونصف | G142: ='جدول الصف الثالث '!$B$11 -> 2018-01-02 | H142: ='جدول الصف الثالث '!$C$11 -> اللغة الإنجليزية | I142: ='جدول الصف الثالث '!$D$11 -> 9.45 | J142: ='جدول الصف الثالث '!$E$11 -> 11.15 | K142: ='جدول الصف الثالث '!$F$11 -> ساعة ونصف
A144: ='جدول الصف الثالث '!$A$1 -> إدارة /غرب المحلة الكبرى التعليمية | C144: رقم اللجنة | D144: =VLOOKUP(E145,جلوس_أسماء3,7,FALSE) -> 1 | G144: ='جدول الصف الثالث '!$A$1 -> إدارة /غرب المحلة الكبرى التعليمية | I144: رقم اللجنة | J144: =VLOOKUP(K145,جلوس_أسماء3,7,FALSE) -> 2
A145: ='جدول الصف الثالث '!$A$2 -> مدرسة د/علي علي حبيش الابتدائية | C145: ='جدول الصف الثالث '!$C$5 -> الصف الثالث | E145: =E134+1 -> 14 | G145: ='جدول الصف الثالث '!$A$2 -> مدرسة د/علي علي حبيش الابتدائية | I145: ='جدول الصف الثالث '!$C$5 -> الصف الثالث | K145: =K134+1 -> 34
A146: ='جدول الصف الثالث '!$B$4 -> جدول امتحان الفصل الدراسي الأول / الثاني للعام الدراسي 2019/2018 | G146: ='جدول الصف الثالث '!$B$4 -> جدول امتحان الفصل الدراسي الأول / الثاني للعام الدراسي 2019/2018
A147: اسم التلميذ | B147: =VLOOKUP(E145,جلوس_أسماء3,3,FALSE) -> محمود14 | C147: رقم الجلوس | D147: =VLOOKUP(E145,جلوس_أسماء3,2,FALSE) -> 53 | G147: اسم التلميذ | H147: =VLOOKUP(K145,جلوس_أسماء3,3,FALSE) -> محمود34 | I147: رقم الجلوس | J147: =VLOOKUP(K145,جلوس_أسماء3,2,FALSE) -> 73
A148: اليوم والترايخ | B148: المــــــــــــــــادة | C148: الزمن | E148: الزمن | G148: اليوم والترايخ | H148: المــــــــــــــــادة | I148: الزمن | K148: الزمن
C149: من | D149: إلي | I149: من | J149: إلي
A150: ='جدول الصف الثالث '!$B$8 -> السبت | B150: ='جدول الصف الثالث '!$C$8 -> لغة عربية وخط | C150: ='جدول الصف الثالث '!$D$8 -> 8 | D150: ='جدول الصف الثالث '!$E$8 -> 10 | E150: ='جدول الصف الثالث '!$F$8 -> ساعتان | G150: ='جدول الصف الثالث '!$B$8 -> السبت | H150: ='جدول الصف الثالث '!$C$8 -> لغة عربية وخط | I150: ='جدول الصف الثالث '!$D$8 -> 8 | J150: ='جدول الصف الثالث '!$E$8 -> 10 | K150: ='جدول الصف الثالث '!$F$8 -> ساعتان
A151: ='جدول الصف الثالث '!$B$9 -> 2018-01-01 | B151: ='جدول الصف الثالث '!$C$9 -> التربية الدينية | C151: ='جدول الصف الثالث '!$D$9 -> 10.15 | D151: ='جدول الصف الثالث '!$E$9 -> 11.45 | E151: ='جدول الصف الثالث '!$F$9 -> ساعة | G151: ='جدول الصف الثالث '!$B$9 -> 2018-01-01 | H151: ='جدول الصف الثالث '!$C$9 -> التربية الدينية | I151: ='جدول الصف الثالث '!$D$9 -> 10.15 | J151: ='جدول الصف الثالث '!$E$9 -> 11.45 | K151: ='جدول الصف الثالث '!$F$9 -> ساعة
A152: ='جدول الصف الثالث '!$B$10 -> الأحد | B152: ='جدول الصف الثالث '!$C$10 -> الرياضيات | C152: ='جدول الصف الثالث '!$D$10 -> 8 | D152: ='جدول الصف الثالث '!$E$10 -> 9.3 | E152: ='جدول الصف الثالث '!$F$10 -> ساعة ونصف | G152: ='جدول الصف الثالث '!$B$10 -> الأحد | H152: ='جدول الصف الثالث '!$C$10 -> الرياضيات | I152: ='جدول الصف الثالث '!$D$10 -> 8 | J152: ='جدول الصف الثالث '!$E$10 -> 9.3 | K152: ='جدول الصف الثالث '!$F$10 -> ساعة ونصف
A153: ='جدول الصف الثالث '!$B$11 -> 2018-01-02 | B153: ='جدول الصف الثالث '!$C$11 -> اللغة الإنجليزية | C153: ='جدول الصف الثالث '!$D$11 -> 9.45 | D153: ='جدول الصف الثالث '!$E$11 -> 11.15 | E153: ='جدول الصف الثالث '!$F$11 -> ساعة ونصف | G153: ='جدول الصف الثالث '!$B$11 -> 2018-01-02 | H153: ='جدول الصف الثالث '!$C$11 -> اللغة الإنجليزية | I153: ='جدول الصف الثالث '!$D$11 -> 9.45 | J153: ='جدول الصف الثالث '!$E$11 -> 11.15 | K153: ='جدول الصف الثالث '!$F$11 -> ساعة ونصف
A155: ='جدول الصف الثالث '!$A$1 -> إدارة /غرب المحلة الكبرى التعليمية | C155: رقم اللجنة | D155: =VLOOKUP(E156,جلوس_أسماء3,7,FALSE) -> 1 | G155: ='جدول الصف الثالث '!$A$1 -> إدارة /غرب المحلة الكبرى التعليمية | I155: رقم اللجنة | J155: =VLOOKUP(K156,جلوس_أسماء3,7,FALSE) -> 2
A156: ='جدول الصف الثالث '!$A$2 -> مدرسة د/علي علي حبيش الابتدائية | C156: ='جدول الصف الثالث '!$C$5 -> الصف الثالث | E156: =E145+1 -> 15 | G156: ='جدول الصف الثالث '!$A$2 -> مدرسة د/علي علي حبيش الابتدائية | I156: ='جدول الصف الثالث '!$C$5 -> الصف الثالث | K156: =K145+1 -> 35
A157: ='جدول الصف الثالث '!$B$4 -> جدول امتحان الفصل الدراسي الأول / الثاني للعام الدراسي 2019/2018 | G157: ='جدول الصف الثالث '!$B$4 -> جدول امتحان الفصل الدراسي الأول / الثاني للعام الدراسي 2019/2018
A158: اسم التلميذ | B158: =VLOOKUP(E156,جلوس_أسماء3,3,FALSE) -> محمود15 | C158: رقم الجلوس | D158: =VLOOKUP(E156,جلوس_أسماء3,2,FALSE) -> 54 | G158: اسم التلميذ | H158: =VLOOKUP(K156,جلوس_أسماء3,3,FALSE) -> محمود35 | I158: رقم الجلوس | J158: =VLOOKUP(K156,جلوس_أسماء3,2,FALSE) -> 74
A159: اليوم والترايخ | B159: المــــــــــــــــادة | C159: الزمن | E159: الزمن | G159: اليوم والترايخ | H159: المــــــــــــــــادة | I159: الزمن | K159: الزمن
C160: من | D160: إلي | I160: من | J160: إلي
A161: ='جدول الصف الثالث '!$B$8 -> السبت | B161: ='جدول الصف الثالث '!$C$8 -> لغة عربية وخط | C161: ='جدول الصف الثالث '!$D$8 -> 8 | D161: ='جدول الصف الثالث '!$E$8 -> 10 | E161: ='جدول الصف الثالث '!$F$8 -> ساعتان | G161: ='جدول الصف الثالث '!$B$8 -> السبت | H161: ='جدول الصف الثالث '!$C$8 -> لغة عربية وخط | I161: ='جدول الصف الثالث '!$D$8 -> 8 | J161: ='جدول الصف الثالث '!$E$8 -> 10 | K161: ='جدول الصف الثالث '!$F$8 -> ساعتان
A162: ='جدول الصف الثالث '!$B$9 -> 2018-01-01 | B162: ='جدول الصف الثالث '!$C$9 -> التربية الدينية | C162: ='جدول الصف الثالث '!$D$9 -> 10.15 | D162: ='جدول الصف الثالث '!$E$9 -> 11.45 | E162: ='جدول الصف الثالث '!$F$9 -> ساعة | G162: ='جدول الصف الثالث '!$B$9 -> 2018-01-01 | H162: ='جدول الصف الثالث '!$C$9 -> التربية الدينية | I162: ='جدول الصف الثالث '!$D$9 -> 10.15 | J162: ='جدول الصف الثالث '!$E$9 -> 11.45 | K162: ='جدول الصف الثالث '!$F$9 -> ساعة
A163: ='جدول الصف الثالث '!$B$10 -> الأحد | B163: ='جدول الصف الثالث '!$C$10 -> الرياضيات | C163: ='جدول الصف الثالث '!$D$10 -> 8 | D163: ='جدول الصف الثالث '!$E$10 -> 9.3 | E163: ='جدول الصف الثالث '!$F$10 -> ساعة ونصف | G163: ='جدول الصف الثالث '!$B$10 -> الأحد | H163: ='جدول الصف الثالث '!$C$10 -> الرياضيات | I163: ='جدول الصف الثالث '!$D$10 -> 8 | J163: ='جدول الصف الثالث '!$E$10 -> 9.3 | K163: ='جدول الصف الثالث '!$F$10 -> ساعة ونصف
A164: ='جدول الصف الثالث '!$B$11 -> 2018-01-02 | B164: ='جدول الصف الثالث '!$C$11 -> اللغة الإنجليزية | C164: ='جدول الصف الثالث '!$D$11 -> 9.45 | D164: ='جدول الصف الثالث '!$E$11 -> 11.15 | E164: ='جدول الصف الثالث '!$F$11 -> ساعة ونصف | G164: ='جدول الصف الثالث '!$B$11 -> 2018-01-02 | H164: ='جدول الصف الثالث '!$C$11 -> اللغة الإنجليزية | I164: ='جدول الصف الثالث '!$D$11 -> 9.45 | J164: ='جدول الصف الثالث '!$E$11 -> 11.15 | K164: ='جدول الصف الثالث '!$F$11 -> ساعة ونصف
A166: ='جدول الصف الثالث '!$A$1 -> إدارة /غرب المحلة الكبرى التعليمية | C166: رقم اللجنة | D166: =VLOOKUP(E167,جلوس_أسماء3,7,FALSE) -> 1 | G166: ='جدول الصف الثالث '!$A$1 -> إدارة /غرب المحلة الكبرى التعليمية | I166: رقم اللجنة | J166: =VLOOKUP(K167,جلوس_أسماء3,7,FALSE) -> 2
A167: ='جدول الصف الثالث '!$A$2 -> مدرسة د/علي علي حبيش الابتدائية | C167: ='جدول الصف الثالث '!$C$5 -> الصف الثالث | E167: =E156+1 -> 16 | G167: ='جدول الصف الثالث '!$A$2 -> مدرسة د/علي علي حبيش الابتدائية | I167: ='جدول الصف الثالث '!$C$5 -> الصف الثالث | K167: =K156+1 -> 36
A168: ='جدول الصف الثالث '!$B$4 -> جدول امتحان الفصل الدراسي الأول / الثاني للعام الدراسي 2019/2018 | G168: ='جدول الصف الثالث '!$B$4 -> جدول امتحان الفصل الدراسي الأول / الثاني للعام الدراسي 2019/2018
A169: اسم التلميذ | B169: =VLOOKUP(E167,جلوس_أسماء3,3,FALSE) -> محمود16 | C169: رقم الجلوس | D169: =VLOOKUP(E167,جلوس_أسماء3,2,FALSE) -> 55 | G169: اسم التلميذ | H169: =VLOOKUP(K167,جلوس_أسماء3,3,FALSE) -> محمود36 | I169: رقم الجلوس | J169: =VLOOKUP(K167,جلوس_أسماء3,2,FALSE) -> 75
A170: اليوم والترايخ | B170: المــــــــــــــــادة | C170: الزمن | E170: الزمن | G170: اليوم والترايخ | H170: المــــــــــــــــادة | I170: الزمن | K170: الزمن
C171: من | D171: إلي | I171: من | J171: إلي
A172: ='جدول الصف الثالث '!$B$8 -> السبت | B172: ='جدول الصف الثالث '!$C$8 -> لغة عربية وخط | C172: ='جدول الصف الثالث '!$D$8 -> 8 | D172: ='جدول الصف الثالث '!$E$8 -> 10 | E172: ='جدول الصف الثالث '!$F$8 -> ساعتان | G172: ='جدول الصف الثالث '!$B$8 -> السبت | H172: ='جدول الصف الثالث '!$C$8 -> لغة عربية وخط | I172: ='جدول الصف الثالث '!$D$8 -> 8 | J172: ='جدول الصف الثالث '!$E$8 -> 10 | K172: ='جدول الصف الثالث '!$F$8 -> ساعتان
A173: ='جدول الصف الثالث '!$B$9 -> 2018-01-01 | B173: ='جدول الصف الثالث '!$C$9 -> التربية الدينية | C173: ='جدول الصف الثالث '!$D$9 -> 10.15 | D173: ='جدول الصف الثالث '!$E$9 -> 11.45 | E173: ='جدول الصف الثالث '!$F$9 -> ساعة | G173: ='جدول الصف الثالث '!$B$9 -> 2018-01-01 | H173: ='جدول الصف الثالث '!$C$9 -> التربية الدينية | I173: ='جدول الصف الثالث '!$D$9 -> 10.15 | J173: ='جدول الصف الثالث '!$E$9 -> 11.45 | K173: ='جدول الصف الثالث '!$F$9 -> ساعة
A174: ='جدول الصف الثالث '!$B$10 -> الأحد | B174: ='جدول الصف الثالث '!$C$10 -> الرياضيات | C174: ='جدول الصف الثالث '!$D$10 -> 8 | D174: ='جدول الصف الثالث '!$E$10 -> 9.3 | E174: ='جدول الصف الثالث '!$F$10 -> ساعة ونصف | G174: ='جدول الصف الثالث '!$B$10 -> الأحد | H174: ='جدول الصف الثالث '!$C$10 -> الرياضيات | I174: ='جدول الصف الثالث '!$D$10 -> 8 | J174: ='جدول الصف الثالث '!$E$10 -> 9.3 | K174: ='جدول الصف الثالث '!$F$10 -> ساعة ونصف
A175: ='جدول الصف الثالث '!$B$11 -> 2018-01-02 | B175: ='جدول الصف الثالث '!$C$11 -> اللغة الإنجليزية | C175: ='جدول الصف الثالث '!$D$11 -> 9.45 | D175: ='جدول الصف الثالث '!$E$11 -> 11.15 | E175: ='جدول الصف الثالث '!$F$11 -> ساعة ونصف | G175: ='جدول الصف الثالث '!$B$11 -> 2018-01-02 | H175: ='جدول الصف الثالث '!$C$11 -> اللغة الإنجليزية | I175: ='جدول الصف الثالث '!$D$11 -> 9.45 | J175: ='جدول الصف الثالث '!$E$11 -> 11.15 | K175: ='جدول الصف الثالث '!$F$11 -> ساعة ونصف
A177: ='جدول الصف الثالث '!$A$1 -> إدارة /غرب المحلة الكبرى التعليمية | C177: رقم اللجنة | D177: =VLOOKUP(E178,جلوس_أسماء3,7,FALSE) -> 1 | G177: ='جدول الصف الثالث '!$A$1 -> إدارة /غرب المحلة الكبرى التعليمية | I177: رقم اللجنة | J177: =VLOOKUP(K178,جلوس_أسماء3,7,FALSE) -> 2
A178: ='جدول الصف الثالث '!$A$2 -> مدرسة د/علي علي حبيش الابتدائية | C178: ='جدول الصف الثالث '!$C$5 -> الصف الثالث | E178: =E167+1 -> 17 | G178: ='جدول الصف الثالث '!$A$2 -> مدرسة د/علي علي حبيش الابتدائية | I178: ='جدول الصف الثالث '!$C$5 -> الصف الثالث | K178: =K167+1 -> 37
A179: ='جدول الصف الثالث '!$B$4 -> جدول امتحان الفصل الدراسي الأول / الثاني للعام الدراسي 2019/2018 | G179: ='جدول الصف الثالث '!$B$4 -> جدول امتحان الفصل الدراسي الأول / الثاني للعام الدراسي 2019/2018
A180: اسم التلميذ | B180: =VLOOKUP(E178,جلوس_أسماء3,3,FALSE) -> محمود17 | C180: رقم الجلوس | D180: =VLOOKUP(E178,جلوس_أسماء3,2,FALSE) -> 56 | G180: اسم التلميذ | H180: =VLOOKUP(K178,جلوس_أسماء3,3,FALSE) -> محمود37 | I180: رقم الجلوس | J180: =VLOOKUP(K178,جلوس_أسماء3,2,FALSE) -> 76
A181: اليوم والترايخ | B181: المــــــــــــــــادة | C181: الزمن | E181: الزمن | G181: اليوم والترايخ | H181: المــــــــــــــــادة | I181: الزمن | K181: الزمن
C182: من | D182: إلي | I182: من | J182: إلي
A183: ='جدول الصف الثالث '!$B$8 -> السبت | B183: ='جدول الصف الثالث '!$C$8 -> لغة عربية وخط | C183: ='جدول الصف الثالث '!$D$8 -> 8 | D183: ='جدول الصف الثالث '!$E$8 -> 10 | E183: ='جدول الصف الثالث '!$F$8 -> ساعتان | G183: ='جدول الصف الثالث '!$B$8 -> السبت | H183: ='جدول الصف الثالث '!$C$8 -> لغة عربية وخط | I183: ='جدول الصف الثالث '!$D$8 -> 8 | J183: ='جدول الصف الثالث '!$E$8 -> 10 | K183: ='جدول الصف الثالث '!$F$8 -> ساعتان
A184: ='جدول الصف الثالث '!$B$9 -> 2018-01-01 | B184: ='جدول الصف الثالث '!$C$9 -> التربية الدينية | C184: ='جدول الصف الثالث '!$D$9 -> 10.15 | D184: ='جدول الصف الثالث '!$E$9 -> 11.45 | E184: ='جدول الصف الثالث '!$F$9 -> ساعة | G184: ='جدول الصف الثالث '!$B$9 -> 2018-01-01 | H184: ='جدول الصف الثالث '!$C$9 -> التربية الدينية | I184: ='جدول الصف الثالث '!$D$9 -> 10.15 | J184: ='جدول الصف الثالث '!$E$9 -> 11.45 | K184: ='جدول الصف الثالث '!$F$9 -> ساعة
A185: ='جدول الصف الثالث '!$B$10 -> الأحد | B185: ='جدول الصف الثالث '!$C$10 -> الرياضيات | C185: ='جدول الصف الثالث '!$D$10 -> 8 | D185: ='جدول الصف الثالث '!$E$10 -> 9.3 | E185: ='جدول الصف الثالث '!$F$10 -> ساعة ونصف | G185: ='جدول الصف الثالث '!$B$10 -> الأحد | H185: ='جدول الصف الثالث '!$C$10 -> الرياضيات | I185: ='جدول الصف الثالث '!$D$10 -> 8 | J185: ='جدول الصف الثالث '!$E$10 -> 9.3 | K185: ='جدول الصف الثالث '!$F$10 -> ساعة ونصف
A186: ='جدول الصف الثالث '!$B$11 -> 2018-01-02 | B186: ='جدول الصف الثالث '!$C$11 -> اللغة الإنجليزية | C186: ='جدول الصف الثالث '!$D$11 -> 9.45 | D186: ='جدول الصف الثالث '!$E$11 -> 11.15 | E186: ='جدول الصف الثالث '!$F$11 -> ساعة ونصف | G186: ='جدول الصف الثالث '!$B$11 -> 2018-01-02 | H186: ='جدول الصف الثالث '!$C$11 -> اللغة الإنجليزية | I186: ='جدول الصف الثالث '!$D$11 -> 9.45 | J186: ='جدول الصف الثالث '!$E$11 -> 11.15 | K186: ='جدول الصف الثالث '!$F$11 -> ساعة ونصف
A188: ='جدول الصف الثالث '!$A$1 -> إدارة /غرب المحلة الكبرى التعليمية | C188: رقم اللجنة | D188: =VLOOKUP(E189,جلوس_أسماء3,7,FALSE) -> 1 | G188: ='جدول الصف الثالث '!$A$1 -> إدارة /غرب المحلة الكبرى التعليمية | I188: رقم اللجنة | J188: =VLOOKUP(K189,جلوس_أسماء3,7,FALSE) -> 2
A189: ='جدول الصف الثالث '!$A$2 -> مدرسة د/علي علي حبيش الابتدائية | C189: ='جدول الصف الثالث '!$C$5 -> الصف الثالث | E189: =E178+1 -> 18 | G189: ='جدول الصف الثالث '!$A$2 -> مدرسة د/علي علي حبيش الابتدائية | I189: ='جدول الصف الثالث '!$C$5 -> الصف الثالث | K189: =K178+1 -> 38
A190: ='جدول الصف الثالث '!$B$4 -> جدول امتحان الفصل الدراسي الأول / الثاني للعام الدراسي 2019/2018 | G190: ='جدول الصف الثالث '!$B$4 -> جدول امتحان الفصل الدراسي الأول / الثاني للعام الدراسي 2019/2018
A191: اسم التلميذ | B191: =VLOOKUP(E189,جلوس_أسماء3,3,FALSE) -> محمود18 | C191: رقم الجلوس | D191: =VLOOKUP(E189,جلوس_أسماء3,2,FALSE) -> 57 | G191: اسم التلميذ | H191: =VLOOKUP(K189,جلوس_أسماء3,3,FALSE) -> محمود38 | I191: رقم الجلوس | J191: =VLOOKUP(K189,جلوس_أسماء3,2,FALSE) -> 77
A192: اليوم والترايخ | B192: المــــــــــــــــادة | C192: الزمن | E192: الزمن | G192: اليوم والترايخ | H192: المــــــــــــــــادة | I192: الزمن | K192: الزمن
C193: من | D193: إلي | I193: من | J193: إلي
A194: ='جدول الصف الثالث '!$B$8 -> السبت | B194: ='جدول الصف الثالث '!$C$8 -> لغة عربية وخط | C194: ='جدول الصف الثالث '!$D$8 -> 8 | D194: ='جدول الصف الثالث '!$E$8 -> 10 | E194: ='جدول الصف الثالث '!$F$8 -> ساعتان | G194: ='جدول الصف الثالث '!$B$8 -> السبت | H194: ='جدول الصف الثالث '!$C$8 -> لغة عربية وخط | I194: ='جدول الصف الثالث '!$D$8 -> 8 | J194: ='جدول الصف الثالث '!$E$8 -> 10 | K194: ='جدول الصف الثالث '!$F$8 -> ساعتان
A195: ='جدول الصف الثالث '!$B$9 -> 2018-01-01 | B195: ='جدول الصف الثالث '!$C$9 -> التربية الدينية | C195: ='جدول الصف الثالث '!$D$9 -> 10.15 | D195: ='جدول الصف الثالث '!$E$9 -> 11.45 | E195: ='جدول الصف الثالث '!$F$9 -> ساعة | G195: ='جدول الصف الثالث '!$B$9 -> 2018-01-01 | H195: ='جدول الصف الثالث '!$C$9 -> التربية الدينية | I195: ='جدول الصف الثالث '!$D$9 -> 10.15 | J195: ='جدول الصف الثالث '!$E$9 -> 11.45 | K195: ='جدول الصف الثالث '!$F$9 -> ساعة
A196: ='جدول الصف الثالث '!$B$10 -> الأحد | B196: ='جدول الصف الثالث '!$C$10 -> الرياضيات | C196: ='جدول الصف الثالث '!$D$10 -> 8 | D196: ='جدول الصف الثالث '!$E$10 -> 9.3 | E196: ='جدول الصف الثالث '!$F$10 -> ساعة ونصف | G196: ='جدول الصف الثالث '!$B$10 -> الأحد | H196: ='جدول الصف الثالث '!$C$10 -> الرياضيات | I196: ='جدول الصف الثالث '!$D$10 -> 8 | J196: ='جدول الصف الثالث '!$E$10 -> 9.3 | K196: ='جدول الصف الثالث '!$F$10 -> ساعة ونصف
A197: ='جدول الصف الثالث '!$B$11 -> 2018-01-02 | B197: ='جدول الصف الثالث '!$C$11 -> اللغة الإنجليزية | C197: ='جدول الصف الثالث '!$D$11 -> 9.45 | D197: ='جدول الصف الثالث '!$E$11 -> 11.15 | E197: ='جدول الصف الثالث '!$F$11 -> ساعة ونصف | G197: ='جدول الصف الثالث '!$B$11 -> 2018-01-02 | H197: ='جدول الصف الثالث '!$C$11 -> اللغة الإنجليزية | I197: ='جدول الصف الثالث '!$D$11 -> 9.45 | J197: ='جدول الصف الثالث '!$E$11 -> 11.15 | K197: ='جدول الصف الثالث '!$F$11 -> ساعة ونصف
A199: ='جدول الصف الثالث '!$A$1 -> إدارة /غرب المحلة الكبرى التعليمية | C199: رقم اللجنة | D199: =VLOOKUP(E200,جلوس_أسماء3,7,FALSE) -> 1 | G199: ='جدول الصف الثالث '!$A$1 -> إدارة /غرب المحلة الكبرى التعليمية | I199: رقم اللجنة | J199: =VLOOKUP(K200,جلوس_أسماء3,7,FALSE) -> 2
A200: ='جدول الصف الثالث '!$A$2 -> مدرسة د/علي علي حبيش الابتدائية | C200: ='جدول الصف الثالث '!$C$5 -> الصف الثالث | E200: =E189+1 -> 19 | G200: ='جدول الصف الثالث '!$A$2 -> مدرسة د/علي علي حبيش الابتدائية | I200: ='جدول الصف الثالث '!$C$5 -> الصف الثالث | K200: =K189+1 -> 39
A201: ='جدول الصف الثالث '!$B$4 -> جدول امتحان الفصل الدراسي الأول / الثاني للعام الدراسي 2019/2018 | G201: ='جدول الصف الثالث '!$B$4 -> جدول امتحان الفصل الدراسي الأول / الثاني للعام الدراسي 2019/2018
A202: اسم التلميذ | B202: =VLOOKUP(E200,جلوس_أسماء3,3,FALSE) -> محمود19 | C202: رقم الجلوس | D202: =VLOOKUP(E200,جلوس_أسماء3,2,FALSE) -> 58 | G202: اسم التلميذ | H202: =VLOOKUP(K200,جلوس_أسماء3,3,FALSE) -> محمود39 | I202: رقم الجلوس | J202: =VLOOKUP(K200,جلوس_أسماء3,2,FALSE) -> 78
A203: اليوم والترايخ | B203: المــــــــــــــــادة | C203: الزمن | E203: الزمن | G203: اليوم والترايخ | H203: المــــــــــــــــادة | I203: الزمن | K203: الزمن
C204: من | D204: إلي | I204: من | J204: إلي
A205: ='جدول الصف الثالث '!$B$8 -> السبت | B205: ='جدول الصف الثالث '!$C$8 -> لغة عربية وخط | C205: ='جدول الصف الثالث '!$D$8 -> 8 | D205: ='جدول الصف الثالث '!$E$8 -> 10 | E205: ='جدول الصف الثالث '!$F$8 -> ساعتان | G205: ='جدول الصف الثالث '!$B$8 -> السبت | H205: ='جدول الصف الثالث '!$C$8 -> لغة عربية وخط | I205: ='جدول الصف الثالث '!$D$8 -> 8 | J205: ='جدول الصف الثالث '!$E$8 -> 10 | K205: ='جدول الصف الثالث '!$F$8 -> ساعتان
A206: ='جدول الصف الثالث '!$B$9 -> 2018-01-01 | B206: ='جدول الصف الثالث '!$C$9 -> التربية الدينية | C206: ='جدول الصف الثالث '!$D$9 -> 10.15 | D206: ='جدول الصف الثالث '!$E$9 -> 11.45 | E206: ='جدول الصف الثالث '!$F$9 -> ساعة | G206: ='جدول الصف الثالث '!$B$9 -> 2018-01-01 | H206: ='جدول الصف الثالث '!$C$9 -> التربية الدينية | I206: ='جدول الصف الثالث '!$D$9 -> 10.15 | J206: ='جدول الصف الثالث '!$E$9 -> 11.45 | K206: ='جدول الصف الثالث '!$F$9 -> ساعة
A207: ='جدول الصف الثالث '!$B$10 -> الأحد | B207: ='جدول الصف الثالث '!$C$10 -> الرياضيات | C207: ='جدول الصف الثالث '!$D$10 -> 8 | D207: ='جدول الصف الثالث '!$E$10 -> 9.3 | E207: ='جدول الصف الثالث '!$F$10 -> ساعة ونصف | G207: ='جدول الصف الثالث '!$B$10 -> الأحد | H207: ='جدول الصف الثالث '!$C$10 -> الرياضيات | I207: ='جدول الصف الثالث '!$D$10 -> 8 | J207: ='جدول الصف الثالث '!$E$10 -> 9.3 | K207: ='جدول الصف الثالث '!$F$10 -> ساعة ونصف
A208: ='جدول الصف الثالث '!$B$11 -> 2018-01-02 | B208: ='جدول الصف الثالث '!$C$11 -> اللغة الإنجليزية | C208: ='جدول الصف الثالث '!$D$11 -> 9.45 | D208: ='جدول الصف الثالث '!$E$11 -> 11.15 | E208: ='جدول الصف الثالث '!$F$11 -> ساعة ونصف | G208: ='جدول الصف الثالث '!$B$11 -> 2018-01-02 | H208: ='جدول الصف الثالث '!$C$11 -> اللغة الإنجليزية | I208: ='جدول الصف الثالث '!$D$11 -> 9.45 | J208: ='جدول الصف الثالث '!$E$11 -> 11.15 | K208: ='جدول الصف الثالث '!$F$11 -> ساعة ونصف
A210: ='جدول الصف الثالث '!$A$1 -> إدارة /غرب المحلة الكبرى التعليمية | C210: رقم اللجنة | D210: =VLOOKUP(E211,جلوس_أسماء3,7,FALSE) -> 1 | G210: ='جدول الصف الثالث '!$A$1 -> إدارة /غرب المحلة الكبرى التعليمية | I210: رقم اللجنة | J210: =VLOOKUP(K211,جلوس_أسماء3,7,FALSE) -> 2
A211: ='جدول الصف الثالث '!$A$2 -> مدرسة د/علي علي حبيش الابتدائية | C211: ='جدول الصف الثالث '!$C$5 -> الصف الثالث | E211: =E200+1 -> 20 | G211: ='جدول الصف الثالث '!$A$2 -> مدرسة د/علي علي حبيش الابتدائية | I211: ='جدول الصف الثالث '!$C$5 -> الصف الثالث | K211: =K200+1 -> 40
A212: ='جدول الصف الثالث '!$B$4 -> جدول امتحان الفصل الدراسي الأول / الثاني للعام الدراسي 2019/2018 | G212: ='جدول الصف الثالث '!$B$4 -> جدول امتحان الفصل الدراسي الأول / الثاني للعام الدراسي 2019/2018
A213: اسم التلميذ | B213: =VLOOKUP(E211,جلوس_أسماء3,3,FALSE) -> محمود20 | C213: رقم الجلوس | D213: =VLOOKUP(E211,جلوس_أسماء3,2,FALSE) -> 59 | G213: اسم التلميذ | H213: =VLOOKUP(K211,جلوس_أسماء3,3,FALSE) -> محمود40 | I213: رقم الجلوس | J213: =VLOOKUP(K211,جلوس_أسماء3,2,FALSE) -> 79
A214: اليوم والترايخ | B214: المــــــــــــــــادة | C214: الزمن | E214: الزمن | G214: اليوم والترايخ | H214: المــــــــــــــــادة | I214: الزمن | K214: الزمن
C215: من | D215: إلي | I215: من | J215: إلي
A216: ='جدول الصف الثالث '!$B$8 -> السبت | B216: ='جدول الصف الثالث '!$C$8 -> لغة عربية وخط | C216: ='جدول الصف الثالث '!$D$8 -> 8 | D216: ='جدول الصف الثالث '!$E$8 -> 10 | E216: ='جدول الصف الثالث '!$F$8 -> ساعتان | G216: ='جدول الصف الثالث '!$B$8 -> السبت | H216: ='جدول الصف الثالث '!$C$8 -> لغة عربية وخط | I216: ='جدول الصف الثالث '!$D$8 -> 8 | J216: ='جدول الصف الثالث '!$E$8 -> 10 | K216: ='جدول الصف الثالث '!$F$8 -> ساعتان
A217: ='جدول الصف الثالث '!$B$9 -> 2018-01-01 | B217: ='جدول الصف الثالث '!$C$9 -> التربية الدينية | C217: ='جدول الصف الثالث '!$D$9 -> 10.15 | D217: ='جدول الصف الثالث '!$E$9 -> 11.45 | E217: ='جدول الصف الثالث '!$F$9 -> ساعة | G217: ='جدول الصف الثالث '!$B$9 -> 2018-01-01 | H217: ='جدول الصف الثالث '!$C$9 -> التربية الدينية | I217: ='جدول الصف الثالث '!$D$9 -> 10.15 | J217: ='جدول الصف الثالث '!$E$9 -> 11.45 | K217: ='جدول الصف الثالث '!$F$9 -> ساعة
A218: ='جدول الصف الثالث '!$B$10 -> الأحد | B218: ='جدول الصف الثالث '!$C$10 -> الرياضيات | C218: ='جدول الصف الثالث '!$D$10 -> 8 | D218: ='جدول الصف الثالث '!$E$10 -> 9.3 | E218: ='جدول الصف الثالث '!$F$10 -> ساعة ونصف | G218: ='جدول الصف الثالث '!$B$10 -> الأحد | H218: ='جدول الصف الثالث '!$C$10 -> الرياضيات | I218: ='جدول الصف الثالث '!$D$10 -> 8 | J218: ='جدول الصف الثالث '!$E$10 -> 9.3 | K218: ='جدول الصف الثالث '!$F$10 -> ساعة ونصف
A219: ='جدول الصف الثالث '!$B$11 -> 2018-01-02 | B219: ='جدول الصف الثالث '!$C$11 -> اللغة الإنجليزية | C219: ='جدول الصف الثالث '!$D$11 -> 9.45 | D219: ='جدول الصف الثالث '!$E$11 -> 11.15 | E219: ='جدول الصف الثالث '!$F$11 -> ساعة ونصف | G219: ='جدول الصف الثالث '!$B$11 -> 2018-01-02 | H219: ='جدول الصف الثالث '!$C$11 -> اللغة الإنجليزية | I219: ='جدول الصف الثالث '!$D$11 -> 9.45 | J219: ='جدول الصف الثالث '!$E$11 -> 11.15 | K219: ='جدول الصف الثالث '!$F$11 -> ساعة ونصف

Sheet جدول الصف الرابع
A1: ='البيانات الأساسية'!$A$1 -> إدارة /غرب المحلة الكبرى التعليمية
A2: ='البيانات الأساسية'!$A$2 -> مدرسة د/علي علي حبيش الابتدائية
B3: جدول امتحان الفصل الدراسي الأول / الثاني للعام الدراسي 2019/2018
C4: الصف الرابع
B5: اليوم والترايخ | C5: المـــــــــــــــــــــــــــادة | D5: الوقت | F5: الزمــــن
D6: من | E6: إلي
B7: السبت | C7: لغة عربية وخط | D7: 8 | E7: 10.3 | F7: ساعتان ونصف
B8: 2018-01-01
B9: الأحد | C9: الرياضيات | D9: 8 | E9: 9.3 | F9: ساعة ونصف
B10: 2018-01-02 | C10: اللغة الإنجليزية | D10: 9.45 | E10: 11.15 | F10: ساعة ونصف
B11: الاثنين | C11: علوم | D11: 9.45 | E11: 10.8 | F11: ساعة ونصف
B12: 2018-01-03 | C12: التربية الدينية | D12: 9.67 | E12: 10.93 | F12: ساعة ونصف
B13: الثلاثاء | C13: الدراسات | D13: 9.89 | E13: 11.06 | F13: ساعة ونصف
B14: 2018-01-04

Sheet قائمة الصف الرابع
B1: عدد اللجان | C1: من | D1: إلى | E1: اللجنة | F1: =MAX(N:N) -> 490 | H1: حدد عدد اللحنة بنفسك | I1: عدد نهائي | J1: من | K1: إلى | L1: اللجنة | M1: عدد طلابك | O1: =MAX(N:N) -> 490 | P1: اكتب بداية رقم الجلوس | Q1: 60 | R1: بنون | S1: =COUNTIFS(Q4:Q603,"ذكر") -> 195 | T1: مسلم | U1: =COUNTIFS(S3:S602,"مسلم") -> 3
B2: =IF($I2="","",MAX($G$1:$G1)+1) -> 1 | C2: =Q1 -> 60 | D2: =IF(I2="","",C2+I2-1) -> 79 | E2: =IF($I2="","",MAX($G$1:$G1)+1) -> 1 | F2: =IF($G2="","","اللجنة") -> اللجنة | G2: =IF($I2="","",MAX($G$1:$G1)+1) -> 1 | I2: =IF(SUM($I$1:$I1,IF(H2="",20,H2))<$F$1,IF($H2="",20,$H2),IF(SUM($I1:$I$2)=$F$1,"",$F$1-SUM($I1:$I$2))) -> 20 | J2: =IF($I2="","",SUM(I$1:$I1)+1) -> 1 | K2: =IF($G2="","",SUM($I2,$J2,-1)) -> 20 | L2: =IF($I2="","",MAX($G$1:$G1)+1) -> 1 | M2: آخر رقم جلوس | O2: =MAX(D2:D44) -> 559 | P2: الصف الرابع | R2: بنات | S2: =COUNTIFS(Q4:Q603,"انثى") -> 185 | T2: مسيحي | U2: =COUNTIFS(S4:S603,"مسيحي") -> 0
B3: =IF($I3="","",MAX($G$1:$G2)+1) -> 2 | C3: =IF(I1="","",IF(B3="","",D2+1)) -> 80 | D3: =IF(I2="","",IF(B3="","",C3+I3-1)) -> 99 | E3: =IF($I3="","",MAX($G$1:$G2)+1) -> 2 | F3: =IF($G3="","","اللجنة") -> اللجنة | G3: =IF($I3="","",MAX($G$1:$G2)+1) -> 2 | I3: =IF(SUM($I$1:$I2,IF(H3="",20,H3))<$F$1,IF($H3="",20,$H3),IF(SUM($I2:$I$2)=$F$1,"",$F$1-SUM($I2:$I$2))) -> 20 | J3: =IF($I3="","",SUM(I$1:$I2)+1) -> 21 | K3: =IF($G3="","",SUM($I3,$J3,-1)) -> 40 | L3: =IF($I3="","",MAX($G$1:$G2)+1) -> 2 | N3: م | O3: رقم الجلوس | P3: الاســــــــــــــــــــــــم | Q3: النوع | R3: القيد | S3: الديانة | T3: رقم اللجنة | U3: ملاحظات
B4: =IF($I4="","",MAX($G$1:$G3)+1) -> 3 | C4: =IF(I3="","",IF(B4="","",D3+1)) -> 100 | D4: =IF(I3="","",IF(B4="","",C4+I4-1)) -> 119 | E4: =IF($I4="","",MAX($G$1:$G3)+1) -> 3 | F4: اللجنة | G4: =IF($I4="","",MAX($G$1:$G3)+1) -> 3 | I4: =IF(SUM($I$1:$I3,IF(H4="",20,H4))<$F$1,IF($H4="",20,$H4),IF(SUM($I$2:$I3)=$F$1,"",$F$1-SUM($I$2:$I3))) -> 20 | J4: =IF($I4="","",SUM(I$1:$I3)+1) -> 41 | K4: 60 | L4: =IF($I4="","",MAX($G$1:$G3)+1) -> 3 | N4: =(IF(P4="","",MAX($N$3:$N3)+1)) -> 1 | O4: =C2 -> 60 | P4: احمد1 | Q4: ذكر | T4: =IF(N4="","",IF(ISERROR(MATCH($N4,$J:$J,0)),T3,MAX($T$3:$T3)+1)) -> 1 | U4: =IF(T4=T5,"","نهاية اللجنة") ->  | V4: ذكر
B5: =IF($I5="","",MAX($G$1:$G4)+1) -> 4 | C5: 120 | D5: =IF(I4="","",IF(B5="","",C5+I4-1)) -> 139 | E5: =IF($I5="","",MAX($G$1:$G4)+1) -> 4 | F5: اللجنة | G5: =IF($I5="","",MAX($G$1:$G4)+1) -> 4 | I5: =IF(SUM($I$1:$I4,IF(H5="",20,H5))<$F$1,IF($H5="",20,$H5),IF(SUM($I$2:$I4)=$F$1,"",$F$1-SUM($I$2:$I4))) -> 20 | J5: =IF($I5="","",SUM(I$1:$I4)+1) -> 61 | K5: 80 | L5: =IF($I5="","",MAX($G$1:$G4)+1) -> 4 | N5: =(IF(P5="","",MAX($N$3:$N4)+1)) -> 2 | O5: =IF(P5="","",IF(O4+1>$M$2,"",O4+1)) -> 61 | P5: احمد2 | Q5: ذكر | S5: مسلم | T5: =IF(N5="","",IF(ISERROR(MATCH($N5,$J:$J,0)),T4,MAX($T$3:$T4)+1)) -> 1 | U5: =IF(T5=T6,"","نهاية اللجنة") ->  | V5: انثى
B6: =IF($I6="","",MAX($G$1:$G5)+1) -> 5 | C6: 140 | D6: 159 | E6: =IF($I6="","",MAX($G$1:$G5)+1) -> 5 | F6: اللجنة | G6: =IF($I6="","",MAX($G$1:$G5)+1) -> 5 | I6: =IF(SUM($I$1:$I5,IF(H6="",20,H6))<$F$1,IF($H6="",20,$H6),IF(SUM($I$2:$I5)=$F$1,"",$F$1-SUM($I$2:$I5))) -> 20 | J6: =IF($I6="","",SUM(I$1:$I5)+1) -> 81 | K6: 100 | L6: =IF($I6="","",MAX($G$1:$G5)+1) -> 5 | N6: =(IF(P6="","",MAX($N$3:$N5)+1)) -> 3 | O6: =IF(P6="","",IF(O5+1>$M$2,"",O5+1)) -> 62 | P6: احمد3 | Q6: ذكر | T6: =IF(N6="","",IF(ISERROR(MATCH($N6,$J:$J,0)),T5,MAX($T$3:$T5)+1)) -> 1
B7: =IF($I7="","",MAX($G$1:$G6)+1) -> 6 | C7: 160 | D7: 179 | E7: =IF($I7="","",MAX($G$1:$G6)+1) -> 6 | F7: اللجنة | G7: =IF($I7="","",MAX($G$1:$G6)+1) -> 6 | I7: =IF(SUM($I$1:$I6,IF(H7="",20,H7))<$F$1,IF($H7="",20,$H7),IF(SUM($I$2:$I6)=$F$1,"",$F$1-SUM($I$2:$I6))) -> 20 | J7: =IF($I7="","",SUM(I$1:$I6)+1) -> 101 | K7: 120 | L7: =IF($I7="","",MAX($G$1:$G6)+1) -> 6 | N7: =(IF(P7="","",MAX($N$3:$N6)+1)) -> 4 | O7: 63 | P7: احمد4 | Q7: ذكر | T7: =IF(N7="","",IF(ISERROR(MATCH($N7,$J:$J,0)),T6,MAX($T$3:$T6)+1)) -> 1
B8: =IF($I8="","",MAX($G$1:$G7)+1) -> 7 | C8: 180 | D8: 199 | E8: =IF($I8="","",MAX($G$1:$G7)+1) -> 7 | F8: اللجنة | G8: =IF($I8="","",MAX($G$1:$G7)+1) -> 7 | I8: =IF(SUM($I$1:$I7,IF(H8="",20,H8))<$F$1,IF($H8="",20,$H8),IF(SUM($I$2:$I7)=$F$1,"",$F$1-SUM($I$2:$I7))) -> 20 | J8: =IF($I8="","",SUM(I$1:$I7)+1) -> 121 | K8: 140 | L8: =IF($I8="","",MAX($G$1:$G7)+1) -> 7 | N8: =(IF(P8="","",MAX($N$3:$N7)+1)) -> 5 | O8: 64 | P8: احمد5 | Q8: ذكر | T8: =IF(N8="","",IF(ISERROR(MATCH($N8,$J:$J,0)),T7,MAX($T$3:$T7)+1)) -> 1 | V8: =MAX(K:K) -> 490
B9: =IF($I9="","",MAX($G$1:$G8)+1) -> 8 | C9: 200 | D9: 219 | E9: =IF($I9="","",MAX($G$1:$G8)+1) -> 8 | F9: اللجنة | G9: =IF($I9="","",MAX($G$1:$G8)+1) -> 8 | I9: =IF(SUM($I$1:$I8,IF(H9="",20,H9))<$F$1,IF($H9="",20,$H9),IF(SUM($I$2:$I8)=$F$1,"",$F$1-SUM($I$2:$I8))) -> 20 | J9: =IF($I9="","",SUM(I$1:$I8)+1) -> 141 | K9: 160 | L9: =IF($I9="","",MAX($G$1:$G8)+1) -> 8 | M9: =IF(O2=0,"من فضلك سجل الاسماء",IF(O3=0," من فضلك سجل الاسماء;""",)) -> 0 | N9: =(IF(P9="","",MAX($N$3:$N8)+1)) -> 6 | O9: 65 | P9: احمد6 | Q9: ذكر | T9: =IF(N9="","",IF(ISERROR(MATCH($N9,$J:$J,0)),T8,MAX($T$3:$T8)+1)) -> 1 | V9: =IF(V8=O1,"التلاميذ مقسمون التقسيم الصحيح","راجع من فضلك تقسيم اللجان") -> التلاميذ مقسمون التقسيم الصحيح
B10: =IF($I10="","",MAX($G$1:$G9)+1) -> 9 | C10: 220 | D10: 239 | E10: =IF($I10="","",MAX($G$1:$G9)+1) -> 9 | F10: اللجنة | G10: =IF($I10="","",MAX($G$1:$G9)+1) -> 9 | I10: =IF(SUM($I$1:$I9,IF(H10="",20,H10))<$F$1,IF($H10="",20,$H10),IF(SUM($I$2:$I9)=$F$1,"",$F$1-SUM($I$2:$I9))) -> 20 | J10: =IF($I10="","",SUM(I$1:$I9)+1) -> 161 | K10: 180 | L10: =IF($I10="","",MAX($G$1:$G9)+1) -> 9 | N10: =(IF(P10="","",MAX($N$3:$N9)+1)) -> 7 | O10: 66 | P10: احمد7 | Q10: ذكر | R10: م للسنة الثانية | S10: مسلم | T10: =IF(N10="","",IF(ISERROR(MATCH($N10,$J:$J,0)),T9,MAX($T$3:$T9)+1)) -> 1
B11: =IF($I11="","",MAX($G$1:$G10)+1) -> 10 | C11: 240 | D11: 259 | E11: =IF($I11="","",MAX($G$1:$G10)+1) -> 10 | F11: اللجنة | G11: =IF($I11="","",MAX($G$1:$G10)+1) -> 10 | I11: =IF(SUM($I$1:$I10,IF(H11="",20,H11))<$F$1,IF($H11="",20,$H11),IF(SUM($I$2:$I10)=$F$1,"",$F$1-SUM($I$2:$I10))) -> 20 | J11: =IF($I11="","",SUM(I$1:$I10)+1) -> 181 | K11: 200 | L11: =IF($I11="","",MAX($G$1:$G10)+1) -> 10 | N11: =(IF(P11="","",MAX($N$3:$N10)+1)) -> 8 | O11: 67 | P11: احمد8 | Q11: ذكر | T11: =IF(N11="","",IF(ISERROR(MATCH($N11,$J:$J,0)),T10,MAX($T$3:$T10)+1)) -> 1
B12: =IF($I12="","",MAX($G$1:$G11)+1) -> 11 | C12: 260 | D12: 279 | E12: =IF($I12="","",MAX($G$1:$G11)+1) -> 11 | F12: اللجنة | G12: =IF($I12="","",MAX($G$1:$G11)+1) -> 11 | I12: =IF(SUM($I$1:$I11,IF(H12="",20,H12))<$F$1,IF($H12="",20,$H12),IF(SUM($I$2:$I11)=$F$1,"",$F$1-SUM($I$2:$I11))) -> 20 | J12: =IF($I12="","",SUM(I$1:$I11)+1) -> 201 | K12: 220 | L12: =IF($I12="","",MAX($G$1:$G11)+1) -> 11 | N12: =(IF(P12="","",MAX($N$3:$N11)+1)) -> 9 | O12: 68 | P12: احمد9 | Q12: ذكر | T12: =IF(N12="","",IF(ISERROR(MATCH($N12,$J:$J,0)),T11,MAX($T$3:$T11)+1)) -> 1
B13: =IF($I13="","",MAX($G$1:$G12)+1) -> 12 | C13: 280 | D13: 299 | E13: =IF($I13="","",MAX($G$1:$G12)+1) -> 12 | F13: اللجنة | G13: =IF($I13="","",MAX($G$1:$G12)+1) -> 12 | I13: =IF(SUM($I$1:$I12,IF(H13="",20,H13))<$F$1,IF($H13="",20,$H13),IF(SUM($I$2:$I12)=$F$1,"",$F$1-SUM($I$2:$I12))) -> 20 | J13: =IF($I13="","",SUM(I$1:$I12)+1) -> 221 | K13: 240 | L13: =IF($I13="","",MAX($G$1:$G12)+1) -> 12 | N13: =(IF(P13="","",MAX($N$3:$N12)+1)) -> 10 | O13: 69 | P13: احمد10 | Q13: ذكر | S13: مسلم | T13: =IF(N13="","",IF(ISERROR(MATCH($N13,$J:$J,0)),T12,MAX($T$3:$T12)+1)) -> 1
B14: =IF($I14="","",MAX($G$1:$G13)+1) -> 13 | C14: 300 | D14: 319 | E14: =IF($I14="","",MAX($G$1:$G13)+1) -> 13 | F14: اللجنة | G14: =IF($I14="","",MAX($G$1:$G13)+1) -> 13 | I14: =IF(SUM($I$1:$I13,IF(H14="",20,H14))<$F$1,IF($H14="",20,$H14),IF(SUM($I$2:$I13)=$F$1,"",$F$1-SUM($I$2:$I13))) -> 20 | J14: =IF($I14="","",SUM(I$1:$I13)+1) -> 241 | K14: 260 | L14: =IF($I14="","",MAX($G$1:$G13)+1) -> 13 | N14: =(IF(P14="","",MAX($N$3:$N13)+1)) -> 11 | O14: 70 | P14: احمد11 | Q14: ذكر | T14: =IF(N14="","",IF(ISERROR(MATCH($N14,$J:$J,0)),T13,MAX($T$3:$T13)+1)) -> 1
B15: =IF($I15="","",MAX($G$1:$G14)+1) -> 14 | C15: 320 | D15: 339 | E15: =IF($I15="","",MAX($G$1:$G14)+1) -> 14 | F15: اللجنة | G15: =IF($I15="","",MAX($G$1:$G14)+1) -> 14 | I15: =IF(SUM($I$1:$I14,IF(H15="",20,H15))<$F$1,IF($H15="",20,$H15),IF(SUM($I$2:$I14)=$F$1,"",$F$1-SUM($I$2:$I14))) -> 20 | J15: =IF($I15="","",SUM(I$1:$I14)+1) -> 261 | K15: 280 | L15: =IF($I15="","",MAX($G$1:$G14)+1) -> 14 | N15: =(IF(P15="","",MAX($N$3:$N14)+1)) -> 12 | O15: 71 | P15: احمد12 | Q15: ذكر | T15: =IF(N15="","",IF(ISERROR(MATCH($N15,$J:$J,0)),T14,MAX($T$3:$T14)+1)) -> 1
B16: =IF($I16="","",MAX($G$1:$G15)+1) -> 15 | C16: 340 | D16: 359 | E16: =IF($I16="","",MAX($G$1:$G15)+1) -> 15 | F16: اللجنة | G16: =IF($I16="","",MAX($G$1:$G15)+1) -> 15 | I16: =IF(SUM($I$1:$I15,IF(H16="",20,H16))<$F$1,IF($H16="",20,$H16),IF(SUM($I$2:$I15)=$F$1,"",$F$1-SUM($I$2:$I15))) -> 20 | J16: =IF($I16="","",SUM(I$1:$I15)+1) -> 281 | K16: 300 | L16: =IF($I16="","",MAX($G$1:$G15)+1) -> 15 | N16: =(IF(P16="","",MAX($N$3:$N15)+1)) -> 13 | O16: 72 | P16: احمد13 | Q16: ذكر | T16: =IF(N16="","",IF(ISERROR(MATCH($N16,$J:$J,0)),T15,MAX($T$3:$T15)+1)) -> 1
B17: =IF($I17="","",MAX($G$1:$G16)+1) -> 16 | C17: 360 | D17: 379 | E17: =IF($I17="","",MAX($G$1:$G16)+1) -> 16 | F17: اللجنة | G17: =IF($I17="","",MAX($G$1:$G16)+1) -> 16 | I17: =IF(SUM($I$1:$I16,IF(H17="",20,H17))<$F$1,IF($H17="",20,$H17),IF(SUM($I$2:$I16)=$F$1,"",$F$1-SUM($I$2:$I16))) -> 20 | J17: =IF($I17="","",SUM(I$1:$I16)+1) -> 301 | K17: 320 | L17: =IF($I17="","",MAX($G$1:$G16)+1) -> 16 | N17: =(IF(P17="","",MAX($N$3:$N16)+1)) -> 14 | O17: 73 | P17: احمد14 | Q17: ذكر | T17: =IF(N17="","",IF(ISERROR(MATCH($N17,$J:$J,0)),T16,MAX($T$3:$T16)+1)) -> 1 | V17: =MAX(D:D) -> 559
B18: =IF($I18="","",MAX($G$1:$G17)+1) -> 17 | C18: 380 | D18: 399 | E18: =IF($I18="","",MAX($G$1:$G17)+1) -> 17 | F18: اللجنة | G18: =IF($I18="","",MAX($G$1:$G17)+1) -> 17 | I18: =IF(SUM($I$1:$I17,IF(H18="",20,H18))<$F$1,IF($H18="",20,$H18),IF(SUM($I$2:$I17)=$F$1,"",$F$1-SUM($I$2:$I17))) -> 20 | J18: =IF($I18="","",SUM(I$1:$I17)+1) -> 321 | K18: 340 | L18: =IF($I18="","",MAX($G$1:$G17)+1) -> 17 | N18: =(IF(P18="","",MAX($N$3:$N17)+1)) -> 15 | O18: 74 | P18: احمد15 | Q18: ذكر | T18: =IF(N18="","",IF(ISERROR(MATCH($N18,$J:$J,0)),T17,MAX($T$3:$T17)+1)) -> 1 | V18: =IF(V17=O2,"أرقام جلوس الفصل سليمة","رجاءً راجع أرقام الجلوس") -> أرقام جلوس الفصل سليمة
B19: =IF($I19="","",MAX($G$1:$G18)+1) -> 18 | C19: 400 | D19: 419 | E19: =IF($I19="","",MAX($G$1:$G18)+1) -> 18 | F19: اللجنة | G19: =IF($I19="","",MAX($G$1:$G18)+1) -> 18 | I19: =IF(SUM($I$1:$I18,IF(H19="",20,H19))<$F$1,IF($H19="",20,$H19),IF(SUM($I$2:$I18)=$F$1,"",$F$1-SUM($I$2:$I18))) -> 20 | J19: =IF($I19="","",SUM(I$1:$I18)+1) -> 341 | K19: 360 | L19: =IF($I19="","",MAX($G$1:$G18)+1) -> 18 | N19: =(IF(P19="","",MAX($N$3:$N18)+1)) -> 16 | O19: 75 | P19: احمد16 | Q19: ذكر | T19: =IF(N19="","",IF(ISERROR(MATCH($N19,$J:$J,0)),T18,MAX($T$3:$T18)+1)) -> 1
B20: =IF($I20="","",MAX($G$1:$G19)+1) -> 19 | C20: 420 | D20: 439 | E20: =IF($I20="","",MAX($G$1:$G19)+1) -> 19 | F20: اللجنة | G20: =IF($I20="","",MAX($G$1:$G19)+1) -> 19 | I20: =IF(SUM($I$1:$I19,IF(H20="",20,H20))<$F$1,IF($H20="",20,$H20),IF(SUM($I$2:$I19)=$F$1,"",$F$1-SUM($I$2:$I19))) -> 20 | J20: =IF($I20="","",SUM(I$1:$I19)+1) -> 361 | K20: 380 | L20: =IF($I20="","",MAX($G$1:$G19)+1) -> 19 | N20: =(IF(P20="","",MAX($N$3:$N19)+1)) -> 17 | O20: 76 | P20: احمد17 | Q20: ذكر | R20: م للسنة الأولي | T20: =IF(N20="","",IF(ISERROR(MATCH($N20,$J:$J,0)),T19,MAX($T$3:$T19)+1)) -> 1
B21: =IF($I21="","",MAX($G$1:$G20)+1) -> 20 | C21: 440 | D21: 459 | E21: =IF($I21="","",MAX($G$1:$G20)+1) -> 20 | F21: اللجنة | G21: =IF($I21="","",MAX($G$1:$G20)+1) -> 20 | I21: =IF(SUM($I$1:$I20,IF(H21="",20,H21))<$F$1,IF($H21="",20,$H21),IF(SUM($I$2:$I20)=$F$1,"",$F$1-SUM($I$2:$I20))) -> 20 | J21: =IF($I21="","",SUM(I$1:$I20)+1) -> 381 | K21: 400 | L21: =IF($I21="","",MAX($G$1:$G20)+1) -> 20 | N21: =(IF(P21="","",MAX($N$3:$N20)+1)) -> 18 | O21: 77 | P21: احمد18 | Q21: ذكر | T21: =IF(N21="","",IF(ISERROR(MATCH($N21,$J:$J,0)),T20,MAX($T$3:$T20)+1)) -> 1
B22: =IF($I22="","",MAX($G$1:$G21)+1) -> 21 | C22: 460 | D22: 479 | E22: =IF($I22="","",MAX($G$1:$G21)+1) -> 21 | F22: اللجنة | G22: =IF($I22="","",MAX($G$1:$G21)+1) -> 21 | I22: =IF(SUM($I$1:$I21,IF(H22="",20,H22))<$F$1,IF($H22="",20,$H22),IF(SUM($I$2:$I21)=$F$1,"",$F$1-SUM($I$2:$I21))) -> 20 | J22: =IF($I22="","",SUM(I$1:$I21)+1) -> 401 | K22: 420 | L22: =IF($I22="","",MAX($G$1:$G21)+1) -> 21 | N22: =(IF(P22="","",MAX($N$3:$N21)+1)) -> 19 | O22: 78 | P22: احمد19 | Q22: ذكر | T22: =IF(N22="","",IF(ISERROR(MATCH($N22,$J:$J,0)),T21,MAX($T$3:$T21)+1)) -> 1
B23: =IF($I23="","",MAX($G$1:$G22)+1) -> 22 | C23: 480 | D23: 499 | E23: =IF($I23="","",MAX($G$1:$G22)+1) -> 22 | F23: اللجنة | G23: =IF($I23="","",MAX($G$1:$G22)+1) -> 22 | I23: =IF(SUM($I$1:$I22,IF(H23="",20,H23))<$F$1,IF($H23="",20,$H23),IF(SUM($I$2:$I22)=$F$1,"",$F$1-SUM($I$2:$I22))) -> 20 | J23: =IF($I23="","",SUM(I$1:$I22)+1) -> 421 | K23: 440 | L23: =IF($I23="","",MAX($G$1:$G22)+1) -> 22 | N23: =(IF(P23="","",MAX($N$3:$N22)+1)) -> 20 | O23: 79 | P23: احمد20 | Q23: ذكر | T23: =IF(N23="","",IF(ISERROR(MATCH($N23,$J:$J,0)),T22,MAX($T$3:$T22)+1)) -> 1 | U23: نهاية اللجنة
B24: =IF($I24="","",MAX($G$1:$G23)+1) -> 23 | C24: 500 | D24: 519 | E24: =IF($I24="","",MAX($G$1:$G23)+1) -> 23 | F24: اللجنة | G24: =IF($I24="","",MAX($G$1:$G23)+1) -> 23 | I24: =IF(SUM($I$1:$I23,IF(H24="",20,H24))<$F$1,IF($H24="",20,$H24),IF(SUM($I$2:$I23)=$F$1,"",$F$1-SUM($I$2:$I23))) -> 20 | J24: =IF($I24="","",SUM(I$1:$I23)+1) -> 441 | K24: 460 | L24: =IF($I24="","",MAX($G$1:$G23)+1) -> 23 | N24: =(IF(P24="","",MAX($N$3:$N23)+1)) -> 21 | O24: 80 | P24: احمد21 | Q24: ذكر | T24: =IF(N24="","",IF(ISERROR(MATCH($N24,$J:$J,0)),T23,MAX($T$3:$T23)+1)) -> 2
B25: =IF($I25="","",MAX($G$1:$G24)+1) -> 24 | C25: =IF(I23="","",IF(B25="","",D24+1)) -> 520 | D25: =IF(I24="","",IF(B25="","",C25+I24-1)) -> 539 | E25: =IF($I25="","",MAX($G$1:$G24)+1) -> 24 | F25: اللجنة | G25: =IF($I25="","",MAX($G$1:$G24)+1) -> 24 | I25: =IF(SUM($I$1:$I24,IF(H25="",20,H25))<$F$1,IF($H25="",20,$H25),IF(SUM($I$2:$I24)=$F$1,"",$F$1-SUM($I$2:$I24))) -> 20 | J25: =IF($I25="","",SUM(I$1:$I24)+1) -> 461 | K25: 480 | L25: =IF($I25="","",MAX($G$1:$G24)+1) -> 24 | N25: =(IF(P25="","",MAX($N$3:$N24)+1)) -> 22 | O25: 81 | P25: احمد22 | Q25: ذكر | T25: =IF(N25="","",IF(ISERROR(MATCH($N25,$J:$J,0)),T24,MAX($T$3:$T24)+1)) -> 2
B26: =IF($I26="","",MAX($G$1:$G25)+1) -> 25 | C26: =IF(I24="","",IF(B26="","",D25+1)) -> 540 | D26: =IF(I25="","",IF(B26="","",C26+I25-1)) -> 559 | E26: =IF($I26="","",MAX($G$1:$G25)+1) -> 25 | F26: اللجنة | G26: =IF($I26="","",MAX($G$1:$G25)+1) -> 25 | I26: =IF(SUM($I$1:$I25,IF(H26="",20,H26))<$F$1,IF($H26="",20,$H26),IF(SUM($I$2:$I25)=$F$1,"",$F$1-SUM($I$2:$I25))) -> 10 | J26: =IF($I26="","",SUM(I$1:$I25)+1) -> 481 | K26: 490 | L26: =IF($I26="","",MAX($G$1:$G25)+1) -> 25 | N26: =(IF(P26="","",MAX($N$3:$N25)+1)) -> 23 | O26: 82 | P26: احمد23 | Q26: ذكر | T26: =IF(N26="","",IF(ISERROR(MATCH($N26,$J:$J,0)),T25,MAX($T$3:$T25)+1)) -> 2
B27: =IF($I27="","",MAX($G$1:$G26)+1) ->  | E27: =IF($I27="","",MAX($G$1:$G26)+1) ->  | G27: =IF($I27="","",MAX($G$1:$G26)+1) ->  | I27: =IF(SUM($I$1:$I26,IF(H27="",20,H27))<$F$1,IF($H27="",20,$H27),IF(SUM($I$2:$I26)=$F$1,"",$F$1-SUM($I$2:$I26))) ->  | J27: =IF($I27="","",SUM(I$1:$I26)+1) ->  | L27: =IF($I27="","",MAX($G$1:$G26)+1) ->  | N27: =(IF(P27="","",MAX($N$3:$N26)+1)) -> 24 | O27: 83 | P27: احمد24 | Q27: ذكر | T27: =IF(N27="","",IF(ISERROR(MATCH($N27,$J:$J,0)),T26,MAX($T$3:$T26)+1)) -> 2
B28: =IF($I28="","",MAX($G$1:$G27)+1) ->  | E28: =IF($I28="","",MAX($G$1:$G27)+1) ->  | G28: =IF($I28="","",MAX($G$1:$G27)+1) ->  | I28: =IF(SUM($I$1:$I27,IF(H28="",20,H28))<$F$1,IF($H28="",20,$H28),IF(SUM($I$2:$I27)=$F$1,"",$F$1-SUM($I$2:$I27))) ->  | J28: =IF($I28="","",SUM(I$1:$I27)+1) ->  | L28: =IF($I28="","",MAX($G$1:$G27)+1) ->  | N28: =(IF(P28="","",MAX($N$3:$N27)+1)) -> 25 | O28: 84 | P28: احمد25 | Q28: ذكر | T28: =IF(N28="","",IF(ISERROR(MATCH($N28,$J:$J,0)),T27,MAX($T$3:$T27)+1)) -> 2
B29: =IF($I29="","",MAX($G$1:$G28)+1) ->  | E29: =IF($I29="","",MAX($G$1:$G28)+1) ->  | G29: =IF($I29="","",MAX($G$1:$G28)+1) ->  | I29: =IF(SUM($I$1:$I28,IF(H29="",20,H29))<$F$1,IF($H29="",20,$H29),IF(SUM($I$2:$I28)=$F$1,"",$F$1-SUM($I$2:$I28))) ->  | J29: =IF($I29="","",SUM(I$1:$I28)+1) ->  | L29: =IF($I29="","",MAX($G$1:$G28)+1) ->  | N29: =(IF(P29="","",MAX($N$3:$N28)+1)) -> 26 | O29: 85 | P29: احمد26 | Q29: ذكر | T29: =IF(N29="","",IF(ISERROR(MATCH($N29,$J:$J,0)),T28,MAX($T$3:$T28)+1)) -> 2
B30: =MAX(K:K) -> 490 | N30: =(IF(P30="","",MAX($N$3:$N29)+1)) -> 27 | O30: 86 | P30: احمد27 | Q30: انثى | T30: =IF(N30="","",IF(ISERROR(MATCH($N30,$J:$J,0)),T29,MAX($T$3:$T29)+1)) -> 2
B31: =IF(B30=O1,"التلاميذ مقسمون التقسيم الصحيح","راجع من فضلك تقسيم اللجان") -> التلاميذ مقسمون التقسيم الصحيح | N31: =(IF(P31="","",MAX($N$3:$N30)+1)) -> 28 | O31: 87 | P31: احمد28 | Q31: انثى | T31: =IF(N31="","",IF(ISERROR(MATCH($N31,$J:$J,0)),T30,MAX($T$3:$T30)+1)) -> 2
N32: =(IF(P32="","",MAX($N$3:$N31)+1)) -> 29 | O32: 88 | P32: احمد29 | Q32: انثى | T32: =IF(N32="","",IF(ISERROR(MATCH($N32,$J:$J,0)),T31,MAX($T$3:$T31)+1)) -> 2
I33: معيد | N33: =(IF(P33="","",MAX($N$3:$N32)+1)) -> 30 | O33: 89 | P33: احمد30 | Q33: انثى | T33: =IF(N33="","",IF(ISERROR(MATCH($N33,$J:$J,0)),T32,MAX($T$3:$T32)+1)) -> 2
I34: م للسنة الأولي | N34: =(IF(P34="","",MAX($N$3:$N33)+1)) -> 31 | O34: 90 | P34: احمد31 | Q34: انثى | T34: =IF(N34="","",IF(ISERROR(MATCH($N34,$J:$J,0)),T33,MAX($T$3:$T33)+1)) -> 2
I35: م للسنة الثانية | N35: =(IF(P35="","",MAX($N$3:$N34)+1)) -> 32 | O35: 91 | P35: احمد32 | Q35: انثى | T35: =IF(N35="","",IF(ISERROR(MATCH($N35,$J:$J,0)),T34,MAX($T$3:$T34)+1)) -> 2
N36: =(IF(P36="","",MAX($N$3:$N35)+1)) -> 33 | O36: 92 | P36: احمد33 | Q36: انثى | T36: =IF(N36="","",IF(ISERROR(MATCH($N36,$J:$J,0)),T35,MAX($T$3:$T35)+1)) -> 2
I37: مسلم | N37: =(IF(P37="","",MAX($N$3:$N36)+1)) -> 34 | O37: 93 | P37: احمد34 | Q37: انثى | T37: =IF(N37="","",IF(ISERROR(MATCH($N37,$J:$J,0)),T36,MAX($T$3:$T36)+1)) -> 2
I38: مسيحي | N38: =(IF(P38="","",MAX($N$3:$N37)+1)) -> 35 | O38: 94 | P38: احمد35 | Q38: انثى | T38: =IF(N38="","",IF(ISERROR(MATCH($N38,$J:$J,0)),T37,MAX($T$3:$T37)+1)) -> 2
I39: أخري | N39: =(IF(P39="","",MAX($N$3:$N38)+1)) -> 36 | O39: 95 | P39: احمد36 | Q39: انثى | T39: =IF(N39="","",IF(ISERROR(MATCH($N39,$J:$J,0)),T38,MAX($T$3:$T38)+1)) -> 2
N40: =(IF(P40="","",MAX($N$3:$N39)+1)) -> 37 | O40: 96 | P40: احمد37 | Q40: انثى | T40: =IF(N40="","",IF(ISERROR(MATCH($N40,$J:$J,0)),T39,MAX($T$3:$T39)+1)) -> 2
N41: =(IF(P41="","",MAX($N$3:$N40)+1)) -> 38 | O41: 97 | P41: احمد38 | Q41: انثى | T41: =IF(N41="","",IF(ISERROR(MATCH($N41,$J:$J,0)),T40,MAX($T$3:$T40)+1)) -> 2
N42: =(IF(P42="","",MAX($N$3:$N41)+1)) -> 39 | O42: 98 | P42: احمد39 | Q42: انثى | T42: =IF(N42="","",IF(ISERROR(MATCH($N42,$J:$J,0)),T41,MAX($T$3:$T41)+1)) -> 2
N43: =(IF(P43="","",MAX($N$3:$N42)+1)) -> 40 | O43: 99 | P43: احمد40 | Q43: انثى | T43: =IF(N43="","",IF(ISERROR(MATCH($N43,$J:$J,0)),T42,MAX($T$3:$T42)+1)) -> 2 | U43: نهاية اللجنة
N44: =(IF(P44="","",MAX($N$3:$N43)+1)) -> 41 | O44: 100 | P44: احمد41 | Q44: انثى | T44: =IF(N44="","",IF(ISERROR(MATCH($N44,$J:$J,0)),T43,MAX($T$3:$T43)+1)) -> 3
N45: =(IF(P45="","",MAX($N$3:$N44)+1)) -> 42 | O45: 101 | P45: احمد42 | Q45: انثى | T45: =IF(N45="","",IF(ISERROR(MATCH($N45,$J:$J,0)),T44,MAX($T$3:$T44)+1)) -> 3
N46: =(IF(P46="","",MAX($N$3:$N45)+1)) -> 43 | O46: 102 | P46: احمد43 | Q46: انثى | T46: =IF(N46="","",IF(ISERROR(MATCH($N46,$J:$J,0)),T45,MAX($T$3:$T45)+1)) -> 3
N47: =(IF(P47="","",MAX($N$3:$N46)+1)) -> 44 | O47: 103 | P47: احمد44 | Q47: انثى | T47: =IF(N47="","",IF(ISERROR(MATCH($N47,$J:$J,0)),T46,MAX($T$3:$T46)+1)) -> 3
N48: =(IF(P48="","",MAX($N$3:$N47)+1)) -> 45 | O48: 104 | P48: احمد45 | Q48: انثى | T48: =IF(N48="","",IF(ISERROR(MATCH($N48,$J:$J,0)),T47,MAX($T$3:$T47)+1)) -> 3
N49: =(IF(P49="","",MAX($N$3:$N48)+1)) -> 46 | O49: 105 | P49: احمد46 | Q49: انثى | T49: =IF(N49="","",IF(ISERROR(MATCH($N49,$J:$J,0)),T48,MAX($T$3:$T48)+1)) -> 3
N50: =(IF(P50="","",MAX($N$3:$N49)+1)) -> 47 | O50: 106 | P50: احمد47 | Q50: انثى | T50: =IF(N50="","",IF(ISERROR(MATCH($N50,$J:$J,0)),T49,MAX($T$3:$T49)+1)) -> 3
N51: =(IF(P51="","",MAX($N$3:$N50)+1)) -> 48 | O51: 107 | P51: احمد48 | Q51: انثى | T51: =IF(N51="","",IF(ISERROR(MATCH($N51,$J:$J,0)),T50,MAX($T$3:$T50)+1)) -> 3
N52: =(IF(P52="","",MAX($N$3:$N51)+1)) -> 49 | O52: 108 | P52: احمد49 | Q52: انثى | T52: =IF(N52="","",IF(ISERROR(MATCH($N52,$J:$J,0)),T51,MAX($T$3:$T51)+1)) -> 3
N53: =(IF(P53="","",MAX($N$3:$N52)+1)) -> 50 | O53: 109 | P53: احمد50 | Q53: انثى | T53: =IF(N53="","",IF(ISERROR(MATCH($N53,$J:$J,0)),T52,MAX($T$3:$T52)+1)) -> 3
N54: =(IF(P54="","",MAX($N$3:$N53)+1)) -> 51 | O54: 110 | P54: احمد51 | Q54: انثى | T54: =IF(N54="","",IF(ISERROR(MATCH($N54,$J:$J,0)),T53,MAX($T$3:$T53)+1)) -> 3
N55: =(IF(P55="","",MAX($N$3:$N54)+1)) -> 52 | O55: 111 | P55: احمد52 | Q55: انثى | T55: =IF(N55="","",IF(ISERROR(MATCH($N55,$J:$J,0)),T54,MAX($T$3:$T54)+1)) -> 3
N56: =(IF(P56="","",MAX($N$3:$N55)+1)) -> 53 | O56: 112 | P56: احمد53 | Q56: انثى | T56: =IF(N56="","",IF(ISERROR(MATCH($N56,$J:$J,0)),T55,MAX($T$3:$T55)+1)) -> 3
N57: =(IF(P57="","",MAX($N$3:$N56)+1)) -> 54 | O57: 113 | P57: احمد54 | Q57: ذكر | T57: =IF(N57="","",IF(ISERROR(MATCH($N57,$J:$J,0)),T56,MAX($T$3:$T56)+1)) -> 3
N58: =(IF(P58="","",MAX($N$3:$N57)+1)) -> 55 | O58: 114 | P58: احمد55 | Q58: ذكر | T58: =IF(N58="","",IF(ISERROR(MATCH($N58,$J:$J,0)),T57,MAX($T$3:$T57)+1)) -> 3
N59: =(IF(P59="","",MAX($N$3:$N58)+1)) -> 56 | O59: 115 | P59: احمد56 | Q59: ذكر | T59: =IF(N59="","",IF(ISERROR(MATCH($N59,$J:$J,0)),T58,MAX($T$3:$T58)+1)) -> 3
N60: =(IF(P60="","",MAX($N$3:$N59)+1)) -> 57 | O60: 116 | P60: احمد57 | Q60: ذكر | T60: =IF(N60="","",IF(ISERROR(MATCH($N60,$J:$J,0)),T59,MAX($T$3:$T59)+1)) -> 3
N61: =(IF(P61="","",MAX($N$3:$N60)+1)) -> 58 | O61: 117 | P61: احمد58 | Q61: ذكر | T61: =IF(N61="","",IF(ISERROR(MATCH($N61,$J:$J,0)),T60,MAX($T$3:$T60)+1)) -> 3
N62: =(IF(P62="","",MAX($N$3:$N61)+1)) -> 59 | O62: 118 | P62: احمد59 | Q62: ذكر | T62: =IF(N62="","",IF(ISERROR(MATCH($N62,$J:$J,0)),T61,MAX($T$3:$T61)+1)) -> 3
N63: =(IF(P63="","",MAX($N$3:$N62)+1)) -> 60 | O63: 119 | P63: احمد60 | Q63: ذكر | T63: =IF(N63="","",IF(ISERROR(MATCH($N63,$J:$J,0)),T62,MAX($T$3:$T62)+1)) -> 3 | U63: نهاية اللجنة
N64: =(IF(P64="","",MAX($N$3:$N63)+1)) -> 61 | O64: 120 | P64: احمد61 | Q64: ذكر | T64: =IF(N64="","",IF(ISERROR(MATCH($N64,$J:$J,0)),T63,MAX($T$3:$T63)+1)) -> 4
N65: =(IF(P65="","",MAX($N$3:$N64)+1)) -> 62 | O65: 121 | P65: احمد62 | Q65: ذكر | T65: =IF(N65="","",IF(ISERROR(MATCH($N65,$J:$J,0)),T64,MAX($T$3:$T64)+1)) -> 4
N66: =(IF(P66="","",MAX($N$3:$N65)+1)) -> 63 | O66: 122 | P66: احمد63 | Q66: ذكر | T66: =IF(N66="","",IF(ISERROR(MATCH($N66,$J:$J,0)),T65,MAX($T$3:$T65)+1)) -> 4
N67: =(IF(P67="","",MAX($N$3:$N66)+1)) -> 64 | O67: 123 | P67: احمد64 | Q67: ذكر | T67: =IF(N67="","",IF(ISERROR(MATCH($N67,$J:$J,0)),T66,MAX($T$3:$T66)+1)) -> 4
N68: =(IF(P68="","",MAX($N$3:$N67)+1)) -> 65 | O68: 124 | P68: احمد65 | Q68: ذكر | T68: =IF(N68="","",IF(ISERROR(MATCH($N68,$J:$J,0)),T67,MAX($T$3:$T67)+1)) -> 4
N69: =(IF(P69="","",MAX($N$3:$N68)+1)) -> 66 | O69: 125 | P69: احمد66 | Q69: ذكر | T69: =IF(N69="","",IF(ISERROR(MATCH($N69,$J:$J,0)),T68,MAX($T$3:$T68)+1)) -> 4 | U69: =IF(T69=T70,"","نهاية اللجنة") -> 
N70: =(IF(P70="","",MAX($N$3:$N69)+1)) -> 67 | O70: =IF(P70="","",IF(O69+1>$M$2,"",O69+1)) -> 126 | P70: احمد67 | Q70: ذكر | T70: =IF(N70="","",IF(ISERROR(MATCH($N70,$J:$J,0)),T69,MAX($T$3:$T69)+1)) -> 4
N71: =(IF(P71="","",MAX($N$3:$N70)+1)) -> 68 | O71: 127 | P71: احمد68 | Q71: ذكر | T71: =IF(N71="","",IF(ISERROR(MATCH($N71,$J:$J,0)),T70,MAX($T$3:$T70)+1)) -> 4
N72: =(IF(P72="","",MAX($N$3:$N71)+1)) -> 69 | O72: 128 | P72: احمد69 | Q72: ذكر | T72: =IF(N72="","",IF(ISERROR(MATCH($N72,$J:$J,0)),T71,MAX($T$3:$T71)+1)) -> 4
N73: =(IF(P73="","",MAX($N$3:$N72)+1)) -> 70 | O73: 129 | P73: احمد70 | Q73: ذكر | T73: =IF(N73="","",IF(ISERROR(MATCH($N73,$J:$J,0)),T72,MAX($T$3:$T72)+1)) -> 4
N74: =(IF(P74="","",MAX($N$3:$N73)+1)) -> 71 | O74: 130 | P74: احمد71 | Q74: ذكر | T74: =IF(N74="","",IF(ISERROR(MATCH($N74,$J:$J,0)),T73,MAX($T$3:$T73)+1)) -> 4
N75: =(IF(P75="","",MAX($N$3:$N74)+1)) -> 72 | O75: 131 | P75: احمد72 | Q75: ذكر | T75: =IF(N75="","",IF(ISERROR(MATCH($N75,$J:$J,0)),T74,MAX($T$3:$T74)+1)) -> 4
N76: =(IF(P76="","",MAX($N$3:$N75)+1)) -> 73 | O76: 132 | P76: احمد73 | Q76: ذكر | T76: =IF(N76="","",IF(ISERROR(MATCH($N76,$J:$J,0)),T75,MAX($T$3:$T75)+1)) -> 4
N77: =(IF(P77="","",MAX($N$3:$N76)+1)) -> 74 | O77: 133 | P77: احمد74 | Q77: ذكر | T77: =IF(N77="","",IF(ISERROR(MATCH($N77,$J:$J,0)),T76,MAX($T$3:$T76)+1)) -> 4
N78: =(IF(P78="","",MAX($N$3:$N77)+1)) -> 75 | O78: 134 | P78: احمد75 | Q78: ذكر | T78: =IF(N78="","",IF(ISERROR(MATCH($N78,$J:$J,0)),T77,MAX($T$3:$T77)+1)) -> 4
N79: =(IF(P79="","",MAX($N$3:$N78)+1)) -> 76 | O79: 135 | P79: احمد76 | Q79: ذكر | T79: =IF(N79="","",IF(ISERROR(MATCH($N79,$J:$J,0)),T78,MAX($T$3:$T78)+1)) -> 4
N80: =(IF(P80="","",MAX($N$3:$N79)+1)) -> 77 | O80: 136 | P80: احمد77 | Q80: ذكر | T80: =IF(N80="","",IF(ISERROR(MATCH($N80,$J:$J,0)),T79,MAX($T$3:$T79)+1)) -> 4
N81: =(IF(P81="","",MAX($N$3:$N80)+1)) -> 78 | O81: 137 | P81: احمد78 | Q81: ذكر | T81: =IF(N81="","",IF(ISERROR(MATCH($N81,$J:$J,0)),T80,MAX($T$3:$T80)+1)) -> 4
N82: =(IF(P82="","",MAX($N$3:$N81)+1)) -> 79 | O82: 138 | P82: احمد79 | Q82: ذكر | T82: =IF(N82="","",IF(ISERROR(MATCH($N82,$J:$J,0)),T81,MAX($T$3:$T81)+1)) -> 4
N83: =(IF(P83="","",MAX($N$3:$N82)+1)) -> 80 | O83: 139 | P83: احمد80 | Q83: انثى | T83: =IF(N83="","",IF(ISERROR(MATCH($N83,$J:$J,0)),T82,MAX($T$3:$T82)+1)) -> 4 | U83: نهاية اللجنة
N84: =(IF(P84="","",MAX($N$3:$N83)+1)) -> 81 | O84: 140 | P84: احمد81 | Q84: انثى | T84: =IF(N84="","",IF(ISERROR(MATCH($N84,$J:$J,0)),T83,MAX($T$3:$T83)+1)) -> 5
N85: =(IF(P85="","",MAX($N$3:$N84)+1)) -> 82 | O85: 141 | P85: احمد82 | Q85: انثى | T85: =IF(N85="","",IF(ISERROR(MATCH($N85,$J:$J,0)),T84,MAX($T$3:$T84)+1)) -> 5
N86: =(IF(P86="","",MAX($N$3:$N85)+1)) -> 83 | O86: 142 | P86: احمد83 | Q86: انثى | T86: =IF(N86="","",IF(ISERROR(MATCH($N86,$J:$J,0)),T85,MAX($T$3:$T85)+1)) -> 5
N87: =(IF(P87="","",MAX($N$3:$N86)+1)) -> 84 | O87: 143 | P87: احمد84 | Q87: انثى | T87: =IF(N87="","",IF(ISERROR(MATCH($N87,$J:$J,0)),T86,MAX($T$3:$T86)+1)) -> 5
N88: =(IF(P88="","",MAX($N$3:$N87)+1)) -> 85 | O88: 144 | P88: احمد85 | Q88: انثى | T88: =IF(N88="","",IF(ISERROR(MATCH($N88,$J:$J,0)),T87,MAX($T$3:$T87)+1)) -> 5
N89: =(IF(P89="","",MAX($N$3:$N88)+1)) -> 86 | O89: 145 | P89: احمد86 | Q89: انثى | T89: =IF(N89="","",IF(ISERROR(MATCH($N89,$J:$J,0)),T88,MAX($T$3:$T88)+1)) -> 5
N90: =(IF(P90="","",MAX($N$3:$N89)+1)) -> 87 | O90: 146 | P90: احمد87 | Q90: انثى | T90: =IF(N90="","",IF(ISERROR(MATCH($N90,$J:$J,0)),T89,MAX($T$3:$T89)+1)) -> 5
N91: =(IF(P91="","",MAX($N$3:$N90)+1)) -> 88 | O91: 147 | P91: احمد88 | Q91: انثى | T91: =IF(N91="","",IF(ISERROR(MATCH($N91,$J:$J,0)),T90,MAX($T$3:$T90)+1)) -> 5
N92: =(IF(P92="","",MAX($N$3:$N91)+1)) -> 89 | O92: 148 | P92: احمد89 | Q92: انثى | T92: =IF(N92="","",IF(ISERROR(MATCH($N92,$J:$J,0)),T91,MAX($T$3:$T91)+1)) -> 5
N93: =(IF(P93="","",MAX($N$3:$N92)+1)) -> 90 | O93: 149 | P93: احمد90 | Q93: انثى | T93: =IF(N93="","",IF(ISERROR(MATCH($N93,$J:$J,0)),T92,MAX($T$3:$T92)+1)) -> 5
N94: =(IF(P94="","",MAX($N$3:$N93)+1)) -> 91 | O94: 150 | P94: احمد91 | Q94: انثى | T94: =IF(N94="","",IF(ISERROR(MATCH($N94,$J:$J,0)),T93,MAX($T$3:$T93)+1)) -> 5
N95: =(IF(P95="","",MAX($N$3:$N94)+1)) -> 92 | O95: 151 | P95: احمد92 | Q95: انثى | T95: =IF(N95="","",IF(ISERROR(MATCH($N95,$J:$J,0)),T94,MAX($T$3:$T94)+1)) -> 5
N96: =(IF(P96="","",MAX($N$3:$N95)+1)) -> 93 | O96: 152 | P96: احمد93 | Q96: انثى | T96: =IF(N96="","",IF(ISERROR(MATCH($N96,$J:$J,0)),T95,MAX($T$3:$T95)+1)) -> 5
N97: =(IF(P97="","",MAX($N$3:$N96)+1)) -> 94 | O97: 153 | P97: احمد94 | Q97: انثى | T97: =IF(N97="","",IF(ISERROR(MATCH($N97,$J:$J,0)),T96,MAX($T$3:$T96)+1)) -> 5
N98: =(IF(P98="","",MAX($N$3:$N97)+1)) -> 95 | O98: 154 | P98: احمد95 | Q98: انثى | T98: =IF(N98="","",IF(ISERROR(MATCH($N98,$J:$J,0)),T97,MAX($T$3:$T97)+1)) -> 5
N99: =(IF(P99="","",MAX($N$3:$N98)+1)) -> 96 | O99: 155 | P99: احمد96 | Q99: انثى | T99: =IF(N99="","",IF(ISERROR(MATCH($N99,$J:$J,0)),T98,MAX($T$3:$T98)+1)) -> 5
N100: =(IF(P100="","",MAX($N$3:$N99)+1)) -> 97 | O100: 156 | P100: احمد97 | Q100: انثى | T100: =IF(N100="","",IF(ISERROR(MATCH($N100,$J:$J,0)),T99,MAX($T$3:$T99)+1)) -> 5
N101: =(IF(P101="","",MAX($N$3:$N100)+1)) -> 98 | O101: 157 | P101: احمد98 | Q101: انثى | T101: =IF(N101="","",IF(ISERROR(MATCH($N101,$J:$J,0)),T100,MAX($T$3:$T100)+1)) -> 5
N102: =(IF(P102="","",MAX($N$3:$N101)+1)) -> 99 | O102: 158 | P102: احمد99 | Q102: انثى | T102: =IF(N102="","",IF(ISERROR(MATCH($N102,$J:$J,0)),T101,MAX($T$3:$T101)+1)) -> 5
N103: =(IF(P103="","",MAX($N$3:$N102)+1)) -> 100 | O103: 159 | P103: احمد100 | Q103: انثى | T103: =IF(N103="","",IF(ISERROR(MATCH($N103,$J:$J,0)),T102,MAX($T$3:$T102)+1)) -> 5 | U103: نهاية اللجنة
N104: =(IF(P104="","",MAX($N$3:$N103)+1)) -> 101 | O104: 160 | P104: احمد101 | Q104: انثى | T104: =IF(N104="","",IF(ISERROR(MATCH($N104,$J:$J,0)),T103,MAX($T$3:$T103)+1)) -> 6
N105: =(IF(P105="","",MAX($N$3:$N104)+1)) -> 102 | O105: 161 | P105: احمد102 | Q105: انثى | T105: =IF(N105="","",IF(ISERROR(MATCH($N105,$J:$J,0)),T104,MAX($T$3:$T104)+1)) -> 6
N106: =(IF(P106="","",MAX($N$3:$N105)+1)) -> 103 | O106: 162 | P106: احمد103 | Q106: انثى | T106: =IF(N106="","",IF(ISERROR(MATCH($N106,$J:$J,0)),T105,MAX($T$3:$T105)+1)) -> 6
N107: =(IF(P107="","",MAX($N$3:$N106)+1)) -> 104 | O107: 163 | P107: احمد104 | Q107: انثى | T107: =IF(N107="","",IF(ISERROR(MATCH($N107,$J:$J,0)),T106,MAX($T$3:$T106)+1)) -> 6
N108: =(IF(P108="","",MAX($N$3:$N107)+1)) -> 105 | O108: 164 | P108: احمد105 | Q108: انثى | T108: =IF(N108="","",IF(ISERROR(MATCH($N108,$J:$J,0)),T107,MAX($T$3:$T107)+1)) -> 6
N109: =(IF(P109="","",MAX($N$3:$N108)+1)) -> 106 | O109: 165 | P109: احمد106 | Q109: انثى | T109: =IF(N109="","",IF(ISERROR(MATCH($N109,$J:$J,0)),T108,MAX($T$3:$T108)+1)) -> 6
N110: =(IF(P110="","",MAX($N$3:$N109)+1)) -> 107 | O110: 166 | P110: احمد107 | Q110: ذكر | T110: =IF(N110="","",IF(ISERROR(MATCH($N110,$J:$J,0)),T109,MAX($T$3:$T109)+1)) -> 6
N111: =(IF(P111="","",MAX($N$3:$N110)+1)) -> 108 | O111: 167 | P111: احمد108 | Q111: ذكر | T111: =IF(N111="","",IF(ISERROR(MATCH($N111,$J:$J,0)),T110,MAX($T$3:$T110)+1)) -> 6
N112: =(IF(P112="","",MAX($N$3:$N111)+1)) -> 109 | O112: 168 | P112: احمد109 | Q112: ذكر | T112: =IF(N112="","",IF(ISERROR(MATCH($N112,$J:$J,0)),T111,MAX($T$3:$T111)+1)) -> 6
N113: =(IF(P113="","",MAX($N$3:$N112)+1)) -> 110 | O113: 169 | P113: احمد110 | Q113: ذكر | T113: =IF(N113="","",IF(ISERROR(MATCH($N113,$J:$J,0)),T112,MAX($T$3:$T112)+1)) -> 6
N114: =(IF(P114="","",MAX($N$3:$N113)+1)) -> 111 | O114: 170 | P114: احمد111 | Q114: ذكر | T114: =IF(N114="","",IF(ISERROR(MATCH($N114,$J:$J,0)),T113,MAX($T$3:$T113)+1)) -> 6
N115: =(IF(P115="","",MAX($N$3:$N114)+1)) -> 112 | O115: 171 | P115: احمد112 | Q115: ذكر | T115: =IF(N115="","",IF(ISERROR(MATCH($N115,$J:$J,0)),T114,MAX($T$3:$T114)+1)) -> 6
N116: =(IF(P116="","",MAX($N$3:$N115)+1)) -> 113 | O116: 172 | P116: احمد113 | Q116: ذكر | T116: =IF(N116="","",IF(ISERROR(MATCH($N116,$J:$J,0)),T115,MAX($T$3:$T115)+1)) -> 6
N117: =(IF(P117="","",MAX($N$3:$N116)+1)) -> 114 | O117: 173 | P117: احمد114 | Q117: ذكر | T117: =IF(N117="","",IF(ISERROR(MATCH($N117,$J:$J,0)),T116,MAX($T$3:$T116)+1)) -> 6
N118: =(IF(P118="","",MAX($N$3:$N117)+1)) -> 115 | O118: 174 | P118: احمد115 | Q118: ذكر | T118: =IF(N118="","",IF(ISERROR(MATCH($N118,$J:$J,0)),T117,MAX($T$3:$T117)+1)) -> 6
N119: =(IF(P119="","",MAX($N$3:$N118)+1)) -> 116 | O119: 175 | P119: احمد116 | Q119: ذكر | T119: =IF(N119="","",IF(ISERROR(MATCH($N119,$J:$J,0)),T118,MAX($T$3:$T118)+1)) -> 6
N120: =(IF(P120="","",MAX($N$3:$N119)+1)) -> 117 | O120: 176 | P120: احمد117 | Q120: ذكر | T120: =IF(N120="","",IF(ISERROR(MATCH($N120,$J:$J,0)),T119,MAX($T$3:$T119)+1)) -> 6
N121: =(IF(P121="","",MAX($N$3:$N120)+1)) -> 118 | O121: 177 | P121: احمد118 | Q121: ذكر | T121: =IF(N121="","",IF(ISERROR(MATCH($N121,$J:$J,0)),T120,MAX($T$3:$T120)+1)) -> 6
N122: =(IF(P122="","",MAX($N$3:$N121)+1)) -> 119 | O122: 178 | P122: احمد119 | Q122: ذكر | T122: =IF(N122="","",IF(ISERROR(MATCH($N122,$J:$J,0)),T121,MAX($T$3:$T121)+1)) -> 6
N123: =(IF(P123="","",MAX($N$3:$N122)+1)) -> 120 | O123: 179 | P123: احمد120 | Q123: ذكر | T123: =IF(N123="","",IF(ISERROR(MATCH($N123,$J:$J,0)),T122,MAX($T$3:$T122)+1)) -> 6 | U123: نهاية اللجنة
N124: =(IF(P124="","",MAX($N$3:$N123)+1)) -> 121 | O124: 180 | P124: احمد121 | Q124: ذكر | T124: =IF(N124="","",IF(ISERROR(MATCH($N124,$J:$J,0)),T123,MAX($T$3:$T123)+1)) -> 7
N125: =(IF(P125="","",MAX($N$3:$N124)+1)) -> 122 | O125: 181 | P125: احمد122 | Q125: ذكر | T125: =IF(N125="","",IF(ISERROR(MATCH($N125,$J:$J,0)),T124,MAX($T$3:$T124)+1)) -> 7
N126: =(IF(P126="","",MAX($N$3:$N125)+1)) -> 123 | O126: 182 | P126: احمد123 | Q126: ذكر | T126: =IF(N126="","",IF(ISERROR(MATCH($N126,$J:$J,0)),T125,MAX($T$3:$T125)+1)) -> 7
N127: =(IF(P127="","",MAX($N$3:$N126)+1)) -> 124 | O127: 183 | P127: احمد124 | Q127: ذكر | T127: =IF(N127="","",IF(ISERROR(MATCH($N127,$J:$J,0)),T126,MAX($T$3:$T126)+1)) -> 7
N128: =(IF(P128="","",MAX($N$3:$N127)+1)) -> 125 | O128: 184 | P128: احمد125 | Q128: ذكر | T128: =IF(N128="","",IF(ISERROR(MATCH($N128,$J:$J,0)),T127,MAX($T$3:$T127)+1)) -> 7
N129: =(IF(P129="","",MAX($N$3:$N128)+1)) -> 126 | O129: 185 | P129: احمد126 | Q129: ذكر | T129: =IF(N129="","",IF(ISERROR(MATCH($N129,$J:$J,0)),T128,MAX($T$3:$T128)+1)) -> 7
N130: =(IF(P130="","",MAX($N$3:$N129)+1)) -> 127 | O130: 186 | P130: احمد127 | Q130: ذكر | T130: =IF(N130="","",IF(ISERROR(MATCH($N130,$J:$J,0)),T129,MAX($T$3:$T129)+1)) -> 7
N131: =(IF(P131="","",MAX($N$3:$N130)+1)) -> 128 | O131: 187 | P131: احمد128 | Q131: ذكر | T131: =IF(N131="","",IF(ISERROR(MATCH($N131,$J:$J,0)),T130,MAX($T$3:$T130)+1)) -> 7
N132: =(IF(P132="","",MAX($N$3:$N131)+1)) -> 129 | O132: 188 | P132: احمد129 | Q132: ذكر | T132: =IF(N132="","",IF(ISERROR(MATCH($N132,$J:$J,0)),T131,MAX($T$3:$T131)+1)) -> 7
N133: =(IF(P133="","",MAX($N$3:$N132)+1)) -> 130 | O133: 189 | P133: احمد130 | Q133: ذكر | T133: =IF(N133="","",IF(ISERROR(MATCH($N133,$J:$J,0)),T132,MAX($T$3:$T132)+1)) -> 7 | U133: =IF(T133=T134,"","نهاية اللجنة") -> 
N134: =(IF(P134="","",MAX($N$3:$N133)+1)) -> 131 | O134: =IF(P134="","",IF(O133+1>$M$2,"",O133+1)) -> 190 | P134: احمد131 | Q134: ذكر | T134: =IF(N134="","",IF(ISERROR(MATCH($N134,$J:$J,0)),T133,MAX($T$3:$T133)+1)) -> 7
N135: =(IF(P135="","",MAX($N$3:$N134)+1)) -> 132 | O135: 191 | P135: احمد132 | Q135: ذكر | T135: =IF(N135="","",IF(ISERROR(MATCH($N135,$J:$J,0)),T134,MAX($T$3:$T134)+1)) -> 7
N136: =(IF(P136="","",MAX($N$3:$N135)+1)) -> 133 | O136: 192 | P136: احمد133 | Q136: انثى | T136: =IF(N136="","",IF(ISERROR(MATCH($N136,$J:$J,0)),T135,MAX($T$3:$T135)+1)) -> 7
N137: =(IF(P137="","",MAX($N$3:$N136)+1)) -> 134 | O137: 193 | P137: احمد134 | Q137: انثى | T137: =IF(N137="","",IF(ISERROR(MATCH($N137,$J:$J,0)),T136,MAX($T$3:$T136)+1)) -> 7
N138: =(IF(P138="","",MAX($N$3:$N137)+1)) -> 135 | O138: 194 | P138: احمد135 | Q138: انثى | T138: =IF(N138="","",IF(ISERROR(MATCH($N138,$J:$J,0)),T137,MAX($T$3:$T137)+1)) -> 7
N139: =(IF(P139="","",MAX($N$3:$N138)+1)) -> 136 | O139: 195 | P139: احمد136 | Q139: انثى | T139: =IF(N139="","",IF(ISERROR(MATCH($N139,$J:$J,0)),T138,MAX($T$3:$T138)+1)) -> 7
N140: =(IF(P140="","",MAX($N$3:$N139)+1)) -> 137 | O140: 196 | P140: احمد137 | Q140: انثى | T140: =IF(N140="","",IF(ISERROR(MATCH($N140,$J:$J,0)),T139,MAX($T$3:$T139)+1)) -> 7
N141: =(IF(P141="","",MAX($N$3:$N140)+1)) -> 138 | O141: 197 | P141: احمد138 | Q141: انثى | T141: =IF(N141="","",IF(ISERROR(MATCH($N141,$J:$J,0)),T140,MAX($T$3:$T140)+1)) -> 7
N142: =(IF(P142="","",MAX($N$3:$N141)+1)) -> 139 | O142: 198 | P142: احمد139 | Q142: انثى | T142: =IF(N142="","",IF(ISERROR(MATCH($N142,$J:$J,0)),T141,MAX($T$3:$T141)+1)) -> 7
N143: =(IF(P143="","",MAX($N$3:$N142)+1)) -> 140 | O143: 199 | P143: احمد140 | Q143: انثى | T143: =IF(N143="","",IF(ISERROR(MATCH($N143,$J:$J,0)),T142,MAX($T$3:$T142)+1)) -> 7 | U143: نهاية اللجنة
N144: =(IF(P144="","",MAX($N$3:$N143)+1)) -> 141 | O144: 200 | P144: احمد141 | Q144: انثى | T144: =IF(N144="","",IF(ISERROR(MATCH($N144,$J:$J,0)),T143,MAX($T$3:$T143)+1)) -> 8
N145: =(IF(P145="","",MAX($N$3:$N144)+1)) -> 142 | O145: 201 | P145: احمد142 | Q145: انثى | T145: =IF(N145="","",IF(ISERROR(MATCH($N145,$J:$J,0)),T144,MAX($T$3:$T144)+1)) -> 8
N146: =(IF(P146="","",MAX($N$3:$N145)+1)) -> 143 | O146: 202 | P146: احمد143 | Q146: انثى | T146: =IF(N146="","",IF(ISERROR(MATCH($N146,$J:$J,0)),T145,MAX($T$3:$T145)+1)) -> 8
N147: =(IF(P147="","",MAX($N$3:$N146)+1)) -> 144 | O147: 203 | P147: احمد144 | Q147: انثى | T147: =IF(N147="","",IF(ISERROR(MATCH($N147,$J:$J,0)),T146,MAX($T$3:$T146)+1)) -> 8
N148: =(IF(P148="","",MAX($N$3:$N147)+1)) -> 145 | O148: 204 | P148: احمد145 | Q148: انثى | T148: =IF(N148="","",IF(ISERROR(MATCH($N148,$J:$J,0)),T147,MAX($T$3:$T147)+1)) -> 8
N149: =(IF(P149="","",MAX($N$3:$N148)+1)) -> 146 | O149: 205 | P149: احمد146 | Q149: انثى | T149: =IF(N149="","",IF(ISERROR(MATCH($N149,$J:$J,0)),T148,MAX($T$3:$T148)+1)) -> 8
N150: =(IF(P150="","",MAX($N$3:$N149)+1)) -> 147 | O150: 206 | P150: احمد147 | Q150: انثى | T150: =IF(N150="","",IF(ISERROR(MATCH($N150,$J:$J,0)),T149,MAX($T$3:$T149)+1)) -> 8
N151: =(IF(P151="","",MAX($N$3:$N150)+1)) -> 148 | O151: 207 | P151: احمد148 | Q151: انثى | T151: =IF(N151="","",IF(ISERROR(MATCH($N151,$J:$J,0)),T150,MAX($T$3:$T150)+1)) -> 8
N152: =(IF(P152="","",MAX($N$3:$N151)+1)) -> 149 | O152: 208 | P152: احمد149 | Q152: انثى | T152: =IF(N152="","",IF(ISERROR(MATCH($N152,$J:$J,0)),T151,MAX($T$3:$T151)+1)) -> 8
N153: =(IF(P153="","",MAX($N$3:$N152)+1)) -> 150 | O153: 209 | P153: احمد150 | Q153: انثى | T153: =IF(N153="","",IF(ISERROR(MATCH($N153,$J:$J,0)),T152,MAX($T$3:$T152)+1)) -> 8
N154: =(IF(P154="","",MAX($N$3:$N153)+1)) -> 151 | O154: 210 | P154: احمد151 | Q154: انثى | T154: =IF(N154="","",IF(ISERROR(MATCH($N154,$J:$J,0)),T153,MAX($T$3:$T153)+1)) -> 8
N155: =(IF(P155="","",MAX($N$3:$N154)+1)) -> 152 | O155: 211 | P155: احمد152 | Q155: انثى | T155: =IF(N155="","",IF(ISERROR(MATCH($N155,$J:$J,0)),T154,MAX($T$3:$T154)+1)) -> 8
N156: =(IF(P156="","",MAX($N$3:$N155)+1)) -> 153 | O156: 212 | P156: احمد153 | Q156: انثى | T156: =IF(N156="","",IF(ISERROR(MATCH($N156,$J:$J,0)),T155,MAX($T$3:$T155)+1)) -> 8
N157: =(IF(P157="","",MAX($N$3:$N156)+1)) -> 154 | O157: 213 | P157: احمد154 | Q157: انثى | T157: =IF(N157="","",IF(ISERROR(MATCH($N157,$J:$J,0)),T156,MAX($T$3:$T156)+1)) -> 8
N158: =(IF(P158="","",MAX($N$3:$N157)+1)) -> 155 | O158: 214 | P158: احمد155 | Q158: انثى | T158: =IF(N158="","",IF(ISERROR(MATCH($N158,$J:$J,0)),T157,MAX($T$3:$T157)+1)) -> 8
N159: =(IF(P159="","",MAX($N$3:$N158)+1)) -> 156 | O159: 215 | P159: احمد156 | Q159: انثى | T159: =IF(N159="","",IF(ISERROR(MATCH($N159,$J:$J,0)),T158,MAX($T$3:$T158)+1)) -> 8
N160: =(IF(P160="","",MAX($N$3:$N159)+1)) -> 157 | O160: 216 | P160: احمد157 | Q160: انثى | T160: =IF(N160="","",IF(ISERROR(MATCH($N160,$J:$J,0)),T159,MAX($T$3:$T159)+1)) -> 8
N161: =(IF(P161="","",MAX($N$3:$N160)+1)) -> 158 | O161: 217 | P161: احمد158 | Q161: انثى | T161: =IF(N161="","",IF(ISERROR(MATCH($N161,$J:$J,0)),T160,MAX($T$3:$T160)+1)) -> 8
N162: =(IF(P162="","",MAX($N$3:$N161)+1)) -> 159 | O162: 218 | P162: احمد159 | Q162: انثى | T162: =IF(N162="","",IF(ISERROR(MATCH($N162,$J:$J,0)),T161,MAX($T$3:$T161)+1)) -> 8
N163: =(IF(P163="","",MAX($N$3:$N162)+1)) -> 160 | O163: 219 | P163: احمد160 | Q163: ذكر | T163: =IF(N163="","",IF(ISERROR(MATCH($N163,$J:$J,0)),T162,MAX($T$3:$T162)+1)) -> 8 | U163: نهاية اللجنة
N164: =(IF(P164="","",MAX($N$3:$N163)+1)) -> 161 | O164: 220 | P164: احمد161 | Q164: ذكر | T164: =IF(N164="","",IF(ISERROR(MATCH($N164,$J:$J,0)),T163,MAX($T$3:$T163)+1)) -> 9
N165: =(IF(P165="","",MAX($N$3:$N164)+1)) -> 162 | O165: 221 | P165: احمد162 | Q165: ذكر | T165: =IF(N165="","",IF(ISERROR(MATCH($N165,$J:$J,0)),T164,MAX($T$3:$T164)+1)) -> 9
N166: =(IF(P166="","",MAX($N$3:$N165)+1)) -> 163 | O166: 222 | P166: احمد163 | Q166: ذكر | T166: =IF(N166="","",IF(ISERROR(MATCH($N166,$J:$J,0)),T165,MAX($T$3:$T165)+1)) -> 9
N167: =(IF(P167="","",MAX($N$3:$N166)+1)) -> 164 | O167: 223 | P167: احمد164 | Q167: ذكر | T167: =IF(N167="","",IF(ISERROR(MATCH($N167,$J:$J,0)),T166,MAX($T$3:$T166)+1)) -> 9
N168: =(IF(P168="","",MAX($N$3:$N167)+1)) -> 165 | O168: 224 | P168: احمد165 | Q168: ذكر | T168: =IF(N168="","",IF(ISERROR(MATCH($N168,$J:$J,0)),T167,MAX($T$3:$T167)+1)) -> 9
N169: =(IF(P169="","",MAX($N$3:$N168)+1)) -> 166 | O169: 225 | P169: احمد166 | Q169: ذكر | T169: =IF(N169="","",IF(ISERROR(MATCH($N169,$J:$J,0)),T168,MAX($T$3:$T168)+1)) -> 9
N170: =(IF(P170="","",MAX($N$3:$N169)+1)) -> 167 | O170: 226 | P170: احمد167 | Q170: ذكر | T170: =IF(N170="","",IF(ISERROR(MATCH($N170,$J:$J,0)),T169,MAX($T$3:$T169)+1)) -> 9
N171: =(IF(P171="","",MAX($N$3:$N170)+1)) -> 168 | O171: 227 | P171: احمد168 | Q171: ذكر | T171: =IF(N171="","",IF(ISERROR(MATCH($N171,$J:$J,0)),T170,MAX($T$3:$T170)+1)) -> 9
N172: =(IF(P172="","",MAX($N$3:$N171)+1)) -> 169 | O172: 228 | P172: احمد169 | Q172: ذكر | T172: =IF(N172="","",IF(ISERROR(MATCH($N172,$J:$J,0)),T171,MAX($T$3:$T171)+1)) -> 9
N173: =(IF(P173="","",MAX($N$3:$N172)+1)) -> 170 | O173: 229 | P173: احمد170 | Q173: ذكر | T173: =IF(N173="","",IF(ISERROR(MATCH($N173,$J:$J,0)),T172,MAX($T$3:$T172)+1)) -> 9
N174: =(IF(P174="","",MAX($N$3:$N173)+1)) -> 171 | O174: 230 | P174: احمد171 | Q174: ذكر | T174: =IF(N174="","",IF(ISERROR(MATCH($N174,$J:$J,0)),T173,MAX($T$3:$T173)+1)) -> 9
N175: =(IF(P175="","",MAX($N$3:$N174)+1)) -> 172 | O175: 231 | P175: احمد172 | Q175: ذكر | T175: =IF(N175="","",IF(ISERROR(MATCH($N175,$J:$J,0)),T174,MAX($T$3:$T174)+1)) -> 9
N176: =(IF(P176="","",MAX($N$3:$N175)+1)) -> 173 | O176: 232 | P176: احمد173 | Q176: ذكر | T176: =IF(N176="","",IF(ISERROR(MATCH($N176,$J:$J,0)),T175,MAX($T$3:$T175)+1)) -> 9
N177: =(IF(P177="","",MAX($N$3:$N176)+1)) -> 174 | O177: 233 | P177: احمد174 | Q177: ذكر | T177: =IF(N177="","",IF(ISERROR(MATCH($N177,$J:$J,0)),T176,MAX($T$3:$T176)+1)) -> 9
N178: =(IF(P178="","",MAX($N$3:$N177)+1)) -> 175 | O178: 234 | P178: احمد175 | Q178: ذكر | T178: =IF(N178="","",IF(ISERROR(MATCH($N178,$J:$J,0)),T177,MAX($T$3:$T177)+1)) -> 9
N179: =(IF(P179="","",MAX($N$3:$N178)+1)) -> 176 | O179: 235 | P179: احمد176 | Q179: ذكر | T179: =IF(N179="","",IF(ISERROR(MATCH($N179,$J:$J,0)),T178,MAX($T$3:$T178)+1)) -> 9
N180: =(IF(P180="","",MAX($N$3:$N179)+1)) -> 177 | O180: 236 | P180: احمد177 | Q180: ذكر | T180: =IF(N180="","",IF(ISERROR(MATCH($N180,$J:$J,0)),T179,MAX($T$3:$T179)+1)) -> 9
N181: =(IF(P181="","",MAX($N$3:$N180)+1)) -> 178 | O181: 237 | P181: احمد178 | Q181: ذكر | T181: =IF(N181="","",IF(ISERROR(MATCH($N181,$J:$J,0)),T180,MAX($T$3:$T180)+1)) -> 9
N182: =(IF(P182="","",MAX($N$3:$N181)+1)) -> 179 | O182: 238 | P182: احمد179 | Q182: ذكر | T182: =IF(N182="","",IF(ISERROR(MATCH($N182,$J:$J,0)),T181,MAX($T$3:$T181)+1)) -> 9
N183: =(IF(P183="","",MAX($N$3:$N182)+1)) -> 180 | O183: 239 | P183: احمد180 | Q183: ذكر | T183: =IF(N183="","",IF(ISERROR(MATCH($N183,$J:$J,0)),T182,MAX($T$3:$T182)+1)) -> 9 | U183: نهاية اللجنة
N184: =(IF(P184="","",MAX($N$3:$N183)+1)) -> 181 | O184: 240 | P184: احمد181 | Q184: ذكر | T184: =IF(N184="","",IF(ISERROR(MATCH($N184,$J:$J,0)),T183,MAX($T$3:$T183)+1)) -> 10
N185: =(IF(P185="","",MAX($N$3:$N184)+1)) -> 182 | O185: 241 | P185: احمد182 | Q185: ذكر | T185: =IF(N185="","",IF(ISERROR(MATCH($N185,$J:$J,0)),T184,MAX($T$3:$T184)+1)) -> 10
N186: =(IF(P186="","",MAX($N$3:$N185)+1)) -> 183 | O186: 242 | P186: احمد183 | Q186: ذكر | T186: =IF(N186="","",IF(ISERROR(MATCH($N186,$J:$J,0)),T185,MAX($T$3:$T185)+1)) -> 10
N187: =(IF(P187="","",MAX($N$3:$N186)+1)) -> 184 | O187: 243 | P187: احمد184 | Q187: ذكر | T187: =IF(N187="","",IF(ISERROR(MATCH($N187,$J:$J,0)),T186,MAX($T$3:$T186)+1)) -> 10
N188: =(IF(P188="","",MAX($N$3:$N187)+1)) -> 185 | O188: 244 | P188: احمد185 | Q188: ذكر | T188: =IF(N188="","",IF(ISERROR(MATCH($N188,$J:$J,0)),T187,MAX($T$3:$T187)+1)) -> 10
N189: =(IF(P189="","",MAX($N$3:$N188)+1)) -> 186 | O189: 245 | P189: احمد186 | Q189: انثى | T189: =IF(N189="","",IF(ISERROR(MATCH($N189,$J:$J,0)),T188,MAX($T$3:$T188)+1)) -> 10
N190: =(IF(P190="","",MAX($N$3:$N189)+1)) -> 187 | O190: 246 | P190: احمد187 | Q190: انثى | T190: =IF(N190="","",IF(ISERROR(MATCH($N190,$J:$J,0)),T189,MAX($T$3:$T189)+1)) -> 10
N191: =(IF(P191="","",MAX($N$3:$N190)+1)) -> 188 | O191: 247 | P191: احمد188 | Q191: انثى | T191: =IF(N191="","",IF(ISERROR(MATCH($N191,$J:$J,0)),T190,MAX($T$3:$T190)+1)) -> 10
N192: =(IF(P192="","",MAX($N$3:$N191)+1)) -> 189 | O192: 248 | P192: احمد189 | Q192: انثى | T192: =IF(N192="","",IF(ISERROR(MATCH($N192,$J:$J,0)),T191,MAX($T$3:$T191)+1)) -> 10
N193: =(IF(P193="","",MAX($N$3:$N192)+1)) -> 190 | O193: 249 | P193: احمد190 | Q193: انثى | T193: =IF(N193="","",IF(ISERROR(MATCH($N193,$J:$J,0)),T192,MAX($T$3:$T192)+1)) -> 10
N194: =(IF(P194="","",MAX($N$3:$N193)+1)) -> 191 | O194: 250 | P194: احمد191 | Q194: انثى | T194: =IF(N194="","",IF(ISERROR(MATCH($N194,$J:$J,0)),T193,MAX($T$3:$T193)+1)) -> 10
N195: =(IF(P195="","",MAX($N$3:$N194)+1)) -> 192 | O195: 251 | P195: احمد192 | Q195: انثى | T195: =IF(N195="","",IF(ISERROR(MATCH($N195,$J:$J,0)),T194,MAX($T$3:$T194)+1)) -> 10
N196: =(IF(P196="","",MAX($N$3:$N195)+1)) -> 193 | O196: 252 | P196: احمد193 | Q196: انثى | T196: =IF(N196="","",IF(ISERROR(MATCH($N196,$J:$J,0)),T195,MAX($T$3:$T195)+1)) -> 10
N197: =(IF(P197="","",MAX($N$3:$N196)+1)) -> 194 | O197: 253 | P197: احمد194 | Q197: انثى | T197: =IF(N197="","",IF(ISERROR(MATCH($N197,$J:$J,0)),T196,MAX($T$3:$T196)+1)) -> 10 | U197: =IF(T197=T198,"","نهاية اللجنة") -> 
N198: =(IF(P198="","",MAX($N$3:$N197)+1)) -> 195 | O198: =IF(P198="","",IF(O197+1>$M$2,"",O197+1)) -> 254 | P198: احمد195 | Q198: انثى | T198: =IF(N198="","",IF(ISERROR(MATCH($N198,$J:$J,0)),T197,MAX($T$3:$T197)+1)) -> 10
N199: =(IF(P199="","",MAX($N$3:$N198)+1)) -> 196 | O199: 255 | P199: احمد196 | Q199: انثى | T199: =IF(N199="","",IF(ISERROR(MATCH($N199,$J:$J,0)),T198,MAX($T$3:$T198)+1)) -> 10
N200: =(IF(P200="","",MAX($N$3:$N199)+1)) -> 197 | O200: 256 | P200: احمد197 | Q200: انثى | T200: =IF(N200="","",IF(ISERROR(MATCH($N200,$J:$J,0)),T199,MAX($T$3:$T199)+1)) -> 10
... 403 more rows

Sheet أرقام جلوس الرابع
A1: ='جدول الصف الرابع'!$A$1 -> إدارة /غرب المحلة الكبرى التعليمية | C1: رقم اللجنة | E1: =VLOOKUP(E2,جلوس_أسماء4,7,FALSE) -> 1 | G1: ='جدول الصف الرابع'!$A$1 -> إدارة /غرب المحلة الكبرى التعليمية | I1: رقم اللجنة | K1: =VLOOKUP(K2,جلوس_أسماء4,7,FALSE) -> 1 | O1: 1
A2: ='جدول الصف الرابع'!$A$2 -> مدرسة د/علي علي حبيش الابتدائية | C2: ='جدول الصف الرابع'!$C$4 -> الصف الرابع | E2: =O1 -> 1 | G2: ='جدول الصف الرابع'!$A$2 -> مدرسة د/علي علي حبيش الابتدائية | I2: ='جدول الصف الرابع'!$C$4 -> الصف الرابع | K2: =E212+1 -> 16
A3: ='جدول الصف الرابع'!$B$3 -> جدول امتحان الفصل الدراسي الأول / الثاني للعام الدراسي 2019/2018 | G3: ='جدول الصف الرابع'!$B$3 -> جدول امتحان الفصل الدراسي الأول / الثاني للعام الدراسي 2019/2018
A4: اسم التلميذ | B4: =VLOOKUP(E2,جلوس_أسماء4,3,FALSE) -> احمد1 | C4: رقم الجلوس | E4: =VLOOKUP(E2,جلوس_أسماء4,2,FALSE) -> 60 | G4: اسم التلميذ | H4: =VLOOKUP(K2,جلوس_أسماء4,3,FALSE) -> احمد16 | I4: رقم الجلوس | K4: =VLOOKUP(K2,جلوس_أسماء4,2,FALSE) -> 75
A5: اليوم والترايخ | B5: المـــــــــــــــــــادة | C5: الوقت | E5: الزمــــن | G5: اليوم والترايخ | H5: المـــــــــــــــــــادة | I5: الوقت | K5: الزمــــن
C6: من | D6: إلي | I6: من | J6: إلي
A7: ='جدول الصف الرابع'!$B$7 -> السبت | B7: ='جدول الصف الرابع'!$C$7 -> لغة عربية وخط | C7: ='جدول الصف الرابع'!$D$7 -> 8 | D7: ='جدول الصف الرابع'!$E$7 -> 10.3 | E7: ='جدول الصف الرابع'!$F$7 -> ساعتان ونصف | G7: ='جدول الصف الرابع'!$B$7 -> السبت | H7: ='جدول الصف الرابع'!$C$7 -> لغة عربية وخط | I7: ='جدول الصف الرابع'!$D$7 -> 8 | J7: ='جدول الصف الرابع'!$E$7 -> 10.3 | K7: ='جدول الصف الرابع'!$F$7 -> ساعتان ونصف
A8: ='جدول الصف الرابع'!$B$8 -> 2018-01-01 | G8: ='جدول الصف الرابع'!$B$8 -> 2018-01-01
A9: ='جدول الصف الرابع'!$B$9 -> الأحد | B9: ='جدول الصف الرابع'!$C$9 -> الرياضيات | C9: ='جدول الصف الرابع'!$D$9 -> 8 | D9: ='جدول الصف الرابع'!$E$9 -> 9.3 | E9: ='جدول الصف الرابع'!$F$9 -> ساعة ونصف | G9: ='جدول الصف الرابع'!$B$9 -> الأحد | H9: ='جدول الصف الرابع'!$C$9 -> الرياضيات | I9: ='جدول الصف الرابع'!$D$9 -> 8 | J9: ='جدول الصف الرابع'!$E$9 -> 9.3 | K9: ='جدول الصف الرابع'!$F$9 -> ساعة ونصف
A10: ='جدول الصف الرابع'!$B$10 -> 2018-01-02 | B10: ='جدول الصف الرابع'!$C$10 -> اللغة الإنجليزية | C10: ='جدول الصف الرابع'!$D$10 -> 9.45 | D10: ='جدول الصف الرابع'!$E$10 -> 11.15 | E10: ='جدول الصف الرابع'!$F$10 -> ساعة ونصف | G10: ='جدول الصف الرابع'!$B$10 -> 2018-01-02 | H10: ='جدول الصف الرابع'!$C$10 -> اللغة الإنجليزية | I10: ='جدول الصف الرابع'!$D$10 -> 9.45 | J10: ='جدول الصف الرابع'!$E$10 -> 11.15 | K10: ='جدول الصف الرابع'!$F$10 -> ساعة ونصف
A11: ='جدول الصف الرابع'!$B$11 -> الاثنين | B11: ='جدول الصف الرابع'!$C$11 -> علوم | C11: ='جدول الصف الرابع'!$D$11 -> 9.45 | D11: ='جدول الصف الرابع'!$E$11 -> 10.8 | E11: ='جدول الصف الرابع'!$F$11 -> ساعة ونصف | G11: ='جدول الصف الرابع'!$B$11 -> الاثنين | H11: ='جدول الصف الرابع'!$C$11 -> علوم | I11: ='جدول الصف الرابع'!$D$11 -> 9.45 | J11: ='جدول الصف الرابع'!$E$11 -> 10.8 | K11: ='جدول الصف الرابع'!$F$11 -> ساعة ونصف
A12: ='جدول الصف الرابع'!$B$12 -> 2018-01-03 | B12: ='جدول الصف الرابع'!$C$12 -> التربية الدينية | C12: ='جدول الصف الرابع'!$D$12 -> 9.67 | D12: ='جدول الصف الرابع'!$E$12 -> 10.93 | E12: ='جدول الصف الرابع'!$F$12 -> ساعة ونصف | G12: ='جدول الصف الرابع'!$B$12 -> 2018-01-03 | H12: ='جدول الصف الرابع'!$C$12 -> التربية الدينية | I12: ='جدول الصف الرابع'!$D$12 -> 9.67 | J12: ='جدول الصف الرابع'!$E$12 -> 10.93 | K12: ='جدول الصف الرابع'!$F$12 -> ساعة ونصف
A13: ='جدول الصف الرابع'!$B$13 -> الثلاثاء | B13: ='جدول الصف الرابع'!$C$13 -> الدراسات | C13: ='جدول الصف الرابع'!$D$13 -> 9.89 | D13: ='جدول الصف الرابع'!$E$13 -> 11.06 | E13: ='جدول الصف الرابع'!$F$13 -> ساعة ونصف | G13: ='جدول الصف الرابع'!$B$13 -> الثلاثاء | H13: ='جدول الصف الرابع'!$C$13 -> الدراسات | I13: ='جدول الصف الرابع'!$D$13 -> 9.89 | J13: ='جدول الصف الرابع'!$E$13 -> 11.06 | K13: ='جدول الصف الرابع'!$F$13 -> ساعة ونصف
A14: ='جدول الصف الرابع'!$B$14 -> 2018-01-04 | G14: ='جدول الصف الرابع'!$B$14 -> 2018-01-04
A16: ='جدول الصف الرابع'!$A$1 -> إدارة /غرب المحلة الكبرى التعليمية | C16: رقم اللجنة | E16: =VLOOKUP(E17,جلوس_أسماء4,7,FALSE) -> 1 | G16: ='جدول الصف الرابع'!$A$1 -> إدارة /غرب المحلة الكبرى التعليمية | I16: رقم اللجنة | K16: =VLOOKUP(K17,جلوس_أسماء4,7,FALSE) -> 1
A17: ='جدول الصف الرابع'!$A$2 -> مدرسة د/علي علي حبيش الابتدائية | C17: ='جدول الصف الرابع'!$C$4 -> الصف الرابع | E17: =E2+1 -> 2 | G17: ='جدول الصف الرابع'!$A$2 -> مدرسة د/علي علي حبيش الابتدائية | I17: ='جدول الصف الرابع'!$C$4 -> الصف الرابع | K17: =K2+1 -> 17
A18: ='جدول الصف الرابع'!$B$3 -> جدول امتحان الفصل الدراسي الأول / الثاني للعام الدراسي 2019/2018 | G18: ='جدول الصف الرابع'!$B$3 -> جدول امتحان الفصل الدراسي الأول / الثاني للعام الدراسي 2019/2018
A19: اسم التلميذ | B19: =VLOOKUP(E17,جلوس_أسماء4,3,FALSE) -> احمد2 | C19: رقم الجلوس | E19: =VLOOKUP(E17,جلوس_أسماء4,2,FALSE) -> 61 | G19: اسم التلميذ | H19: =VLOOKUP(K17,جلوس_أسماء4,3,FALSE) -> احمد17 | I19: رقم الجلوس | K19: =VLOOKUP(K17,جلوس_أسماء4,2,FALSE) -> 76
A20: اليوم والترايخ | B20: المـــــــــــــــــــادة | C20: الوقت | E20: الزمــــن | G20: اليوم والترايخ | H20: المـــــــــــــــــــادة | I20: الوقت | K20: الزمــــن
C21: من | D21: إلي | I21: من | J21: إلي
A22: ='جدول الصف الرابع'!$B$7 -> السبت | B22: ='جدول الصف الرابع'!$C$7 -> لغة عربية وخط | C22: ='جدول الصف الرابع'!$D$7 -> 8 | D22: ='جدول الصف الرابع'!$E$7 -> 10.3 | E22: ='جدول الصف الرابع'!$F$7 -> ساعتان ونصف | G22: ='جدول الصف الرابع'!$B$7 -> السبت | H22: ='جدول الصف الرابع'!$C$7 -> لغة عربية وخط | I22: ='جدول الصف الرابع'!$D$7 -> 8 | J22: ='جدول الصف الرابع'!$E$7 -> 10.3 | K22: ='جدول الصف الرابع'!$F$7 -> ساعتان ونصف
A23: ='جدول الصف الرابع'!$B$8 -> 2018-01-01 | G23: ='جدول الصف الرابع'!$B$8 -> 2018-01-01
A24: ='جدول الصف الرابع'!$B$9 -> الأحد | B24: ='جدول الصف الرابع'!$C$9 -> الرياضيات | C24: ='جدول الصف الرابع'!$D$9 -> 8 | D24: ='جدول الصف الرابع'!$E$9 -> 9.3 | E24: ='جدول الصف الرابع'!$F$9 -> ساعة ونصف | G24: ='جدول الصف الرابع'!$B$9 -> الأحد | H24: ='جدول الصف الرابع'!$C$9 -> الرياضيات | I24: ='جدول الصف الرابع'!$D$9 -> 8 | J24: ='جدول الصف الرابع'!$E$9 -> 9.3 | K24: ='جدول الصف الرابع'!$F$9 -> ساعة ونصف
A25: ='جدول الصف الرابع'!$B$10 -> 2018-01-02 | B25: ='جدول الصف الرابع'!$C$10 -> اللغة الإنجليزية | C25: ='جدول الصف الرابع'!$D$10 -> 9.45 | D25: ='جدول الصف الرابع'!$E$10 -> 11.15 | E25: ='جدول الصف الرابع'!$F$10 -> ساعة ونصف | G25: ='جدول الصف الرابع'!$B$10 -> 2018-01-02 | H25: ='جدول الصف الرابع'!$C$10 -> اللغة الإنجليزية | I25: ='جدول الصف الرابع'!$D$10 -> 9.45 | J25: ='جدول الصف الرابع'!$E$10 -> 11.15 | K25: ='جدول الصف الرابع'!$F$10 -> ساعة ونصف
A26: ='جدول الصف الرابع'!$B$11 -> الاثنين | B26: ='جدول الصف الرابع'!$C$11 -> علوم | C26: ='جدول الصف الرابع'!$D$11 -> 9.45 | D26: ='جدول الصف الرابع'!$E$11 -> 10.8 | E26: ='جدول الصف الرابع'!$F$11 -> ساعة ونصف | G26: ='جدول الصف الرابع'!$B$11 -> الاثنين | H26: ='جدول الصف الرابع'!$C$11 -> علوم | I26: ='جدول الصف الرابع'!$D$11 -> 9.45 | J26: ='جدول الصف الرابع'!$E$11 -> 10.8 | K26: ='جدول الصف الرابع'!$F$11 -> ساعة ونصف
A27: ='جدول الصف الرابع'!$B$12 -> 2018-01-03 | B27: ='جدول الصف الرابع'!$C$12 -> التربية الدينية | C27: ='جدول الصف الرابع'!$D$12 -> 9.67 | D27: ='جدول الصف الرابع'!$E$12 -> 10.93 | E27: ='جدول الصف الرابع'!$F$12 -> ساعة ونصف | G27: ='جدول الصف الرابع'!$B$12 -> 2018-01-03 | H27: ='جدول الصف الرابع'!$C$12 -> التربية الدينية | I27: ='جدول الصف الرابع'!$D$12 -> 9.67 | J27: ='جدول الصف الرابع'!$E$12 -> 10.93 | K27: ='جدول الصف الرابع'!$F$12 -> ساعة ونصف
A28: ='جدول الصف الرابع'!$B$13 -> الثلاثاء | B28: ='جدول الصف الرابع'!$C$13 -> الدراسات | C28: ='جدول الصف الرابع'!$D$13 -> 9.89 | D28: ='جدول الصف الرابع'!$E$13 -> 11.06 | E28: ='جدول الصف الرابع'!$F$13 -> ساعة ونصف | G28: ='جدول الصف الرابع'!$B$13 -> الثلاثاء | H28: ='جدول الصف الرابع'!$C$13 -> الدراسات | I28: ='جدول الصف الرابع'!$D$13 -> 9.89 | J28: ='جدول الصف الرابع'!$E$13 -> 11.06 | K28: ='جدول الصف الرابع'!$F$13 -> ساعة ونصف
A29: ='جدول الصف الرابع'!$B$14 -> 2018-01-04 | G29: ='جدول الصف الرابع'!$B$14 -> 2018-01-04
A31: ='جدول الصف الرابع'!$A$1 -> إدارة /غرب المحلة الكبرى التعليمية | C31: رقم اللجنة | E31: =VLOOKUP(E32,جلوس_أسماء4,7,FALSE) -> 1 | G31: ='جدول الصف الرابع'!$A$1 -> إدارة /غرب المحلة الكبرى التعليمية | I31: رقم اللجنة | K31: =VLOOKUP(K32,جلوس_أسماء4,7,FALSE) -> 1
A32: ='جدول الصف الرابع'!$A$2 -> مدرسة د/علي علي حبيش الابتدائية | C32: ='جدول الصف الرابع'!$C$4 -> الصف الرابع | E32: =E17+1 -> 3 | G32: ='جدول الصف الرابع'!$A$2 -> مدرسة د/علي علي حبيش الابتدائية | I32: ='جدول الصف الرابع'!$C$4 -> الصف الرابع | K32: =K17+1 -> 18
A33: ='جدول الصف الرابع'!$B$3 -> جدول امتحان الفصل الدراسي الأول / الثاني للعام الدراسي 2019/2018 | G33: ='جدول الصف الرابع'!$B$3 -> جدول امتحان الفصل الدراسي الأول / الثاني للعام الدراسي 2019/2018
A34: اسم التلميذ | B34: =VLOOKUP(E32,جلوس_أسماء4,3,FALSE) -> احمد3 | C34: رقم الجلوس | E34: =VLOOKUP(E32,جلوس_أسماء4,2,FALSE) -> 62 | G34: اسم التلميذ | H34: =VLOOKUP(K32,جلوس_أسماء4,3,FALSE) -> احمد18 | I34: رقم الجلوس | K34: =VLOOKUP(K32,جلوس_أسماء4,2,FALSE) -> 77
A35: اليوم والترايخ | B35: المـــــــــــــــــــادة | C35: الوقت | E35: الزمــــن | G35: اليوم والترايخ | H35: المـــــــــــــــــــادة | I35: الوقت | K35: الزمــــن
C36: من | D36: إلي | I36: من | J36: إلي
A37: ='جدول الصف الرابع'!$B$7 -> السبت | B37: ='جدول الصف الرابع'!$C$7 -> لغة عربية وخط | C37: ='جدول الصف الرابع'!$D$7 -> 8 | D37: ='جدول الصف الرابع'!$E$7 -> 10.3 | E37: ='جدول الصف الرابع'!$F$7 -> ساعتان ونصف | G37: ='جدول الصف الرابع'!$B$7 -> السبت | H37: ='جدول الصف الرابع'!$C$7 -> لغة عربية وخط | I37: ='جدول الصف الرابع'!$D$7 -> 8 | J37: ='جدول الصف الرابع'!$E$7 -> 10.3 | K37: ='جدول الصف الرابع'!$F$7 -> ساعتان ونصف
A38: ='جدول الصف الرابع'!$B$8 -> 2018-01-01 | G38: ='جدول الصف الرابع'!$B$8 -> 2018-01-01
A39: ='جدول الصف الرابع'!$B$9 -> الأحد | B39: ='جدول الصف الرابع'!$C$9 -> الرياضيات | C39: ='جدول الصف الرابع'!$D$9 -> 8 | D39: ='جدول الصف الرابع'!$E$9 -> 9.3 | E39: ='جدول الصف الرابع'!$F$9 -> ساعة ونصف | G39: ='جدول الصف الرابع'!$B$9 -> الأحد | H39: ='جدول الصف الرابع'!$C$9 -> الرياضيات | I39: ='جدول الصف الرابع'!$D$9 -> 8 | J39: ='جدول الصف الرابع'!$E$9 -> 9.3 | K39: ='جدول الصف الرابع'!$F$9 -> ساعة ونصف
A40: ='جدول الصف الرابع'!$B$10 -> 2018-01-02 | B40: ='جدول الصف الرابع'!$C$10 -> اللغة الإنجليزية | C40: ='جدول الصف الرابع'!$D$10 -> 9.45 | D40: ='جدول الصف الرابع'!$E$10 -> 11.15 | E40: ='جدول الصف الرابع'!$F$10 -> ساعة ونصف | G40: ='جدول الصف الرابع'!$B$10 -> 2018-01-02 | H40: ='جدول الصف الرابع'!$C$10 -> اللغة الإنجليزية | I40: ='جدول الصف الرابع'!$D$10 -> 9.45 | J40: ='جدول الصف الرابع'!$E$10 -> 11.15 | K40: ='جدول الصف الرابع'!$F$10 -> ساعة ونصف
A41: ='جدول الصف الرابع'!$B$11 -> الاثنين | B41: ='جدول الصف الرابع'!$C$11 -> علوم | C41: ='جدول الصف الرابع'!$D$11 -> 9.45 | D41: ='جدول الصف الرابع'!$E$11 -> 10.8 | E41: ='جدول الصف الرابع'!$F$11 -> ساعة ونصف | G41: ='جدول الصف الرابع'!$B$11 -> الاثنين | H41: ='جدول الصف الرابع'!$C$11 -> علوم | I41: ='جدول الصف الرابع'!$D$11 -> 9.45 | J41: ='جدول الصف الرابع'!$E$11 -> 10.8 | K41: ='جدول الصف الرابع'!$F$11 -> ساعة ونصف
A42: ='جدول الصف الرابع'!$B$12 -> 2018-01-03 | B42: ='جدول الصف الرابع'!$C$12 -> التربية الدينية | C42: ='جدول الصف الرابع'!$D$12 -> 9.67 | D42: ='جدول الصف الرابع'!$E$12 -> 10.93 | E42: ='جدول الصف الرابع'!$F$12 -> ساعة ونصف | G42: ='جدول الصف الرابع'!$B$12 -> 2018-01-03 | H42: ='جدول الصف الرابع'!$C$12 -> التربية الدينية | I42: ='جدول الصف الرابع'!$D$12 -> 9.67 | J42: ='جدول الصف الرابع'!$E$12 -> 10.93 | K42: ='جدول الصف الرابع'!$F$12 -> ساعة ونصف
A43: ='جدول الصف الرابع'!$B$13 -> الثلاثاء | B43: ='جدول الصف الرابع'!$C$13 -> الدراسات | C43: ='جدول الصف الرابع'!$D$13 -> 9.89 | D43: ='جدول الصف الرابع'!$E$13 -> 11.06 | E43: ='جدول الصف الرابع'!$F$13 -> ساعة ونصف | G43: ='جدول الصف الرابع'!$B$13 -> الثلاثاء | H43: ='جدول الصف الرابع'!$C$13 -> الدراسات | I43: ='جدول الصف الرابع'!$D$13 -> 9.89 | J43: ='جدول الصف الرابع'!$E$13 -> 11.06 | K43: ='جدول الصف الرابع'!$F$13 -> ساعة ونصف
A44: ='جدول الصف الرابع'!$B$14 -> 2018-01-04 | G44: ='جدول الصف الرابع'!$B$14 -> 2018-01-04
A46: ='جدول الصف الرابع'!$A$1 -> إدارة /غرب المحلة الكبرى التعليمية | C46: رقم اللجنة | E46: =VLOOKUP(E47,جلوس_أسماء4,7,FALSE) -> 1 | G46: ='جدول الصف الرابع'!$A$1 -> إدارة /غرب المحلة الكبرى التعليمية | I46: رقم اللجنة | K46: =VLOOKUP(K47,جلوس_أسماء4,7,FALSE) -> 1
A47: ='جدول الصف الرابع'!$A$2 -> مدرسة د/علي علي حبيش الابتدائية | C47: ='جدول الصف الرابع'!$C$4 -> الصف الرابع | E47: =E32+1 -> 4 | G47: ='جدول الصف الرابع'!$A$2 -> مدرسة د/علي علي حبيش الابتدائية | I47: ='جدول الصف الرابع'!$C$4 -> الصف الرابع | K47: =K32+1 -> 19
